Workbook

Sheet START
A1: =muni -> LIM353 Molemole

Sheet Instructions
D2: 2020
X4: Yes
X5: No
W7: Type of Entities Range: | X7: Parent Municipality
X8: Consolidated Information
W10: Date of Adjustment | X10: 2026-04-03
W19: MTREF Range: | X19: 2013
X20: 2014
X21: 2015
X22: 2016
X23: 2017
X24: 2018
X25: 2019
X26: 2020
X27: 2021
X28: 2022
X29: 2023
X30: 2024
X31: 2025
X32: 2026
W33: MTREF Linked:
W34: MTREF:
X35: 13
W36: Fin Year: | X36: =INDEX(X19:X33,X35,1) -> 2025
X38: =MTREF&"/"&RIGHT(MTREF,2)+1 -> 2025/26

Sheet Template names (hidden)
A1: Common sheet headings
A2: Head1 | B2: =HLOOKUP(MTREF,Headings,2) -> 2024/25 | C2: Prior year -1
A3: Head1A | B3: =HLOOKUP(MTREF,Headings,3) -> 2023/24 | C3: Prior year -2
A4: Head1B | B4: =HLOOKUP(MTREF,Headings,4) -> 2022/23 | C4: Prior year -3
A5: Head2 | B5: =HLOOKUP(MTREF,Headings,7) -> Budget Year 2025/26 | C5: Year of approved budget
A6: Head2A | B6: =HLOOKUP(MTREF,Headings,6) -> 2025/26 | C6: Approved budget year
A7: Head3 | B7: =HLOOKUP(MTREF,Headings,5) -> 2025/26 Medium Term Revenue & Expenditure Framework | C7: MTREF header name
A8: Head3A | B8: Medium Term Revenue and Expenditure Framework
A9: Head4 | B9: Current year
A10: Head5 | B10: Audited Outcome
A11: Head5A | B11: Outcome
A12: Head5B | B12: Pre-audit outcome
A13: Head6 | B13: Original Budget
A14: Head7 | B14: Adjusted Budget
A15: Head8 | B15: Full Year Forecast
A16: Head9 | B16: =HLOOKUP(MTREF,Headings,7) -> Budget Year 2025/26 | C16: 1st year of MTREF | D16: Year1
A17: Head10 | B17: =HLOOKUP(MTREF,Headings,8) -> Budget Year +1 2026/27 | C17: 2nd year of MTREF | D17: Year2
A18: Head11 | B18: =HLOOKUP(MTREF,Headings,9) -> Budget Year +2 2027/28 | C18: 3rd year of MTREF | D18: Year3
A19: Head24 | B19: Description | D19: Desc
A20: Head26 | B20: Vote Description | D20: VDesc
A21: Head27 | B21: Ref
A22: Head27a | B22: References
A23: Head28 | B23: Surplus/ (Deficit) for the year | D23: Result
A24: Head29 | B24: Annual target 2007/08
A25: Head30 | B25: Revised target 2007/08
A26: Head31 | B26: Quarter ended 30 September
A27: Head32 | B27: Quarter ended 31 December
A28: Head33 | B28: Quarter ended 31 March
A29: Head34 | B29: Quarter ended 30 June
A30: Head35 | B30: Variance explanation
A31: Head36 | B31: YTD Actual 31 Dec
A32: Head37 | B32: YTD Budget 31 Dec
A33: Head38 | B33: Monthly actual
A34: Head39 | B34: YearTD actual
A35: Head40 | B35: YearTD budget
A36: Head41 | B36: YTD variance
A37: Head42 | B37: Surplus/ (Deficit) for the yr/period
A38: Head43 | B38: =Head3&" Summary" -> 2025/26 Medium Term Revenue & Expenditure Framework Summary
A39: Head44 | B39: 2001 Census
A40: Head45 | B40: 2011 Census
A41: Head46 | B41: - Adjustments Budget - January 2007
A42: Head47 | B42: Previous target year to complete
A43: Head48 | B43: Present value
A44: Head49
A45: Head50 | B45: Other Adjusts.
A46: Head51 | B46: Accum. Funds
A47: Head52 | B47: Multi-year capital
A48: Head53 | B48: Unfore. Unavoid.
A49: Head54 | B49: Prior Adjusted
A50: Head55 | B50: Nat. or Prov. Govt
A51: Head56 | B51: Total Adjusts.
A52: Head57 | B52: Month DD, YYYY -
A53: Head58 | B53: Parent muni.
A54: Head59 | B54: Downward adjusts
A55: SFPerf1 | B55: Budgeted Financial Performance
A56: SFPerf2 | B56: Forecast Financial Performance
A57: SFPos1 | B57: Budgeted Financial Position
A58: SFPos2 | B58: Forecast Financial Position
A59: Cash1 | B59: Budget Cash Flow
A60: Cash2 | B60: Forecast Cash Flow
A61: RandM | B61: Expenditure includes repairs & maintenance of R'000
A62: Standard nomenclature
A63: Muni | B63: ='Lookup and lists'!B28 -> LIM353 Molemole
A64: Municipal Entities | B64: 2 | C64: Type of report: | D64: 1
A65: =IF((MuniEntities=1)*(MuniType=2),"YES","NO") -> NO | B65: Does this municipality have entities (consolidated budget and entity budgets required)? YES/NO
A66: Mid Year Review/Adjustment Budget schedules & tables | E66: Consolidated header | F66: Parent municipality header
A67: ADJSum | B67: =D67&IF(Consolques="YES",E67,F67) -> Table B1 Adjustments Budget Summary | D67: Table B1 | E67: ="Consolidated "&F67 -> Consolidated Adjustments Budget Summary | F67: ="Adjustments Budget Summary" -> Adjustments Budget Summary
A68: ADJ2 | B68: Table B3 Adjustments Budget Financial Performance (revenue and expenditure by municipal vote) | D68: Table B3 | E68: ="Consolidated "&F68 -> Consolidated Adjustments Budget Financial Performance (revenue and expenditure by municipal vote) | F68: ="Adjustments Budget Financial Performance (revenue and expenditure by municipal vote)" -> Adjustments Budget Financial Performance (revenue and expenditure by municipal vote)
A69: ADJ3 | B69: Table B2 Adjustments Budget Financial Performance (functional classification) | D69: Table B2 | E69: Consolidated Adjustments Budget Financial Performance (functional classification) | F69: ="Adjustments Budget Financial Performance (functional classification)" -> Adjustments Budget Financial Performance (functional classification)
A70: ADJ4 | B70: Table B4 Adjustments Budget Financial Performance (revenue and expenditure) | D70: Table B4 | E70: Consolidated Adjustments Budget Financial Performance (revenue and expenditure) | F70: ="Adjustments Budget Financial Performance (revenue and expenditure)" -> Adjustments Budget Financial Performance (revenue and expenditure)
A71: ADJ5 | B71: Table B5 Adjustments Capital Expenditure Budget by vote and funding | D71: Table B5 | E71: Consolidated Adjustments Capital Expenditure Budget by vote and funding | F71: ="Adjustments Capital Expenditure Budget by vote and funding" -> Adjustments Capital Expenditure Budget by vote and funding
A72: ADJ6 | B72: Table B6 Adjustments Budget Financial Position | D72: Table B6 | E72: Consolidated Adjustments Budget Financial Position | F72: ="Adjustments Budget Financial Position" -> Adjustments Budget Financial Position
A73: ADJ7 | B73: Table B7 Adjustments Budget Cash Flows | D73: Table B7 | E73: Consolidated Adjustments Budget Cash Flows | F73: ="Adjustments Budget Cash Flows" -> Adjustments Budget Cash Flows
A74: ADJ8 | B74: Table B8 Cash backed reserves/accumulated surplus reconciliation | D74: Table B8 | E74: Consolidated Cash backed reserves/accumulated surplus reconciliation | F74: ="Cash backed reserves/accumulated surplus reconciliation" -> Cash backed reserves/accumulated surplus reconciliation
A75: ADJ9 | B75: Table B9 Asset Management | D75: Table B9 | E75: Consolidated Asset Management | F75: ="Asset Management" -> Asset Management
A76: ADJ10 | B76: Table B10 Basic service delivery measurement | D76: Table B10 | E76: Consolidated Basic service delivery measurement | F76: ="Basic service delivery measurement" -> Basic service delivery measurement
A77: ADJB1 | B77: Supporting Table SB1 Supporting detail to 'Budgeted Financial Performance' | D77: =D101&"Table SB1 " -> Supporting Table SB1 | E77: Consolidated Supporting detail to 'Budgeted Financial Performance' | F77: ="Supporting detail to 'Budgeted Financial Performance'" -> Supporting detail to 'Budgeted Financial Performance'
A78: ADJB2 | B78: Supporting Table SB2 Supporting detail to 'Financial Position Budget' | D78: =D101&"Table SB2 " -> Supporting Table SB2 | E78: Consolidated Supporting detail to 'Financial Position Budget' | F78: ="Supporting detail to 'Financial Position Budget'" -> Supporting detail to 'Financial Position Budget'
A79: ADJB3 | B79: Supporting Table SB3 Adjustments to the SDBIP - performance objectives | D79: =D101&"Table SB3 " -> Supporting Table SB3 | E79: Consolidated Adjustments to the SDBIP - performance objectives | F79: ="Adjustments to the SDBIP - performance objectives" -> Adjustments to the SDBIP - performance objectives
A80: ADJB4 | B80: Supporting Table SB4 Adjustments to budgeted performance indicators and benchmarks | D80: =D101&"Table SB4 " -> Supporting Table SB4 | E80: Consolidated Adjustments to budgeted performance indicators and benchmarks | F80: ="Adjustments to budgeted performance indicators and benchmarks" -> Adjustments to budgeted performance indicators and benchmarks
A81: ADJB5 | B81: Supporting Table SB5 Adjustments Budget - social, economic and demographic statistics and assumptions | D81: =D101&"Table SB5 " -> Supporting Table SB5 | E81: Consolidated Adjustments Budget - social, economic and demographic statistics and assumptions | F81: ="Adjustments Budget - social, economic and demographic statistics and assumptions" -> Adjustments Budget - social, economic and demographic statistics and assumptions
A82: ADJB6 | B82: Supporting Table SB6 Adjustments Budget - funding measurement | D82: =D101&"Table SB6 " -> Supporting Table SB6 | E82: Consolidated Adjustments Budget - funding measurement | F82: ="Adjustments Budget - funding measurement" -> Adjustments Budget - funding measurement
A83: ADJB7 | B83: Supporting Table SB7 Adjustments Budget - transfers and grant receipts | D83: =D101&"Table SB7 " -> Supporting Table SB7 | E83: Consolidated Adjustments Budget - transfers and grant receipts | F83: ="Adjustments Budget - transfers and grant receipts" -> Adjustments Budget - transfers and grant receipts
A84: ADJB8 | B84: Supporting Table SB8 Adjustments Budget - expenditure on transfers and grant programme | D84: =D101&"Table SB8 " -> Supporting Table SB8 | E84: Consolidated Adjustments Budget - expenditure on transfers and grant programme | F84: ="Adjustments Budget - expenditure on transfers and grant programme" -> Adjustments Budget - expenditure on transfers and grant programme
A85: ADJB9 | B85: Supporting Table SB9 Adjustments Budget - reconciliation of transfers, grant receipts, and unspent funds | D85: =D101&"Table SB9 " -> Supporting Table SB9 | E85: Consolidated Adjustments Budget - reconciliation of transfers, grant receipts, and unspent funds | F85: ="Adjustments Budget - reconciliation of transfers, grant receipts, and unspent funds" -> Adjustments Budget - reconciliation of transfers, grant receipts, and unspent funds
A86: ADJB10 | B86: Supporting Table SB10 Adjustments Budget - transfers and grants made by the municipality | D86: =D101&"Table SB10 " -> Supporting Table SB10 | E86: Consolidated Adjustments Budget - transfers and grants made by the municipality | F86: ="Adjustments Budget - transfers and grants made by the municipality" -> Adjustments Budget - transfers and grants made by the municipality
A87: ADJB11 | B87: Supporting Table SB11 Adjustments Budget - councillor and staff benefits | D87: =D101&"Table SB11 " -> Supporting Table SB11 | E87: Consolidated Adjustments Budget - councillor and staff benefits | F87: ="Adjustments Budget - councillor and staff benefits" -> Adjustments Budget - councillor and staff benefits
A88: ADJB12 | B88: Supporting Table SB12 Adjustments Budget - monthly revenue and expenditure (municipal vote) | D88: =D101&"Table SB12 " -> Supporting Table SB12 | E88: Consolidated Adjustments Budget - monthly revenue and expenditure (municipal vote) | F88: ="Adjustments Budget - monthly revenue and expenditure (municipal vote)" -> Adjustments Budget - monthly revenue and expenditure (municipal vote)
A89: ADJB13 | B89: Supporting Table SB13 Adjustments Budget - monthly revenue and expenditure (functional classification) | D89: =D101&"Table SB13 " -> Supporting Table SB13 | E89: Consolidated Adjustments Budget - monthly revenue and expenditure (functional classification) | F89: ="Adjustments Budget - monthly revenue and expenditure (functional classification)" -> Adjustments Budget - monthly revenue and expenditure (functional classification)
A90: ADJB14 | B90: Supporting Table SB14 Adjustments Budget - monthly revenue and expenditure | D90: =D101&"Table SB14 " -> Supporting Table SB14 | E90: Consolidated Adjustments Budget - monthly revenue and expenditure | F90: ="Adjustments Budget - monthly revenue and expenditure" -> Adjustments Budget - monthly revenue and expenditure
A91: ADJB15 | B91: Supporting Table SB15 Adjustments Budget - monthly cash flow | D91: =D101&"Table SB15 " -> Supporting Table SB15 | E91: Consolidated Adjustments Budget - monthly cash flow | F91: ="Adjustments Budget - monthly cash flow" -> Adjustments Budget - monthly cash flow
A92: ADJB16 | B92: Supporting Table SB16 Adjustments Budget - monthly capital expenditure (municipal vote) | D92: =D101&"Table SB16 " -> Supporting Table SB16 | E92: Consolidated Adjustments Budget - monthly capital expenditure (municipal vote) | F92: ="Adjustments Budget - monthly capital expenditure (municipal vote)" -> Adjustments Budget - monthly capital expenditure (municipal vote)
A93: ADJB17 | B93: Supporting Table SB17 Adjustments Budget - monthly capital expenditure (functional classification) | D93: =D101&"Table SB17 " -> Supporting Table SB17 | E93: Consolidated Adjustments Budget - monthly capital expenditure (functional classification) | F93: ="Adjustments Budget - monthly capital expenditure (functional classification)" -> Adjustments Budget - monthly capital expenditure (functional classification)
A94: ADJB18a | B94: Supporting Table SB18a Adjustments Budget - capital expenditure on new assets by asset class | D94: =D101&"Table SB18a " -> Supporting Table SB18a | E94: Consolidated Adjustments Budget - capital expenditure on new assets by asset class | F94: ="Adjustments Budget - capital expenditure on new assets by asset class" -> Adjustments Budget - capital expenditure on new assets by asset class
A95: ADJB18b | B95: Supporting Table SB18b Adjustments Budget - capital expenditure on renewal of existing assets by asset class | D95: =D101&"Table SB18b " -> Supporting Table SB18b | E95: ="Consolidated "&F95 -> Consolidated Adjustments Budget - capital expenditure on renewal of existing assets by asset class | F95: ="Adjustments Budget - capital expenditure on renewal of existing assets by asset class" -> Adjustments Budget - capital expenditure on renewal of existing assets by asset class
A96: ADJB18c | B96: Supporting Table SB18c Adjustments Budget - expenditure on repairs and maintenance by asset class | D96: =D101&"Table SB18c " -> Supporting Table SB18c | E96: ="Consolidated "&F96 -> Consolidated Adjustments Budget - expenditure on repairs and maintenance by asset class | F96: ="Adjustments Budget - expenditure on repairs and maintenance by asset class" -> Adjustments Budget - expenditure on repairs and maintenance by asset class
A97: ADJB18d | B97: Supporting Table SB18d Adjustments Budget - depreciation by asset class | D97: =D101&"Table SB18d " -> Supporting Table SB18d | E97: ="Consolidated "&F97 -> Consolidated Adjustments Budget - depreciation by asset class | F97: ="Adjustments Budget - depreciation by asset class" -> Adjustments Budget - depreciation by asset class
A98: ADJB18e | B98: Supporting Table SB18e Adjustments Budget - capital expenditure on upgrading of existing assets by asset class | D98: =D101&"Table SB18e " -> Supporting Table SB18e | E98: ="Consolidated "&F98 -> Consolidated Adjustments Budget - capital expenditure on upgrading of existing assets by asset class | F98: ="Adjustments Budget - capital expenditure on upgrading of existing assets by asset class" -> Adjustments Budget - capital expenditure on upgrading of existing assets by asset class
A99: ADJB19 | B99: Supporting Table SB19 List of capital programmes and projects affected by Adjustments Budget | D99: =D101&"Table SB19 " -> Supporting Table SB19 | E99: Consolidated List of capital programmes and projects affected by Adjustments Budget | F99: ="List of capital programmes and projects affected by Adjustments Budget" -> List of capital programmes and projects affected by Adjustments Budget
A100: ADJB20 | B100: Supporting Table SB20 Not required | D100: =D101&"Table SB20 " -> Supporting Table SB20 | E100: ="Adjusted Budget Municipal Entity Performance Summary" -> Adjusted Budget Municipal Entity Performance Summary | F100: Not required
D101: Supporting

Sheet Lookup and lists (hidden)
A1: Description | B1: 2013 | C1: 2014 | D1: 2015 | E1: 2016 | F1: 2017 | G1: 2018 | H1: 2019 | I1: 2020 | J1: 2021 | K1: 2022 | L1: 2023 | M1: 2024 | N1: 2025 | O1: 2026 | Q1: Grants: | R1: National - opex | S1: Provincial - opex | T1: National - capex | U1: Provincial - capex | V1: YESNO
A2: ='Template names'!C2 -> Prior year -1 | B2: =B1-1&"/"&RIGHT(B1,2)-0 -> 2012/13 | C2: =C1-1&"/"&RIGHT(C1,2)-0 -> 2013/14 | D2: =D1-1&"/"&RIGHT(D1,2)-0 -> 2014/15 | E2: =E1-1&"/"&RIGHT(E1,2)-0 -> 2015/16 | F2: 2016/17 | G2: 2017/18 | H2: 2018/19 | I2: 2019/20 | J2: 2020/21 | K2: 2021/22 | L2: 2022/23 | M2: 2023/24 | N2: 2024/25 | O2: 2025/26 | R2: Local Government Equitable Share | S2: Health subsidy | T2: Municipal Infrastructure Grant (MIG) | U2: Agriculture | V2: Yes
A3: ='Template names'!C3 -> Prior year -2 | B3: =B1-2&"/"&RIGHT(B1,2)-1 -> 2011/12 | C3: =C1-2&"/"&RIGHT(C1,2)-1 -> 2012/13 | D3: =D1-2&"/"&RIGHT(D1,2)-1 -> 2013/14 | E3: =E1-2&"/"&RIGHT(E1,2)-1 -> 2014/15 | F3: 2015/16 | G3: 2016/17 | H3: 2017/18 | I3: 2018/19 | J3: 2019/20 | K3: 2020/21 | L3: 2021/22 | M3: 2022/23 | N3: 2023/24 | O3: 2024/25 | R3: RSC Levy Replacement | S3: Ambulance subsidy | T3: Public Transport and Systems | U3: Education | V3: No
A4: ='Template names'!C4 -> Prior year -3 | B4: =B1-3&"/"&RIGHT(B1,2)-2 -> 2010/11 | C4: =C1-3&"/"&RIGHT(C1,2)-2 -> 2011/12 | D4: =D1-3&"/"&RIGHT(D1,2)-2 -> 2012/13 | E4: =E1-3&"/"&RIGHT(E1,2)-2 -> 2013/14 | F4: 2014/15 | G4: 2015/16 | H4: 2016/17 | I4: 2017/18 | J4: 2018/19 | K4: 2019/20 | L4: 2020/21 | M4: 2021/22 | N4: 2022/23 | O4: 2023/24 | R4: Finance Management | S4: Housing | T4: Rural Transport Services and Infrastructure | U4: Health
A5: ='Template names'!C7 -> MTREF header name | B5: =B1&"/"&RIGHT(B1,2)+1&" Medium Term Revenue & Expenditure Framework" -> 2013/14 Medium Term Revenue & Expenditure Framework | C5: =C1&"/"&RIGHT(C1,2)+1&" Medium Term Revenue & Expenditure Framework" -> 2014/15 Medium Term Revenue & Expenditure Framework | D5: =D1&"/"&RIGHT(D1,2)+1&" Medium Term Revenue & Expenditure Framework" -> 2015/16 Medium Term Revenue & Expenditure Framework | E5: =E1&"/"&RIGHT(E1,2)+1&" Medium Term Revenue & Expenditure Framework" -> 2016/17 Medium Term Revenue & Expenditure Framework | F5: 2017/18 Medium Term Revenue & Expenditure Framework | G5: 2018/19 Medium Term Revenue & Expenditure Framework | H5: 2019/20 Medium Term Revenue & Expenditure Framework | I5: 2020/21 Medium Term Revenue & Expenditure Framework | J5: 2021/22 Medium Term Revenue & Expenditure Framework | K5: 2022/23 Medium Term Revenue & Expenditure Framework | L5: 2023/24 Medium Term Revenue & Expenditure Framework | M5: 2024/25 Medium Term Revenue & Expenditure Framework | N5: 2025/26 Medium Term Revenue & Expenditure Framework | O5: 2026/27 Medium Term Revenue & Expenditure Framework | R5: Municipal Systems Improvement | S5: Sport and Recreation | T5: Regional Bulk Infrastructure | U5: Housing and Local Government
A6: ='Template names'!C6 -> Approved budget year | B6: =B1&"/"&RIGHT(B1,2)+1 -> 2013/14 | C6: =C1&"/"&RIGHT(C1,2)+1 -> 2014/15 | D6: =D1&"/"&RIGHT(D1,2)+1 -> 2015/16 | E6: =E1&"/"&RIGHT(E1,2)+1 -> 2016/17 | F6: 2017/18 | G6: 2018/19 | H6: 2019/20 | I6: 2020/21 | J6: 2021/22 | K6: 2022/23 | L6: 2023/24 | M6: 2024/25 | N6: 2025/26 | O6: 2026/27 | R6: Water Services Operating Subsidy | T6: Rural Households Infrastructure | U6: Other Departments
A7: ='Template names'!C16 -> 1st year of MTREF | B7: ="Budget Year "&B1&"/"&RIGHT(B1,2)+1 -> Budget Year 2013/14 | C7: ="Budget Year "&C1&"/"&RIGHT(C1,2)+1 -> Budget Year 2014/15 | D7: ="Budget Year "&D1&"/"&RIGHT(D1,2)+1 -> Budget Year 2015/16 | E7: ="Budget Year "&E1&"/"&RIGHT(E1,2)+1 -> Budget Year 2016/17 | F7: Budget Year 2017/18 | G7: Budget Year 2018/19 | H7: Budget Year 2019/20 | I7: Budget Year 2020/21 | J7: Budget Year 2021/22 | K7: Budget Year 2022/23 | L7: Budget Year 2023/24 | M7: Budget Year 2024/25 | N7: Budget Year 2025/26 | O7: Budget Year 2026/27 | R7: Energy Efficiency and Demand Management | T7: Neighbourhood Development Partnership | U7: Public Works, Roads, Transport
A8: ='Template names'!C17 -> 2nd year of MTREF | B8: ="Budget Year +1 "&B1+1&"/"&RIGHT(B1,2)+2 -> Budget Year +1 2014/15 | C8: ="Budget Year +1 "&C1+1&"/"&RIGHT(C1,2)+2 -> Budget Year +1 2015/16 | D8: ="Budget Year +1 "&D1+1&"/"&RIGHT(D1,2)+2 -> Budget Year +1 2016/17 | E8: ="Budget Year +1 "&E1+1&"/"&RIGHT(E1,2)+2 -> Budget Year +1 2017/18 | F8: Budget Year +1 2018/19 | G8: Budget Year +1 2019/20 | H8: Budget Year +1 2020/21 | I8: Budget Year +1 2021/22 | J8: Budget Year +1 2022/23 | K8: Budget Year +1 2023/24 | L8: Budget Year +1 2024/25 | M8: Budget Year +1 2025/26 | N8: Budget Year +1 2026/27 | O8: Budget Year +1 2027/28 | R8: Integrated National Electrification Programme | T8: 2010 FIFA World Cup Stadiums Development | U8: Sport and Recreation
A9: ='Template names'!C18 -> 3rd year of MTREF | B9: ="Budget Year +2 "&B1+2&"/"&RIGHT(B1,2)+3 -> Budget Year +2 2015/16 | C9: ="Budget Year +2 "&C1+2&"/"&RIGHT(C1,2)+3 -> Budget Year +2 2016/17 | D9: ="Budget Year +2 "&D1+2&"/"&RIGHT(D1,2)+3 -> Budget Year +2 2017/18 | E9: ="Budget Year +2 "&E1+2&"/"&RIGHT(E1,2)+3 -> Budget Year +2 2018/19 | F9: Budget Year +2 2019/20 | G9: Budget Year +2 2020/21 | H9: Budget Year +2 2021/22 | I9: Budget Year +2 2022/23 | J9: Budget Year +2 2023/24 | K9: Budget Year +2 2024/25 | L9: Budget Year +2 2025/26 | M9: Budget Year +2 2026/27 | N9: Budget Year +2 2027/28 | O9: Budget Year +2 2028/29 | R9: Municipal Drought Relief
A10: Adjustments Budget | B10: ="Annual target " & B1&"/"&RIGHT(B1,2)+1 -> Annual target 2013/14 | C10: ="Annual target " & C1&"/"&RIGHT(C1,2)+1 -> Annual target 2014/15 | D10: ="Annual target " & D1&"/"&RIGHT(D1,2)+1 -> Annual target 2015/16 | E10: ="Annual target " & E1&"/"&RIGHT(E1,2)+1 -> Annual target 2016/17 | F10: Annual target 2017/18 | G10: Annual target 2018/19 | H10: Annual target 2019/20 | I10: Annual target 2020/21 | J10: Annual target 2021/22 | K10: Annual target 2022/23 | L10: Annual target 2023/24 | M10: Annual target 2024/25 | N10: Annual target 2025/26 | O10: Annual target 2026/27 | R10: 2010 FIFA World Cup Operating
A11: NOTE: This sheet should not be directly amended - select headings from sheet 'S' | R11: Electricity Demand Side Management
R12: EPWP Incentive
R15: Asset Class | S15: Asset sub-class Old | T15: Asset sub-class | U15: IUDF | V15: MTSF
R17: Roads Infrastructure | S17: Roads, Pavements & Bridges | T17: Roads | U17: Spatial integration | V17: Quality basic education
R18: Storm water Infrastructure | S18: Storm water | T18: Road Structures | U18: Inclusion and access | V18: A long and healthy life for all South Africans
R19: Electrical Infrastructure | S19: Generation | T19: Road Furniture | U19: Growth | V19: All people in South Africa are and feel safe
R20: Water Supply Infrastructure | S20: Transmission & Reticulation | T20: Capital Spares | U20: Governance | V20: Decent employment through inclusive growth
R21: Sanitation Infrastructure | S21: Street Lighting | T21: Drainage Collection | V21: A skilled and capable workforce to support an inclusive growth path
R22: Solid Waste Infrastructure | S22: Dams & Reservoirs | T22: Storm water Conveyance | V22: An efficient, competitive and responsive economic infrastructure network
R23: Rail Infrastructure | S23: Water purification | T23: Attenuation | V23: Vibrant, equitable, sustainable rural communities contributing towards food security for all
R24: Coastal Infrastructure | S24: Reticulation | T24: Power Plants | V24: Sustainable human settlements and improved quality of household life
R25: Information and Communication Infrastructure | S25: Sewerage purification | T25: HV Substations | V25: Responsive, accountable, effective and efficient local government
R26: Community Facilities | S26: Waste Management | T26: HV Switching Station | V26: Protect and enhance our environmental assets and natural resources
A27: Name link | B27: 141 | R27: Sport and Recreation Facilities | S27: Transportation | T27: HV Transmission Conductors | V27: Create a better South Africa and contribute to a better Africa and a better world
A28: Name of Muni | B28: =INDEX(B29:B312,B27,1) -> LIM353 Molemole | R28: Heritage assets | S28: Gas | T28: MV Substations | V28: An efficient, effective and development-oriented public service
B29: Choose name from list | C29: Set name on 'Instructions' sheet | R29: Revenue Generating | S29: Parks & gardens | T29: MV Switching Stations | V29: A comprehensive, responsive and sustainable social protection system
B30: BUF Buffalo City | C30: EC EASTERN CAPE | R30: Non-revenue Generating | S30: Sportsfields & stadia | T30: MV Networks | V30: A diverse, socially cohesive society with a common national identity
B31: NMA Nelson Mandela Bay | C31: EC EASTERN CAPE | R31: Operational Buildings | S31: Swimming pools | T31: LV Networks
B32: EC101 Dr Beyers Naude | C32: EC EASTERN CAPE | R32: Housing | S32: Community halls | T32: Capital Spares
B33: EC102 Blue Crane Route | C33: EC EASTERN CAPE | R33: Biological or Cultivated Assets | S33: Libraries | T33: Dams and Weirs
B34: EC104 Makana | C34: EC EASTERN CAPE | R34: Servitudes | S34: Recreational facilities | T34: Boreholes
B35: EC105 Ndlambe | C35: EC EASTERN CAPE | R35: Licences and Rights | S35: Fire, safety & emergency | T35: Reservoirs
B36: EC106 Sundays River Valley | C36: EC EASTERN CAPE | R36: Computer Equipment | S36: Security and policing | T36: Pump Stations
B37: EC108 Kouga | C37: EC EASTERN CAPE | R37: Furniture and Office Equipment | S37: Buses | T37: Water Treatment Works
B38: EC109 Kou-Kamma | C38: EC EASTERN CAPE | R38: Machinery and Equipment | S38: Clinics | T38: Bulk Mains
B39: DC10 Sarah Baartman | C39: EC EASTERN CAPE | R39: Transport Assets | S39: Museums & Art Galleries | T39: Distribution
B40: EC121 Mbhashe | C40: EC EASTERN CAPE | R40: Land | S40: Cemeteries | T40: Distribution Points
B41: EC122 Mnquma | C41: EC EASTERN CAPE | R41: Zoo's, Marine and Non-biological Animals | S41: Social rental housing | T41: PRV Stations
B42: EC123 Great Kei | C42: EC EASTERN CAPE | S42: Buildings | T42: Capital Spares
B43: EC124 Amahlathi | C43: EC EASTERN CAPE | S43: Housing development | T43: Pump Station
B44: EC126 Ngqushwa | C44: EC EASTERN CAPE | S44: General vehicles | T44: Reticulation
B45: EC129 Raymond Mhlaba | C45: EC EASTERN CAPE | S45: Specialised vehicles - Refuse | T45: Waste Water Treatment Works
B46: DC12 Amathole | C46: EC EASTERN CAPE | S46: Specialised vehicles - Fire | T46: Outfall Sewers
B47: EC131 Inxuba Yethemba | C47: EC EASTERN CAPE | S47: Specialised vehicles - Conservancy | T47: Toilet Facilities
B48: EC135 Intsika Yethu | C48: EC EASTERN CAPE | S48: Specialised vehicles - Ambulances | T48: Capital Spares
B49: EC136 Emalahleni (Ec) | C49: EC EASTERN CAPE | S49: Plant & equipment | T49: Landfill Sites
B50: EC137 Engcobo | C50: EC EASTERN CAPE | S50: Computers - hardware/equipment | T50: Waste Transfer Stations
B51: EC138 Sakhisizwe | C51: EC EASTERN CAPE | S51: Furniture and other office equipment | T51: Waste Processing Facilities
B52: EC139 Enoch Mgijima | C52: EC EASTERN CAPE | S52: Abattoirs | T52: Waste Drop-off Points
B53: DC13 Chris Hani | C53: EC EASTERN CAPE | S53: Markets | T53: Waste Separation Facilities
B54: EC141 Elundini | C54: EC EASTERN CAPE | S54: Civic Land and Buildings | T54: Electricity Generation Facilities
B55: EC142 Senqu | C55: EC EASTERN CAPE | S55: Other Buildings | T55: Capital Spares
B56: EC145 Walter Sisulu | C56: EC EASTERN CAPE | S56: Other Land | T56: Rail Lines
B57: DC14 Joe Gqabi | C57: EC EASTERN CAPE | S57: Surplus Assets - (Investment or Inventory) | T57: Rail Structures
B58: EC153 Ngquza Hills | C58: EC EASTERN CAPE | S58: Computers - software & programming | T58: Rail Furniture
B59: EC154 Port St Johns | C59: EC EASTERN CAPE | S59: Other | T59: Drainage Collection
B60: EC155 Nyandeni | C60: EC EASTERN CAPE | T60: Storm water Conveyance
B61: EC156 Mhlontlo | C61: EC EASTERN CAPE | R61: SB 19 | T61: Attenuation
B62: EC157 King Sabata Dalindyebo | C62: EC EASTERN CAPE | R62: Yes | T62: MV Substations
B63: DC15 O .R. Tambo | C63: EC EASTERN CAPE | R63: No | T63: LV Networks
B64: EC441 Matatiele | C64: EC EASTERN CAPE | T64: Capital Spares
B65: EC442 Umzimvubu | C65: EC EASTERN CAPE | T65: Sand Pumps
B66: EC443 Winnie Madikizela Mandela | C66: EC EASTERN CAPE | T66: Piers
B67: EC444 Ntabankulu | C67: EC EASTERN CAPE | T67: Revetments
B68: DC44 Alfred Nzo | C68: EC EASTERN CAPE | T68: Promenades
B69: MAN Mangaung | C69: FS FREE STATE | T69: Capital Spares
B70: FS161 Letsemeng | C70: FS FREE STATE | T70: Data Centres
B71: FS162 Kopanong | C71: FS FREE STATE | T71: Core Layers
B72: FS163 Mohokare | C72: FS FREE STATE | T72: Distribution Layers
B73: DC16 Xhariep | C73: FS FREE STATE | T73: Capital Spares
B74: FS181 Masilonyana | C74: FS FREE STATE | T74: Halls
B75: FS182 Tokologo | C75: FS FREE STATE | T75: Centres
B76: FS183 Tswelopele | C76: FS FREE STATE | T76: Crèches
B77: FS184 Matjhabeng | C77: FS FREE STATE | T77: Clinics/Care Centres
B78: FS185 Nala | C78: FS FREE STATE | T78: Fire/Ambulance Stations
B79: DC18 Lejweleputswa | C79: FS FREE STATE | T79: Testing Stations
B80: FS191 Setsoto | C80: FS FREE STATE | T80: Museums
B81: FS192 Dihlabeng | C81: FS FREE STATE | T81: Galleries
B82: FS193 Nketoana | C82: FS FREE STATE | T82: Theatres
B83: FS194 Maluti-a-Phofung | C83: FS FREE STATE | T83: Libraries
B84: FS195 Phumelela | C84: FS FREE STATE | T84: Cemeteries/Crematoria
B85: FS196 Mantsopa | C85: FS FREE STATE | T85: Police
B86: DC19 Thabo Mofutsanyana | C86: FS FREE STATE | T86: Purls
B87: FS201 Moqhaka | C87: FS FREE STATE | T87: Public Open Space
B88: FS203 Ngwathe | C88: FS FREE STATE | T88: Nature Reserves
B89: FS204 Metsimaholo | C89: FS FREE STATE | T89: Public Ablution Facilities
B90: FS205 Mafube | C90: FS FREE STATE | T90: Markets
B91: DC20 Fezile Dabi | C91: FS FREE STATE | T91: Stalls
B92: EKU City of Ekurhuleni | C92: GT GAUTENG | T92: Abattoirs
B93: JHB City Of Johannesburg | C93: GT GAUTENG | T93: Airports
B94: TSH City Of Tshwane | C94: GT GAUTENG | T94: Taxi Ranks/Bus Terminals
B95: GT421 Emfuleni | C95: GT GAUTENG | T95: Capital Spares
B96: GT422 Midvaal | C96: GT GAUTENG | T96: Indoor Facilities
B97: GT423 Lesedi | C97: GT GAUTENG | T97: Outdoor Facilities
B98: DC42 Sedibeng | C98: GT GAUTENG | T98: Capital Spares
B99: GT481 Mogale City | C99: GT GAUTENG | T99: Monuments
B100: GT484 Merafong City | C100: GT GAUTENG | T100: Historic Buildings
B101: GT485 Rand West City | C101: GT GAUTENG | T101: Works of Art
B102: DC48 West Rand | C102: GT GAUTENG | T102: Conservation Areas
B103: ETH eThekwini | C103: KZN KWAZULU-NATAL | T103: Other Heritage
B104: KZN212 Umdoni | C104: KZN KWAZULU-NATAL | T104: Improved Property
B105: KZN213 Umzumbe | C105: KZN KWAZULU-NATAL | T105: Unimproved Property
B106: KZN214 uMuziwabantu | C106: KZN KWAZULU-NATAL | T106: Municipal Offices
B107: KZN216 Ray Nkonyeni | C107: KZN KWAZULU-NATAL | T107: Pay/Enquiry Points
B108: DC21 Ugu | C108: KZN KWAZULU-NATAL | T108: Building Plan Offices
B109: KZN221 uMshwathi | C109: KZN KWAZULU-NATAL | T109: Workshops
B110: KZN222 uMngeni | C110: KZN KWAZULU-NATAL | T110: Yards
B111: KZN223 Mpofana | C111: KZN KWAZULU-NATAL | T111: Stores
B112: KZN224 Impendle | C112: KZN KWAZULU-NATAL | T112: Laboratories
B113: KZN225 Msunduzi | C113: KZN KWAZULU-NATAL | T113: Training Centres
B114: KZN226 Mkhambathini | C114: KZN KWAZULU-NATAL | T114: Manufacturing Plant
B115: KZN227 Richmond | C115: KZN KWAZULU-NATAL | T115: Depots
B116: DC22 uMgungundlovu | C116: KZN KWAZULU-NATAL | T116: Capital Spares
B117: KZN235 Okhahlamba | C117: KZN KWAZULU-NATAL | T117: Staff Housing
B118: KZN237 Inkosi Langalibalele | C118: KZN KWAZULU-NATAL | T118: Social Housing
B119: KZN238 Alfred Duma | C119: KZN KWAZULU-NATAL | T119: Capital Spares
B120: DC23 Uthukela | C120: KZN KWAZULU-NATAL | T120: Water Rights
B121: KZN241 Endumeni | C121: KZN KWAZULU-NATAL | T121: Effluent Licenses
B122: KZN242 Nquthu | C122: KZN KWAZULU-NATAL | T122: Solid Waste Licenses
B123: KZN244 Msinga | C123: KZN KWAZULU-NATAL | T123: Computer Software and Applications
B124: KZN245 Umvoti | C124: KZN KWAZULU-NATAL | T124: Load Settlement Software Applications
B125: DC24 Umzinyathi | C125: KZN KWAZULU-NATAL | T125: Unspecified
B126: KZN252 Newcastle | C126: KZN KWAZULU-NATAL
B127: KZN253 Emadlangeni | C127: KZN KWAZULU-NATAL
B128: KZN254 Dannhauser | C128: KZN KWAZULU-NATAL
B129: DC25 Amajuba | C129: KZN KWAZULU-NATAL
B130: KZN261 eDumbe | C130: KZN KWAZULU-NATAL
B131: KZN262 uPhongolo | C131: KZN KWAZULU-NATAL
B132: KZN263 Abaqulusi | C132: KZN KWAZULU-NATAL
B133: KZN265 Nongoma | C133: KZN KWAZULU-NATAL
B134: KZN266 Ulundi | C134: KZN KWAZULU-NATAL
B135: DC26 Zululand | C135: KZN KWAZULU-NATAL
B136: KZN271 Umhlabuyalingana | C136: KZN KWAZULU-NATAL
B137: KZN272 Jozini | C137: KZN KWAZULU-NATAL
B138: KZN275 Mtubatuba | C138: KZN KWAZULU-NATAL
B139: KZN276 Hlabisa Big Five | C139: KZN KWAZULU-NATAL
B140: DC27 Umkhanyakude | C140: KZN KWAZULU-NATAL
B141: KZN281 Mfolozi | C141: KZN KWAZULU-NATAL
B142: KZN282 uMhlathuze | C142: KZN KWAZULU-NATAL
B143: KZN284 uMlalazi | C143: KZN KWAZULU-NATAL
B144: KZN285 Mthonjaneni | C144: KZN KWAZULU-NATAL
B145: KZN286 Nkandla | C145: KZN KWAZULU-NATAL
B146: DC28 King Cetshwayo | C146: KZN KWAZULU-NATAL
B147: KZN291 Mandeni | C147: KZN KWAZULU-NATAL
B148: KZN292 KwaDukuza | C148: KZN KWAZULU-NATAL
B149: KZN293 Ndwedwe | C149: KZN KWAZULU-NATAL
B150: KZN294 Maphumulo | C150: KZN KWAZULU-NATAL
B151: DC29 iLembe | C151: KZN KWAZULU-NATAL
B152: KZN433 Greater Kokstad | C152: KZN KWAZULU-NATAL
B153: KZN434 Johannes Phumani Phungula | C153: KZN KWAZULU-NATAL
B154: KZN435 Umzimkhulu | C154: KZN KWAZULU-NATAL
B155: KZN436 Dr Nkosazana Dlamini Zuma | C155: KZN KWAZULU-NATAL
B156: DC43 Harry Gwala | C156: KZN KWAZULU-NATAL
B157: LIM331 Greater Giyani | C157: LIM LIMPOPO
B158: LIM332 Greater Letaba | C158: LIM LIMPOPO
B159: LIM333 Greater Tzaneen | C159: LIM LIMPOPO
B160: LIM334 Ba-Phalaborwa | C160: LIM LIMPOPO
B161: LIM335 Maruleng | C161: LIM LIMPOPO
B162: DC33 Mopani | C162: LIM LIMPOPO
B163: LIM341 Musina | C163: LIM LIMPOPO
B164: LIM343 Thulamela | C164: LIM LIMPOPO
B165: LIM344 Makhado | C165: LIM LIMPOPO
B166: LIM345 Collins Chabane | C166: LIM LIMPOPO
B167: DC34 Vhembe | C167: LIM LIMPOPO
B168: LIM351 Blouberg | C168: LIM LIMPOPO
B169: LIM353 Molemole | C169: LIM LIMPOPO
B170: LIM354 Polokwane | C170: LIM LIMPOPO
B171: LIM355 Lepelle-Nkumpi | C171: LIM LIMPOPO
B172: DC35 Capricorn | C172: LIM LIMPOPO
B173: LIM361 Thabazimbi | C173: LIM LIMPOPO
B174: LIM362 Lephalale | C174: LIM LIMPOPO
B175: LIM366 Bela Bela | C175: LIM LIMPOPO
B176: LIM367 Mogalakwena | C176: LIM LIMPOPO
B177: LIM368 Modimolle-Mookgopong | C177: LIM LIMPOPO
B178: DC36 Waterberg | C178: LIM LIMPOPO
B179: LIM471 Ephraim Mogale | C179: LIM LIMPOPO
B180: LIM472 Elias Motsoaledi | C180: LIM LIMPOPO
B181: LIM473 Makhuduthamaga | C181: LIM LIMPOPO
B182: LIM476 Tubatse Fetakgomo | C182: LIM LIMPOPO
B183: DC47 Sekhukhune | C183: LIM LIMPOPO
B184: MP301 Albert Luthuli | C184: MP MPUMALANGA
B185: MP302 Msukaligwa | C185: MP MPUMALANGA
B186: MP303 Mkhondo | C186: MP MPUMALANGA
B187: MP304 Pixley Ka Seme (MP) | C187: MP MPUMALANGA
B188: MP305 Lekwa | C188: MP MPUMALANGA
B189: MP306 Dipaleseng | C189: MP MPUMALANGA
B190: MP307 Govan Mbeki | C190: MP MPUMALANGA
B191: DC30 Gert Sibande | C191: MP MPUMALANGA
B192: MP311 Victor Khanye | C192: MP MPUMALANGA
B193: MP312 Emalahleni (Mp) | C193: MP MPUMALANGA
B194: MP313 Steve Tshwete | C194: MP MPUMALANGA
B195: MP314 Emakhazeni | C195: MP MPUMALANGA
B196: MP315 Thembisile Hani | C196: MP MPUMALANGA
B197: MP316 Dr J.S. Moroka | C197: MP MPUMALANGA
B198: DC31 Nkangala | C198: MP MPUMALANGA
B199: MP321 Thaba Chweu | C199: MP MPUMALANGA
B200: MP324 Nkomazi | C200: MP MPUMALANGA
B201: MP325 Bushbuckridge | C201: MP MPUMALANGA
B202: MP326 City of Mbombela | C202: MP MPUMALANGA
B203: DC32 Ehlanzeni | C203: MP MPUMALANGA
... 84 more rows

Sheet Org structure
A1: Organisational Structure Votes | C1: Organisational Structure Sub-Votes | E1: Display Sub-Votes
A2: =B2&" - "&C2 -> Vote 01 - Corporate Services | B2: Vote 01 | C2: Corporate Services
A3: =B11&" - "&C11 -> Vote 02 - Municipal Manager | B3: 01.1 | C3: Corporate Services Admin | D3: =CONCATENATE(B3, " - ", C3) -> 01.1 - Corporate Services Admin | E3: 01.1 - Corporate Services Admin
A4: =B17&" - "&C17 -> Vote 03 - Mayors Office | B4: 01.2 | C4: Human Resources | D4: 01.2 - Human Resources | E4: 01.2 - Human Resources
A5: =B23&" - "&C23 -> Vote 04 - Budget And Treasury | B5: 01.3 | C5: Information Technology Services | D5: 01.3 - Information Technology Services | E5: 01.3 - Information Technology Services
A6: =B30&" - "&C30 -> Vote 05 - Community Services | B6: 01.4 | C6: Council Support | D6: 01.4 - Council Support | E6: 01.4 - Council Support
A7: =B37&" - "&C37 -> Vote 06 - Technical Services | B7: 01.5 | C7: Local Economic Development | D7: 01.5 - Local Economic Development | E7: 01.5 - Local Economic Development
A8: =B46&" - "&C46 -> Vote 07 - | B8: 01.6 | C8: Municipal Planning Idp | D8: 01.6 - Municipal Planning Idp | E8: 01.6 - Municipal Planning Idp
A9: Vote 08 - | B9: 01.7 | C9: Town & Regional Planning | D9: 01.7 - Town & Regional Planning | E9: 01.7 - Town & Regional Planning
A10: Vote 09 - | B10: 01.8 | C10: Led Administration | D10: 01.8 - Led Administration | E10: 01.8 - Led Administration
A11: Vote 10 - | B11: Vote 02 | C11: Municipal Manager
A12: Vote 11 - | B12: 02.1 | C12: Municipal Manager Admin | D12: =CONCATENATE(B12, " - ", C12) -> 02.1 - Municipal Manager Admin | E12: 02.1 - Municipal Manager Admin
A13: Vote 12 - | B13: 02.2 | C13: Legal Services | D13: =CONCATENATE(B13, " - ", C13) -> 02.2 - Legal Services | E13: 02.2 - Legal Services
A14: Vote 13 - | B14: 02.3 | C14: Political Office Beares | D14: =CONCATENATE(B14, " - ", C14) -> 02.3 - Political Office Beares | E14: 02.3 - Political Office Beares
A15: Vote 14 - | B15: 02.4 | C15: Pms | D15: =CONCATENATE(B15, " - ", C15) -> 02.4 - Pms | E15: 02.4 - Pms
A16: Vote 15 - Other | B16: 02.5 | C16: Internal Audit | D16: =CONCATENATE(B16, " - ", C16) -> 02.5 - Internal Audit | E16: 02.5 - Internal Audit
B17: Vote 03 | C17: Mayors Office
B18: 03.1 | C18: Mayors Office Admin | D18: =CONCATENATE(B18, " - ", C18) -> 03.1 - Mayors Office Admin | E18: 03.1 - Mayors Office Admin
B19: 03.2 | C19: Office Of The Speaker | D19: =CONCATENATE(B19, " - ", C19) -> 03.2 - Office Of The Speaker | E19: 03.2 - Office Of The Speaker
B20: 03.3 | C20: Office Of The Chief Whip | D20: =CONCATENATE(B20, " - ", C20) -> 03.3 - Office Of The Chief Whip | E20: 03.3 - Office Of The Chief Whip
B21: 03.4 | C21: Exco Members | D21: =CONCATENATE(B21, " - ", C21) -> 03.4 - Exco Members | E21: 03.4 - Exco Members
B22: 03.5 | C22: Council General Administration | D22: =CONCATENATE(B22, " - ", C22) -> 03.5 - Council General Administration | E22: 03.5 - Council General Administration
B23: Vote 04 | C23: Budget And Treasury
B24: 04.1 | C24: Budget And Treasury Admin | D24: =CONCATENATE(B24, " - ", C24) -> 04.1 - Budget And Treasury Admin | E24: 04.1 - Budget And Treasury Admin
B25: 04.2 | C25: Chief Financial Officer Admin | D25: 04.2 - Chief Financial Officer Admin | E25: 04.2 - Chief Financial Officer Admin
B26: 04.3 | C26: Budget & Reporting | D26: 04.3 - Budget & Reporting | E26: 04.3 - Budget & Reporting
B27: 04.4 | C27: Revenue Management | D27: 04.4 - Revenue Management | E27: 04.4 - Revenue Management
B28: 04.5 | C28: Supply Chain Management | D28: 04.5 - Supply Chain Management | E28: 04.5 - Supply Chain Management
B29: 04.6 | C29: Expenditure | D29: 04.6 - Expenditure | E29: 04.6 - Expenditure
B30: Vote 05 | C30: Community Services
B31: 05.1 | C31: Community Services Admin | D31: =CONCATENATE(B31, " - ", C31) -> 05.1 - Community Services Admin | E31: 05.1 - Community Services Admin
B32: 05.2 | C32: Libraries | D32: 05.2 - Libraries | E32: 05.2 - Libraries
B33: 05.3 | C33: Sports Recreation & Social Amenitie | D33: 05.3 - Sports Recreation & Social Amenitie | E33: 05.3 - Sports Recreation & Social Amenitie
B34: 05.4 | C34: Traffic Service | D34: 05.4 - Traffic Service | E34: 05.4 - Traffic Service
B35: 05.5 | C35: Parks; Cemeteries | D35: 05.5 - Parks; Cemeteries | E35: 05.5 - Parks; Cemeteries
B36: 05.6 | C36: Refuse | D36: 05.6 - Refuse | E36: 05.6 - Refuse
B37: Vote 06 | C37: Technical Services
B38: 06.1 | C38: Mpac | D38: =CONCATENATE(B38, " - ", C38) -> 06.1 - Mpac | E38: 06.1 - Mpac
B39: 06.2 | C39: Technical Services Admin | D39: 06.2 - Technical Services Admin | E39: 06.2 - Technical Services Admin
B40: 06.3 | C40: Techn Serv-Roads: Admin | D40: 06.3 - Techn Serv-Roads: Admin | E40: 06.3 - Techn Serv-Roads: Admin
B41: 06.4 | C41: Techn Serv-Stormwater: Admin | D41: 06.4 - Techn Serv-Stormwater: Admin | E41: 06.4 - Techn Serv-Stormwater: Admin
B42: 06.5 | C42: Project Management Unit | D42: 06.5 - Project Management Unit | E42: 06.5 - Project Management Unit
B43: 06.6 | C43: Electrical & Machinery | D43: 06.6 - Electrical & Machinery | E43: 06.6 - Electrical & Machinery
B44: 06.7 | C44: Water | D44: 06.7 - Water | E44: 06.7 - Water
B45: 06.8 | C45: Sanitation | D45: 06.8 - Sanitation | E45: 06.8 - Sanitation
B46: Vote 07
B47: Vote 08
B48: Vote 09
B49: Vote 10
B50: Vote 11
B51: Vote 12
B52: Vote 13
B53: Vote 14
B54: Vote 15 | C54: Other

Sheet Contacts
A1: ='Template names'!$B$63&" - "&" Contact Information" -> LIM353 Molemole - Contact Information
A3: A. GENERAL INFORMATION
A4: Municipality | B4: ='Template names'!$B$63 -> LIM353 Molemole | C4: Set name on 'Instructions' sheet
A6: Grade | B6: Level 3 | C6: 1 Grade in terms of the Remuneration of Public Office Bearers Act.
A8: Province | B8: =IF(B4>" ",VLOOKUP(B4,'Lookup and lists'!B29:C312,2, FALSE)," ") -> LIM LIMPOPO
A10: Web Address | B10: Molemole.gov.za
A12: e-mail Address | B12: info@molemole.gov.za
A14: B. CONTACT INFORMATION
A15: Postal address:
A16: P.O. Box | B16: Private Bag X44
A17: City / Town | B17: Mogwadi
A18: Postal Code | B18: 0715
A20: Street address
A21: Building | B21: Civic Center
A22: Street No. & Name | B22: 303 Church Street
A23: City / Town | B23: Mogwadi
A24: Postal Code | B24: 0715
A26: General Contacts
A27: Telephone number | B27: 015 501 2300
A28: Fax number
A30: C. POLITICAL LEADERSHIP
A31: Speaker: | C31: Secretary/PA to the Speaker:
A32: ID Number | B32: 810311 0466 087 | C32: ID Number | D32: 850930 1072 080
A33: Title | B33: Mrs | C33: Title | D33: Ms
A34: Name | B34: MATLOU DIKELEDI | C34: Name | D34: Maketa Rathete
A35: Telephone number | B35: 015 501 0243 | C35: Telephone number | D35: 015 501 0243
A36: Cell number | B36: 060 876 1553 | C36: Cell number | D36: 072 958 1970
A37: Fax number | B37: 015 501 0419 | C37: Fax number | D37: 015 501 0419
A38: E-mail address | B38: dikeledipakgadi@gmail.com | C38: E-mail address | D38: rathetem@molemole.gov.za
A40: Mayor/Executive Mayor: | C40: Secretary/PA to the Mayor/Executive Mayor:
A41: ID Number | B41: 660312 5428 081 | C41: ID Number | D41: 850930 1072 080
A42: Title | B42: Mr | C42: Title | D42: Ms
A43: Name | B43: PAYA E | C43: Name | D43: RATHETE MAKETA
A44: Telephone number | B44: 015 501 0243 | C44: Telephone number | D44: 015 501 0243
A45: Cell number | B45: 082 474 2858 | C45: Cell number | D45: 072 958 1970
A46: Fax number | B46: 086 515 8809 | C46: Fax number | D46: 015 501 0419
A47: E-mail address | B47: payae@molemole.gov.za | C47: E-mail address | D47: rathetem@molemole.go.za
A49: Deputy Mayor/Executive Mayor: | C49: Secretary/PA to the Deputy Mayor/Executive Mayor:
A50: ID Number | C50: ID Number
A51: Title | C51: Title
A52: Name | C52: Name
A53: Telephone number | C53: Telephone number
A54: Cell number | C54: Cell number
A55: Fax number | C55: Fax number
A56: E-mail address | C56: E-mail address
A58: D. MANAGEMENT LEADERSHIP
A59: Municipal Manager: | C59: Secretary/PA to the Municipal Manager:
A60: ID Number | B60: 741022 5373 087 | C60: ID Number | D60: 7309085465084
A61: Title | B61: Mr | C61: Title | D61: Mr
A62: Name | B62: MAKGATO KGABO EMMANUEL | C62: Name | D62: Nkoto Modisha
A63: Telephone number | B63: 015 501 0243 | C63: Telephone number | D63: 015 501 0243
A64: Cell number | B64: 082 619 5734 | C64: Cell number | D64: 084 563 7813
A65: Fax number | B65: 015 501 0419 | C65: Fax number | D65: 015 501 0419
A66: E-mail address | B66: MakgatoKE@molemole.gov.za | C66: E-mail address | D66: ModishaN@molemole.gov.za
A68: Chief Financial Officer | C68: Secretary/PA to the Chief Financial Officer
A69: ID Number | B69: 840119 5370 087 | C69: ID Number | D69: 9312190190082
A70: Title | B70: Mr | C70: Title | D70: Miss
A71: Name | B71: NKALANGA AS | C71: Name | D71: Rachel Dipela
A72: Telephone number | B72: 015 501 0243 | C72: Telephone number | D72: 015 501 0243
A73: Cell number | B73: 072 343 3314 | C73: Cell number | D73: 071 610 6432
A74: Fax number | B74: 015 501 0419 | C74: Fax number | D74: 015 501 0419
A75: E-mail address | B75: Nkalanga@molemole.gov.za | C75: E-mail address | D75: rdipela@molemole.gov.za
A77: Official responsible for submitting financial information | C77: Official responsible for submitting financial information
A78: ID Number | B78: 820214 0303 086 | C78: ID Number
A79: Title | B79: Mrs | C79: Title
A80: Name | B80: WISO PORTIA | C80: Name
A81: Telephone number | B81: 015 501 0243 | C81: Telephone number
A82: Cell number | B82: 082 488 3823 | C82: Cell number
A83: Fax number | B83: 015 501 0419 | C83: Fax number
A84: E-mail address | B84: mamabolomp@molemole.gov.za | C84: E-mail address
A85: Official responsible for submitting financial information | C85: Official responsible for submitting financial information
A86: ID Number | C86: ID Number
A87: Title | C87: Title
A88: Name | C88: Name
A89: Telephone number | C89: Telephone number
A90: Cell number | C90: Cell number
A91: Fax number | C91: Fax number
A92: E-mail address | C92: E-mail address
A93: Official responsible for submitting financial information | C93: Official responsible for submitting financial information
A94: ID Number | C94: ID Number
A95: Title | C95: Title
A96: Name | C96: Name
A97: Telephone number | C97: Telephone number
A98: Cell number | C98: Cell number
A99: Fax number | C99: Fax number
A100: E-mail address | C100: E-mail address
A101: Official responsible for submitting financial information | C101: Official responsible for submitting financial information
A102: ID Number | C102: ID Number
A103: Title | C103: Title
A104: Name | C104: Name
A105: Telephone number | C105: Telephone number
A106: Cell number | C106: Cell number
A107: Fax number | C107: Fax number
A108: E-mail address | C108: E-mail address
A109: Official responsible for submitting financial information | C109: Official responsible for submitting financial information
A110: ID Number | C110: ID Number
A111: Title | C111: Title
A112: Name | C112: Name
A113: Telephone number | C113: Telephone number
A114: Cell number | C114: Cell number
A115: Fax number | C115: Fax number
A116: E-mail address | C116: E-mail address
A117: Official responsible for submitting financial information | C117: Official responsible for submitting financial information
A118: ID Number | C118: ID Number
A119: Title | C119: Title
A120: Name | C120: Name
A121: Telephone number | C121: Telephone number
A122: Cell number | C122: Cell number
A123: Fax number | C123: Fax number
A124: E-mail address | C124: E-mail address
A125: Official responsible for submitting financial information | C125: Official responsible for submitting financial information
A126: ID Number | C126: ID Number
A127: Title | C127: Title
A128: Name | C128: Name
A129: Telephone number | C129: Telephone number
A130: Cell number | C130: Cell number
A131: Fax number | C131: Fax number
A132: E-mail address | C132: E-mail address
A133: Official responsible for submitting financial information
A134: ID Number
A135: Title
A136: Name
A137: Telephone number
A138: Cell number
A139: Fax number
A140: E-mail address
H170: 04/03/2026

Sheet B1-Sum
A1: =muni&" - "&adjsum&" - "&Date -> LIM353 Molemole - Table B1 Adjustments Budget Summary - 46115
A2: =desc -> Description | B2: =Head2 -> Budget Year 2025/26 | K2: =Head10 -> Budget Year +1 2026/27 | L2: =Head11 -> Budget Year +2 2027/28
B3: =Head6 -> Original Budget | C3: =Head54 -> Prior Adjusted | D3: =Head51 -> Accum. Funds | E3: =Head52 -> Multi-year capital | F3: =Head53 -> Unfore. Unavoid. | G3: =Head55 -> Nat. or Prov. Govt | H3: =Head50 -> Other Adjusts. | I3: =Head56 -> Total Adjusts. | J3: =Head7 -> Adjusted Budget | K3: =Head7 -> Adjusted Budget | L3: =Head7 -> Adjusted Budget
C4: 1 | D4: 2 | E4: 3 | F4: 4 | G4: 5 | H4: 6 | I4: 7 | J4: 8
A5: R thousands | B5: A | C5: A1 | D5: B | E5: C | F5: D | G5: E | H5: F | I5: G | J5: H
A6: Financial Performance
A7: Property rates | B7: =SUM('B4-FinPerf RE'!C24) -> 39267857 | C7: =SUM('B4-FinPerf RE'!D24) -> 0 | D7: =SUM('B4-FinPerf RE'!E24) -> 0 | E7: =SUM('B4-FinPerf RE'!F24) -> 0 | F7: =SUM('B4-FinPerf RE'!G24) -> 0 | G7: =SUM('B4-FinPerf RE'!H24) -> 0 | H7: =SUM('B4-FinPerf RE'!I24) -> 0 | I7: =SUM('B4-FinPerf RE'!J24) -> 0 | J7: =SUM('B4-FinPerf RE'!K24) -> 39267857 | K7: =SUM('B4-FinPerf RE'!L24) -> 41074179 | L7: =SUM('B4-FinPerf RE'!M24) -> 42881440
A8: Service charges | B8: =SUM('B4-FinPerf RE'!C8:C11) -> 15186304 | C8: =SUM('B4-FinPerf RE'!D8:D11) -> 0 | D8: =SUM('B4-FinPerf RE'!E8:E11) -> 0 | E8: =SUM('B4-FinPerf RE'!F8:F11) -> 0 | F8: =SUM('B4-FinPerf RE'!G8:G11) -> 0 | G8: =SUM('B4-FinPerf RE'!H8:H11) -> 0 | H8: =SUM('B4-FinPerf RE'!I8:I11) -> 0 | I8: =SUM('B4-FinPerf RE'!J8:J11) -> 0 | J8: =SUM('B4-FinPerf RE'!K8:K11) -> 15186304 | K8: =SUM('B4-FinPerf RE'!L8:L11) -> 15884875 | L8: =SUM('B4-FinPerf RE'!M8:M11) -> 16583810
A9: Investment revenue | B9: ='B4-FinPerf RE'!C16 -> 16695504 | C9: ='B4-FinPerf RE'!D16 -> 0 | D9: ='B4-FinPerf RE'!E16 -> 0 | E9: ='B4-FinPerf RE'!F16 -> 0 | F9: ='B4-FinPerf RE'!G16 -> 0 | G9: ='B4-FinPerf RE'!H16 -> 0 | H9: ='B4-FinPerf RE'!I16 -> 0 | I9: ='B4-FinPerf RE'!J16 -> 0 | J9: ='B4-FinPerf RE'!K16 -> 16695504 | K9: ='B4-FinPerf RE'!L16 -> 17564799 | L9: ='B4-FinPerf RE'!M16 -> 19247554
A10: Transfers recognised - operational | B10: ='B4-FinPerf RE'!C28 -> 207339000 | C10: ='B4-FinPerf RE'!D28 -> 0 | D10: ='B4-FinPerf RE'!E28 -> 0 | E10: ='B4-FinPerf RE'!F28 -> 0 | F10: ='B4-FinPerf RE'!G28 -> 0 | G10: ='B4-FinPerf RE'!H28 -> 0 | H10: ='B4-FinPerf RE'!I28 -> -15971000 | I10: ='B4-FinPerf RE'!J28 -> -15971000 | J10: ='B4-FinPerf RE'!K28 -> 191368000 | K10: ='B4-FinPerf RE'!L28 -> 197549900 | L10: ='B4-FinPerf RE'!M28 -> 206469650
A11: Other own revenue | B11: =+B12-SUM(B7:B10) -> 19130890 | C11: =+C12-SUM(C7:C10) -> 0 | D11: 0 | E11: 0 | F11: 0 | G11: 0 | H11: 18043432 | I11: 18043432 | J11: 37174322 | K11: 20010671 | L11: 20886374
A12: Total Revenue (excluding capital transfers and contributions) | B12: =+'B4-FinPerf RE'!C35 -> 297619555 | C12: =+'B4-FinPerf RE'!D35 -> 0 | D12: =+'B4-FinPerf RE'!E35 -> 0 | E12: =+'B4-FinPerf RE'!F35 -> 0 | F12: =+'B4-FinPerf RE'!G35 -> 0 | G12: =+'B4-FinPerf RE'!H35 -> 0 | H12: =+'B4-FinPerf RE'!I35 -> 2072432 | I12: =+'B4-FinPerf RE'!J35 -> 2072432 | J12: =+'B4-FinPerf RE'!K35 -> 299691987 | K12: =+'B4-FinPerf RE'!L35 -> 292084424 | L12: =+'B4-FinPerf RE'!M35 -> 306068828
A13: Employee costs | B13: ='B4-FinPerf RE'!C38 -> 121240320 | C13: ='B4-FinPerf RE'!D38 -> 0 | D13: ='B4-FinPerf RE'!E38 -> 0 | E13: ='B4-FinPerf RE'!F38 -> 0 | F13: ='B4-FinPerf RE'!G38 -> 0 | G13: ='B4-FinPerf RE'!H38 -> 0 | H13: ='B4-FinPerf RE'!I38 -> 4890556 | I13: =SUM(D13:H13) -> 4890556 | J13: =IF(C13=0,B13+I13,C13+I13) -> 126130876 | K13: ='B4-FinPerf RE'!L38 -> 126805609 | L13: ='B4-FinPerf RE'!M38 -> 129963254
A14: Remuneration of councillors | B14: ='B4-FinPerf RE'!C39 -> 16413901 | C14: ='B4-FinPerf RE'!D39 -> 0 | D14: ='B4-FinPerf RE'!E39 -> 0 | E14: ='B4-FinPerf RE'!F39 -> 0 | F14: ='B4-FinPerf RE'!G39 -> 0 | G14: ='B4-FinPerf RE'!H39 -> 0 | H14: ='B4-FinPerf RE'!I39 -> -148105 | I14: -148105 | J14: 16265796 | K14: ='B4-FinPerf RE'!L39 -> 17570526 | L14: ='B4-FinPerf RE'!M39 -> 18009791
A15: Depreciation & asset impairment | B15: ='B4-FinPerf RE'!C42+'B4-FinPerf RE'!C43 -> 24015509 | C15: ='B4-FinPerf RE'!D42+'B4-FinPerf RE'!D43 -> 0 | D15: ='B4-FinPerf RE'!E42+'B4-FinPerf RE'!E43 -> 0 | E15: ='B4-FinPerf RE'!F42+'B4-FinPerf RE'!F43 -> 0 | F15: ='B4-FinPerf RE'!G42+'B4-FinPerf RE'!G43 -> 0 | G15: ='B4-FinPerf RE'!H42+'B4-FinPerf RE'!H43 -> 0 | H15: ='B4-FinPerf RE'!I42+'B4-FinPerf RE'!I43 -> 2476939 | I15: ='B4-FinPerf RE'!J42+'B4-FinPerf RE'!J43 -> 2476939 | J15: ='B4-FinPerf RE'!K42+'B4-FinPerf RE'!K43 -> 26492448 | K15: ='B4-FinPerf RE'!L42+'B4-FinPerf RE'!L43 -> 25096202 | L15: ='B4-FinPerf RE'!M42+'B4-FinPerf RE'!M43 -> 25723610
A16: Finance charges | B16: ='B4-FinPerf RE'!C44 -> 2551065 | C16: ='B4-FinPerf RE'!D44 -> 0 | D16: ='B4-FinPerf RE'!E44 -> 0 | E16: ='B4-FinPerf RE'!F44 -> 0 | F16: ='B4-FinPerf RE'!G44 -> 0 | G16: ='B4-FinPerf RE'!H44 -> 0 | H16: ='B4-FinPerf RE'!I44 -> 534300 | I16: ='B4-FinPerf RE'!J44 -> 534300 | J16: ='B4-FinPerf RE'!K44 -> 3085365 | K16: ='B4-FinPerf RE'!L44 -> 2665862 | L16: ='B4-FinPerf RE'!M44 -> 2735008
A17: Inventory consumed and bulk purchases | B17: =SUM('B4-FinPerf RE'!C40:C41) -> 21593424 | C17: =SUM('B4-FinPerf RE'!D40:D41) -> 0 | D17: =SUM('B4-FinPerf RE'!E40:E41) -> 0 | E17: =SUM('B4-FinPerf RE'!F40:F41) -> 0 | F17: =SUM('B4-FinPerf RE'!G40:G41) -> 0 | G17: =SUM('B4-FinPerf RE'!H40:H41) -> 0 | H17: =SUM('B4-FinPerf RE'!I40:I41) -> -310805 | I17: =SUM('B4-FinPerf RE'!J40:J41) -> -310805 | J17: =SUM('B4-FinPerf RE'!K40:K41) -> 21282619 | K17: =SUM('B4-FinPerf RE'!L40:L41) -> 21913349 | L17: =SUM('B4-FinPerf RE'!M40:M41) -> 22461183
A18: Transfers and subsidies | B18: ='B4-FinPerf RE'!C46 -> 0 | C18: ='B4-FinPerf RE'!D46 -> 0 | D18: ='B4-FinPerf RE'!E46 -> 0 | E18: ='B4-FinPerf RE'!F46 -> 0 | F18: ='B4-FinPerf RE'!G46 -> 0 | G18: ='B4-FinPerf RE'!H46 -> 0 | H18: ='B4-FinPerf RE'!I46 -> 0 | I18: 0 | J18: 0 | K18: ='B4-FinPerf RE'!L46 -> 0 | L18: ='B4-FinPerf RE'!M46 -> 0
A19: Other expenditure | B19: =+B20-SUM(B13:B18) -> 99496825 | C19: =+C20-SUM(C13:C18) -> 0 | D19: 0 | E19: 0 | F19: 0 | G19: 0 | H19: 749060 | I19: 749060 | J19: 100245885 | K19: 83341754 | L19: 87485133
A20: Total Expenditure | B20: =+'B4-FinPerf RE'!C51 -> 285311044 | C20: =+'B4-FinPerf RE'!D51 -> 0 | D20: =+'B4-FinPerf RE'!E51 -> 0 | E20: =+'B4-FinPerf RE'!F51 -> 0 | F20: =+'B4-FinPerf RE'!G51 -> 0 | G20: =+'B4-FinPerf RE'!H51 -> 0 | H20: =+'B4-FinPerf RE'!I51 -> 8191945 | I20: =+'B4-FinPerf RE'!J51 -> 8191945 | J20: =+'B4-FinPerf RE'!K51 -> 293502989 | K20: =+'B4-FinPerf RE'!L51 -> 277393302 | L20: =+'B4-FinPerf RE'!M51 -> 286377979
A21: Surplus/(Deficit) | B21: =B12-B20 -> 12308511 | C21: 0 | D21: 0 | E21: 0 | F21: 0 | G21: 0 | H21: -6119513 | I21: -6119513 | J21: 6188998 | K21: 14691122 | L21: 19690849
A22: ='B4-FinPerf RE'!A54 -> Transfers and subsidies - capital (monetary allocations) | B22: ='B4-FinPerf RE'!C54 -> 52088000 | C22: ='B4-FinPerf RE'!D54 -> 0 | D22: ='B4-FinPerf RE'!E54 -> 0 | E22: ='B4-FinPerf RE'!F54 -> 0 | F22: ='B4-FinPerf RE'!G54 -> 0 | G22: ='B4-FinPerf RE'!H54 -> 0 | H22: ='B4-FinPerf RE'!I54 -> 0 | I22: ='B4-FinPerf RE'!J54 -> 0 | J22: ='B4-FinPerf RE'!K54 -> 52088000 | K22: ='B4-FinPerf RE'!L54 -> 44116100 | L22: ='B4-FinPerf RE'!M54 -> 46049350
A23: Transfers and subsidies - capital (in-kind - all) | B23: ='B4-FinPerf RE'!C55 -> 0 | C23: ='B4-FinPerf RE'!D55 -> 0 | D23: ='B4-FinPerf RE'!E55 -> 0 | E23: ='B4-FinPerf RE'!F55 -> 0 | F23: ='B4-FinPerf RE'!G55 -> 0 | G23: ='B4-FinPerf RE'!H55 -> 0 | H23: ='B4-FinPerf RE'!I55 -> 0 | I23: ='B4-FinPerf RE'!J55 -> 0 | J23: ='B4-FinPerf RE'!K55 -> 0 | K23: ='B4-FinPerf RE'!L55 -> 0 | L23: ='B4-FinPerf RE'!M55 -> 0
A24: Surplus/(Deficit) after capital transfers & contributions | B24: =B21+SUM(B22:B23) -> 64396511 | C24: 0 | D24: 0 | E24: 0 | F24: 0 | G24: 0 | H24: -6119513 | I24: =SUM(D24:H24) -> -6119513 | J24: =IF(C24=0,B24+I24,C24+I24) -> 58276998 | K24: 58807222 | L24: 65740199
A25: Share of surplus/ (deficit) of associate | B25: ='B4-FinPerf RE'!C62 -> 0 | C25: ='B4-FinPerf RE'!D62 -> 0 | D25: ='B4-FinPerf RE'!E62 -> 0 | E25: ='B4-FinPerf RE'!F62 -> 0 | F25: ='B4-FinPerf RE'!G62 -> 0 | G25: ='B4-FinPerf RE'!H62 -> 0 | H25: ='B4-FinPerf RE'!I62 -> 0 | I25: ='B4-FinPerf RE'!J62 -> 0 | J25: ='B4-FinPerf RE'!K62 -> 0 | K25: ='B4-FinPerf RE'!L62 -> 0 | L25: ='B4-FinPerf RE'!M62 -> 0
A26: Surplus/ (Deficit) for the year | B26: =B24+B25 -> 64396511 | C26: 0 | D26: 0 | E26: 0 | F26: 0 | G26: 0 | H26: -6119513 | I26: -6119513 | J26: 58276998 | K26: 58807222 | L26: 65740199
A28: Capital expenditure & funds sources
A29: Capital expenditure | B29: ='B5-Capex'!C42 -> 64396800 | C29: ='B5-Capex'!D42 -> 0 | D29: ='B5-Capex'!E42 -> 0 | E29: ='B5-Capex'!F42 -> 0 | F29: ='B5-Capex'!G42 -> 0 | G29: ='B5-Capex'!H42 -> 0 | H29: ='B5-Capex'!I42 -> -6119800 | I29: =SUM(D29:H29) -> -6119800 | J29: =IF(C29=0,B29+I29,C29+I29) -> 58277000 | K29: ='B5-Capex'!L42 -> 58807546 | L29: ='B5-Capex'!M42 -> 65740586
A30: Transfers recognised - capital | B30: ='B5-Capex'!C72 -> 52088000 | C30: ='B5-Capex'!D72 -> 0 | D30: ='B5-Capex'!E72 -> 0 | E30: ='B5-Capex'!F72 -> 0 | F30: ='B5-Capex'!G72 -> 0 | G30: ='B5-Capex'!H72 -> 0 | H30: ='B5-Capex'!I72 -> 300000 | I30: =SUM(D30:H30) -> 300000 | J30: =IF(C30=0,B30+I30,C30+I30) -> 52388000 | K30: ='B5-Capex'!L72 -> 55820100 | L30: ='B5-Capex'!M72 -> 50826760
A32: Borrowing | B32: ='B5-Capex'!C74 -> 0 | C32: ='B5-Capex'!D74 -> 0 | D32: ='B5-Capex'!E74 -> 0 | E32: ='B5-Capex'!F74 -> 0 | F32: ='B5-Capex'!G74 -> 0 | G32: ='B5-Capex'!H74 -> 0 | H32: ='B5-Capex'!I74 -> 0 | I32: =SUM(D32:H32) -> 0 | J32: =IF(C32=0,B32+I32,C32+I32) -> 0 | K32: ='B5-Capex'!L74 -> 0 | L32: ='B5-Capex'!M74 -> 0
A33: Internally generated funds | B33: ='B5-Capex'!C75 -> 12308800 | C33: ='B5-Capex'!D75 -> 0 | D33: ='B5-Capex'!E75 -> 0 | E33: ='B5-Capex'!F75 -> 0 | F33: ='B5-Capex'!G75 -> 0 | G33: ='B5-Capex'!H75 -> 0 | H33: ='B5-Capex'!I75 -> -6419800 | I33: =SUM(D33:H33) -> -6419800 | J33: =IF(C33=0,B33+I33,C33+I33) -> 5889000 | K33: ='B5-Capex'!L75 -> 2987446 | L33: ='B5-Capex'!M75 -> 14913826
A34: Total sources of capital funds | B34: =+B30+B32+B33 -> 64396800 | C34: =+C30+C32+C33 -> 0 | D34: 0 | E34: 0 | F34: 0 | G34: 0 | H34: -6119800 | I34: =SUM(D34:H34) -> -6119800 | J34: =IF(C34=0,B34+I34,C34+I34) -> 58277000 | K34: 58807546 | L34: 65740586
A36: Financial position
A37: Total current assets | B37: ='B6-FinPos'!C15 -> 225037285 | C37: ='B6-FinPos'!D15 -> 0 | D37: ='B6-FinPos'!E15 -> 0 | E37: ='B6-FinPos'!F15 -> 0 | F37: ='B6-FinPos'!G15 -> 0 | G37: ='B6-FinPos'!H15 -> 0 | H37: ='B6-FinPos'!I15 -> -63571599 | I37: =SUM(D37:H37) -> -63571599 | J37: =IF(C37=0,B37+I37,C37+I37) -> 161465686 | K37: ='B6-FinPos'!L15 -> 230449719 | L37: ='B6-FinPos'!M15 -> 237547414
A38: Total non current assets | B38: ='B6-FinPos'!C27 -> 485891851 | C38: ='B6-FinPos'!D27 -> 0 | D38: ='B6-FinPos'!E27 -> 0 | E38: ='B6-FinPos'!F27 -> 0 | F38: ='B6-FinPos'!G27 -> 0 | G38: ='B6-FinPos'!H27 -> 0 | H38: ='B6-FinPos'!I27 -> 31627862 | I38: =SUM(D38:H38) -> 31627862 | J38: =IF(C38=0,B38+I38,C38+I38) -> 517519713 | K38: ='B6-FinPos'!L27 -> 524811179 | L38: ='B6-FinPos'!M27 -> 567878928
A39: Total current liabilities | B39: ='B6-FinPos'!C40 -> 43303833 | C39: ='B6-FinPos'!D40 -> 0 | D39: ='B6-FinPos'!E40 -> 0 | E39: ='B6-FinPos'!F40 -> 0 | F39: ='B6-FinPos'!G40 -> 0 | G39: ='B6-FinPos'!H40 -> 0 | H39: ='B6-FinPos'!I40 -> 14898820 | I39: =SUM(D39:H39) -> 14898820 | J39: =IF(C39=0,B39+I39,C39+I39) -> 58202653 | K39: ='B6-FinPos'!L40 -> 44934675 | L39: ='B6-FinPos'!M40 -> 44492734
A40: Total non current liabilities | B40: ='B6-FinPos'!C47 -> 58128905 | C40: ='B6-FinPos'!D47 -> 0 | D40: ='B6-FinPos'!E47 -> 0 | E40: ='B6-FinPos'!F47 -> 0 | F40: ='B6-FinPos'!G47 -> 0 | G40: ='B6-FinPos'!H47 -> 0 | H40: ='B6-FinPos'!I47 -> 10802766 | I40: =SUM(D40:H40) -> 10802766 | J40: =IF(C40=0,B40+I40,C40+I40) -> 68931671 | K40: ='B6-FinPos'!L47 -> 64527701 | L40: ='B6-FinPos'!M47 -> 70439410
A41: Community wealth/Equity | B41: ='B6-FinPos'!C56 -> 609496398 | C41: ='B6-FinPos'!D56 -> 0 | D41: ='B6-FinPos'!E56 -> 0 | E41: ='B6-FinPos'!F56 -> 0 | F41: ='B6-FinPos'!G56 -> 0 | G41: ='B6-FinPos'!H56 -> 0 | H41: ='B6-FinPos'!I56 -> -51525810 | I41: =SUM(D41:H41) -> -51525810 | J41: =IF(C41=0,B41+I41,C41+I41) -> 557970588 | K41: ='B6-FinPos'!L56 -> 645798522 | L41: ='B6-FinPos'!M56 -> 690494198
A43: Cash flows
A44: Net cash from (used) operating | B44: ='B7-CFlow'!C19 -> 53628252 | C44: ='B7-CFlow'!D19 -> 0 | D44: ='B7-CFlow'!E19 -> 0 | E44: ='B7-CFlow'!F19 -> 0 | F44: ='B7-CFlow'!G19 -> 0 | G44: ='B7-CFlow'!H19 -> 0 | H44: ='B7-CFlow'!I19 -> -1698970 | I44: =SUM(D44:H44) -> -1698970 | J44: =IF(C44=0,B44+I44,C44+I44) -> 51929282 | K44: ='B7-CFlow'!L19 -> 52627406 | L44: ='B7-CFlow'!M19 -> 57065044
A45: Net cash from (used) investing | B45: ='B7-CFlow'!C29 -> -64396800 | C45: ='B7-CFlow'!D29 -> 0 | D45: ='B7-CFlow'!E29 -> 0 | E45: ='B7-CFlow'!F29 -> 0 | F45: ='B7-CFlow'!G29 -> 0 | G45: ='B7-CFlow'!H29 -> 0 | H45: ='B7-CFlow'!I29 -> 0 | I45: =SUM(D45:H45) -> 0 | J45: =IF(C45=0,B45+I45,C45+I45) -> -64396800 | K45: ='B7-CFlow'!L29 -> -58807546 | L45: ='B7-CFlow'!M29 -> -65740586
A46: Net cash from (used) financing | B46: ='B7-CFlow'!C38 -> 0 | C46: ='B7-CFlow'!D38 -> 0 | D46: ='B7-CFlow'!E38 -> 0 | E46: ='B7-CFlow'!F38 -> 0 | F46: ='B7-CFlow'!G38 -> 0 | G46: ='B7-CFlow'!H38 -> 0 | H46: ='B7-CFlow'!I38 -> 0 | I46: =SUM(D46:H46) -> 0 | J46: =IF(C46=0,B46+I46,C46+I46) -> 0 | K46: ='B7-CFlow'!L38 -> 0 | L46: ='B7-CFlow'!M38 -> 0
A47: Cash/cash equivalents at the year end | B47: ='B7-CFlow'!C42 -> 129572538 | C47: ='B7-CFlow'!D42 -> 0 | D47: ='B7-CFlow'!E42 -> 0 | E47: ='B7-CFlow'!F42 -> 0 | F47: ='B7-CFlow'!G42 -> 0 | G47: ='B7-CFlow'!H42 -> 0 | H47: ='B7-CFlow'!I42 -> -1698970 | I47: =SUM(D47:H47) -> -1698970 | J47: =IF(C47=0,B47+I47,C47+I47) -> 127873568 | K47: ='B7-CFlow'!L42 -> 121693428 | L47: ='B7-CFlow'!M42 -> 113017886
A49: Cash backing/surplus reconciliation
A50: Cash and investments available | B50: ='B8-ResRecon'!C10 -> 210535332 | C50: ='B8-ResRecon'!D10 -> 0 | D50: ='B8-ResRecon'!E10 -> 0 | E50: ='B8-ResRecon'!F10 -> 0 | F50: ='B8-ResRecon'!G10 -> 0 | G50: ='B8-ResRecon'!H10 -> 0 | H50: ='B8-ResRecon'!I10 -> -59529641 | I50: =SUM(D50:H50) -> -59529641 | J50: =IF(C50=0,B50+I50,C50+I50) -> 151005691 | K50: ='B8-ResRecon'!L10 -> 215271816 | L50: ='B8-ResRecon'!M10 -> 221827446
A51: Application of cash and investments | B51: ='B8-ResRecon'!C20 -> 69021457 | C51: ='B8-ResRecon'!D20 -> 0 | D51: ='B8-ResRecon'!E20 -> 0 | E51: ='B8-ResRecon'!F20 -> 0 | F51: ='B8-ResRecon'!G20 -> 0 | G51: ='B8-ResRecon'!H20 -> 0 | H51: ='B8-ResRecon'!I20 -> 27140207 | I51: =SUM(D51:H51) -> 27140207 | J51: =IF(C51=0,B51+I51,C51+I51) -> 96161664 | K51: ='B8-ResRecon'!L20 -> 68779853 | L51: ='B8-ResRecon'!M20 -> 66323422
A52: Balance - surplus (shortfall) | B52: =B50-B51 -> 141513875 | C52: 0 | D52: 0 | E52: 0 | F52: 0 | G52: 0 | H52: -86669848 | I52: -86669848 | J52: 54844027 | K52: 146491963 | L52: 155504024
A54: Asset Management
A55: Asset register summary (WDV) | B55: ='B9-Asset'!C180 -> 478964702 | C55: ='B9-Asset'!D180 -> 0 | D55: ='B9-Asset'!E180 -> 0 | E55: ='B9-Asset'!F180 -> 0 | F55: ='B9-Asset'!G180 -> 0 | G55: ='B9-Asset'!H180 -> 0 | H55: ='B9-Asset'!I180 -> 31641528 | I55: =SUM(D55:H55) -> 31641528 | J55: =IF(C55=0,B55+I55,C55+I55) -> 510606230 | K55: ='B9-Asset'!L180 -> 517884030 | L55: ='B9-Asset'!M180 -> 560951779
A56: Depreciation | B56: ='B9-Asset'!C183 -> 21656256 | C56: ='B9-Asset'!D183 -> 0 | D56: ='B9-Asset'!E183 -> 0 | E56: ='B9-Asset'!F183 -> 0 | F56: ='B9-Asset'!G183 -> 0 | G56: ='B9-Asset'!H183 -> 0 | H56: ='B9-Asset'!I183 -> 2476939 | I56: =SUM(D56:H56) -> 2476939 | J56: =IF(C56=0,B56+I56,C56+I56) -> 24133195 | K56: ='B9-Asset'!L183 -> 22630782 | L56: ='B9-Asset'!M183 -> 23196556
A57: Renewal and Upgrading of Existing Assets | B57: ='B9-Asset'!C42+'B9-Asset'!C77 -> 558800 | C57: ='B9-Asset'!D42+'B9-Asset'!D77 -> 0 | D57: ='B9-Asset'!E42+'B9-Asset'!E77 -> 0 | E57: ='B9-Asset'!F42+'B9-Asset'!F77 -> 0 | F57: ='B9-Asset'!G42+'B9-Asset'!G77 -> 0 | G57: ='B9-Asset'!H42+'B9-Asset'!H77 -> 0 | H57: ='B9-Asset'!I42+'B9-Asset'!I77 -> -498800 | I57: =SUM(D57:H57) -> -498800 | J57: =IF(C57=0,B57+I57,C57+I57) -> 60000 | K57: ='B9-Asset'!L42+'B9-Asset'!L77 -> 583946 | L57: ='B9-Asset'!M42+'B9-Asset'!M77 -> 598545
A58: Repairs and Maintenance | B58: ='B9-Asset'!C184 -> 13210000 | C58: ='B9-Asset'!D184 -> 0 | D58: ='B9-Asset'!E184 -> 0 | E58: ='B9-Asset'!F184 -> 0 | F58: ='B9-Asset'!G184 -> 0 | G58: ='B9-Asset'!H184 -> 0 | H58: ='B9-Asset'!I184 -> 740000 | I58: =SUM(D58:H58) -> 740000 | J58: =IF(C58=0,B58+I58,C58+I58) -> 13950000 | K58: ='B9-Asset'!L184 -> 14296193 | L58: ='B9-Asset'!M184 -> 14631103
A60: Free services
A61: Cost of Free Basic Services provided | B61: ='B10-SerDel'!C62 -> 3956720 | C61: ='B10-SerDel'!D62 -> 0 | D61: ='B10-SerDel'!E62 -> 0 | E61: ='B10-SerDel'!F62 -> 0 | F61: ='B10-SerDel'!G62 -> 0 | G61: ='B10-SerDel'!H62 -> 0 | H61: ='B10-SerDel'!I62 -> 0 | I61: ='B10-SerDel'!J62 -> 0 | J61: ='B10-SerDel'!K62 -> 3956720 | K61: ='B10-SerDel'!L62 -> 4138729 | L61: ='B10-SerDel'!M62 -> 4320832
A62: Revenue cost of free services provided | B62: ='B10-SerDel'!C81 -> -21883727 | C62: ='B10-SerDel'!D81 -> 0 | D62: ='B10-SerDel'!E81 -> 0 | E62: ='B10-SerDel'!F81 -> 0 | F62: ='B10-SerDel'!G81 -> 0 | G62: ='B10-SerDel'!H81 -> 0 | H62: ='B10-SerDel'!I81 -> 30800518 | I62: ='B10-SerDel'!J81 -> 30800518 | J62: ='B10-SerDel'!K81 -> 8916791 | K62: ='B10-SerDel'!L81 -> -22890379 | L62: ='B10-SerDel'!M81 -> -23897554
A63: Households below minimum service level
A64: Water: | B64: ='B10-SerDel'!C16 -> 0 | C64: ='B10-SerDel'!D16 -> 0 | D64: ='B10-SerDel'!E16 -> 0 | E64: ='B10-SerDel'!F16 -> 0 | F64: ='B10-SerDel'!G16 -> 0 | G64: ='B10-SerDel'!H16 -> 0 | H64: ='B10-SerDel'!I16 -> 0 | I64: =SUM(D64:H64) -> 0 | J64: =IF(C64=0,B64+I64,C64+I64) -> 0 | K64: ='B10-SerDel'!L16 -> 0 | L64: ='B10-SerDel'!M16 -> 0
A65: Sanitation/sewerage: | B65: ='B10-SerDel'!C28 -> 0 | C65: ='B10-SerDel'!D28 -> 0 | D65: ='B10-SerDel'!E28 -> 0 | E65: ='B10-SerDel'!F28 -> 0 | F65: ='B10-SerDel'!G28 -> 0 | G65: ='B10-SerDel'!H28 -> 0 | H65: ='B10-SerDel'!I28 -> 0 | I65: =SUM(D65:H65) -> 0 | J65: =IF(C65=0,B65+I65,C65+I65) -> 0 | K65: ='B10-SerDel'!L28 -> 0 | L65: ='B10-SerDel'!M28 -> 0
A66: Energy: | B66: ='B10-SerDel'!C37 -> 0 | C66: ='B10-SerDel'!D37 -> 0 | D66: ='B10-SerDel'!E37 -> 0 | E66: ='B10-SerDel'!F37 -> 0 | F66: ='B10-SerDel'!G37 -> 0 | G66: ='B10-SerDel'!H37 -> 0 | H66: ='B10-SerDel'!I37 -> 0 | I66: =SUM(D66:H66) -> 0 | J66: =IF(C66=0,B66+I66,C66+I66) -> 0 | K66: ='B10-SerDel'!L37 -> 0 | L66: ='B10-SerDel'!M37 -> 0
A67: Refuse: | B67: ='B10-SerDel'!C47 -> 0 | C67: ='B10-SerDel'!D47 -> 0 | D67: ='B10-SerDel'!E47 -> 0 | E67: ='B10-SerDel'!F47 -> 0 | F67: ='B10-SerDel'!G47 -> 0 | G67: ='B10-SerDel'!H47 -> 0 | H67: ='B10-SerDel'!I47 -> 0 | I67: =SUM(D67:H67) -> 0 | J67: =IF(C67=0,B67+I67,C67+I67) -> 0 | K67: ='B10-SerDel'!L47 -> 0 | L67: ='B10-SerDel'!M47 -> 0
A69: References
A70: 1. Only complete if a previous adjusted budget has been approved in the same financial year. Reflect most recent adjusted budget.
A71: 2. Additional cash-backed accumulated funds/unspent funds (MFMA section 18(1)(b) and section 28(2)(e)) identified after the Original Budget approved and after annual financial statements audited (note: only where underspending could not reasonably have been foreseen)
A72: 3. Increases of funds approved under MFMA section 31
A73: 4. Adjustments approved in accordance with MFMA section 29
A74: 5. Adjustments to transfers from National or Provincial Government
A75: 6. Adjusts. = 'Other' Adjustments proposed to be approved; including revenue under-collection (MFMA section 28(2)(a)); additional revenue appropriation on existing programmes (section 28(2))(b); projected savings (section 28(2)(d)); error correction (section 28(2)(f))
A76: 7. G = B + C + D + E + F
A77: 8. Adjusted Budget H = (A or A1/2 etc) + G

Sheet B2-FinPerf SC
A1: =muni&" - "&_ADJ3&" - "&Date -> LIM353 Molemole - Table B2 Adjustments Budget Financial Performance (functional classification) - 46115
A2: ="Standard "&desc -> Standard Description | B2: =head27 -> Ref | C2: =Head2 -> Budget Year 2025/26 | L2: =Head10 -> Budget Year +1 2026/27 | M2: =Head11 -> Budget Year +2 2027/28
C3: =Head6 -> Original Budget | D3: =Head54 -> Prior Adjusted | E3: =Head51 -> Accum. Funds | F3: =Head52 -> Multi-year capital | G3: =Head53 -> Unfore. Unavoid. | H3: =Head55 -> Nat. or Prov. Govt | I3: =Head50 -> Other Adjusts. | J3: =Head56 -> Total Adjusts. | K3: =Head7 -> Adjusted Budget | L3: =Head7 -> Adjusted Budget | M3: =Head7 -> Adjusted Budget
D4: 5 | E4: =D4+1 -> 6 | F4: 7 | G4: 8 | H4: 9 | I4: 10 | J4: 11 | K4: 12
A5: R thousands | B5: 1, 4 | C5: A | D5: A1 | E5: B | F5: C | G5: D | H5: E | I5: F | J5: G | K5: H
A6: Revenue - Functional
A7: Governance and administration | C7: =SUM(C8:C10) -> 247348598 | D7: =SUM(D8:D10) -> 0 | E7: 0 | F7: 0 | G7: 0 | H7: 0 | I7: 826360 | J7: =SUM(J8:J10) -> 826360 | K7: =SUM(K8:K10) -> 248174958 | L7: =SUM(L8:L10) -> 249234084 | M7: =SUM(M8:M10) -> 261325488
A8: Executive and council | C8: =B2B!C8 -> 0 | D8: =B2B!D8 -> 0 | E8: =B2B!E8 -> 0 | F8: =B2B!F8 -> 0 | G8: =B2B!G8 -> 0 | H8: =B2B!H8 -> 0 | I8: =B2B!I8 -> 0 | J8: =SUM(E8:I8) -> 0 | K8: =IF(D8=0,C8+J8,D8+J8) -> 0 | L8: =B2B!L8 -> 0 | M8: =B2B!M8 -> 0
A9: Finance and administration | C9: =B2B!C11 -> 247348598 | D9: =B2B!D11 -> 0 | E9: =B2B!E11 -> 0 | F9: =B2B!F11 -> 0 | G9: =B2B!G11 -> 0 | H9: =B2B!H11 -> 0 | I9: =B2B!I11 -> 766360 | J9: =SUM(E9:I9) -> 766360 | K9: =IF(D9=0,C9+J9,D9+J9) -> 248114958 | L9: =B2B!L11 -> 249234084 | M9: =B2B!M11 -> 261325488
A10: Internal audit | C10: =B2B!C25 -> 0 | D10: =B2B!D25 -> 0 | E10: =B2B!E25 -> 0 | F10: =B2B!F25 -> 0 | G10: =B2B!G25 -> 0 | H10: =B2B!H25 -> 0 | I10: =B2B!I25 -> 60000 | J10: =SUM(E10:I10) -> 60000 | K10: =IF(D10=0,C10+J10,D10+J10) -> 60000 | L10: =B2B!L25 -> 0 | M10: =B2B!M25 -> 0
A11: Community and public safety | C11: =SUM(C12:C16) -> 13884801 | D11: =SUM(D12:D16) -> 0 | E11: 0 | F11: 0 | G11: 0 | H11: 0 | I11: -1405000 | J11: =SUM(J12:J16) -> -1405000 | K11: =SUM(K12:K16) -> 12479801 | L11: =SUM(L12:L16) -> 13053871 | M11: =SUM(M12:M16) -> 13628242
A12: Community and social services | C12: =B2B!C28 -> 1405000 | D12: =B2B!D28 -> 0 | E12: =B2B!E28 -> 0 | F12: =B2B!F28 -> 0 | G12: =B2B!G28 -> 0 | H12: =B2B!H28 -> 0 | I12: =B2B!I28 -> -1405000 | J12: =SUM(E12:I12) -> -1405000 | K12: =IF(D12=0,C12+J12,D12+J12) -> 0 | L12: =B2B!L28 -> 0 | M12: =B2B!M28 -> 0
A13: Sport and recreation | C13: =B2B!C50 -> 332 | D13: =B2B!D50 -> 0 | E13: =B2B!E50 -> 0 | F13: =B2B!F50 -> 0 | G13: =B2B!G50 -> 0 | H13: =B2B!H50 -> 0 | I13: =B2B!I50 -> 0 | J13: =SUM(E13:I13) -> 0 | K13: =IF(D13=0,C13+J13,D13+J13) -> 332 | L13: =B2B!L50 -> 347 | M13: =B2B!M50 -> 363
A14: Public safety | C14: =B2B!C56 -> 12479469 | D14: =B2B!D56 -> 0 | E14: =B2B!E56 -> 0 | F14: =B2B!F56 -> 0 | G14: =B2B!G56 -> 0 | H14: =B2B!H56 -> 0 | I14: =B2B!I56 -> 0 | J14: =SUM(E14:I14) -> 0 | K14: =IF(D14=0,C14+J14,D14+J14) -> 12479469 | L14: =B2B!L56 -> 13053524 | M14: =B2B!M56 -> 13627879
A15: Housing | C15: =B2B!C65 -> 0 | D15: =B2B!D65 -> 0 | E15: =B2B!E65 -> 0 | F15: =B2B!F65 -> 0 | G15: =B2B!G65 -> 0 | H15: =B2B!H65 -> 0 | I15: =B2B!I65 -> 0 | J15: =SUM(E15:I15) -> 0 | K15: =IF(D15=0,C15+J15,D15+J15) -> 0 | L15: =B2B!L65 -> 0 | M15: =B2B!M65 -> 0
A16: Health | C16: =B2B!C68 -> 0 | D16: =B2B!D68 -> 0 | E16: =B2B!E68 -> 0 | F16: =B2B!F68 -> 0 | G16: =B2B!G68 -> 0 | H16: =B2B!H68 -> 0 | I16: =B2B!I68 -> 0 | J16: =SUM(E16:I16) -> 0 | K16: =IF(D16=0,C16+J16,D16+J16) -> 0 | L16: =B2B!L68 -> 0 | M16: =B2B!M68 -> 0
A17: Economic and environmental services | C17: =SUM(C18:C20) -> 56172642 | D17: =SUM(D18:D20) -> 0 | E17: 0 | F17: 0 | G17: 0 | H17: 0 | I17: 0 | J17: =SUM(J18:J20) -> 0 | K17: =SUM(K18:K20) -> 56172642 | L17: =SUM(L18:L20) -> 49830850 | M17: =SUM(M18:M20) -> 52015134
A18: Planning and development | C18: =B2B!C77 -> 56172642 | D18: =B2B!D77 -> 0 | E18: =B2B!E77 -> 0 | F18: =B2B!F77 -> 0 | G18: =B2B!G77 -> 0 | H18: =B2B!H77 -> 0 | I18: =B2B!I77 -> 0 | J18: =SUM(E18:I18) -> 0 | K18: =IF(D18=0,C18+J18,D18+J18) -> 56172642 | L18: =B2B!L77 -> 49830850 | M18: =B2B!M77 -> 52015134
A19: Road transport | C19: =B2B!C88 -> 0 | D19: =B2B!D88 -> 0 | E19: =B2B!E88 -> 0 | F19: =B2B!F88 -> 0 | G19: =B2B!G88 -> 0 | H19: =B2B!H88 -> 0 | I19: =B2B!I88 -> 0 | J19: =SUM(E19:I19) -> 0 | K19: =IF(D19=0,C19+J19,D19+J19) -> 0 | L19: =B2B!L88 -> 0 | M19: =B2B!M88 -> 0
A20: Environmental protection | C20: =B2B!C93 -> 0 | D20: =B2B!D93 -> 0 | E20: =B2B!E93 -> 0 | F20: =B2B!F93 -> 0 | G20: =B2B!G93 -> 0 | H20: =B2B!H93 -> 0 | I20: =B2B!I93 -> 0 | J20: =SUM(E20:I20) -> 0 | K20: =IF(D20=0,C20+J20,D20+J20) -> 0 | L20: =B2B!L93 -> 0 | M20: =B2B!M93 -> 0
A21: Trading services | C21: =SUM(C22:C25) -> 32301514 | D21: =SUM(D22:D25) -> 0 | E21: 0 | F21: 0 | G21: 0 | H21: 0 | I21: 2651072 | J21: 2651072 | K21: 34952586 | L21: 24081719 | M21: 25149314
A22: Energy sources | C22: =B2B!C101 -> 30352837 | D22: =B2B!D101 -> 0 | E22: =B2B!E101 -> 0 | F22: =B2B!F101 -> 0 | G22: =B2B!G101 -> 0 | H22: =B2B!H101 -> 0 | I22: =B2B!I101 -> 1246072 | J22: =SUM(E22:I22) -> 1246072 | K22: =IF(D22=0,C22+J22,D22+J22) -> 31598909 | L22: =B2B!L101 -> 22043402 | M22: =B2B!M101 -> 23021311
A23: Water management | C23: =B2B!C105 -> 146962 | D23: =B2B!D105 -> 0 | E23: =B2B!E105 -> 0 | F23: =B2B!F105 -> 0 | G23: =B2B!G105 -> 0 | H23: =B2B!H105 -> 0 | I23: =B2B!I105 -> 0 | J23: =SUM(E23:I23) -> 0 | K23: =IF(D23=0,C23+J23,D23+J23) -> 146962 | L23: =B2B!L105 -> 153722 | M23: =B2B!M105 -> 160486
A24: Waste water management | C24: =B2B!C109 -> 365798 | D24: =B2B!D109 -> 0 | E24: =B2B!E109 -> 0 | F24: =B2B!F109 -> 0 | G24: =B2B!G109 -> 0 | H24: =B2B!H109 -> 0 | I24: =B2B!I109 -> 0 | J24: =SUM(E24:I24) -> 0 | K24: =IF(D24=0,C24+J24,D24+J24) -> 365798 | L24: =B2B!L109 -> 382625 | M24: =B2B!M109 -> 399460
A25: Waste management | C25: =B2B!C114 -> 1435917 | D25: =B2B!D114 -> 0 | E25: =B2B!E114 -> 0 | F25: =B2B!F114 -> 0 | G25: =B2B!G114 -> 0 | H25: =B2B!H114 -> 0 | I25: =B2B!I114 -> 1405000 | J25: =SUM(E25:I25) -> 1405000 | K25: =IF(D25=0,C25+J25,D25+J25) -> 2840917 | L25: =B2B!L114 -> 1501970 | M25: =B2B!M114 -> 1568057
A26: Other | C26: =B2B!C119 -> 0 | D26: =B2B!D119 -> 0 | E26: =B2B!E119 -> 0 | F26: =B2B!F119 -> 0 | G26: =B2B!G119 -> 0 | H26: =B2B!H119 -> 0 | I26: =B2B!I119 -> 0 | J26: =SUM(E26:I26) -> 0 | K26: =IF(D26=0,C26+J26,D26+J26) -> 0 | L26: =B2B!L119 -> 0 | M26: =B2B!M119 -> 0
A27: ="Total "&A6 -> Total Revenue - Functional | B27: 2 | C27: =C7+C11+C17+C21+C26 -> 349707555 | D27: =D7+D11+D17+D21+D26 -> 0 | E27: 0 | F27: 0 | G27: 0 | H27: 0 | I27: 2072432 | J27: 2072432 | K27: 351779987 | L27: 336200524 | M27: 352118178
A29: Expenditure - Functional
A30: Governance and administration | C30: =SUM(C31:C33) -> 145793806 | D30: =SUM(D31:D33) -> 0 | E30: 0 | F30: 0 | G30: 0 | H30: 0 | I30: 8524564 | J30: =SUM(J31:J33) -> 8524564 | K30: =SUM(K31:K33) -> 154318370 | L30: =SUM(L31:L33) -> 144823745 | M30: =SUM(M31:M33) -> 151590651
A31: Executive and council | C31: =B2B!C130 -> 41625382 | D31: =B2B!D130 -> 0 | E31: =B2B!E130 -> 0 | F31: =B2B!F130 -> 0 | G31: =B2B!G130 -> 0 | H31: =B2B!H130 -> 0 | I31: =B2B!I130 -> 2190141 | J31: =SUM(E31:I31) -> 2190141 | K31: =IF(D31=0,C31+J31,D31+J31) -> 43815523 | L31: =B2B!L130 -> 42871529 | M31: =B2B!M130 -> 43943330
A32: Finance and administration | C32: =B2B!C133 -> 91979689 | D32: =B2B!D133 -> 0 | E32: =B2B!E133 -> 0 | F32: =B2B!F133 -> 0 | G32: =B2B!G133 -> 0 | H32: =B2B!H133 -> 0 | I32: =B2B!I133 -> 5758490 | J32: =SUM(E32:I32) -> 5758490 | K32: =IF(D32=0,C32+J32,D32+J32) -> 97738179 | L32: =B2B!L133 -> 89177684 | M32: =B2B!M133 -> 94555926
A33: Internal audit | C33: =B2B!C147 -> 12188735 | D33: =B2B!D147 -> 0 | E33: =B2B!E147 -> 0 | F33: =B2B!F147 -> 0 | G33: =B2B!G147 -> 0 | H33: =B2B!H147 -> 0 | I33: =B2B!I147 -> 575933 | J33: =SUM(E33:I33) -> 575933 | K33: =IF(D33=0,C33+J33,D33+J33) -> 12764668 | L33: =B2B!L147 -> 12774532 | M33: =B2B!M147 -> 13091395
A34: Community and public safety | C34: =SUM(C35:C39) -> 32650607 | D34: =SUM(D35:D39) -> 0 | E34: 0 | F34: 0 | G34: 0 | H34: 0 | I34: -731227 | J34: =SUM(J35:J39) -> -731227 | K34: =SUM(K35:K39) -> 31919380 | L34: =SUM(L35:L39) -> 33158108 | M34: =SUM(M35:M39) -> 33987068
A35: Community and social services | C35: =B2B!C150 -> 10211046 | D35: =B2B!D150 -> 0 | E35: =B2B!E150 -> 0 | F35: =B2B!F150 -> 0 | G35: =B2B!G150 -> 0 | H35: =B2B!H150 -> 0 | I35: =B2B!I150 -> -655212 | J35: =SUM(E35:I35) -> -655212 | K35: =IF(D35=0,C35+J35,D35+J35) -> 9555834 | L35: =B2B!L150 -> 9573291 | M35: =B2B!M150 -> 9812629
A36: Sport and recreation | C36: =B2B!C172 -> 3484575 | D36: =B2B!D172 -> 0 | E36: =B2B!E172 -> 0 | F36: =B2B!F172 -> 0 | G36: =B2B!G172 -> 0 | H36: =B2B!H172 -> 0 | I36: =B2B!I172 -> 83985 | J36: =SUM(E36:I36) -> 83985 | K36: =IF(D36=0,C36+J36,D36+J36) -> 3568560 | L36: =B2B!L172 -> 3776854 | M36: =B2B!M172 -> 3871276
A37: Public safety | C37: =B2B!C178 -> 18954986 | D37: =B2B!D178 -> 0 | E37: =B2B!E178 -> 0 | F37: =B2B!F178 -> 0 | G37: =B2B!G178 -> 0 | H37: =B2B!H178 -> 0 | I37: =B2B!I178 -> -160000 | J37: =SUM(E37:I37) -> -160000 | K37: =IF(D37=0,C37+J37,D37+J37) -> 18794986 | L37: =B2B!L178 -> 19807963 | M37: =B2B!M178 -> 20303163
A38: Housing | C38: =B2B!C187 -> 0 | D38: =B2B!D187 -> 0 | E38: =B2B!E187 -> 0 | F38: =B2B!F187 -> 0 | G38: =B2B!G187 -> 0 | H38: =B2B!H187 -> 0 | I38: =B2B!I187 -> 0 | J38: =SUM(E38:I38) -> 0 | K38: =IF(D38=0,C38+J38,D38+J38) -> 0 | L38: =B2B!L187 -> 0 | M38: =B2B!M187 -> 0
A39: Health | C39: =B2B!C190 -> 0 | D39: =B2B!D190 -> 0 | E39: =B2B!E190 -> 0 | F39: =B2B!F190 -> 0 | G39: =B2B!G190 -> 0 | H39: =B2B!H190 -> 0 | I39: =B2B!I190 -> 0 | J39: =SUM(E39:I39) -> 0 | K39: =IF(D39=0,C39+J39,D39+J39) -> 0 | L39: =B2B!L190 -> 0 | M39: =B2B!M190 -> 0
A40: Economic and environmental services | C40: =SUM(C41:C43) -> 24340871 | D40: =SUM(D41:D43) -> 0 | E40: 0 | F40: 0 | G40: 0 | H40: 0 | I40: -1451154 | J40: =SUM(J41:J43) -> -1451154 | K40: =SUM(K41:K43) -> 22889717 | L40: =SUM(L41:L43) -> 25577714 | M40: =SUM(M41:M43) -> 24979672
A41: Planning and development | C41: =B2B!C199 -> 16980667 | D41: =B2B!D199 -> 0 | E41: =B2B!E199 -> 0 | F41: =B2B!F199 -> 0 | G41: =B2B!G199 -> 0 | H41: =B2B!H199 -> 0 | I41: =B2B!I199 -> -1351154 | J41: =SUM(E41:I41) -> -1351154 | K41: =IF(D41=0,C41+J41,D41+J41) -> 15629513 | L41: =B2B!L199 -> 17886302 | M41: =B2B!M199 -> 17095971
A42: Road transport | C42: =B2B!C210 -> 7360204 | D42: =B2B!D210 -> 0 | E42: =B2B!E210 -> 0 | F42: =B2B!F210 -> 0 | G42: =B2B!G210 -> 0 | H42: =B2B!H210 -> 0 | I42: =B2B!I210 -> -100000 | J42: =SUM(E42:I42) -> -100000 | K42: =IF(D42=0,C42+J42,D42+J42) -> 7260204 | L42: =B2B!L210 -> 7691412 | M42: =B2B!M210 -> 7883701
A43: Environmental protection | C43: =B2B!C215 -> 0 | D43: =B2B!D215 -> 0 | E43: =B2B!E215 -> 0 | F43: =B2B!F215 -> 0 | G43: =B2B!G215 -> 0 | H43: =B2B!H215 -> 0 | I43: =B2B!I215 -> 0 | J43: =SUM(E43:I43) -> 0 | K43: =IF(D43=0,C43+J43,D43+J43) -> 0 | L43: =B2B!L215 -> 0 | M43: =B2B!M215 -> 0
A44: Trading services | C44: =SUM(C45:C48) -> 82525760 | D44: =SUM(D45:D48) -> 0 | E44: 0 | F44: 0 | G44: 0 | H44: 0 | I44: 1849762 | J44: 1849762 | K44: 84375522 | L44: 73833735 | M44: 75820588
A45: Energy sources | C45: =B2B!C223 -> 46298999 | D45: =B2B!D223 -> 0 | E45: =B2B!E223 -> 0 | F45: =B2B!F223 -> 0 | G45: =B2B!G223 -> 0 | H45: =B2B!H223 -> 0 | I45: =B2B!I223 -> 1648381 | J45: =SUM(E45:I45) -> 1648381 | K45: =IF(D45=0,C45+J45,D45+J45) -> 47947380 | L45: =B2B!L223 -> 37898557 | M45: =B2B!M223 -> 38987022
A46: Water management | C46: =B2B!C227 -> 6631392 | D46: =B2B!D227 -> 0 | E46: =B2B!E227 -> 0 | F46: =B2B!F227 -> 0 | G46: =B2B!G227 -> 0 | H46: =B2B!H227 -> 0 | I46: =B2B!I227 -> 848775 | J46: =SUM(E46:I46) -> 848775 | K46: =IF(D46=0,C46+J46,D46+J46) -> 7480167 | L46: =B2B!L227 -> 6929807 | M46: =B2B!M227 -> 7103056
A47: Waste water management | C47: =B2B!C231 -> 18265366 | D47: =B2B!D231 -> 0 | E47: =B2B!E231 -> 0 | F47: =B2B!F231 -> 0 | G47: =B2B!G231 -> 0 | H47: =B2B!H231 -> 0 | I47: =B2B!I231 -> 710111 | J47: =SUM(E47:I47) -> 710111 | K47: =IF(D47=0,C47+J47,D47+J47) -> 18975477 | L47: =B2B!L231 -> 19087304 | M47: =B2B!M231 -> 19564490
A48: Waste management | C48: =B2B!C236 -> 11330003 | D48: =B2B!D236 -> 0 | E48: =B2B!E236 -> 0 | F48: =B2B!F236 -> 0 | G48: =B2B!G236 -> 0 | H48: =B2B!H236 -> 0 | I48: =B2B!I236 -> -1357505 | J48: =SUM(E48:I48) -> -1357505 | K48: =IF(D48=0,C48+J48,D48+J48) -> 9972498 | L48: =B2B!L236 -> 9918067 | M48: =B2B!M236 -> 10166020
A49: Other | C49: =B2B!C241 -> 0 | D49: =B2B!D241 -> 0 | E49: =B2B!E241 -> 0 | F49: =B2B!F241 -> 0 | G49: =B2B!G241 -> 0 | H49: =B2B!H241 -> 0 | I49: =B2B!I241 -> 0 | J49: =SUM(E49:I49) -> 0 | K49: =IF(D49=0,C49+J49,D49+J49) -> 0 | L49: =B2B!L241 -> 0 | M49: =B2B!M241 -> 0
A50: ="Total "&A29 -> Total Expenditure - Functional | B50: 3 | C50: =C30+C34+C40+C44+C49 -> 285311044 | D50: =D30+D34+D40+D44+D49 -> 0 | E50: 0 | F50: 0 | G50: 0 | H50: 0 | I50: 8191945 | J50: 8191945 | K50: 293502989 | L50: 277393302 | M50: 286377979
A51: Surplus/ (Deficit) for the year | C51: =C27-C50 -> 64396511 | D51: 0 | E51: 0 | F51: 0 | G51: 0 | H51: 0 | I51: -6119513 | J51: -6119513 | K51: 58276998 | L51: 58807222 | M51: 65740199
A52: =head27a -> References
A53: 1. Government Finance Statistics Functions and Sub-functions are standardised to assist the compilation of national and international accounts for comparison purposes
A54: 2. Total Revenue by standard classification must reconcile to Total Operating Revenue shown in the Adjustments Budget Financial Performance (revenue and expenditure)
A55: 3. Total Operating Expenditure by standard classification must reconcile to Total Operating Expenditure shown in the Adjustments Budget Financial Performance (revenue and expenditure)
A56: 4. All amounts must be classified under a standard classification (modified GFS). The GFS function 'Other' is only for Abbatoirs, Air Transport, Markets and Tourism - and if used must be supported by footnotes. Nothing else may be placed under 'Other'. Assign associate share to relevant classification
A57: 5. Only complete if a previous adjusted budget has been approved in the same financial year. Reflect most recent adjusted budget.
A58: 6. Additional cash-backed accumulated funds/unspent funds (MFMA section 18(1)(b) and section 28(2)(e)) identified after the Original Budget approved and after annual financial statements audited (note: only where underspending could not reasonably have been foreseen)
A59: 7. Increases of funds approved under MFMA section 31
A60: 8. Adjustments approved in accordance with MFMA section 29
A61: 9. Adjustments to transfers from National or Provincial Government
A62: 10. Adjusts. = 'Other' Adjustments proposed to be approved; including revenue under-collection (MFMA section 28(2)(a)); additional revenue appropriation on existing programmes (section 28(2))(b); projected savings (section 28(2)(d)); error correction (section 28(2)(f))
A63: 11. G = B + C + D + E + F
A64: 12. Adjusted Budget H = (A or A1/2 etc) + G

Sheet B2B
A1: =muni&" - "&_ADJ3&" - B"&" - "&Date -> LIM353 Molemole - Table B2 Adjustments Budget Financial Performance (functional classification) - B - 46115
A2: ="Standard Classification "&desc -> Standard Classification Description | B2: =head27 -> Ref | C2: =Head2 -> Budget Year 2025/26 | L2: =Head10 -> Budget Year +1 2026/27 | M2: =Head11 -> Budget Year +2 2027/28
C3: =Head6 -> Original Budget | D3: =Head54 -> Prior Adjusted | E3: =Head51 -> Accum. Funds | F3: =Head52 -> Multi-year capital | G3: =Head53 -> Unfore. Unavoid. | H3: =Head55 -> Nat. or Prov. Govt | I3: =Head50 -> Other Adjusts. | J3: =Head56 -> Total Adjusts. | K3: =Head7 -> Adjusted Budget | L3: =Head7 -> Adjusted Budget | M3: =Head7 -> Adjusted Budget
D4: 5 | E4: =D4+1 -> 6 | F4: 7 | G4: 8 | H4: 9 | I4: 10 | J4: 11 | K4: 12
A5: R thousand | B5: 1 | C5: A | D5: A1 | E5: B | F5: C | G5: D | H5: E | I5: F | J5: G | K5: H
A6: Revenue - Functional
A7: Municipal governance and administration | C7: =C8+C11+C25 -> 247348598 | D7: 0 | E7: 0 | F7: 0 | G7: 0 | H7: 0 | I7: 826360 | J7: =SUM(E7:I7) -> 826360 | K7: =IF(D7=0,C7+J7,D7+J7) -> 248174958 | L7: =L8+L11+L25 -> 249234084 | M7: =M8+M11+M25 -> 261325488
A8: Executive and council | C8: =SUM(C9:C10) -> 0 | D8: =SUM(D9:D10) -> 0 | E8: 0 | F8: 0 | G8: 0 | H8: 0 | I8: 0 | J8: =SUM(E8:I8) -> 0 | K8: =IF(D8=0,C8+J8,D8+J8) -> 0 | L8: =SUM(L9:L10) -> 0 | M8: =SUM(M9:M10) -> 0
A9: Mayor and Council | C9: 0 | D9: 0 | E9: 0 | F9: 0 | G9: 0 | H9: 0 | I9: 0 | J9: =SUM(E9:I9) -> 0 | K9: =IF(D9=0,C9+J9,D9+J9) -> 0 | L9: 0 | M9: 0
A10: Municipal Manager, Town Secretary and Chief Executive | C10: 0 | D10: 0 | E10: 0 | F10: 0 | G10: 0 | H10: 0 | I10: 0 | J10: =SUM(E10:I10) -> 0 | K10: =IF(D10=0,C10+J10,D10+J10) -> 0 | L10: 0 | M10: 0
A11: Finance and administration | C11: =SUM(C12:C24) -> 247348598 | D11: 0 | E11: 0 | F11: 0 | G11: 0 | H11: 0 | I11: 766360 | J11: 766360 | K11: 248114958 | L11: =SUM(L12:L24) -> 249234084 | M11: =SUM(M12:M24) -> 261325488
A12: Administrative and Corporate Support | C12: 230307351 | D12: 0 | E12: 0 | F12: 0 | G12: 0 | H12: 0 | I12: -949300 | J12: -949300 | K12: 229358051 | L12: 231307638 | M12: 241700374
A13: Asset Management | J13: 0 | K13: 0
A14: Finance | C14: 16789523 | D14: 0 | E14: 0 | F14: 0 | G14: 0 | H14: 0 | I14: 180000 | J14: 180000 | K14: 16969523 | L14: 17663143 | M14: 19350225
A15: Fleet Management | J15: 0 | K15: 0
A16: Human Resources | C16: 251724 | D16: 0 | E16: 0 | F16: 0 | G16: 0 | H16: 0 | I16: 575660 | J16: 575660 | K16: 827384 | L16: 263303 | M16: 274889
A17: Information Technology | C17: 0 | D17: 0 | E17: 0 | F17: 0 | G17: 0 | H17: 0 | I17: 900000 | J17: 900000 | K17: 900000 | L17: 0 | M17: 0
A18: Legal Services | C18: 0 | D18: 0 | E18: 0 | F18: 0 | G18: 0 | H18: 0 | I18: 0 | J18: 0 | K18: 0 | L18: 0 | M18: 0
A19: Marketing, Customer Relations, Publicity and Media Co-ordination | J19: 0 | K19: 0
A20: Property Services | J20: 0 | K20: 0
A21: Risk Management | C21: 0 | D21: 0 | E21: 0 | F21: 0 | G21: 0 | H21: 0 | I21: 0 | J21: 0 | K21: 0 | L21: 0 | M21: 0
A22: Security Services | J22: 0 | K22: 0
A23: Supply Chain Management | C23: 0 | D23: 0 | E23: 0 | F23: 0 | G23: 0 | H23: 0 | I23: 60000 | J23: 60000 | K23: 60000 | L23: 0 | M23: 0
A24: Valuation Service | J24: 0 | K24: 0
A25: Internal audit | C25: =SUM(C26:C26) -> 0 | D25: 0 | E25: 0 | F25: 0 | G25: 0 | H25: 0 | I25: 60000 | J25: 60000 | K25: 60000 | L25: 0 | M25: 0
A26: Governance Function | C26: 0 | D26: 0 | E26: 0 | F26: 0 | G26: 0 | H26: 0 | I26: 60000 | J26: 60000 | K26: 60000 | L26: 0 | M26: 0
A27: Community and public safety | C27: =C28+C50+C56+C65+C68 -> 13884801 | D27: 0 | E27: 0 | F27: 0 | G27: 0 | H27: 0 | I27: -1405000 | J27: -1405000 | K27: 12479801 | L27: =L28+L50+L56+L65+L68 -> 13053871 | M27: =M28+M50+M56+M65+M68 -> 13628242
A28: Community and social services | C28: =SUM(C29:C49) -> 1405000 | D28: 0 | E28: 0 | F28: 0 | G28: 0 | H28: 0 | I28: -1405000 | J28: -1405000 | K28: 0 | L28: 0 | M28: 0
A29: Aged Care | J29: 0 | K29: 0
A30: Agricultural | J30: 0 | K30: 0
A31: Animal Care and Diseases | J31: 0 | K31: 0
A32: Cemeteries, Funeral Parlours and Crematoriums | C32: 0 | D32: 0 | E32: 0 | F32: 0 | G32: 0 | H32: 0 | I32: 0 | J32: 0 | K32: 0 | L32: 0 | M32: 0
A33: Child Care Facilities | J33: 0 | K33: 0
A34: Community Halls and Facilities | C34: 1405000 | D34: 0 | E34: 0 | F34: 0 | G34: 0 | H34: 0 | I34: -1405000 | J34: -1405000 | K34: 0 | L34: 0 | M34: 0
A35: Consumer Protection | J35: 0 | K35: 0
A36: Cultural Matters | J36: 0 | K36: 0
A37: Disaster Management | J37: 0 | K37: 0
A38: Education | J38: 0 | K38: 0
A39: Indigenous and Customary Law | J39: 0 | K39: 0
A40: Industrial Promotion | J40: 0 | K40: 0
A41: Language Policy | J41: 0 | K41: 0
A42: Libraries and Archives | C42: 0 | D42: 0 | E42: 0 | F42: 0 | G42: 0 | H42: 0 | I42: 0 | J42: 0 | K42: 0 | L42: 0 | M42: 0
A43: Literacy Programmes | J43: 0 | K43: 0
A44: Media Services | J44: 0 | K44: 0
A45: Museums and Art Galleries | J45: 0 | K45: 0
A46: Population Development | J46: 0 | K46: 0
A47: Provincial Cultural Matters | J47: 0 | K47: 0
A48: Theatres | J48: 0 | K48: 0
A49: Zoo's | J49: 0 | K49: 0
A50: Sport and recreation | C50: =SUM(C51:C55) -> 332 | D50: 0 | E50: 0 | F50: 0 | G50: 0 | H50: 0 | I50: 0 | J50: 0 | K50: 332 | L50: 347 | M50: 363
A51: Beaches and Jetties | J51: 0 | K51: 0
A52: Casinos, Racing, Gambling, Wagering | J52: 0 | K52: 0
A53: Community Parks (including Nurseries) | J53: 0 | K53: 0
A54: Recreational Facilities | C54: 332 | D54: 0 | E54: 0 | F54: 0 | G54: 0 | H54: 0 | I54: 0 | J54: 0 | K54: 332 | L54: 347 | M54: 363
A55: Sports Grounds and Stadiums | J55: 0 | K55: 0
A56: Public safety | C56: =SUM(C57:C64) -> 12479469 | D56: 0 | E56: 0 | F56: 0 | G56: 0 | H56: 0 | I56: 0 | J56: 0 | K56: 12479469 | L56: 13053524 | M56: 13627879
A57: Civil Defence | J57: 0 | K57: 0
A58: Cleansing | J58: 0 | K58: 0
A59: Control of Public Nuisances | J59: 0 | K59: 0
A60: Fencing and Fences | J60: 0 | K60: 0
A61: Fire Fighting and Protection | J61: 0 | K61: 0
A62: Licensing and Control of Animals | J62: 0 | K62: 0
A63: Police Forces, Traffic and Street Parking Control | C63: 12479469 | D63: 0 | E63: 0 | F63: 0 | G63: 0 | H63: 0 | I63: 0 | J63: =SUM(E63:I63) -> 0 | K63: =IF(D63=0,C63+J63,D63+J63) -> 12479469 | L63: 13053524 | M63: 13627879
A64: Pounds | J64: 0 | K64: 0
A65: Housing | C65: =SUM(C66:C67) -> 0 | D65: =SUM(D66:D67) -> 0 | E65: 0 | F65: 0 | G65: 0 | H65: 0 | I65: 0 | J65: 0 | K65: 0 | L65: =SUM(L66:L67) -> 0 | M65: =SUM(M66:M67) -> 0
A66: Housing | J66: 0 | K66: 0
A67: Informal Settlements | J67: 0 | K67: 0
A68: Health | C68: =SUM(C69:C75) -> 0 | D68: =SUM(D69:D75) -> 0 | E68: 0 | F68: 0 | G68: 0 | H68: 0 | I68: 0 | J68: 0 | K68: 0 | L68: =SUM(L69:L75) -> 0 | M68: =SUM(M69:M75) -> 0
A69: Ambulance | J69: 0 | K69: 0
A70: Health Services | J70: 0 | K70: 0
A71: Laboratory Services | J71: 0 | K71: 0
A72: Food Control | J72: 0 | K72: 0
A73: Health Surveillance and Prevention of Communicable Diseases including immunizations | J73: 0 | K73: 0
A74: Vector Control | J74: 0 | K74: 0
A75: Chemical Safety | J75: =SUM(E75:I75) -> 0 | K75: =IF(D75=0,C75+J75,D75+J75) -> 0
A76: Economic and environmental services | C76: =C77+C88+C93 -> 56172642 | D76: 0 | E76: 0 | F76: 0 | G76: 0 | H76: 0 | I76: 0 | J76: 0 | K76: 56172642 | L76: =L77+L88+L93 -> 49830850 | M76: =M77+M88+M93 -> 52015134
A77: Planning and development | C77: =SUM(C78:C87) -> 56172642 | D77: =SUM(D78:D87) -> 0 | E77: 0 | F77: 0 | G77: 0 | H77: 0 | I77: 0 | J77: 0 | K77: 56172642 | L77: =SUM(L78:L87) -> 49830850 | M77: =SUM(M78:M87) -> 52015134
A78: Billboards | J78: 0 | K78: 0
A79: Corporate Wide Strategic Planning (IDPs, LEDs) | C79: 0 | D79: 0 | E79: 0 | F79: 0 | G79: 0 | H79: 0 | I79: 0 | J79: 0 | K79: 0 | L79: 0 | M79: 0
A80: Central City Improvement District | J80: 0 | K80: 0
A81: Development Facilitation | J81: 0 | K81: 0
A82: Economic Development/Planning | C82: 2117445 | D82: 0 | E82: 0 | F82: 0 | G82: 0 | H82: 0 | I82: 0 | J82: 0 | K82: 2117445 | L82: 2214848 | M82: 2312301
A83: Regional Planning and Development | J83: 0 | K83: 0
A84: Town Planning, Building Regulations and Enforcement, and City Engineer | C84: 1126197 | D84: 0 | E84: 0 | F84: 0 | G84: 0 | H84: 0 | I84: 0 | J84: 0 | K84: 1126197 | L84: 1178002 | M84: 1229833
A85: Project Management Unit | C85: 52929000 | D85: 0 | E85: 0 | F85: 0 | G85: 0 | H85: 0 | I85: 0 | J85: 0 | K85: 52929000 | L85: 46438000 | M85: 48473000
A86: Provincial Planning | J86: 0 | K86: 0
A87: Support to Local Municipalities | J87: 0 | K87: 0
A88: Road transport | C88: =SUM(C89:C92) -> 0 | D88: 0 | E88: 0 | F88: 0 | G88: 0 | H88: 0 | I88: 0 | J88: 0 | K88: 0 | L88: =SUM(L89:L92) -> 0 | M88: =SUM(M89:M92) -> 0
A89: Public Transport | J89: 0 | K89: 0
A90: Road and Traffic Regulation | J90: 0 | K90: 0
A91: Roads | C91: 0 | D91: 0 | E91: 0 | F91: 0 | G91: 0 | H91: 0 | I91: 0 | J91: 0 | K91: 0 | L91: 0 | M91: 0
A92: Taxi Ranks | J92: 0 | K92: 0
A93: Environmental protection | C93: =SUM(C94:C99) -> 0 | D93: =SUM(D94:D99) -> 0 | E93: 0 | F93: 0 | G93: 0 | H93: 0 | I93: 0 | J93: 0 | K93: 0 | L93: =SUM(L94:L99) -> 0 | M93: =SUM(M94:M99) -> 0
A94: Biodiversity and Landscape | J94: 0 | K94: 0
A95: Coastal Protection | J95: 0 | K95: 0
A96: Indigenous Forests | J96: 0 | K96: 0
A97: Nature Conservation | J97: 0 | K97: 0
A98: Pollution Control | J98: 0 | K98: 0
A99: Soil Conservation | J99: 0 | K99: 0
A100: Trading services | C100: =C101+C105+C109+C114 -> 32301514 | D100: =D101+D105+D109+D114 -> 0 | E100: 0 | F100: 0 | G100: 0 | H100: 0 | I100: 2651072 | J100: 2651072 | K100: 34952586 | L100: 24081719 | M100: 25149314
A101: Energy sources | C101: =SUM(C102:C104) -> 30352837 | D101: =SUM(D102:D104) -> 0 | E101: 0 | F101: 0 | G101: 0 | H101: 0 | I101: 1246072 | J101: 1246072 | K101: 31598909 | L101: =SUM(L102:L104) -> 22043402 | M101: =SUM(M102:M104) -> 23021311
A102: Electricity | C102: 30352837 | D102: 0 | E102: 0 | F102: 0 | G102: 0 | H102: 0 | I102: 1246072 | J102: 1246072 | K102: 31598909 | L102: 22043402 | M102: 23021311
A103: Street Lighting and Signal Systems | J103: 0 | K103: 0
A104: Nonelectric Energy | J104: 0 | K104: 0
A105: Water management | C105: =SUM(C106:C108) -> 146962 | D105: =SUM(D106:D108) -> 0 | E105: 0 | F105: 0 | G105: 0 | H105: 0 | I105: 0 | J105: 0 | K105: 146962 | L105: =SUM(L106:L108) -> 153722 | M105: =SUM(M106:M108) -> 160486
A106: Water Treatment | J106: 0 | K106: 0
A107: Water Distribution | C107: 146962 | D107: 0 | E107: 0 | F107: 0 | G107: 0 | H107: 0 | I107: 0 | J107: 0 | K107: 146962 | L107: 153722 | M107: 160486
A108: Water Storage | J108: 0 | K108: 0
A109: Waste water management | C109: =SUM(C110:C113) -> 365798 | D109: =SUM(D110:D113) -> 0 | E109: 0 | F109: 0 | G109: 0 | H109: 0 | I109: 0 | J109: 0 | K109: 365798 | L109: =SUM(L110:L113) -> 382625 | M109: =SUM(M110:M113) -> 399460
A110: Public Toilets | J110: 0 | K110: 0
A111: Sewerage | C111: 365798 | D111: 0 | E111: 0 | F111: 0 | G111: 0 | H111: 0 | I111: 0 | J111: 0 | K111: 365798 | L111: 382625 | M111: 399460
A112: Storm Water Management | C112: 0 | D112: 0 | E112: 0 | F112: 0 | G112: 0 | H112: 0 | I112: 0 | J112: 0 | K112: 0 | L112: 0 | M112: 0
A113: Waste Water Treatment | J113: 0 | K113: 0
A114: Waste management | C114: =SUM(C115:C118) -> 1435917 | D114: =SUM(D115:D118) -> 0 | E114: 0 | F114: 0 | G114: 0 | H114: 0 | I114: 1405000 | J114: 1405000 | K114: 2840917 | L114: 1501970 | M114: =SUM(M115:M118) -> 1568057
A115: Recycling | J115: 0 | K115: 0
A116: Solid Waste Disposal (Landfill Sites) | J116: 0 | K116: 0
A117: Solid Waste Removal | C117: 1435917 | D117: 0 | E117: 0 | F117: 0 | G117: 0 | H117: 0 | I117: 1405000 | J117: 1405000 | K117: 2840917 | L117: 1501970 | M117: 1568057
A118: Street Cleaning | J118: 0 | K118: 0
A119: Other | C119: =SUM(C120:C125) -> 0 | D119: 0 | E119: 0 | F119: 0 | G119: 0 | H119: 0 | I119: 0 | J119: 0 | K119: 0 | L119: 0 | M119: 0
A120: Abattoirs | J120: 0 | K120: 0
A121: Air Transport | J121: 0 | K121: 0
A122: Forestry | J122: 0 | K122: 0
A123: Licensing and Regulation | J123: 0 | K123: 0
A124: Markets | J124: 0 | K124: 0
A125: Tourism | J125: 0 | K125: 0
A126: ="Total "&A6 -> Total Revenue - Functional | B126: 2 | C126: =C7+C27+C76+C100+C119 -> 349707555 | D126: 0 | E126: 0 | F126: 0 | G126: 0 | H126: 0 | I126: 2072432 | J126: 2072432 | K126: 351779987 | L126: =L7+L27+L76+L100+L119 -> 336200524 | M126: =M7+M27+M76+M100+M119 -> 352118178
J127: 0 | K127: 0
A128: Expenditure - Functional | J128: 0 | K128: 0
A129: =A7 -> Municipal governance and administration | C129: =C130+C133+C147 -> 145793806 | D129: 0 | E129: 0 | F129: 0 | G129: 0 | H129: 0 | I129: 8524564 | J129: 8524564 | K129: 154318370 | L129: =L130+L133+L147 -> 144823745 | M129: =M130+M133+M147 -> 151590651
A130: Executive and council | C130: =SUM(C131:C132) -> 41625382 | D130: 0 | E130: 0 | F130: 0 | G130: 0 | H130: 0 | I130: 2190141 | J130: 2190141 | K130: 43815523 | L130: =SUM(L131:L132) -> 42871529 | M130: =SUM(M131:M132) -> 43943330
A131: Mayor and Council | C131: 30390613 | D131: 0 | E131: 0 | F131: 0 | G131: 0 | H131: 0 | I131: 1576307 | J131: 1576307 | K131: 31966920 | L131: 31131194 | M131: 31909483
A132: Municipal Manager, Town Secretary and Chief Executive | C132: 11234769 | D132: 0 | E132: 0 | F132: 0 | G132: 0 | H132: 0 | I132: 613834 | J132: 613834 | K132: 11848603 | L132: 11740335 | M132: 12033847
A133: Finance and administration | C133: =SUM(C134:C146) -> 91979689 | D133: 0 | E133: 0 | F133: 0 | G133: 0 | H133: 0 | I133: 5758490 | J133: 5758490 | K133: 97738179 | L133: =SUM(L134:L146) -> 89177684 | M133: =SUM(M134:M146) -> 94555926
A134: Administrative and Corporate Support | C134: 37251989 | D134: 0 | E134: 0 | F134: 0 | G134: 0 | H134: 0 | I134: -1374897 | J134: -1374897 | K134: 35877092 | L134: 32083028 | M134: 36063901
A135: Asset Management | J135: 0 | K135: 0
A136: Finance | C136: 24787656 | D136: 0 | E136: 0 | F136: 0 | G136: 0 | H136: 0 | I136: 4581179 | J136: 4581179 | K136: 29368835 | L136: 25810505 | M136: 26450764
A137: Fleet Management | J137: 0 | K137: 0
A138: Human Resources | C138: 6929696 | D138: 0 | E138: 0 | F138: 0 | G138: 0 | H138: 0 | I138: 812407 | J138: 812407 | K138: 7742103 | L138: 7241535 | M138: 7422573
A139: Information Technology | C139: 10037286 | D139: 0 | E139: 0 | F139: 0 | G139: 0 | H139: 0 | I139: 175731 | J139: =SUM(E139:I139) -> 175731 | K139: =IF(D139=0,C139+J139,D139+J139) -> 10213017 | L139: 10448462 | M139: 10687177
A140: Legal Services | C140: 3812174 | D140: 0 | E140: 0 | F140: 0 | G140: 0 | H140: 0 | I140: 1222599 | J140: 1222599 | K140: 5034773 | L140: 3983722 | M140: 4083317
A141: Marketing, Customer Relations, Publicity and Media Co-ordination | J141: 0 | K141: 0
A142: Property Services | J142: 0 | K142: 0
A143: Risk Management | C143: 995097 | D143: 0 | E143: 0 | F143: 0 | G143: 0 | H143: 0 | I143: 19481 | J143: 19481 | K143: 1014578 | L143: 1039879 | M143: 1065875
A144: Security Services | J144: 0 | K144: 0
A145: Supply Chain Management | C145: 8165791 | D145: 0 | E145: 0 | F145: 0 | G145: 0 | H145: 0 | I145: 321990 | J145: 321990 | K145: 8487781 | L145: 8570553 | M145: 8782319
A146: Valuation Service | J146: 0 | K146: 0
A147: Internal audit | C147: =SUM(C148:C148) -> 12188735 | D147: 0 | E147: 0 | F147: 0 | G147: 0 | H147: 0 | I147: 575933 | J147: 575933 | K147: 12764668 | L147: 12774532 | M147: 13091395
A148: Governance Function | C148: 12188735 | D148: 0 | E148: 0 | F148: 0 | G148: 0 | H148: 0 | I148: 575933 | J148: 575933 | K148: 12764668 | L148: 12774532 | M148: 13091395
A149: Community and public safety | C149: =C150+C172+C178+C187+C190 -> 32650607 | D149: 0 | E149: 0 | F149: 0 | G149: 0 | H149: 0 | I149: -731227 | J149: -731227 | K149: 31919380 | L149: =L150+L172+L178+L187+L190 -> 33158108 | M149: =M150+M172+M178+M187+M190 -> 33987068
A150: Community and social services | C150: =SUM(C151:C171) -> 10211046 | D150: 0 | E150: 0 | F150: 0 | G150: 0 | H150: 0 | I150: -655212 | J150: -655212 | K150: 9555834 | L150: =SUM(L151:L171) -> 9573291 | M150: =SUM(M151:M171) -> 9812629
A151: Aged Care | J151: 0 | K151: 0
A152: Agricultural | J152: 0 | K152: 0
A153: Animal Care and Diseases | J153: 0 | K153: 0
A154: Cemeteries, Funeral Parlours and Crematoriums | C154: 1398787 | D154: 0 | E154: 0 | F154: 0 | G154: 0 | H154: 0 | I154: -29447 | J154: -29447 | K154: 1369340 | L154: 1461731 | M154: 1498276
A155: Child Care Facilities | J155: 0 | K155: 0
A156: Community Halls and Facilities | C156: 6893499 | D156: 0 | E156: 0 | F156: 0 | G156: 0 | H156: 0 | I156: -716288 | J156: -716288 | K156: 6177211 | L156: 6106454 | M156: 6259116
A157: Consumer Protection | J157: 0 | K157: 0
A158: Cultural Matters | J158: 0 | K158: 0
A159: Disaster Management | J159: 0 | K159: 0
A160: Education | J160: 0 | K160: 0
A161: Indigenous and Customary Law | J161: 0 | K161: 0
A162: Industrial Promotion | J162: 0 | K162: 0
A163: Language Policy | J163: 0 | K163: 0
A164: Libraries and Archives | C164: 1918760 | D164: 0 | E164: 0 | F164: 0 | G164: 0 | H164: 0 | I164: 90523 | J164: 90523 | K164: 2009283 | L164: 2005106 | M164: 2055237
A165: Literacy Programmes | J165: 0 | K165: 0
A166: Media Services | J166: 0 | K166: 0
A167: Museums and Art Galleries | J167: 0 | K167: 0
A168: Population Development | J168: 0 | K168: 0
A169: Provincial Cultural Matters | J169: 0 | K169: 0
A170: Theatres | J170: 0 | K170: 0
A171: Zoo's | J171: 0 | K171: 0
A172: Sport and recreation | C172: =SUM(C173:C177) -> 3484575 | D172: 0 | E172: 0 | F172: 0 | G172: 0 | H172: 0 | I172: 83985 | J172: 83985 | K172: 3568560 | L172: =SUM(L173:L177) -> 3776854 | M172: =SUM(M173:M177) -> 3871276
A173: Beaches and Jetties | J173: 0 | K173: 0
A174: Casinos, Racing, Gambling, Wagering | J174: 0 | K174: 0
A175: Community Parks (including Nurseries) | J175: 0 | K175: 0
A176: Recreational Facilities | C176: 3484575 | D176: 0 | E176: 0 | F176: 0 | G176: 0 | H176: 0 | I176: 83985 | J176: 83985 | K176: 3568560 | L176: 3776854 | M176: 3871276
A177: Sports Grounds and Stadiums | J177: 0 | K177: 0
A178: Public safety | C178: =SUM(C179:C186) -> 18954986 | D178: 0 | E178: 0 | F178: 0 | G178: 0 | H178: 0 | I178: -160000 | J178: -160000 | K178: 18794986 | L178: =SUM(L179:L186) -> 19807963 | M178: =SUM(M179:M186) -> 20303163
A179: Civil Defence | J179: 0 | K179: 0
A180: Cleansing | J180: 0 | K180: 0
A181: Control of Public Nuisances | J181: 0 | K181: 0
A182: Fencing and Fences | J182: 0 | K182: 0
A183: Fire Fighting and Protection | J183: 0 | K183: 0
A184: Licensing and Control of Animals | J184: =SUM(E184:I184) -> 0 | K184: =IF(D184=0,C184+J184,D184+J184) -> 0
A185: Police Forces, Traffic and Street Parking Control | C185: 18954986 | D185: 0 | E185: 0 | F185: 0 | G185: 0 | H185: 0 | I185: -160000 | J185: =SUM(E185:I185) -> -160000 | K185: =IF(D185=0,C185+J185,D185+J185) -> 18794986 | L185: 19807963 | M185: 20303163
A186: Pounds | J186: 0 | K186: 0
A187: Housing | C187: =SUM(C188:C189) -> 0 | D187: =SUM(D188:D189) -> 0 | E187: 0 | F187: 0 | G187: 0 | H187: 0 | I187: 0 | J187: 0 | K187: 0 | L187: 0 | M187: 0
A188: Housing | J188: 0 | K188: 0
A189: Informal Settlements | J189: 0 | K189: 0
A190: Health | C190: =SUM(C191:C197) -> 0 | D190: 0 | E190: 0 | F190: 0 | G190: 0 | H190: 0 | I190: 0 | J190: 0 | K190: 0 | L190: =SUM(L191:L197) -> 0 | M190: =SUM(M191:M197) -> 0
A191: Ambulance | J191: 0 | K191: 0
A192: Health Services | J192: 0 | K192: 0
A193: =A71 -> Laboratory Services | J193: 0 | K193: 0
A194: Food Control | J194: 0 | K194: 0
A195: Health Surveillance and Prevention of Communicable Diseases including immunizations | J195: 0 | K195: 0
A196: Vector Control | J196: 0 | K196: 0
A197: Chemical Safety | J197: 0 | K197: 0
A198: Economic and environmental services | C198: =C199+C210+C215 -> 24340871 | D198: 0 | E198: 0 | F198: 0 | G198: 0 | H198: 0 | I198: -1451154 | J198: -1451154 | K198: 22889717 | L198: =L199+L210+L215 -> 25577714 | M198: =M199+M210+M215 -> 24979672
A199: Planning and development | C199: =SUM(C200:C209) -> 16980667 | D199: 0 | E199: 0 | F199: 0 | G199: 0 | H199: 0 | I199: -1351154 | J199: -1351154 | K199: 15629513 | L199: =SUM(L200:L209) -> 17886302 | M199: =SUM(M200:M209) -> 17095971
A200: Billboards | J200: 0 | K200: 0
... 54 more rows

Sheet B3-FinPerf V
A1: =muni&" - "&_ADJ2&" - "&Date -> LIM353 Molemole - Table B3 Adjustments Budget Financial Performance (revenue and expenditure by municipal vote) - 46115
A2: =Vdesc -> Vote Description | B2: =head27 -> Ref | C2: =Head2 -> Budget Year 2025/26 | L2: =Head10 -> Budget Year +1 2026/27 | M2: =Head11 -> Budget Year +2 2027/28
C3: =Head6 -> Original Budget | D3: =Head54 -> Prior Adjusted | E3: =Head51 -> Accum. Funds | F3: =Head52 -> Multi-year capital | G3: =Head53 -> Unfore. Unavoid. | H3: =Head55 -> Nat. or Prov. Govt | I3: =Head50 -> Other Adjusts. | J3: =Head56 -> Total Adjusts. | K3: =Head7 -> Adjusted Budget | L3: =Head7 -> Adjusted Budget | M3: =Head7 -> Adjusted Budget
A4: [Insert departmental structure etc] | D4: 3 | E4: 4 | F4: 5 | G4: 6 | H4: 7 | I4: 8 | J4: 9 | K4: 10
A5: R thousands | C5: A | D5: A1 | E5: B | F5: C | G5: D | H5: E | I5: F | J5: G | K5: H
A6: Revenue by Vote | B6: 1
A7: =B3B!A7 -> Vote 01 - Corporate Services | C7: =B3B!C7 -> 3916995 | D7: =B3B!D7 -> 0 | E7: =B3B!E7 -> 0 | F7: =B3B!F7 -> 0 | G7: =B3B!G7 -> 0 | H7: =B3B!H7 -> 0 | I7: =B3B!I7 -> 1726360 | J7: =B3B!J7 -> 1726360 | K7: =B3B!K7 -> 5643355 | L7: =B3B!L7 -> 4096937 | M7: =B3B!M7 -> 4272436
A8: =B3B!A18 -> Vote 02 - Municipal Manager | C8: =B3B!C18 -> 0 | D8: =B3B!D18 -> 0 | E8: =B3B!E18 -> 0 | F8: =B3B!F18 -> 0 | G8: =B3B!G18 -> 0 | H8: =B3B!H18 -> 0 | I8: =B3B!I18 -> 60000 | J8: =B3B!J18 -> 60000 | K8: =B3B!K18 -> 60000 | L8: =B3B!L18 -> 0 | M8: =B3B!M18 -> 0
A9: =B3B!A29 -> Vote 03 - Mayors Office | C9: =B3B!C29 -> 0 | D9: =B3B!D29 -> 0 | E9: =B3B!E29 -> 0 | F9: =B3B!F29 -> 0 | G9: =B3B!G29 -> 0 | H9: =B3B!H29 -> 0 | I9: =B3B!I29 -> 0 | J9: =B3B!J29 -> 0 | K9: =B3B!K29 -> 0 | L9: =B3B!L29 -> 0 | M9: =B3B!M29 -> 0
A10: =B3B!A40 -> Vote 04 - Budget And Treasury | C10: =B3B!C40 -> 246675245 | D10: =B3B!D40 -> 0 | E10: =B3B!E40 -> 0 | F10: =B3B!F40 -> 0 | G10: =B3B!G40 -> 0 | H10: =B3B!H40 -> 0 | I10: =B3B!I40 -> -960000 | J10: =B3B!J40 -> -960000 | K10: =B3B!K40 -> 245715245 | L10: =B3B!L40 -> 248529997 | M10: =B3B!M40 -> 260595186
A11: =B3B!A51 -> Vote 05 - Community Services | C11: =B3B!C51 -> 15320718 | D11: =B3B!D51 -> 0 | E11: =B3B!E51 -> 0 | F11: =B3B!F51 -> 0 | G11: =B3B!G51 -> 0 | H11: =B3B!H51 -> 0 | I11: =B3B!I51 -> 0 | J11: =B3B!J51 -> 0 | K11: =B3B!K51 -> 15320718 | L11: =B3B!L51 -> 14555841 | M11: =B3B!M51 -> 15196299
A12: =B3B!A62 -> Vote 06 - Technical Services | C12: =B3B!C62 -> 83794597 | D12: =B3B!D62 -> 0 | E12: =B3B!E62 -> 0 | F12: =B3B!F62 -> 0 | G12: =B3B!G62 -> 0 | H12: =B3B!H62 -> 0 | I12: =B3B!I62 -> 1246072 | J12: =B3B!J62 -> 1246072 | K12: =B3B!K62 -> 85040669 | L12: =B3B!L62 -> 69017749 | M12: =B3B!M62 -> 72054257
A13: ='Org structure'!A8 -> Vote 07 - | C13: =B3B!C73 -> 0 | D13: =B3B!D73 -> 0 | E13: =B3B!E73 -> 0 | F13: =B3B!F73 -> 0 | G13: =B3B!G73 -> 0 | H13: =B3B!H73 -> 0 | I13: =B3B!I73 -> 0 | J13: =SUM(E13:I13) -> 0 | K13: =IF(D13=0,C13+J13,D13+J13) -> 0 | L13: =B3B!L73 -> 0 | M13: =B3B!M73 -> 0
A14: ='Org structure'!A9 -> Vote 08 - | C14: =B3B!C84 -> 0 | D14: =B3B!D84 -> 0 | E14: =B3B!E84 -> 0 | F14: =B3B!F84 -> 0 | G14: =B3B!G84 -> 0 | H14: =B3B!H84 -> 0 | I14: =B3B!I84 -> 0 | J14: 0 | K14: 0 | L14: =B3B!L84 -> 0 | M14: =B3B!M84 -> 0
A15: ='Org structure'!A10 -> Vote 09 - | C15: =B3B!C95 -> 0 | D15: =B3B!D95 -> 0 | E15: =B3B!E95 -> 0 | F15: =B3B!F95 -> 0 | G15: =B3B!G95 -> 0 | H15: =B3B!H95 -> 0 | I15: =B3B!I95 -> 0 | J15: 0 | K15: 0 | L15: =B3B!L95 -> 0 | M15: =B3B!M95 -> 0
A16: ='Org structure'!A11 -> Vote 10 - | C16: =B3B!C106 -> 0 | D16: =B3B!D106 -> 0 | E16: =B3B!E106 -> 0 | F16: =B3B!F106 -> 0 | G16: =B3B!G106 -> 0 | H16: =B3B!H106 -> 0 | I16: =B3B!I106 -> 0 | J16: 0 | K16: 0 | L16: =B3B!L106 -> 0 | M16: =B3B!M106 -> 0
A17: ='Org structure'!A12 -> Vote 11 - | C17: =B3B!C117 -> 0 | D17: =B3B!D117 -> 0 | E17: =B3B!E117 -> 0 | F17: =B3B!F117 -> 0 | G17: =B3B!G117 -> 0 | H17: =B3B!H117 -> 0 | I17: =B3B!I117 -> 0 | J17: 0 | K17: 0 | L17: =B3B!L117 -> 0 | M17: =B3B!M117 -> 0
A18: ='Org structure'!A13 -> Vote 12 - | C18: =B3B!C128 -> 0 | D18: =B3B!D128 -> 0 | E18: =B3B!E128 -> 0 | F18: =B3B!F128 -> 0 | G18: =B3B!G128 -> 0 | H18: =B3B!H128 -> 0 | I18: =B3B!I128 -> 0 | J18: 0 | K18: 0 | L18: =B3B!L128 -> 0 | M18: =B3B!M128 -> 0
A19: ='Org structure'!A14 -> Vote 13 - | C19: =B3B!C139 -> 0 | D19: =B3B!D139 -> 0 | E19: =B3B!E139 -> 0 | F19: =B3B!F139 -> 0 | G19: =B3B!G139 -> 0 | H19: =B3B!H139 -> 0 | I19: =B3B!I139 -> 0 | J19: 0 | K19: 0 | L19: =B3B!L139 -> 0 | M19: =B3B!M139 -> 0
A20: ='Org structure'!A15 -> Vote 14 - | C20: =B3B!C150 -> 0 | D20: =B3B!D150 -> 0 | E20: =B3B!E150 -> 0 | F20: =B3B!F150 -> 0 | G20: =B3B!G150 -> 0 | H20: =B3B!H150 -> 0 | I20: =B3B!I150 -> 0 | J20: 0 | K20: 0 | L20: =B3B!L150 -> 0 | M20: =B3B!M150 -> 0
A21: ='Org structure'!A16 -> Vote 15 - Other | C21: =B3B!C161 -> 0 | D21: =B3B!D161 -> 0 | E21: =B3B!E161 -> 0 | F21: =B3B!F161 -> 0 | G21: =B3B!G161 -> 0 | H21: =B3B!H161 -> 0 | I21: =B3B!I161 -> 0 | J21: 0 | K21: 0 | L21: =B3B!L161 -> 0 | M21: =B3B!M161 -> 0
A22: Total Revenue by Vote | B22: 2 | C22: =SUM(C7:C21) -> 349707555 | D22: =SUM(D7:D21) -> 0 | E22: 0 | F22: 0 | G22: 0 | H22: 0 | I22: 2072432 | J22: =SUM(J7:J21) -> 2072432 | K22: 351779987 | L22: =SUM(L7:L21) -> 336200524 | M22: =SUM(M7:M21) -> 352118178
A24: Expenditure by Vote | B24: 1
A25: =B3B!A175 -> Vote 01 - Corporate Services | C25: =B3B!C175 -> 67364632 | D25: =B3B!D175 -> 0 | E25: =B3B!E175 -> 0 | F25: =B3B!F175 -> 0 | G25: =B3B!G175 -> 0 | H25: =B3B!H175 -> 0 | I25: =B3B!I175 -> 277127 | J25: =B3B!J175 -> 277127 | K25: =B3B!K175 -> 67641759 | L25: =B3B!L175 -> 62751743 | M25: =B3B!M175 -> 66161852
A26: =B3B!A186 -> Vote 02 - Municipal Manager | C26: =B3B!C186 -> 28230775 | D26: =B3B!D186 -> 0 | E26: =B3B!E186 -> 0 | F26: =B3B!F186 -> 0 | G26: =B3B!G186 -> 0 | H26: =B3B!H186 -> 0 | I26: =B3B!I186 -> 2431847 | J26: =B3B!J186 -> 2431847 | K26: =B3B!K186 -> 30662622 | L26: =B3B!L186 -> 29538468 | M26: =B3B!M186 -> 30274434
A27: =B3B!A197 -> Vote 03 - Mayors Office | C27: =B3B!C197 -> 20443276 | D27: =B3B!D197 -> 0 | E27: =B3B!E197 -> 0 | F27: =B3B!F197 -> 0 | G27: =B3B!G197 -> 0 | H27: =B3B!H197 -> 0 | I27: =B3B!I197 -> -98105 | J27: =B3B!J197 -> -98105 | K27: =B3B!K197 -> 20345171 | L27: =B3B!L197 -> 21781224 | M27: =B3B!M197 -> 22325761
A28: =B3B!A208 -> Vote 04 - Budget And Treasury | C28: =B3B!C208 -> 40970823 | D28: =B3B!D208 -> 0 | E28: =B3B!E208 -> 0 | F28: =B3B!F208 -> 0 | G28: =B3B!G208 -> 0 | H28: =B3B!H208 -> 0 | I28: =B3B!I208 -> 4736169 | J28: =B3B!J208 -> 4736169 | K28: =B3B!K208 -> 45706992 | L28: =B3B!L208 -> 42718717 | M28: =B3B!M208 -> 43856685
A29: =B3B!A219 -> Vote 05 - Community Services | C29: =B3B!C219 -> 43980610 | D29: =B3B!D219 -> 0 | E29: =B3B!E219 -> 0 | F29: =B3B!F219 -> 0 | G29: =B3B!G219 -> 0 | H29: =B3B!H219 -> 0 | I29: =B3B!I219 -> -2088732 | J29: =B3B!J219 -> -2088732 | K29: =B3B!K219 -> 41891878 | L29: =B3B!L219 -> 43076175 | M29: =B3B!M219 -> 44153088
A30: =B3B!A230 -> Vote 06 - Technical Services | C30: =B3B!C230 -> 84320928 | D30: =B3B!D230 -> 0 | E30: =B3B!E230 -> 0 | F30: =B3B!F230 -> 0 | G30: =B3B!G230 -> 0 | H30: =B3B!H230 -> 0 | I30: =B3B!I230 -> 2933639 | J30: =B3B!J230 -> 2933639 | K30: =B3B!K230 -> 87254567 | L30: =B3B!L230 -> 77526975 | M30: =B3B!M230 -> 79606159
A31: ='Org structure'!A8 -> Vote 07 - | C31: =B3B!C241 -> 0 | D31: =B3B!D241 -> 0 | E31: =B3B!E241 -> 0 | F31: =B3B!F241 -> 0 | G31: =B3B!G241 -> 0 | H31: =B3B!H241 -> 0 | I31: =B3B!I241 -> 0 | J31: =SUM(E31:I31) -> 0 | K31: =IF(D31=0,C31+J31,D31+J31) -> 0 | L31: =B3B!L241 -> 0 | M31: =B3B!M241 -> 0
A32: ='Org structure'!A9 -> Vote 08 - | C32: =B3B!C252 -> 0 | D32: =B3B!D252 -> 0 | E32: =B3B!E252 -> 0 | F32: =B3B!F252 -> 0 | G32: =B3B!G252 -> 0 | H32: =B3B!H252 -> 0 | I32: =B3B!I252 -> 0 | J32: 0 | K32: 0 | L32: =B3B!L252 -> 0 | M32: =B3B!M252 -> 0
A33: ='Org structure'!A10 -> Vote 09 - | C33: =B3B!C263 -> 0 | D33: =B3B!D263 -> 0 | E33: =B3B!E263 -> 0 | F33: =B3B!F263 -> 0 | G33: =B3B!G263 -> 0 | H33: =B3B!H263 -> 0 | I33: =B3B!I263 -> 0 | J33: 0 | K33: 0 | L33: =B3B!L263 -> 0 | M33: =B3B!M263 -> 0
A34: ='Org structure'!A11 -> Vote 10 - | C34: =B3B!C274 -> 0 | D34: =B3B!D274 -> 0 | E34: =B3B!E274 -> 0 | F34: =B3B!F274 -> 0 | G34: =B3B!G274 -> 0 | H34: =B3B!H274 -> 0 | I34: =B3B!I274 -> 0 | J34: 0 | K34: 0 | L34: =B3B!L274 -> 0 | M34: =B3B!M274 -> 0
A35: ='Org structure'!A12 -> Vote 11 - | C35: =B3B!C285 -> 0 | D35: =B3B!D285 -> 0 | E35: =B3B!E285 -> 0 | F35: =B3B!F285 -> 0 | G35: =B3B!G285 -> 0 | H35: =B3B!H285 -> 0 | I35: =B3B!I285 -> 0 | J35: 0 | K35: 0 | L35: =B3B!L285 -> 0 | M35: =B3B!M285 -> 0
A36: ='Org structure'!A13 -> Vote 12 - | C36: =B3B!C296 -> 0 | D36: =B3B!D296 -> 0 | E36: =B3B!E296 -> 0 | F36: =B3B!F296 -> 0 | G36: =B3B!G296 -> 0 | H36: =B3B!H296 -> 0 | I36: =B3B!I296 -> 0 | J36: 0 | K36: 0 | L36: =B3B!L296 -> 0 | M36: =B3B!M296 -> 0
A37: ='Org structure'!A14 -> Vote 13 - | C37: =B3B!C307 -> 0 | D37: =B3B!D307 -> 0 | E37: =B3B!E307 -> 0 | F37: =B3B!F307 -> 0 | G37: =B3B!G307 -> 0 | H37: =B3B!H307 -> 0 | I37: =B3B!I307 -> 0 | J37: 0 | K37: 0 | L37: =B3B!L307 -> 0 | M37: =B3B!M307 -> 0
A38: ='Org structure'!A15 -> Vote 14 - | C38: =B3B!C318 -> 0 | D38: =B3B!D318 -> 0 | E38: =B3B!E318 -> 0 | F38: =B3B!F318 -> 0 | G38: =B3B!G318 -> 0 | H38: =B3B!H318 -> 0 | I38: =B3B!I318 -> 0 | J38: 0 | K38: 0 | L38: =B3B!L318 -> 0 | M38: =B3B!M318 -> 0
A39: ='Org structure'!A16 -> Vote 15 - Other | C39: =B3B!C329 -> 0 | D39: =B3B!D329 -> 0 | E39: =B3B!E329 -> 0 | F39: =B3B!F329 -> 0 | G39: =B3B!G329 -> 0 | H39: =B3B!H329 -> 0 | I39: =B3B!I329 -> 0 | J39: 0 | K39: 0 | L39: =B3B!L329 -> 0 | M39: =B3B!M329 -> 0
A40: Total Expenditure by Vote | B40: 2 | C40: =SUM(C25:C39) -> 285311044 | D40: =SUM(D25:D39) -> 0 | E40: 0 | F40: 0 | G40: 0 | H40: 0 | I40: 8191945 | J40: =SUM(J25:J39) -> 8191945 | K40: =SUM(K25:K39) -> 293502989 | L40: =SUM(L25:L39) -> 277393302 | M40: =SUM(M25:M39) -> 286377979
A41: =result -> Surplus/ (Deficit) for the year | B41: 2 | C41: =C22-C40 -> 64396511 | D41: =D22-D40 -> 0 | E41: 0 | F41: 0 | G41: 0 | H41: 0 | I41: -6119513 | J41: -6119513 | K41: 58276998 | L41: 58807222 | M41: 65740199
A42: =head27a -> References
A43: 1. Insert 'Vote'; e.g. Department, if different to standard classification structure
A44: 2. Must reconcile to Budgeted Financial Performance (revenue and expenditure)
A45: 3. Only complete if a previous adjusted budget has been approved in the same financial year. Reflect most recent adjusted budget.
A46: 4. Additional cash-backed accumulated funds/unspent funds (MFMA section 18(1)(b) and section 28(2)(e)) identified after the Original Budget approved and after annual financial statements audited (note: only where underspending could not reasonably have been foreseen)
A47: 5. Increases of funds approved under MFMA section 31
A48: 6. Adjustments approved in accordance with MFMA section 29
A49: 7. Adjustments to transfers from National or Provincial Government
A50: 8. Adjusts. = 'Other' Adjustments proposed to be approved; including revenue under-collection (MFMA section 28(2)(a)); additional revenue appropriation on existing programmes (section 28(2))(b); projected savings (section 28(2)(d)); error correction (section 28(2)(f))
A51: 9. G = B + C + D + E + F
A52: 10. Adjusted Budget H = (A or A1/2 etc) + G
A54: check revenue | C54: =C22-'B4-FinPerf RE'!C77 -> 349707555 | D54: =D22-'B4-FinPerf RE'!D77 -> 0 | E54: =E22-'B4-FinPerf RE'!E77 -> 0 | F54: =F22-'B4-FinPerf RE'!F77 -> 0 | G54: =G22-'B4-FinPerf RE'!G77 -> 0 | H54: =H22-'B4-FinPerf RE'!H77 -> 0 | I54: =I22-'B4-FinPerf RE'!I77 -> 2072432 | J54: =J22-'B4-FinPerf RE'!J77 -> 2072432 | K54: =K22-'B4-FinPerf RE'!K77 -> 351779987 | L54: =L22-'B4-FinPerf RE'!L77 -> 336200524 | M54: =M22-'B4-FinPerf RE'!M77 -> 352118178
A55: check expenditure | C55: =C40-'B4-FinPerf RE'!C51 -> 0 | D55: =D40-'B4-FinPerf RE'!D51 -> 0 | E55: =E40-'B4-FinPerf RE'!E51 -> 0 | F55: =F40-'B4-FinPerf RE'!F51 -> 0 | G55: =G40-'B4-FinPerf RE'!G51 -> 0 | H55: =H40-'B4-FinPerf RE'!H51 -> 0 | I55: =I40-'B4-FinPerf RE'!I51 -> 0 | J55: =J40-'B4-FinPerf RE'!J51 -> 0 | K55: =K40-'B4-FinPerf RE'!K51 -> 0 | L55: =L40-'B4-FinPerf RE'!L51 -> 0 | M55: =M40-'B4-FinPerf RE'!M51 -> 0

Sheet B3B
A1: =muni&" - "&_ADJ2&" - B"&" - "&Date -> LIM353 Molemole - Table B3 Adjustments Budget Financial Performance (revenue and expenditure by municipal vote) - B - 46115
A2: =Vdesc -> Vote Description | B2: =head27 -> Ref | C2: =Head2 -> Budget Year 2025/26 | L2: =Head10 -> Budget Year +1 2026/27 | M2: =Head11 -> Budget Year +2 2027/28
C3: =Head6 -> Original Budget | D3: =Head54 -> Prior Adjusted | E3: =Head51 -> Accum. Funds | F3: =Head52 -> Multi-year capital | G3: =Head53 -> Unfore. Unavoid. | H3: =Head55 -> Nat. or Prov. Govt | I3: =Head50 -> Other Adjusts. | J3: =Head56 -> Total Adjusts. | K3: =Head7 -> Adjusted Budget | L3: =Head7 -> Adjusted Budget | M3: =Head7 -> Adjusted Budget
A4: [Insert departmental structure etc] | D4: 3 | E4: 4 | F4: 5 | G4: 6 | H4: 7 | I4: 8 | J4: 9 | K4: 10
A5: R thousands | C5: A | D5: A1 | E5: B | F5: C | G5: D | H5: E | I5: F | J5: G | K5: H
A6: Revenue by Vote | B6: 1
A7: ='Org structure'!A2 -> Vote 01 - Corporate Services | C7: =SUM(C8:C17) -> 3916995 | D7: =SUM(D8:D17) -> 0 | E7: 0 | F7: 0 | G7: 0 | H7: 0 | I7: 1726360 | J7: =SUM(E7:I7) -> 1726360 | K7: =IF(D7=0,C7+J7,D7+J7) -> 5643355 | L7: =SUM(L8:L17) -> 4096937 | M7: =SUM(M8:M17) -> 4272436
A8: ='Org structure'!E3 -> 01.1 - Corporate Services Admin | C8: 421629 | D8: 0 | E8: 0 | F8: 0 | G8: 0 | H8: 0 | I8: 250700 | J8: 250700 | K8: 672329 | L8: 440784 | M8: 455413
A9: ='Org structure'!E4 -> 01.2 - Human Resources | C9: 251724 | D9: 0 | E9: 0 | F9: 0 | G9: 0 | H9: 0 | I9: 575660 | J9: 575660 | K9: 827384 | L9: 263303 | M9: 274889
A10: ='Org structure'!E5 -> 01.3 - Information Technology Services | C10: 0 | D10: 0 | E10: 0 | F10: 0 | G10: 0 | H10: 0 | I10: 900000 | J10: 900000 | K10: 900000 | L10: 0 | M10: 0
A11: ='Org structure'!E6 -> 01.4 - Council Support | C11: 0 | D11: 0 | E11: 0 | F11: 0 | G11: 0 | H11: 0 | I11: 0 | J11: 0 | K11: 0 | L11: 0 | M11: 0
A12: ='Org structure'!E7 -> 01.5 - Local Economic Development | C12: 2117445 | D12: 0 | E12: 0 | F12: 0 | G12: 0 | H12: 0 | I12: 0 | J12: 0 | K12: 2117445 | L12: 2214848 | M12: 2312301
A13: ='Org structure'!E8 -> 01.6 - Municipal Planning Idp | C13: 0 | D13: 0 | E13: 0 | F13: 0 | G13: 0 | H13: 0 | I13: 0 | J13: 0 | K13: 0 | L13: 0 | M13: 0
A14: ='Org structure'!E9 -> 01.7 - Town & Regional Planning | C14: 1126197 | D14: 0 | E14: 0 | F14: 0 | G14: 0 | H14: 0 | I14: 0 | J14: 0 | K14: 1126197 | L14: 1178002 | M14: 1229833
A15: ='Org structure'!E10 -> 01.8 - Led Administration | C15: 0 | D15: 0 | E15: 0 | F15: 0 | G15: 0 | H15: 0 | I15: 0 | J15: 0 | K15: 0 | L15: 0 | M15: 0
J16: =SUM(E16:I16) -> 0 | K16: =IF(D16=0,C16+J16,D16+J16) -> 0
J17: 0 | K17: 0
A18: ='Org structure'!A3 -> Vote 02 - Municipal Manager | C18: =SUM(C19:C28) -> 0 | D18: =SUM(D19:D28) -> 0 | E18: 0 | F18: 0 | G18: 0 | H18: 0 | I18: 60000 | J18: 60000 | K18: 60000 | L18: =SUM(L19:L28) -> 0 | M18: =SUM(M19:M28) -> 0
A19: ='Org structure'!E12 -> 02.1 - Municipal Manager Admin | C19: 0 | D19: 0 | E19: 0 | F19: 0 | G19: 0 | H19: 0 | I19: 0 | J19: =SUM(E19:I19) -> 0 | K19: =IF(D19=0,C19+J19,D19+J19) -> 0 | L19: 0 | M19: 0
A20: ='Org structure'!E13 -> 02.2 - Legal Services | C20: 0 | D20: 0 | E20: 0 | F20: 0 | G20: 0 | H20: 0 | I20: 0 | J20: =SUM(E20:I20) -> 0 | K20: =IF(D20=0,C20+J20,D20+J20) -> 0 | L20: 0 | M20: 0
A21: ='Org structure'!E14 -> 02.3 - Political Office Beares | C21: 0 | D21: 0 | E21: 0 | F21: 0 | G21: 0 | H21: 0 | I21: 0 | J21: =SUM(E21:I21) -> 0 | K21: =IF(D21=0,C21+J21,D21+J21) -> 0 | L21: 0 | M21: 0
A22: ='Org structure'!E15 -> 02.4 - Pms | C22: 0 | D22: 0 | E22: 0 | F22: 0 | G22: 0 | H22: 0 | I22: 0 | J22: =SUM(E22:I22) -> 0 | K22: =IF(D22=0,C22+J22,D22+J22) -> 0 | L22: 0 | M22: 0
A23: ='Org structure'!E16 -> 02.5 - Internal Audit | C23: 0 | D23: 0 | E23: 0 | F23: 0 | G23: 0 | H23: 0 | I23: 60000 | J23: =SUM(E23:I23) -> 60000 | K23: =IF(D23=0,C23+J23,D23+J23) -> 60000 | L23: 0 | M23: 0
J24: 0 | K24: 0
J25: 0 | K25: 0
J26: 0 | K26: 0
J27: 0 | K27: 0
J28: 0 | K28: 0
A29: ='Org structure'!A4 -> Vote 03 - Mayors Office | C29: =SUM(C30:C39) -> 0 | D29: 0 | E29: 0 | F29: 0 | G29: 0 | H29: 0 | I29: 0 | J29: 0 | K29: 0 | L29: =SUM(L30:L39) -> 0 | M29: =SUM(M30:M39) -> 0
A30: ='Org structure'!E18 -> 03.1 - Mayors Office Admin | C30: 0 | D30: 0 | E30: 0 | F30: 0 | G30: 0 | H30: 0 | I30: 0 | J30: =SUM(E30:I30) -> 0 | K30: =IF(D30=0,C30+J30,D30+J30) -> 0 | L30: 0 | M30: 0
A31: ='Org structure'!E19 -> 03.2 - Office Of The Speaker | C31: 0 | D31: 0 | E31: 0 | F31: 0 | G31: 0 | H31: 0 | I31: 0 | J31: =SUM(E31:I31) -> 0 | K31: =IF(D31=0,C31+J31,D31+J31) -> 0 | L31: 0 | M31: 0
A32: ='Org structure'!E20 -> 03.3 - Office Of The Chief Whip | C32: 0 | D32: 0 | E32: 0 | F32: 0 | G32: 0 | H32: 0 | I32: 0 | J32: =SUM(E32:I32) -> 0 | K32: =IF(D32=0,C32+J32,D32+J32) -> 0 | L32: 0 | M32: 0
A33: ='Org structure'!E21 -> 03.4 - Exco Members | C33: 0 | D33: 0 | E33: 0 | F33: 0 | G33: 0 | H33: 0 | I33: 0 | J33: =SUM(E33:I33) -> 0 | K33: =IF(D33=0,C33+J33,D33+J33) -> 0 | L33: 0 | M33: 0
A34: ='Org structure'!E22 -> 03.5 - Council General Administration | C34: 0 | D34: 0 | E34: 0 | F34: 0 | G34: 0 | H34: 0 | I34: 0 | J34: =SUM(E34:I34) -> 0 | K34: =IF(D34=0,C34+J34,D34+J34) -> 0 | L34: 0 | M34: 0
J35: 0 | K35: 0
J36: 0 | K36: 0
J37: 0 | K37: 0
J38: 0 | K38: 0
J39: 0 | K39: 0
A40: ='Org structure'!A5 -> Vote 04 - Budget And Treasury | C40: =SUM(C41:C50) -> 246675245 | D40: 0 | E40: 0 | F40: 0 | G40: 0 | H40: 0 | I40: -960000 | J40: -960000 | K40: 245715245 | L40: =SUM(L41:L50) -> 248529997 | M40: =SUM(M41:M50) -> 260595186
A41: ='Org structure'!E24 -> 04.1 - Budget And Treasury Admin | C41: 229885722 | D41: 0 | E41: 0 | F41: 0 | G41: 0 | H41: 0 | I41: -1200000 | J41: =SUM(E41:I41) -> -1200000 | K41: =IF(D41=0,C41+J41,D41+J41) -> 228685722 | L41: 230866854 | M41: 241244961
A42: ='Org structure'!E25 -> 04.2 - Chief Financial Officer Admin | C42: 0 | D42: 0 | E42: 0 | F42: 0 | G42: 0 | H42: 0 | I42: 0 | J42: 0 | K42: 0 | L42: 0 | M42: 0
A43: ='Org structure'!E26 -> 04.3 - Budget & Reporting | C43: 16695504 | D43: 0 | E43: 0 | F43: 0 | G43: 0 | H43: 0 | I43: 60000 | J43: 60000 | K43: 16755504 | L43: 17564799 | M43: 19247554
A44: ='Org structure'!E27 -> 04.4 - Revenue Management | C44: 94019 | D44: 0 | E44: 0 | F44: 0 | G44: 0 | H44: 0 | I44: 60000 | J44: 60000 | K44: 154019 | L44: 98344 | M44: 102671
A45: ='Org structure'!E28 -> 04.5 - Supply Chain Management | C45: 0 | D45: 0 | E45: 0 | F45: 0 | G45: 0 | H45: 0 | I45: 60000 | J45: 60000 | K45: 60000 | L45: 0 | M45: 0
A46: ='Org structure'!E29 -> 04.6 - Expenditure | C46: 0 | D46: 0 | E46: 0 | F46: 0 | G46: 0 | H46: 0 | I46: 60000 | J46: 60000 | K46: 60000 | L46: 0 | M46: 0
J47: 0 | K47: 0
J48: 0 | K48: 0
J49: 0 | K49: 0
J50: 0 | K50: 0
A51: ='Org structure'!A6 -> Vote 05 - Community Services | C51: =SUM(C52:C61) -> 15320718 | D51: =SUM(D52:D61) -> 0 | E51: 0 | F51: 0 | G51: 0 | H51: 0 | I51: 0 | J51: 0 | K51: 15320718 | L51: =SUM(L52:L61) -> 14555841 | M51: =SUM(M52:M61) -> 15196299
A52: ='Org structure'!E31 -> 05.1 - Community Services Admin | C52: 1405000 | D52: 0 | E52: 0 | F52: 0 | G52: 0 | H52: 0 | I52: -1405000 | J52: =SUM(E52:I52) -> -1405000 | K52: =IF(D52=0,C52+J52,D52+J52) -> 0 | L52: 0 | M52: 0
A53: ='Org structure'!E32 -> 05.2 - Libraries | C53: 0 | D53: 0 | E53: 0 | F53: 0 | G53: 0 | H53: 0 | I53: 0 | J53: 0 | K53: 0 | L53: 0 | M53: 0
A54: ='Org structure'!E33 -> 05.3 - Sports Recreation & Social Amenitie | C54: 332 | D54: 0 | E54: 0 | F54: 0 | G54: 0 | H54: 0 | I54: 0 | J54: 0 | K54: 332 | L54: 347 | M54: 363
A55: ='Org structure'!E34 -> 05.4 - Traffic Service | C55: 12479469 | D55: 0 | E55: 0 | F55: 0 | G55: 0 | H55: 0 | I55: 0 | J55: 0 | K55: 12479469 | L55: 13053524 | M55: 13627879
A56: ='Org structure'!E35 -> 05.5 - Parks; Cemeteries | C56: 0 | D56: 0 | E56: 0 | F56: 0 | G56: 0 | H56: 0 | I56: 0 | J56: 0 | K56: 0 | L56: 0 | M56: 0
A57: ='Org structure'!E36 -> 05.6 - Refuse | C57: 1435917 | D57: 0 | E57: 0 | F57: 0 | G57: 0 | H57: 0 | I57: 1405000 | J57: 1405000 | K57: 2840917 | L57: 1501970 | M57: 1568057
J58: 0 | K58: 0
J59: 0 | K59: 0
J60: 0 | K60: 0
J61: 0 | K61: 0
A62: ='Org structure'!A7 -> Vote 06 - Technical Services | C62: =SUM(C63:C72) -> 83794597 | D62: =SUM(D63:D72) -> 0 | E62: 0 | F62: 0 | G62: 0 | H62: 0 | I62: 1246072 | J62: 1246072 | K62: 85040669 | L62: =SUM(L63:L72) -> 69017749 | M62: =SUM(M63:M72) -> 72054257
A63: ='Org structure'!E38 -> 06.1 - Mpac | C63: 0 | D63: 0 | E63: 0 | F63: 0 | G63: 0 | H63: 0 | I63: 0 | J63: =SUM(E63:I63) -> 0 | K63: =IF(D63=0,C63+J63,D63+J63) -> 0 | L63: 0 | M63: 0
A64: ='Org structure'!E39 -> 06.2 - Technical Services Admin | C64: 0 | D64: 0 | E64: 0 | F64: 0 | G64: 0 | H64: 0 | I64: 0 | J64: 0 | K64: 0 | L64: 0 | M64: 0
A65: ='Org structure'!E40 -> 06.3 - Techn Serv-Roads: Admin | C65: 0 | D65: 0 | E65: 0 | F65: 0 | G65: 0 | H65: 0 | I65: 0 | J65: 0 | K65: 0 | L65: 0 | M65: 0
A66: ='Org structure'!E41 -> 06.4 - Techn Serv-Stormwater: Admin | C66: 0 | D66: 0 | E66: 0 | F66: 0 | G66: 0 | H66: 0 | I66: 0 | J66: 0 | K66: 0 | L66: 0 | M66: 0
A67: ='Org structure'!E42 -> 06.5 - Project Management Unit | C67: 52929000 | D67: 0 | E67: 0 | F67: 0 | G67: 0 | H67: 0 | I67: 0 | J67: 0 | K67: 52929000 | L67: 46438000 | M67: 48473000
A68: ='Org structure'!E43 -> 06.6 - Electrical & Machinery | C68: 30352837 | D68: 0 | E68: 0 | F68: 0 | G68: 0 | H68: 0 | I68: 1246072 | J68: 1246072 | K68: 31598909 | L68: 22043402 | M68: 23021311
A69: ='Org structure'!E44 -> 06.7 - Water | C69: 146962 | D69: 0 | E69: 0 | F69: 0 | G69: 0 | H69: 0 | I69: 0 | J69: 0 | K69: 146962 | L69: 153722 | M69: 160486
A70: ='Org structure'!E45 -> 06.8 - Sanitation | C70: 365798 | D70: 0 | E70: 0 | F70: 0 | G70: 0 | H70: 0 | I70: 0 | J70: 0 | K70: 365798 | L70: 382625 | M70: 399460
J71: 0 | K71: 0
J72: =SUM(E72:I72) -> 0 | K72: =IF(D72=0,C72+J72,D72+J72) -> 0
A73: ='Org structure'!A8 -> Vote 07 - | C73: 0 | D73: 0 | E73: 0 | F73: 0 | G73: 0 | H73: 0 | I73: 0 | J73: 0 | K73: 0 | L73: 0 | M73: 0
J74: 0 | K74: 0
J75: 0 | K75: 0
J76: 0 | K76: 0
J77: 0 | K77: 0
J78: 0 | K78: 0
J79: 0 | K79: 0
J80: 0 | K80: 0
J81: 0 | K81: 0
J82: 0 | K82: 0
J83: 0 | K83: 0
A84: ='Org structure'!A9 -> Vote 08 - | C84: 0 | D84: 0 | E84: 0 | F84: 0 | G84: 0 | H84: 0 | I84: 0 | J84: 0 | K84: 0 | L84: 0 | M84: 0
J85: 0 | K85: 0
J86: 0 | K86: 0
J87: 0 | K87: 0
J88: 0 | K88: 0
J89: 0 | K89: 0
J90: 0 | K90: 0
J91: 0 | K91: 0
J92: 0 | K92: 0
J93: 0 | K93: 0
J94: 0 | K94: 0
A95: ='Org structure'!A10 -> Vote 09 - | C95: 0 | D95: 0 | E95: 0 | F95: 0 | G95: 0 | H95: 0 | I95: 0 | J95: 0 | K95: 0 | L95: 0 | M95: 0
J96: 0 | K96: 0
J97: 0 | K97: 0
J98: 0 | K98: 0
J99: 0 | K99: 0
J100: 0 | K100: 0
J101: 0 | K101: 0
J102: 0 | K102: 0
J103: 0 | K103: 0
J104: 0 | K104: 0
J105: 0 | K105: 0
A106: ='Org structure'!A11 -> Vote 10 - | C106: 0 | D106: 0 | E106: 0 | F106: 0 | G106: 0 | H106: 0 | I106: 0 | J106: 0 | K106: 0 | L106: 0 | M106: 0
J107: 0 | K107: 0
J108: 0 | K108: 0
J109: 0 | K109: 0
J110: 0 | K110: 0
J111: 0 | K111: 0
J112: 0 | K112: 0
J113: 0 | K113: 0
J114: 0 | K114: 0
J115: 0 | K115: 0
J116: 0 | K116: 0
A117: ='Org structure'!A12 -> Vote 11 - | C117: 0 | D117: 0 | E117: 0 | F117: 0 | G117: 0 | H117: 0 | I117: 0 | J117: 0 | K117: 0 | L117: 0 | M117: 0
J118: 0 | K118: 0
J119: 0 | K119: 0
J120: 0 | K120: 0
J121: 0 | K121: 0
J122: 0 | K122: 0
J123: 0 | K123: 0
J124: 0 | K124: 0
J125: 0 | K125: 0
J126: 0 | K126: 0
J127: 0 | K127: 0
A128: ='Org structure'!A13 -> Vote 12 - | C128: 0 | D128: 0 | E128: 0 | F128: 0 | G128: 0 | H128: 0 | I128: 0 | J128: 0 | K128: 0 | L128: 0 | M128: 0
J129: 0 | K129: 0
J130: 0 | K130: 0
J131: 0 | K131: 0
J132: 0 | K132: 0
J133: 0 | K133: 0
J134: 0 | K134: 0
J135: 0 | K135: 0
J136: =SUM(E136:I136) -> 0 | K136: =IF(D136=0,C136+J136,D136+J136) -> 0
J137: 0 | K137: 0
J138: 0 | K138: 0
A139: ='Org structure'!A14 -> Vote 13 - | C139: 0 | D139: 0 | E139: 0 | F139: 0 | G139: 0 | H139: 0 | I139: 0 | J139: 0 | K139: 0 | L139: 0 | M139: 0
J140: 0 | K140: 0
J141: 0 | K141: 0
J142: 0 | K142: 0
J143: 0 | K143: 0
J144: 0 | K144: 0
J145: 0 | K145: 0
J146: 0 | K146: 0
J147: 0 | K147: 0
J148: 0 | K148: 0
J149: 0 | K149: 0
A150: ='Org structure'!A15 -> Vote 14 - | C150: 0 | D150: 0 | E150: 0 | F150: 0 | G150: 0 | H150: 0 | I150: 0 | J150: 0 | K150: 0 | L150: 0 | M150: 0
J151: 0 | K151: 0
J152: 0 | K152: 0
J153: 0 | K153: 0
J154: 0 | K154: 0
J155: 0 | K155: 0
J156: 0 | K156: 0
J157: 0 | K157: 0
J158: 0 | K158: 0
J159: 0 | K159: 0
J160: 0 | K160: 0
A161: ='Org structure'!A16 -> Vote 15 - Other | C161: 0 | D161: 0 | E161: 0 | F161: 0 | G161: 0 | H161: 0 | I161: 0 | J161: 0 | K161: 0 | L161: 0 | M161: 0
J162: 0 | K162: 0
J163: 0 | K163: 0
J164: 0 | K164: 0
J165: 0 | K165: 0
J166: 0 | K166: 0
J167: 0 | K167: 0
J168: 0 | K168: 0
J169: 0 | K169: 0
J170: 0 | K170: 0
J171: 0 | K171: 0
A172: Total Revenue by Vote | B172: 2 | C172: =C7+C18+C29+C40+C51+C62+C73+C84+C95+C106+C117+C128+C139+C150+C161 -> 349707555 | D172: 0 | E172: 0 | F172: 0 | G172: 0 | H172: 0 | I172: 2072432 | J172: 2072432 | K172: 351779987 | L172: 336200524 | M172: 352118178
A174: Expenditure by Vote | B174: 1
A175: ='Org structure'!A2 -> Vote 01 - Corporate Services | C175: =SUM(C176:C185) -> 67364632 | D175: 0 | E175: 0 | F175: 0 | G175: 0 | H175: 0 | I175: 277127 | J175: =SUM(E175:I175) -> 277127 | K175: =IF(D175=0,C175+J175,D175+J175) -> 67641759 | L175: =SUM(L176:L185) -> 62751743 | M175: =SUM(M176:M185) -> 66161852
A176: ='Org structure'!E3 -> 01.1 - Corporate Services Admin | C176: 29234613 | D176: 0 | E176: 0 | F176: 0 | G176: 0 | H176: 0 | I176: -1207897 | J176: -1207897 | K176: 28026716 | L176: 23745369 | M176: 27440299
A177: ='Org structure'!E4 -> 01.2 - Human Resources | C177: 6929696 | D177: 0 | E177: 0 | F177: 0 | G177: 0 | H177: 0 | I177: 812407 | J177: 812407 | K177: 7742103 | L177: 7241535 | M177: 7422573
A178: ='Org structure'!E5 -> 01.3 - Information Technology Services | C178: 10037286 | D178: 0 | E178: 0 | F178: 0 | G178: 0 | H178: 0 | I178: 175731 | J178: 175731 | K178: 10213017 | L178: 10448462 | M178: 10687177
A179: ='Org structure'!E6 -> 01.4 - Council Support | C179: 7657441 | D179: 0 | E179: 0 | F179: 0 | G179: 0 | H179: 0 | I179: 1665752 | J179: 1665752 | K179: 9323193 | L179: 6957027 | M179: 7130957
A180: ='Org structure'!E7 -> 01.5 - Local Economic Development | C180: 5943210 | D180: 0 | E180: 0 | F180: 0 | G180: 0 | H180: 0 | I180: 18419 | J180: 18419 | K180: 5961629 | L180: 5897153 | M180: 6044589
A181: ='Org structure'!E8 -> 01.6 - Municipal Planning Idp | C181: 3971219 | D181: 0 | E181: 0 | F181: 0 | G181: 0 | H181: 0 | I181: -1123810 | J181: -1123810 | K181: 2847409 | L181: 4722925 | M181: 3611003
A182: ='Org structure'!E9 -> 01.7 - Town & Regional Planning | C182: 2791167 | D182: 0 | E182: 0 | F182: 0 | G182: 0 | H182: 0 | I182: -63475 | J182: -63475 | K182: 2727692 | L182: 2916772 | M182: 2989691
A183: ='Org structure'!E10 -> 01.8 - Led Administration | C183: 800000 | D183: 0 | E183: 0 | F183: 0 | G183: 0 | H183: 0 | I183: 0 | J183: 0 | K183: 800000 | L183: 822500 | M183: 835563
J184: =SUM(E184:I184) -> 0 | K184: =IF(D184=0,C184+J184,D184+J184) -> 0
J185: 0 | K185: 0
A186: ='Org structure'!A3 -> Vote 02 - Municipal Manager | C186: =SUM(C187:C196) -> 28230775 | D186: 0 | E186: 0 | F186: 0 | G186: 0 | H186: 0 | I186: 2431847 | J186: 2431847 | K186: 30662622 | L186: =SUM(L187:L196) -> 29538468 | M186: =SUM(M187:M196) -> 30274434
A187: ='Org structure'!E12 -> 02.1 - Municipal Manager Admin | C187: 7326820 | D187: 0 | E187: 0 | F187: 0 | G187: 0 | H187: 0 | I187: 786836 | J187: =SUM(E187:I187) -> 786836 | K187: =IF(D187=0,C187+J187,D187+J187) -> 8113656 | L187: 7656528 | M187: 7847945
A188: ='Org structure'!E13 -> 02.2 - Legal Services | C188: 3812174 | D188: 0 | E188: 0 | F188: 0 | G188: 0 | H188: 0 | I188: 1222599 | J188: =SUM(E188:I188) -> 1222599 | K188: =IF(D188=0,C188+J188,D188+J188) -> 5034773 | L188: 3983722 | M188: 4083317
A189: ='Org structure'!E14 -> 02.3 - Political Office Beares | C189: 995097 | D189: 0 | E189: 0 | F189: 0 | G189: 0 | H189: 0 | I189: 19481 | J189: =SUM(E189:I189) -> 19481 | K189: =IF(D189=0,C189+J189,D189+J189) -> 1014578 | L189: 1039879 | M189: 1065875
A190: ='Org structure'!E15 -> 02.4 - Pms | C190: 3907949 | D190: 0 | E190: 0 | F190: 0 | G190: 0 | H190: 0 | I190: -173002 | J190: =SUM(E190:I190) -> -173002 | K190: =IF(D190=0,C190+J190,D190+J190) -> 3734947 | L190: 4083807 | M190: 4185902
A191: ='Org structure'!E16 -> 02.5 - Internal Audit | C191: 12188735 | D191: 0 | E191: 0 | F191: 0 | G191: 0 | H191: 0 | I191: 575933 | J191: =SUM(E191:I191) -> 575933 | K191: =IF(D191=0,C191+J191,D191+J191) -> 12764668 | L191: 12774532 | M191: 13091395
J192: 0 | K192: 0
J193: 0 | K193: 0
J194: 0 | K194: 0
J195: 0 | K195: 0
J196: 0 | K196: 0
A197: ='Org structure'!A4 -> Vote 03 - Mayors Office | C197: =SUM(C198:C207) -> 20443276 | D197: 0 | E197: 0 | F197: 0 | G197: 0 | H197: 0 | I197: -98105 | J197: -98105 | K197: 20345171 | L197: =SUM(L198:L207) -> 21781224 | M197: =SUM(M198:M207) -> 22325761
A198: ='Org structure'!E18 -> 03.1 - Mayors Office Admin | C198: 4013381 | D198: 0 | E198: 0 | F198: 0 | G198: 0 | H198: 0 | I198: 50000 | J198: =SUM(E198:I198) -> 50000 | K198: =IF(D198=0,C198+J198,D198+J198) -> 4063381 | L198: 4193984 | M198: 4298836
A199: ='Org structure'!E19 -> 03.2 - Office Of The Speaker | C199: 1202523 | D199: 0 | E199: 0 | F199: 0 | G199: 0 | H199: 0 | I199: -148105 | J199: =SUM(E199:I199) -> -148105 | K199: =IF(D199=0,C199+J199,D199+J199) -> 1054418 | L199: 1256637 | M199: 1288054
A200: ='Org structure'!E20 -> 03.3 - Office Of The Chief Whip | C200: 835529 | D200: 0 | E200: 0 | F200: 0 | G200: 0 | H200: 0 | I200: 0 | J200: =SUM(E200:I200) -> 0 | K200: =IF(D200=0,C200+J200,D200+J200) -> 835529 | L200: 873127 | M200: 894956
A201: ='Org structure'!E21 -> 03.4 - Exco Members | C201: 4769770 | D201: 0 | E201: 0 | F201: 0 | G201: 0 | H201: 0 | I201: 0 | J201: =SUM(E201:I201) -> 0 | K201: =IF(D201=0,C201+J201,D201+J201) -> 4769770 | L201: 4984410 | M201: 5109021
... 144 more rows

Sheet B4-FinPerf RE
A1: =muni&" - "&_ADJ4&" - "&Date -> LIM353 Molemole - Table B4 Adjustments Budget Financial Performance (revenue and expenditure) - 46115
A2: =desc -> Description | B2: =head27 -> Ref | C2: =Head2 -> Budget Year 2025/26 | L2: =Head10 -> Budget Year +1 2026/27 | M2: =Head11 -> Budget Year +2 2027/28
C3: =Head6 -> Original Budget | D3: =Head54 -> Prior Adjusted | E3: =Head51 -> Accum. Funds | F3: =Head52 -> Multi-year capital | G3: =Head53 -> Unfore. Unavoid. | H3: =Head55 -> Nat. or Prov. Govt | I3: =Head50 -> Other Adjusts. | J3: =Head56 -> Total Adjusts. | K3: =Head7 -> Adjusted Budget | L3: =Head7 -> Adjusted Budget | M3: =Head7 -> Adjusted Budget
D4: 3 | E4: 4 | F4: 5 | G4: 6 | H4: 7 | I4: 8 | J4: 9 | K4: 10
A5: R thousands | B5: 1 | C5: A | D5: A1 | E5: B | F5: C | G5: D | H5: E | I5: F | J5: G | K5: H
A6: Revenue By Source
A7: Exchange Revenue
A8: Service charges - Electricity | B8: 2 | C8: ='SB1'!C18 -> 14201434 | D8: ='SB1'!D18 -> 0 | E8: ='SB1'!E18 -> 0 | F8: ='SB1'!F18 -> 0 | G8: ='SB1'!G18 -> 0 | H8: ='SB1'!H18 -> 0 | I8: ='SB1'!I18 -> 0 | J8: =SUM(E8:I8) -> 0 | K8: =IF(D8=0,C8+J8,D8+J8) -> 14201434 | L8: ='SB1'!L18 -> 14854700 | M8: ='SB1'!M18 -> 15508307
A9: Service charges - Water | B9: 2 | C9: ='SB1'!C24 -> 0 | D9: ='SB1'!D24 -> 0 | E9: ='SB1'!E24 -> 0 | F9: ='SB1'!F24 -> 0 | G9: ='SB1'!G24 -> 0 | H9: ='SB1'!H24 -> 0 | I9: ='SB1'!I24 -> 0 | J9: 0 | K9: 0 | L9: ='SB1'!L24 -> 0 | M9: ='SB1'!M24 -> 0
A10: Service charges - Waste Water Management | B10: 2 | C10: ='SB1'!C30 -> 0 | D10: ='SB1'!D30 -> 0 | E10: ='SB1'!E30 -> 0 | F10: ='SB1'!F30 -> 0 | G10: ='SB1'!G30 -> 0 | H10: ='SB1'!H30 -> 0 | I10: ='SB1'!I30 -> 0 | J10: 0 | K10: 0 | L10: ='SB1'!L30 -> 0 | M10: ='SB1'!M30 -> 0
A11: Service charges - Waste Management | B11: 2 | C11: ='SB1'!C37 -> 984870 | D11: ='SB1'!D37 -> 0 | E11: ='SB1'!E37 -> 0 | F11: ='SB1'!F37 -> 0 | G11: ='SB1'!G37 -> 0 | H11: ='SB1'!H37 -> 0 | I11: ='SB1'!I37 -> 0 | J11: 0 | K11: 984870 | L11: ='SB1'!L37 -> 1030175 | M11: ='SB1'!M37 -> 1075503
A12: Sale of Goods and Rendering of Services | C12: 1308158 | D12: 0 | E12: 0 | F12: 0 | G12: 0 | H12: 0 | I12: 17217072 | J12: 17217072 | K12: 18525230 | L12: 1368333 | M12: 1428539
A13: Agency services | C13: 512760 | D13: 0 | E13: 0 | F13: 0 | G13: 0 | H13: 0 | I13: 0 | J13: 0 | K13: 512760 | L13: 536347 | M13: 559946
A14: Interest | J14: 0 | K14: 0
A15: Interest earned from Receivables | C15: 725469 | D15: 0 | E15: 0 | F15: 0 | G15: 0 | H15: 0 | I15: 0 | J15: 0 | K15: 725469 | L15: 758841 | M15: 792229
A16: Interest earned from Current and Non Current Assets | C16: 16695504 | D16: 0 | E16: 0 | F16: 0 | G16: 0 | H16: 0 | I16: 0 | J16: 0 | K16: 16695504 | L16: 17564799 | M16: 19247554
A17: Dividends | C17: 0 | D17: 0 | E17: 0 | F17: 0 | G17: 0 | H17: 0 | I17: 0 | J17: 0 | K17: 0 | L17: 0 | M17: 0
A18: Rent on Land | C18: 0 | D18: 0 | E18: 0 | F18: 0 | G18: 0 | H18: 0 | I18: 0 | J18: 0 | K18: 0 | L18: 0 | M18: 0
A19: Rental from Fixed Assets | C19: 240000 | D19: 0 | E19: 0 | F19: 0 | G19: 0 | H19: 0 | I19: 250700 | J19: 250700 | K19: 490700 | L19: 250800 | M19: 257070
A20: Special rating levies | C20: 14449976 | D20: 0 | E20: 0 | F20: 0 | G20: 0 | H20: 0 | I20: 0 | J20: =SUM(E20:I20) -> 0 | K20: =IF(D20=0,C20+J20,D20+J20) -> 14449976 | L20: 15114675 | M20: 15779720
A21: Licence and permits | J21: 0 | K21: 0
A22: Operational Revenue | C22: 251724 | D22: 0 | E22: 0 | F22: 0 | G22: 0 | H22: 0 | I22: 575660 | J22: 575660 | K22: 827384 | L22: 263303 | M22: 274889
A23: Non-Exchange Revenue
A24: Property rates | B24: 2 | C24: ='SB1'!C11 -> 39267857 | D24: ='SB1'!D11 -> 0 | E24: ='SB1'!E11 -> 0 | F24: ='SB1'!F11 -> 0 | G24: ='SB1'!G11 -> 0 | H24: ='SB1'!H11 -> 0 | I24: ='SB1'!I11 -> 0 | J24: ='SB1'!J11 -> 0 | K24: ='SB1'!K11 -> 39267857 | L24: ='SB1'!L11 -> 41074179 | M24: ='SB1'!M11 -> 42881440
A25: Surcharges and Taxes | J25: =SUM(E25:I25) -> 0 | K25: =IF(D25=0,C25+J25,D25+J25) -> 0
A26: Fines, penalties and forfeits | C26: 146938 | D26: 0 | E26: 0 | F26: 0 | G26: 0 | H26: 0 | I26: 0 | J26: =SUM(E26:I26) -> 0 | K26: =IF(D26=0,C26+J26,D26+J26) -> 146938 | L26: 153697 | M26: 160460
A27: Licences or permits | J27: 0 | K27: 0
A28: Transfer and subsidies - Operational | C28: 207339000 | D28: 0 | E28: 0 | F28: 0 | G28: 0 | H28: 0 | I28: -15971000 | J28: -15971000 | K28: 191368000 | L28: 197549900 | M28: 206469650
A29: Interest | C29: 1495865 | D29: 0 | E29: 0 | F29: 0 | G29: 0 | H29: 0 | I29: 0 | J29: 0 | K29: 1495865 | L29: 1564675 | M29: 1633521
A30: Fuel Levy | J30: 0 | K30: 0
A31: Operational Revenue | J31: 0 | K31: 0
A32: Gains on disposal of Assets | C32: 0 | D32: 0 | E32: 0 | F32: 0 | G32: 0 | H32: 0 | I32: 0 | J32: 0 | K32: 0 | L32: 0 | M32: 0
A33: Other Gains | C33: 0 | D33: 0 | E33: 0 | F33: 0 | G33: 0 | H33: 0 | I33: 0 | J33: 0 | K33: 0 | L33: 0 | M33: 0
A34: Discontinued Operations | J34: =SUM(E34:I34) -> 0 | K34: =IF(D34=0,C34+J34,D34+J34) -> 0
A35: Total Revenue (excluding capital transfers and contributions) | C35: =SUM(C8:C34) -> 297619555 | D35: 0 | E35: 0 | F35: 0 | G35: 0 | H35: 0 | I35: 2072432 | J35: 2072432 | K35: 299691987 | L35: 292084424 | M35: 306068828
A37: Expenditure By Type
A38: Employee related costs | C38: ='SB1'!C62 -> 121240320 | D38: ='SB1'!D62 -> 0 | E38: ='SB1'!E62 -> 0 | F38: ='SB1'!F62 -> 0 | G38: ='SB1'!G62 -> 0 | H38: ='SB1'!H62 -> 0 | I38: ='SB1'!I62 -> 4890556 | J38: =SUM(E38:I38) -> 4890556 | K38: =IF(D38=0,C38+J38,D38+J38) -> 126130876 | L38: ='SB1'!L62 -> 126805609 | M38: ='SB1'!M62 -> 129963254
A39: Remuneration of councillors | C39: 16413901 | D39: 0 | E39: 0 | F39: 0 | G39: 0 | H39: 0 | I39: -148105 | J39: -148105 | K39: 16265796 | L39: 17570526 | M39: 18009791
A40: Bulk purchases - electricity | C40: =+'SB1'!C83 -> 15182813 | D40: =+'SB1'!D83 -> 0 | E40: =+'SB1'!E83 -> 0 | F40: =+'SB1'!F83 -> 0 | G40: =+'SB1'!G83 -> 0 | H40: =+'SB1'!H83 -> 0 | I40: =+'SB1'!I83 -> 389195 | J40: 389195 | K40: 15572008 | L40: =+'SB1'!L83 -> 15866040 | M40: =+'SB1'!M83 -> 16262691
A41: Inventory consumed | C41: 6410611 | D41: 0 | E41: 0 | F41: 0 | G41: 0 | H41: 0 | I41: -700000 | J41: -700000 | K41: 5710611 | L41: 6047309 | M41: 6198492
A42: Debt impairment | C42: 2359253 | D42: 0 | E42: 0 | F42: 0 | G42: 0 | H42: 0 | I42: 0 | J42: 0 | K42: 2359253 | L42: 2465420 | M42: 2527054
A43: Depreciation and amortisation | C43: 21656256 | D43: 0 | E43: 0 | F43: 0 | G43: 0 | H43: 0 | I43: 2476939 | J43: =SUM(E43:I43) -> 2476939 | K43: =IF(D43=0,C43+J43,D43+J43) -> 24133195 | L43: 22630782 | M43: 23196556
A44: Interest | C44: 2551065 | D44: 0 | E44: 0 | F44: 0 | G44: 0 | H44: 0 | I44: 534300 | J44: =SUM(E44:I44) -> 534300 | K44: =IF(D44=0,C44+J44,D44+J44) -> 3085365 | L44: 2665862 | M44: 2735008
A45: Contracted services | C45: ='SB1'!C94 -> 61204750 | D45: ='SB1'!D94 -> 0 | E45: ='SB1'!E94 -> 0 | F45: ='SB1'!F94 -> 0 | G45: ='SB1'!G94 -> 0 | H45: ='SB1'!H94 -> 0 | I45: ='SB1'!I94 -> -576049 | J45: -576049 | K45: 60628701 | L45: ='SB1'!L94 -> 46293733 | M45: ='SB1'!M94 -> 49433386
A46: Transfers and subsidies | C46: 0 | D46: 0 | E46: 0 | F46: 0 | G46: 0 | H46: 0 | I46: 0 | J46: 0 | K46: 0 | L46: 0 | M46: 0
A47: Irrecoverable debts written off | C47: 547578 | D47: 0 | E47: 0 | F47: 0 | G47: 0 | H47: 0 | I47: 0 | J47: =SUM(E47:I47) -> 0 | K47: =IF(D47=0,C47+J47,D47+J47) -> 547578 | L47: 572220 | M47: 586525
A48: Operational costs | C48: 37744497 | D48: 0 | E48: 0 | F48: 0 | G48: 0 | H48: 0 | I48: 1325109 | J48: =SUM(E48:I48) -> 1325109 | K48: =IF(D48=0,C48+J48,D48+J48) -> 39069606 | L48: 36475801 | M48: 37465222
A49: Losses on disposal of Assets | C49: 0 | D49: 0 | E49: 0 | F49: 0 | G49: 0 | H49: 0 | I49: 0 | J49: =SUM(E49:I49) -> 0 | K49: =IF(D49=0,C49+J49,D49+J49) -> 0 | L49: 0 | M49: 0
A50: Other Losses | C50: 0 | D50: 0 | E50: 0 | F50: 0 | G50: 0 | H50: 0 | I50: 0 | J50: =SUM(E50:I50) -> 0 | K50: =IF(D50=0,C50+J50,D50+J50) -> 0 | L50: 0 | M50: 0
A51: Total Expenditure | C51: =SUM(C38:C50) -> 285311044 | D51: 0 | E51: 0 | F51: 0 | G51: 0 | H51: 0 | I51: 8191945 | J51: 8191945 | K51: 293502989 | L51: 277393302 | M51: 286377979
A53: Surplus/(Deficit) | C53: =C35-C51 -> 12308511 | D53: 0 | E53: 0 | F53: 0 | G53: 0 | H53: 0 | I53: -6119513 | J53: -6119513 | K53: 6188998 | L53: 14691122 | M53: 19690849
A54: Transfers and subsidies - capital (monetary allocations) | C54: 52088000 | D54: 0 | E54: 0 | F54: 0 | G54: 0 | H54: 0 | I54: 0 | J54: =SUM(E54:I54) -> 0 | K54: =IF(D54=0,C54+J54,D54+J54) -> 52088000 | L54: 44116100 | M54: 46049350
A55: Transfers and subsidies - capital (in-kind - all) | C55: 0 | D55: 0 | E55: 0 | F55: 0 | G55: 0 | H55: 0 | I55: 0 | J55: =SUM(E55:I55) -> 0 | K55: =IF(D55=0,C55+J55,D55+J55) -> 0 | L55: 0 | M55: 0
A56: Surplus/(Deficit) before taxation | C56: =SUM(C53:C55) -> 64396511 | D56: 0 | E56: 0 | F56: 0 | G56: 0 | H56: 0 | I56: -6119513 | J56: -6119513 | K56: 58276998 | L56: 58807222 | M56: 65740199
A57: Income Tax | J57: =SUM(E57:I57) -> 0 | K57: =IF(D57=0,C57+J57,D57+J57) -> 0
A58: Surplus/(Deficit) after taxation | C58: =C56-C57 -> 64396511 | D58: 0 | E58: 0 | F58: 0 | G58: 0 | H58: 0 | I58: -6119513 | J58: -6119513 | K58: 58276998 | L58: 58807222 | M58: 65740199
A59: Share of Surplus/Deficit attributable to Joint Venture
A60: Share of Surplus/Deficit attributable to Minorities | J60: =SUM(E60:I60) -> 0 | K60: =IF(D60=0,C60+J60,D60+J60) -> 0
A61: Surplus/(Deficit) attributable to municipality | C61: =SUM(C58:C60) -> 64396511 | D61: 0 | E61: 0 | F61: 0 | G61: 0 | H61: 0 | I61: -6119513 | J61: -6119513 | K61: 58276998 | L61: 58807222 | M61: 65740199
A62: Share of Surplus/Deficit attributable to Associate | J62: =SUM(E62:I62) -> 0 | K62: =IF(D62=0,C62+J62,D62+J62) -> 0
A63: Intercompany/Parent subsidiary transactions | J63: =SUM(E63:I63) -> 0 | K63: =IF(D63=0,C63+J63,D63+J63) -> 0
A64: Surplus/ (Deficit) for the year | B64: 1 | C64: =SUM(C61:C63) -> 64396511 | D64: =D61+D63 -> 0 | E64: 0 | F64: =SUM(F61:F63) -> 0 | G64: =SUM(G61:G63) -> 0 | H64: 0 | I64: -6119513 | J64: -6119513 | K64: 58276998 | L64: 58807222 | M64: 65740199
A65: =head27a -> References
A66: 1. Classifications are revenue sources and expenditure type
A67: 2. Detail to be provided in Table SB1
A68: 3. Only complete if a previous adjusted budget has been approved in the same financial year. Reflect most recent adjusted budget.
A69: 4. Additional cash-backed accumulated funds/unspent funds (MFMA section 18(1)(b) and section 28(2)(e)) identified after the Original Budget approved and after annual financial statements audited (note: only where underspending could not reasonably have been foreseen)
A70: 5. Increases of funds approved under MFMA section 31
A71: 6. Adjustments approved in accordance with MFMA section 29
A72: 7. Adjustments to transfers from National or Provincial Government
A73: 8. Adjusts. = 'Other' Adjustments proposed to be approved; including revenue under-collection (MFMA section 28(2)(a)); additional revenue appropriation on existing programmes (section 28(2))(b); projected savings (section 28(2)(d)); error correction (section 28(2)(f))
A74: 9. G = B + C + D + E + F
A75: 10. Adjusted Budget H = (A or A1/2 etc) + G
A76: 11 Operational revenue is a summary of imatereial item that are on the chart not on the face of the A4 due to imateriality.

Sheet B5-Capex
A1: =muni&" - "&_ADJ5&" - "&Date -> LIM353 Molemole - Table B5 Adjustments Capital Expenditure Budget by vote and funding - 46115
A2: =desc -> Description | B2: =head27 -> Ref | C2: =Head2 -> Budget Year 2025/26 | L2: =Head10 -> Budget Year +1 2026/27 | M2: =Head11 -> Budget Year +2 2027/28
C3: =Head6 -> Original Budget | D3: =Head54 -> Prior Adjusted | E3: =Head51 -> Accum. Funds | F3: =Head52 -> Multi-year capital | G3: =Head53 -> Unfore. Unavoid. | H3: =Head55 -> Nat. or Prov. Govt | I3: =Head50 -> Other Adjusts. | J3: =Head56 -> Total Adjusts. | K3: =Head7 -> Adjusted Budget | L3: =Head7 -> Adjusted Budget | M3: =Head7 -> Adjusted Budget
D4: 5 | E4: 6 | F4: 7 | G4: 8 | H4: 9 | I4: 10 | J4: 11 | K4: 12
A5: R thousands | C5: A | D5: A1 | E5: B | F5: C | G5: D | H5: E | I5: F | J5: G | K5: H
A6: Capital expenditure - Vote
A7: Multi-year expenditure to be adjusted | B7: 2
A8: =B5B!A8 -> Vote 01 - Corporate Services | C8: =B5B!C8 -> 4300000 | D8: =B5B!D8 -> 0 | E8: =B5B!E8 -> 0 | F8: =B5B!F8 -> 0 | G8: =B5B!G8 -> 0 | H8: =B5B!H8 -> 0 | I8: =B5B!I8 -> -1821000 | J8: =B5B!J8 -> -1821000 | K8: =B5B!K8 -> 2479000 | L8: =B5B!L8 -> 940500 | M8: =B5B!M8 -> 964013
A9: =B5B!A12 -> Vote 02 - Municipal Manager | C9: =B5B!C12 -> 150000 | D9: =B5B!D12 -> 0 | E9: =B5B!E12 -> 0 | F9: =B5B!F12 -> 0 | G9: =B5B!G12 -> 0 | H9: =B5B!H12 -> 0 | I9: =B5B!I12 -> 0 | J9: =B5B!J12 -> 0 | K9: =B5B!K12 -> 150000 | L9: =B5B!L12 -> 0 | M9: =B5B!M12 -> 0
A10: =B5B!A14 -> Vote 03 - Mayors Office | C10: =B5B!C14 -> 0 | D10: =B5B!D14 -> 0 | E10: =B5B!E14 -> 0 | F10: =B5B!F14 -> 0 | G10: =B5B!G14 -> 0 | H10: =B5B!H14 -> 0 | I10: =B5B!I14 -> 0 | J10: =B5B!J14 -> 0 | K10: =B5B!K14 -> 0 | L10: =B5B!L14 -> 0 | M10: =B5B!M14 -> 0
A11: =B5B!A15 -> Vote 04 - Budget And Treasury | C11: =B5B!C15 -> 0 | D11: =B5B!D15 -> 0 | E11: =B5B!E15 -> 0 | F11: =B5B!F15 -> 0 | G11: =B5B!G15 -> 0 | H11: =B5B!H15 -> 0 | I11: =B5B!I15 -> 0 | J11: =B5B!J15 -> 0 | K11: =B5B!K15 -> 0 | L11: =B5B!L15 -> 0 | M11: =B5B!M15 -> 0
A12: =B5B!A17 -> Vote 05 - Community Services | C12: =B5B!C17 -> 13758800 | D12: =B5B!D17 -> 0 | E12: =B5B!E17 -> 0 | F12: =B5B!F17 -> 0 | G12: =B5B!G17 -> 0 | H12: =B5B!H17 -> 0 | I12: =B5B!I17 -> -998800 | J12: =B5B!J17 -> -998800 | K12: =B5B!K17 -> 12760000 | L12: =B5B!L17 -> 13332946 | M12: =B5B!M17 -> 6447080
A13: =B5B!A21 -> Vote 06 - Technical Services | C13: =B5B!C21 -> 46188000 | D13: =B5B!D21 -> 0 | E13: =B5B!E21 -> 0 | F13: =B5B!F21 -> 0 | G13: =B5B!G21 -> 0 | H13: =B5B!H21 -> 0 | I13: =B5B!I21 -> -3300000 | J13: =B5B!J21 -> -3300000 | K13: =B5B!K21 -> 42888000 | L13: =B5B!L21 -> 44534100 | M13: =B5B!M21 -> 58329493
A14: ='Org structure'!A8 -> Vote 07 - | C14: =B5B!C26 -> 0 | D14: =B5B!D26 -> 0 | E14: =B5B!E26 -> 0 | F14: =B5B!F26 -> 0 | G14: =B5B!G26 -> 0 | H14: =B5B!H26 -> 0 | I14: =B5B!I26 -> 0 | J14: =SUM(E14:I14) -> 0 | K14: =IF(D14=0,C14+J14,D14+J14) -> 0 | L14: =B5B!L26 -> 0 | M14: =B5B!M26 -> 0
A15: ='Org structure'!A9 -> Vote 08 - | C15: =B5B!C27 -> 0 | D15: =B5B!D27 -> 0 | E15: =B5B!E27 -> 0 | F15: =B5B!F27 -> 0 | G15: =B5B!G27 -> 0 | H15: =B5B!H27 -> 0 | I15: =B5B!I27 -> 0 | J15: 0 | K15: 0 | L15: =B5B!L27 -> 0 | M15: =B5B!M27 -> 0
A16: ='Org structure'!A10 -> Vote 09 - | C16: =B5B!C28 -> 0 | D16: =B5B!D28 -> 0 | E16: =B5B!E28 -> 0 | F16: =B5B!F28 -> 0 | G16: =B5B!G28 -> 0 | H16: =B5B!H28 -> 0 | I16: =B5B!I28 -> 0 | J16: 0 | K16: 0 | L16: =B5B!L28 -> 0 | M16: =B5B!M28 -> 0
A17: ='Org structure'!A11 -> Vote 10 - | C17: =B5B!C29 -> 0 | D17: =B5B!D29 -> 0 | E17: =B5B!E29 -> 0 | F17: =B5B!F29 -> 0 | G17: =B5B!G29 -> 0 | H17: =B5B!H29 -> 0 | I17: =B5B!I29 -> 0 | J17: 0 | K17: 0 | L17: =B5B!L29 -> 0 | M17: =B5B!M29 -> 0
A18: ='Org structure'!A12 -> Vote 11 - | C18: =B5B!C30 -> 0 | D18: =B5B!D30 -> 0 | E18: =B5B!E30 -> 0 | F18: =B5B!F30 -> 0 | G18: =B5B!G30 -> 0 | H18: =B5B!H30 -> 0 | I18: =B5B!I30 -> 0 | J18: 0 | K18: 0 | L18: =B5B!L30 -> 0 | M18: =B5B!M30 -> 0
A19: ='Org structure'!A13 -> Vote 12 - | C19: =B5B!C31 -> 0 | D19: =B5B!D31 -> 0 | E19: =B5B!E31 -> 0 | F19: =B5B!F31 -> 0 | G19: =B5B!G31 -> 0 | H19: =B5B!H31 -> 0 | I19: =B5B!I31 -> 0 | J19: 0 | K19: 0 | L19: =B5B!L31 -> 0 | M19: =B5B!M31 -> 0
A20: ='Org structure'!A14 -> Vote 13 - | C20: =B5B!C32 -> 0 | D20: =B5B!D32 -> 0 | E20: =B5B!E32 -> 0 | F20: =B5B!F32 -> 0 | G20: =B5B!G32 -> 0 | H20: =B5B!H32 -> 0 | I20: =B5B!I32 -> 0 | J20: 0 | K20: 0 | L20: =B5B!L32 -> 0 | M20: =B5B!M32 -> 0
A21: ='Org structure'!A15 -> Vote 14 - | C21: =B5B!C33 -> 0 | D21: =B5B!D33 -> 0 | E21: =B5B!E33 -> 0 | F21: =B5B!F33 -> 0 | G21: =B5B!G33 -> 0 | H21: =B5B!H33 -> 0 | I21: =B5B!I33 -> 0 | J21: 0 | K21: 0 | L21: =B5B!L33 -> 0 | M21: =B5B!M33 -> 0
A22: ='Org structure'!A16 -> Vote 15 - Other | C22: =B5B!C34 -> 0 | D22: =B5B!D34 -> 0 | E22: =B5B!E34 -> 0 | F22: =B5B!F34 -> 0 | G22: =B5B!G34 -> 0 | H22: =B5B!H34 -> 0 | I22: =B5B!I34 -> 0 | J22: 0 | K22: 0 | L22: =B5B!L34 -> 0 | M22: =B5B!M34 -> 0
A23: Capital multi-year expenditure sub-total | B23: 3 | C23: =SUM(C8:C22) -> 64396800 | D23: =SUM(D8:D22) -> 0 | E23: 0 | F23: 0 | G23: 0 | H23: 0 | I23: -6119800 | J23: =SUM(J8:J22) -> -6119800 | K23: =SUM(K8:K22) -> 58277000 | L23: =SUM(L8:L22) -> 58807546 | M23: =SUM(M8:M22) -> 65740586
A25: Single-year expenditure to be adjusted | B25: 2
A26: =B5B!A39 -> Vote 01 - Corporate Services | C26: =B5B!C39 -> 0 | D26: =B5B!D39 -> 0 | E26: =B5B!E39 -> 0 | F26: =B5B!F39 -> 0 | G26: =B5B!G39 -> 0 | H26: =B5B!H39 -> 0 | I26: =B5B!I39 -> 0 | J26: =B5B!J39 -> 0 | K26: =B5B!K39 -> 0 | L26: =B5B!L39 -> 0 | M26: =B5B!M39 -> 0
A27: =B5B!A40 -> Vote 02 - Municipal Manager | C27: =B5B!C40 -> 0 | D27: =B5B!D40 -> 0 | E27: =B5B!E40 -> 0 | F27: =B5B!F40 -> 0 | G27: =B5B!G40 -> 0 | H27: =B5B!H40 -> 0 | I27: =B5B!I40 -> 0 | J27: =B5B!J40 -> 0 | K27: =B5B!K40 -> 0 | L27: =B5B!L40 -> 0 | M27: =B5B!M40 -> 0
A28: =B5B!A41 -> Vote 03 - Mayors Office | C28: =B5B!C41 -> 0 | D28: =B5B!D41 -> 0 | E28: =B5B!E41 -> 0 | F28: =B5B!F41 -> 0 | G28: =B5B!G41 -> 0 | H28: =B5B!H41 -> 0 | I28: =B5B!I41 -> 0 | J28: =B5B!J41 -> 0 | K28: =B5B!K41 -> 0 | L28: =B5B!L41 -> 0 | M28: =B5B!M41 -> 0
A29: =B5B!A42 -> Vote 04 - Budget And Treasury | C29: =B5B!C42 -> 0 | D29: =B5B!D42 -> 0 | E29: =B5B!E42 -> 0 | F29: =B5B!F42 -> 0 | G29: =B5B!G42 -> 0 | H29: =B5B!H42 -> 0 | I29: =B5B!I42 -> 0 | J29: =B5B!J42 -> 0 | K29: =B5B!K42 -> 0 | L29: =B5B!L42 -> 0 | M29: =B5B!M42 -> 0
A30: =B5B!A43 -> Vote 05 - Community Services | C30: =B5B!C43 -> 0 | D30: =B5B!D43 -> 0 | E30: =B5B!E43 -> 0 | F30: =B5B!F43 -> 0 | G30: =B5B!G43 -> 0 | H30: =B5B!H43 -> 0 | I30: =B5B!I43 -> 0 | J30: =B5B!J43 -> 0 | K30: =B5B!K43 -> 0 | L30: =B5B!L43 -> 0 | M30: =B5B!M43 -> 0
A31: =B5B!A44 -> Vote 06 - Technical Services | C31: =B5B!C44 -> 0 | D31: =B5B!D44 -> 0 | E31: =B5B!E44 -> 0 | F31: =B5B!F44 -> 0 | G31: =B5B!G44 -> 0 | H31: =B5B!H44 -> 0 | I31: =B5B!I44 -> 0 | J31: =B5B!J44 -> 0 | K31: =B5B!K44 -> 0 | L31: =B5B!L44 -> 0 | M31: =B5B!M44 -> 0
A32: ='Org structure'!A8 -> Vote 07 - | C32: =B5B!C45 -> 0 | D32: =B5B!D45 -> 0 | E32: =B5B!E45 -> 0 | F32: =B5B!F45 -> 0 | G32: =B5B!G45 -> 0 | H32: =B5B!H45 -> 0 | I32: =B5B!I45 -> 0 | J32: =SUM(E32:I32) -> 0 | K32: =IF(D32=0,C32+J32,D32+J32) -> 0 | L32: =B5B!L45 -> 0 | M32: =B5B!M45 -> 0
A33: ='Org structure'!A9 -> Vote 08 - | C33: =B5B!C46 -> 0 | D33: =B5B!D46 -> 0 | E33: =B5B!E46 -> 0 | F33: =B5B!F46 -> 0 | G33: =B5B!G46 -> 0 | H33: =B5B!H46 -> 0 | I33: =B5B!I46 -> 0 | J33: 0 | K33: 0 | L33: =B5B!L46 -> 0 | M33: =B5B!M46 -> 0
A34: ='Org structure'!A10 -> Vote 09 - | C34: =B5B!C47 -> 0 | D34: =B5B!D47 -> 0 | E34: =B5B!E47 -> 0 | F34: =B5B!F47 -> 0 | G34: =B5B!G47 -> 0 | H34: =B5B!H47 -> 0 | I34: =B5B!I47 -> 0 | J34: 0 | K34: 0 | L34: =B5B!L47 -> 0 | M34: =B5B!M47 -> 0
A35: ='Org structure'!A11 -> Vote 10 - | C35: =B5B!C48 -> 0 | D35: =B5B!D48 -> 0 | E35: =B5B!E48 -> 0 | F35: =B5B!F48 -> 0 | G35: =B5B!G48 -> 0 | H35: =B5B!H48 -> 0 | I35: =B5B!I48 -> 0 | J35: 0 | K35: 0 | L35: =B5B!L48 -> 0 | M35: =B5B!M48 -> 0
A36: ='Org structure'!A12 -> Vote 11 - | C36: =B5B!C49 -> 0 | D36: =B5B!D49 -> 0 | E36: =B5B!E49 -> 0 | F36: =B5B!F49 -> 0 | G36: =B5B!G49 -> 0 | H36: =B5B!H49 -> 0 | I36: =B5B!I49 -> 0 | J36: 0 | K36: 0 | L36: =B5B!L49 -> 0 | M36: =B5B!M49 -> 0
A37: ='Org structure'!A13 -> Vote 12 - | C37: =B5B!C50 -> 0 | D37: =B5B!D50 -> 0 | E37: =B5B!E50 -> 0 | F37: =B5B!F50 -> 0 | G37: =B5B!G50 -> 0 | H37: =B5B!H50 -> 0 | I37: =B5B!I50 -> 0 | J37: 0 | K37: =IF(D37=0,C37+J37,D37+J37) -> 0 | L37: =B5B!L50 -> 0 | M37: =B5B!M50 -> 0
A38: ='Org structure'!A14 -> Vote 13 - | C38: =B5B!C51 -> 0 | D38: =B5B!D51 -> 0 | E38: =B5B!E51 -> 0 | F38: =B5B!F51 -> 0 | G38: =B5B!G51 -> 0 | H38: =B5B!H51 -> 0 | I38: =B5B!I51 -> 0 | J38: 0 | K38: 0 | L38: =B5B!L51 -> 0 | M38: =B5B!M51 -> 0
A39: ='Org structure'!A15 -> Vote 14 - | C39: =B5B!C52 -> 0 | D39: =B5B!D52 -> 0 | E39: =B5B!E52 -> 0 | F39: =B5B!F52 -> 0 | G39: =B5B!G52 -> 0 | H39: =B5B!H52 -> 0 | I39: =B5B!I52 -> 0 | J39: 0 | K39: 0 | L39: =B5B!L52 -> 0 | M39: =B5B!M52 -> 0
A40: ='Org structure'!A16 -> Vote 15 - Other | C40: =B5B!C53 -> 0 | D40: =B5B!D53 -> 0 | E40: =B5B!E53 -> 0 | F40: =B5B!F53 -> 0 | G40: =B5B!G53 -> 0 | H40: =B5B!H53 -> 0 | I40: =B5B!I53 -> 0 | J40: 0 | K40: 0 | L40: =B5B!L53 -> 0 | M40: =B5B!M53 -> 0
A41: Capital single-year expenditure sub-total | C41: =SUM(C26:C40) -> 0 | D41: =SUM(D26:D40) -> 0 | E41: 0 | F41: 0 | G41: 0 | H41: 0 | I41: 0 | J41: =SUM(J26:J40) -> 0 | K41: =SUM(K26:K40) -> 0 | L41: =SUM(L26:L40) -> 0 | M41: =SUM(M26:M40) -> 0
A42: Total Capital Expenditure - Vote | C42: =C41+C23 -> 64396800 | D42: =D41+D23 -> 0 | E42: 0 | F42: 0 | G42: 0 | H42: 0 | I42: -6119800 | J42: =J23+J41 -> -6119800 | K42: =K23+K41 -> 58277000 | L42: =L41+L23 -> 58807546 | M42: =M41+M23 -> 65740586
A44: Capital Expenditure - Functional
A45: Governance and administration | C45: =SUM(C46:C48) -> 4450000 | D45: 0 | E45: 0 | F45: 0 | G45: 0 | H45: 0 | I45: -1821000 | J45: =SUM(J46:J48) -> -1821000 | K45: 2629000 | L45: 940500 | M45: 964013
A46: Executive and council | C46: 0 | D46: 0 | E46: 0 | F46: 0 | G46: 0 | H46: 0 | I46: 0 | J46: =SUM(E46:I46) -> 0 | K46: =IF(D46=0,C46+J46,D46+J46) -> 0 | L46: 0 | M46: 0
A47: Finance and administration | C47: 4450000 | D47: 0 | E47: 0 | F47: 0 | G47: 0 | H47: 0 | I47: -1821000 | J47: =SUM(E47:I47) -> -1821000 | K47: =IF(D47=0,C47+J47,D47+J47) -> 2629000 | L47: 940500 | M47: 964013
A48: Internal audit | C48: 0 | D48: 0 | E48: 0 | F48: 0 | G48: 0 | H48: 0 | I48: 0 | J48: =SUM(E48:I48) -> 0 | K48: =IF(D48=0,C48+J48,D48+J48) -> 0 | L48: 0 | M48: 0
A49: Community and public safety | C49: =SUM(C50:C54) -> 13758800 | D49: 0 | E49: 0 | F49: 0 | G49: 0 | H49: 0 | I49: -998800 | J49: =SUM(J50:J54) -> -998800 | K49: 12760000 | L49: 13332946 | M49: 6447080
A50: Community and social services | C50: 1000000 | D50: 0 | E50: 0 | F50: 0 | G50: 0 | H50: 0 | I50: -500000 | J50: =SUM(E50:I50) -> -500000 | K50: =IF(D50=0,C50+J50,D50+J50) -> 500000 | L50: 0 | M50: 0
A51: Sport and recreation | C51: 12758800 | D51: 0 | E51: 0 | F51: 0 | G51: 0 | H51: 0 | I51: -558800 | J51: =SUM(E51:I51) -> -558800 | K51: =IF(D51=0,C51+J51,D51+J51) -> 12200000 | L51: 13332946 | M51: 6447080
A52: Public safety | C52: 0 | D52: 0 | E52: 0 | F52: 0 | G52: 0 | H52: 0 | I52: 60000 | J52: =SUM(E52:I52) -> 60000 | K52: =IF(D52=0,C52+J52,D52+J52) -> 60000 | L52: 0 | M52: 0
A53: Housing | J53: =SUM(E53:I53) -> 0 | K53: =IF(D53=0,C53+J53,D53+J53) -> 0
A54: Health | J54: =SUM(E54:I54) -> 0 | K54: =IF(D54=0,C54+J54,D54+J54) -> 0
A55: Economic and environmental services | C55: =SUM(C56:C58) -> 23303670 | D55: 0 | E55: 0 | F55: 0 | G55: 0 | H55: 0 | I55: 16037156 | J55: 16037156 | K55: 39340826 | L55: 44325100 | M55: 46263575
A56: Planning and development | C56: 0 | D56: 0 | E56: 0 | F56: 0 | G56: 0 | H56: 0 | I56: 300000 | J56: =SUM(E56:I56) -> 300000 | K56: =IF(D56=0,C56+J56,D56+J56) -> 300000 | L56: 0 | M56: 0
A57: Road transport | C57: 23303670 | D57: 0 | E57: 0 | F57: 0 | G57: 0 | H57: 0 | I57: 15737156 | J57: =SUM(E57:I57) -> 15737156 | K57: =IF(D57=0,C57+J57,D57+J57) -> 39040826 | L57: 44325100 | M57: 46263575
A58: Environmental protection | J58: =SUM(E58:I58) -> 0 | K58: =IF(D58=0,C58+J58,D58+J58) -> 0
A59: Trading services | C59: =SUM(C60:C63) -> 22884330 | D59: =SUM(D60:D63) -> 0 | E59: 0 | F59: 0 | G59: 0 | H59: 0 | I59: =SUM(I60:I63) -> -19337156 | J59: =SUM(J60:J63) -> -19337156 | K59: 3547174 | L59: 209000 | M59: 12065918
A60: Energy sources | C60: 3800000 | D60: 0 | E60: 0 | F60: 0 | G60: 0 | H60: 0 | I60: -3600000 | J60: =SUM(E60:I60) -> -3600000 | K60: =IF(D60=0,C60+J60,D60+J60) -> 200000 | L60: 209000 | M60: 12065918
A61: Water management | J61: =SUM(E61:I61) -> 0 | K61: =IF(D61=0,C61+J61,D61+J61) -> 0
A62: Waste water management | C62: 19084330 | D62: 0 | E62: 0 | F62: 0 | G62: 0 | H62: 0 | I62: -15737156 | J62: =SUM(E62:I62) -> -15737156 | K62: =IF(D62=0,C62+J62,D62+J62) -> 3347174 | L62: 0 | M62: 0
A63: Waste management | J63: =SUM(E63:I63) -> 0 | K63: =IF(D63=0,C63+J63,D63+J63) -> 0
A64: Other | J64: =SUM(E64:I64) -> 0 | K64: =IF(D64=0,C64+J64,D64+J64) -> 0
A65: Total Capital Expenditure - Functional | B65: 3 | C65: =C45+C49+C55+C59+C64 -> 64396800 | D65: =D45+D49+D55+D59+D64 -> 0 | E65: 0 | F65: 0 | G65: 0 | H65: 0 | I65: =I45+I49+I55+I59+I64 -> -6119800 | J65: -6119800 | K65: 58277000 | L65: 58807546 | M65: 65740586
A67: Funded by:
A68: National Government | C68: 52088000 | D68: 0 | E68: 0 | F68: 0 | G68: 0 | H68: 0 | I68: 300000 | J68: =SUM(E68:I68) -> 300000 | K68: =IF(D68=0,C68+J68,D68+J68) -> 52388000 | L68: 55820100 | M68: 50826760
A69: Provincial Government | C69: 0 | D69: 0 | E69: 0 | F69: 0 | G69: 0 | H69: 0 | I69: 0 | J69: =SUM(E69:I69) -> 0 | K69: =IF(D69=0,C69+J69,D69+J69) -> 0 | L69: 0 | M69: 0
A70: District Municipality | C70: 0 | D70: 0 | E70: 0 | F70: 0 | G70: 0 | H70: 0 | I70: 0 | J70: =SUM(E70:I70) -> 0 | K70: =IF(D70=0,C70+J70,D70+J70) -> 0 | L70: 0 | M70: 0
A71: Transfers and subsidies - capital (monetary allocations) (Nat / Prov Departm Agencies, Households, Non-profit Institutions, Private Enterprises, Public Corporatons, Higher Educ Institutions) | C71: 0 | D71: 0 | E71: 0 | F71: 0 | G71: 0 | H71: 0 | I71: 0 | J71: =SUM(E71:I71) -> 0 | K71: =IF(D71=0,C71+J71,D71+J71) -> 0 | L71: 0 | M71: 0
A72: Transfers recognised - capital | B72: 4 | C72: =SUM(C68:C71) -> 52088000 | D72: 0 | E72: 0 | F72: 0 | G72: 0 | H72: 0 | I72: 300000 | J72: 300000 | K72: 52388000 | L72: 55820100 | M72: 50826760
A74: Borrowing | J74: =SUM(E74:I74) -> 0 | K74: =IF(D74=0,C74+J74,D74+J74) -> 0
A75: Internally generated funds | C75: 12308800 | D75: 0 | E75: 0 | F75: 0 | G75: 0 | H75: 0 | I75: -6419800 | J75: =SUM(E75:I75) -> -6419800 | K75: =IF(D75=0,C75+J75,D75+J75) -> 5889000 | L75: 2987446 | M75: 14913826
A76: Total Capital Funding | C76: =+C72+C74+C75 -> 64396800 | D76: =+D72+D74+D75 -> 0 | E76: 0 | F76: 0 | G76: 0 | H76: 0 | I76: -6119800 | J76: -6119800 | K76: 58277000 | L76: 58807546 | M76: 65740586
A77: =head27a -> References
A78: 1. Municipalities may choose to appropriate for capital expenditure for three years or for one year (if one year appropriation projected expenditure required for yr2 and yr3).
A79: 2. Include capital component of PPP unitary payment. Note that capital transfers are only appropriated to municipalities for the budget year
A80: 3. Capital expenditure by standard classification must reconcile to the appropriations by vote
A81: 4. Must reconcile to supporting table SB7 and to Adjustments Budget Financial Performance (revenue and expenditure)
A82: 5. Only complete if a previous adjusted budget has been approved in the same financial year. Reflect most recent adjusted budget.
A83: 6. Additional cash-backed accumulated funds/unspent funds (MFMA section 18(1)(b) and section 28(2)(e)) identified after the Original Budget approved and after annual financial statements audited (note: only where underspending could not reasonably have been foreseen)
A84: 7. Increases of funds approved under MFMA section 31
A85: 8. Adjustments approved in accordance with MFMA section 29
A86: 9. Adjustments to transfers from National or Provincial Government
A87: 10. Adjusts. = 'Other' Adjustments proposed to be approved; including revenue under-collection (MFMA section 28(2)(a)); additional revenue appropriation on existing programmes (section 28(2))(b); projected savings (section 28(2)(d)); error correction (section 28(2)(f))
A88: 11. G = B + C + D + E + F
A89: 12. Adjusted Budget H = (A or A1/2 etc) + G
A91: check balance | C91: =C65-C76 -> 0 | D91: =D65-D76 -> 0 | E91: =E65-E76 -> 0 | H91: =H65-H76 -> 0 | I91: =I65-I76 -> 0 | J91: =J65-J76 -> 0 | K91: =K65-K76 -> 0 | L91: =L65-L76 -> 0 | M91: =K23-K76 -> 0

Sheet B5B
A1: =muni&" - "&_ADJ5&" - B"&" - "&Date -> LIM353 Molemole - Table B5 Adjustments Capital Expenditure Budget by vote and funding - B - 46115
A2: =Vdesc -> Vote Description | B2: =head27 -> Ref | C2: =Head2 -> Budget Year 2025/26 | L2: =Head10 -> Budget Year +1 2026/27 | M2: =Head11 -> Budget Year +2 2027/28
C3: =Head6 -> Original Budget | D3: =Head54 -> Prior Adjusted | E3: =Head51 -> Accum. Funds | F3: =Head52 -> Multi-year capital | G3: =Head53 -> Unfore. Unavoid. | H3: =Head55 -> Nat. or Prov. Govt | I3: =Head50 -> Other Adjusts. | J3: =Head56 -> Total Adjusts. | K3: =Head7 -> Adjusted Budget | L3: =Head7 -> Adjusted Budget | M3: =Head7 -> Adjusted Budget
A4: [Insert departmental structure etc] | D4: 3 | E4: 4 | F4: 5 | G4: 6 | H4: 7 | I4: 8 | J4: 9 | K4: 10
A5: R thousands | C5: A | D5: A1 | E5: B | F5: C | G5: D | H5: E | I5: F | J5: G | K5: H
A6: Capital expenditure - Municipal Vote
A7: Multi-year expenditure appropriation | B7: 2
A8: ='Org structure'!A2 -> Vote 01 - Corporate Services | C8: =SUM(C9:C11) -> 4300000 | D8: 0 | E8: 0 | F8: 0 | G8: 0 | H8: 0 | I8: -1821000 | J8: =SUM(E8:I8) -> -1821000 | K8: =IF(D8=0,C8+J8,D8+J8) -> 2479000 | L8: =SUM(L9:L11) -> 940500 | M8: =SUM(M9:M11) -> 964013
A9: ='Org structure'!E3 -> 01.1 - Corporate Services Admin | C9: 3700000 | D9: 0 | E9: 0 | F9: 0 | G9: 0 | H9: 0 | I9: -1350000 | J9: =SUM(E9:I9) -> -1350000 | K9: =IF(D9=0,C9+J9,D9+J9) -> 2350000 | L9: 313500 | M9: 321338
A10: ='Org structure'!E5 -> 01.3 - Information Technology Services | C10: 600000 | D10: 0 | E10: 0 | F10: 0 | G10: 0 | H10: 0 | I10: -471000 | J10: =SUM(E10:I10) -> -471000 | K10: =IF(D10=0,C10+J10,D10+J10) -> 129000 | L10: 627000 | M10: 642675
A11: ='Org structure'!E8 -> 01.6 - Municipal Planning Idp | C11: 0 | D11: 0 | E11: 0 | F11: 0 | G11: 0 | H11: 0 | I11: 0 | J11: =SUM(E11:I11) -> 0 | K11: =IF(D11=0,C11+J11,D11+J11) -> 0 | L11: 0 | M11: 0
A12: ='Org structure'!A3 -> Vote 02 - Municipal Manager | C12: =SUM(C13:C13) -> 150000 | D12: 0 | E12: 0 | F12: 0 | G12: 0 | H12: 0 | I12: 0 | J12: 0 | K12: 150000 | L12: =SUM(L13:L13) -> 0 | M12: =SUM(M13:M13) -> 0
A13: ='Org structure'!E14 -> 02.3 - Political Office Beares | C13: 150000 | D13: 0 | E13: 0 | F13: 0 | G13: 0 | H13: 0 | I13: 0 | J13: =SUM(E13:I13) -> 0 | K13: =IF(D13=0,C13+J13,D13+J13) -> 150000 | L13: 0 | M13: 0
A14: ='Org structure'!A4 -> Vote 03 - Mayors Office | C14: 0 | D14: 0 | E14: 0 | F14: 0 | G14: 0 | H14: 0 | I14: 0 | J14: 0 | K14: 0 | L14: 0 | M14: 0
A15: ='Org structure'!A5 -> Vote 04 - Budget And Treasury | C15: =SUM(C16:C16) -> 0 | D15: 0 | E15: 0 | F15: 0 | G15: 0 | H15: 0 | I15: 0 | J15: 0 | K15: 0 | L15: =SUM(L16:L16) -> 0 | M15: =SUM(M16:M16) -> 0
A16: ='Org structure'!E27 -> 04.4 - Revenue Management | C16: 0 | D16: 0 | E16: 0 | F16: 0 | G16: 0 | H16: 0 | I16: 0 | J16: =SUM(E16:I16) -> 0 | K16: =IF(D16=0,C16+J16,D16+J16) -> 0 | L16: 0 | M16: 0
A17: ='Org structure'!A6 -> Vote 05 - Community Services | C17: =SUM(C18:C20) -> 13758800 | D17: 0 | E17: 0 | F17: 0 | G17: 0 | H17: 0 | I17: -998800 | J17: -998800 | K17: 12760000 | L17: =SUM(L18:L20) -> 13332946 | M17: =SUM(M18:M20) -> 6447080
A18: ='Org structure'!E31 -> 05.1 - Community Services Admin | C18: 1000000 | D18: 0 | E18: 0 | F18: 0 | G18: 0 | H18: 0 | I18: -500000 | J18: =SUM(E18:I18) -> -500000 | K18: =IF(D18=0,C18+J18,D18+J18) -> 500000 | L18: 0 | M18: 0
A19: ='Org structure'!E33 -> 05.3 - Sports Recreation & Social Amenitie | C19: 12758800 | D19: 0 | E19: 0 | F19: 0 | G19: 0 | H19: 0 | I19: -558800 | J19: =SUM(E19:I19) -> -558800 | K19: =IF(D19=0,C19+J19,D19+J19) -> 12200000 | L19: 13332946 | M19: 6447080
A20: ='Org structure'!E34 -> 05.4 - Traffic Service | C20: 0 | D20: 0 | E20: 0 | F20: 0 | G20: 0 | H20: 0 | I20: 60000 | J20: =SUM(E20:I20) -> 60000 | K20: =IF(D20=0,C20+J20,D20+J20) -> 60000 | L20: 0 | M20: 0
A21: ='Org structure'!A7 -> Vote 06 - Technical Services | C21: =SUM(C22:C25) -> 46188000 | D21: 0 | E21: 0 | F21: 0 | G21: 0 | H21: 0 | I21: -3300000 | J21: -3300000 | K21: 42888000 | L21: =SUM(L22:L25) -> 44534100 | M21: =SUM(M22:M25) -> 58329493
A22: ='Org structure'!E40 -> 06.3 - Techn Serv-Roads: Admin | C22: 23303670 | D22: 0 | E22: 0 | F22: 0 | G22: 0 | H22: 0 | I22: 15737156 | J22: =SUM(E22:I22) -> 15737156 | K22: =IF(D22=0,C22+J22,D22+J22) -> 39040826 | L22: 44325100 | M22: 46263575
A23: ='Org structure'!E41 -> 06.4 - Techn Serv-Stormwater: Admin | C23: 19084330 | D23: 0 | E23: 0 | F23: 0 | G23: 0 | H23: 0 | I23: -15737156 | J23: =SUM(E23:I23) -> -15737156 | K23: =IF(D23=0,C23+J23,D23+J23) -> 3347174 | L23: 0 | M23: 0
A24: ='Org structure'!E42 -> 06.5 - Project Management Unit | C24: 0 | D24: 0 | E24: 0 | F24: 0 | G24: 0 | H24: 0 | I24: 300000 | J24: =SUM(E24:I24) -> 300000 | K24: =IF(D24=0,C24+J24,D24+J24) -> 300000 | L24: 0 | M24: 0
A25: ='Org structure'!E43 -> 06.6 - Electrical & Machinery | C25: 3800000 | D25: 0 | E25: 0 | F25: 0 | G25: 0 | H25: 0 | I25: -3600000 | J25: =SUM(E25:I25) -> -3600000 | K25: =IF(D25=0,C25+J25,D25+J25) -> 200000 | L25: 209000 | M25: 12065918
A26: ='Org structure'!A8 -> Vote 07 - | C26: 0 | D26: 0 | E26: 0 | F26: 0 | G26: 0 | H26: 0 | I26: 0 | J26: =SUM(E26:I26) -> 0 | K26: =IF(D26=0,C26+J26,D26+J26) -> 0 | L26: 0 | M26: 0
A27: ='Org structure'!A9 -> Vote 08 - | C27: 0 | D27: 0 | E27: 0 | F27: 0 | G27: 0 | H27: 0 | I27: 0 | J27: 0 | K27: 0 | L27: 0 | M27: 0
A28: ='Org structure'!A10 -> Vote 09 - | C28: 0 | D28: 0 | E28: 0 | F28: 0 | G28: 0 | H28: 0 | I28: 0 | J28: 0 | K28: 0 | L28: 0 | M28: 0
A29: ='Org structure'!A11 -> Vote 10 - | C29: 0 | D29: 0 | E29: 0 | F29: 0 | G29: 0 | H29: 0 | I29: 0 | J29: 0 | K29: 0 | L29: 0 | M29: 0
A30: ='Org structure'!A12 -> Vote 11 - | C30: 0 | D30: 0 | E30: 0 | F30: 0 | G30: 0 | H30: 0 | I30: 0 | J30: 0 | K30: 0 | L30: 0 | M30: 0
A31: ='Org structure'!A13 -> Vote 12 - | C31: 0 | D31: 0 | E31: 0 | F31: 0 | G31: 0 | H31: 0 | I31: 0 | J31: 0 | K31: 0 | L31: 0 | M31: 0
A32: ='Org structure'!A14 -> Vote 13 - | C32: 0 | D32: 0 | E32: 0 | F32: 0 | G32: 0 | H32: 0 | I32: 0 | J32: =SUM(E32:I32) -> 0 | K32: =IF(D32=0,C32+J32,D32+J32) -> 0 | L32: 0 | M32: 0
A33: ='Org structure'!A15 -> Vote 14 - | C33: 0 | D33: 0 | E33: 0 | F33: 0 | G33: 0 | H33: 0 | I33: 0 | J33: 0 | K33: 0 | L33: 0 | M33: 0
A34: ='Org structure'!A16 -> Vote 15 - Other | C34: 0 | D34: 0 | E34: 0 | F34: 0 | G34: 0 | H34: 0 | I34: 0 | J34: 0 | K34: 0 | L34: 0 | M34: 0
A35: Capital multi-year expenditure sub-total | C35: =C8+C12+C14+C15+C17+C21+C26+C27+C28+C29+C30+C31+C32+C33+C34 -> 64396800 | D35: 0 | E35: 0 | F35: 0 | G35: 0 | H35: 0 | I35: -6119800 | J35: -6119800 | K35: 58277000 | L35: 58807546 | M35: 65740586
A37: Capital expenditure - Municipal Vote | B37: 2
A38: Single-year expenditure appropriation
A39: ='Org structure'!A2 -> Vote 01 - Corporate Services | C39: 0 | D39: 0 | E39: 0 | F39: 0 | G39: 0 | H39: 0 | I39: 0 | J39: =SUM(E39:I39) -> 0 | K39: =IF(D39=0,C39+J39,D39+J39) -> 0 | L39: 0 | M39: 0
A40: ='Org structure'!A3 -> Vote 02 - Municipal Manager | C40: 0 | D40: 0 | E40: 0 | F40: 0 | G40: 0 | H40: 0 | I40: 0 | J40: 0 | K40: 0 | L40: 0 | M40: 0
A41: ='Org structure'!A4 -> Vote 03 - Mayors Office | C41: 0 | D41: 0 | E41: 0 | F41: 0 | G41: 0 | H41: 0 | I41: 0 | J41: 0 | K41: 0 | L41: 0 | M41: 0
A42: ='Org structure'!A5 -> Vote 04 - Budget And Treasury | C42: 0 | D42: 0 | E42: 0 | F42: 0 | G42: 0 | H42: 0 | I42: 0 | J42: 0 | K42: 0 | L42: 0 | M42: 0
A43: ='Org structure'!A6 -> Vote 05 - Community Services | C43: 0 | D43: 0 | E43: 0 | F43: 0 | G43: 0 | H43: 0 | I43: 0 | J43: 0 | K43: 0 | L43: 0 | M43: 0
A44: ='Org structure'!A7 -> Vote 06 - Technical Services | C44: 0 | D44: 0 | E44: 0 | F44: 0 | G44: 0 | H44: 0 | I44: 0 | J44: 0 | K44: 0 | L44: 0 | M44: 0
A45: ='Org structure'!A8 -> Vote 07 - | C45: 0 | D45: 0 | E45: 0 | F45: 0 | G45: 0 | H45: 0 | I45: 0 | J45: =SUM(E45:I45) -> 0 | K45: =IF(D45=0,C45+J45,D45+J45) -> 0 | L45: 0 | M45: 0
A46: ='Org structure'!A9 -> Vote 08 - | C46: 0 | D46: 0 | E46: 0 | F46: 0 | G46: 0 | H46: 0 | I46: 0 | J46: 0 | K46: 0 | L46: 0 | M46: 0
A47: ='Org structure'!A10 -> Vote 09 - | C47: 0 | D47: 0 | E47: 0 | F47: 0 | G47: 0 | H47: 0 | I47: 0 | J47: 0 | K47: 0 | L47: 0 | M47: 0
A48: ='Org structure'!A11 -> Vote 10 - | C48: 0 | D48: 0 | E48: 0 | F48: 0 | G48: 0 | H48: 0 | I48: 0 | J48: 0 | K48: 0 | L48: 0 | M48: 0
A49: ='Org structure'!A12 -> Vote 11 - | C49: 0 | D49: 0 | E49: 0 | F49: 0 | G49: 0 | H49: 0 | I49: 0 | J49: 0 | K49: 0 | L49: 0 | M49: 0
A50: ='Org structure'!A13 -> Vote 12 - | C50: 0 | D50: 0 | E50: 0 | F50: 0 | G50: 0 | H50: 0 | I50: 0 | J50: 0 | K50: 0 | L50: 0 | M50: 0
A51: ='Org structure'!A14 -> Vote 13 - | C51: 0 | D51: 0 | E51: 0 | F51: 0 | G51: 0 | H51: 0 | I51: 0 | J51: =SUM(E51:I51) -> 0 | K51: =IF(D51=0,C51+J51,D51+J51) -> 0 | L51: 0 | M51: 0
A52: ='Org structure'!A15 -> Vote 14 - | C52: 0 | D52: 0 | E52: 0 | F52: 0 | G52: 0 | H52: 0 | I52: 0 | J52: 0 | K52: 0 | L52: 0 | M52: 0
A53: ='Org structure'!A16 -> Vote 15 - Other | C53: 0 | D53: 0 | E53: 0 | F53: 0 | G53: 0 | H53: 0 | I53: 0 | J53: 0 | K53: 0 | L53: 0 | M53: 0
A54: Capital single-year expenditure sub-total | C54: =C39+C40+C41+C42+C43+C44+C45+C46+C47+C48+C49+C50+C51+C52+C53 -> 0 | D54: 0 | E54: 0 | F54: 0 | G54: 0 | H54: 0 | I54: 0 | J54: 0 | K54: 0 | L54: 0 | M54: 0
A55: Total Capital Expenditure | C55: =C54+C35 -> 64396800 | D55: 0 | E55: 0 | F55: 0 | G55: 0 | H55: 0 | I55: -6119800 | J55: =SUM(E55:I55) -> -6119800 | K55: =IF(D55=0,C55+J55,D55+J55) -> 58277000 | L55: =L54+L35 -> 58807546 | M55: =M54+M35 -> 65740586
A58: =head27a -> References
A59: 1. Insert 'Vote'; e.g. Department, if different to standard structure
A60: 2. Must reconcile to Financial Performance ('Revenue and Expenditure by Standard Classification' and 'Revenue and Expenditure')
A61: 3. Assign share in 'associate' to relevant Vote

Sheet B6-FinPos
A1: =muni&" - "&_ADJ6&" - "&Date -> LIM353 Molemole - Table B6 Adjustments Budget Financial Position - 46115
A2: =desc -> Description | B2: =head27 -> Ref | C2: =Head2 -> Budget Year 2025/26 | L2: =Head10 -> Budget Year +1 2026/27 | M2: =Head11 -> Budget Year +2 2027/28
C3: =Head6 -> Original Budget | D3: =Head54 -> Prior Adjusted | E3: =Head51 -> Accum. Funds | F3: =Head52 -> Multi-year capital | G3: =Head53 -> Unfore. Unavoid. | H3: =Head55 -> Nat. or Prov. Govt | I3: =Head50 -> Other Adjusts. | J3: =Head56 -> Total Adjusts. | K3: =Head7 -> Adjusted Budget | L3: =Head7 -> Adjusted Budget | M3: =Head7 -> Adjusted Budget
D4: 3 | E4: 4 | F4: 5 | G4: 6 | H4: 7 | I4: 8 | J4: 9 | K4: 10
A5: R thousands | C5: A | D5: A1 | E5: B | F5: C | G5: D | H5: E | I5: F | J5: G | K5: H
A6: ASSETS
A7: Current assets
A8: Cash and cash equivalents | C8: 129572538 | D8: 0 | E8: 0 | F8: 0 | G8: 0 | H8: 0 | I8: 6335443 | J8: =SUM(E8:I8) -> 6335443 | K8: =IF(D8=0,C8+J8,D8+J8) -> 135907981 | L8: 120082582 | M8: 110654718
A9: Trade and other receivables from exchange transactions | B9: 1 | C9: ='SB2'!C20 -> 5606550 | D9: ='SB2'!D20 -> 0 | E9: ='SB2'!E20 -> 0 | F9: ='SB2'!F20 -> 0 | G9: ='SB2'!G20 -> 0 | H9: ='SB2'!H20 -> 0 | I9: ='SB2'!I20 -> -5325574 | J9: -5325574 | K9: 280976 | L9: ='SB2'!L20 -> 5858716 | M9: ='SB2'!M20 -> 6002605
A10: Receivables from non-exchange transactions | B10: 1 | C10: ='SB2'!C29 -> 80962794 | D10: ='SB2'!D29 -> 0 | E10: ='SB2'!E29 -> 0 | F10: ='SB2'!F29 -> 0 | G10: ='SB2'!G29 -> 0 | H10: ='SB2'!H29 -> 0 | I10: ='SB2'!I29 -> -65865084 | J10: -65865084 | K10: 15097710 | L10: ='SB2'!L29 -> 95189234 | M10: ='SB2'!M29 -> 111172728
A11: Current portion of non-current receivables | B11: 2 | C11: 0 | D11: 0 | E11: 0 | F11: 0 | G11: 0 | H11: 0 | I11: 0 | J11: 0 | K11: 0 | L11: 0 | M11: 0
A12: Inventory | C12: ='SB2'!C132 -> 156003 | D12: ='SB2'!D132 -> 0 | E12: ='SB2'!E132 -> 0 | F12: ='SB2'!F132 -> 0 | G12: ='SB2'!G132 -> 0 | H12: ='SB2'!H132 -> 0 | I12: ='SB2'!I132 -> 206725 | J12: 206725 | K12: 362728 | L12: ='SB2'!L132 -> 156003 | M12: ='SB2'!M132 -> 156003
A13: VAT | C13: 6481927 | D13: 0 | E13: 0 | F13: 0 | G13: 0 | H13: 0 | I13: 3978787 | J13: 3978787 | K13: 10460714 | L13: 6806023 | M13: 7146324
A14: Other current assets | C14: 2257473 | D14: 0 | E14: 0 | F14: 0 | G14: 0 | H14: 0 | I14: -2901896 | J14: -2901896 | K14: -644423 | L14: 2357161 | M14: 2415036
A15: Total current assets | C15: =SUM(C8:C14) -> 225037285 | D15: 0 | E15: 0 | F15: 0 | G15: 0 | H15: 0 | I15: -63571599 | J15: -63571599 | K15: 161465686 | L15: 230449719 | M15: 237547414
A16: Non current assets
A17: Investments | C17: 0 | D17: 0 | E17: 0 | F17: 0 | G17: 0 | H17: 0 | I17: 0 | J17: =SUM(E17:I17) -> 0 | K17: =IF(D17=0,C17+J17,D17+J17) -> 0 | L17: 0 | M17: 0
A18: Investment property | C18: 1459246 | D18: 0 | E18: 0 | F18: 0 | G18: 0 | H18: 0 | I18: 75294 | J18: =SUM(E18:I18) -> 75294 | K18: =IF(D18=0,C18+J18,D18+J18) -> 1534540 | L18: 1471171 | M18: 1478094
A19: Property, plant and equipment | B19: 3 | C19: =+'SB2'!C138 -> 483709061 | D19: =+'SB2'!D138 -> 0 | E19: =+'SB2'!E138 -> 0 | F19: =+'SB2'!F138 -> 0 | G19: =+'SB2'!G138 -> 0 | H19: =+'SB2'!H138 -> 0 | I19: =+'SB2'!I138 -> 28584340 | J19: 28584340 | K19: 512293401 | L19: =+'SB2'!L138 -> 522596147 | M19: =+'SB2'!M138 -> 565644548
A20: Biological assets | J20: 0 | K20: 0
A21: Living and non-living resources | J21: 0 | K21: 0
A22: Heritage assets | C22: 408500 | D22: 0 | E22: 0 | F22: 0 | G22: 0 | H22: 0 | I22: 6000 | J22: =SUM(E22:I22) -> 6000 | K22: =IF(D22=0,C22+J22,D22+J22) -> 414500 | L22: 410005 | M22: 411510
A23: Intangible assets | C23: 315044 | D23: 0 | E23: 0 | F23: 0 | G23: 0 | H23: 0 | I23: 2962228 | J23: =SUM(E23:I23) -> 2962228 | K23: =IF(D23=0,C23+J23,D23+J23) -> 3277272 | L23: 333856 | M23: 344776
A24: Trade and other receivables from exchange transactions | J24: 0 | K24: 0
A25: Non-current receivables from non-exchange transactions | J25: 0 | K25: 0
A26: Other non-current assets | J26: 0 | K26: 0
A27: Total non current assets | C27: =SUM(C17:C26) -> 485891851 | D27: =SUM(D17:D26) -> 0 | E27: 0 | F27: 0 | G27: 0 | H27: 0 | I27: 31627862 | J27: 31627862 | K27: 517519713 | L27: =SUM(L17:L26) -> 524811179 | M27: 567878928
A28: TOTAL ASSETS | C28: =C15+C27 -> 710929136 | D28: 0 | E28: 0 | F28: 0 | G28: 0 | H28: 0 | I28: -31943737 | J28: -31943737 | K28: 678985399 | L28: 755260898 | M28: 805426342
A30: LIABILITIES
A31: Current liabilities
A32: Bank overdraft | J32: =SUM(E32:I32) -> 0 | K32: =IF(D32=0,C32+J32,D32+J32) -> 0
A33: Financial liabilities | C33: ='SB2'!C144 -> 0 | D33: ='SB2'!D144 -> 0 | E33: ='SB2'!E144 -> 0 | F33: ='SB2'!F144 -> 0 | G33: ='SB2'!G144 -> 0 | H33: ='SB2'!H144 -> 0 | I33: ='SB2'!I144 -> 0 | J33: =SUM(E33:I33) -> 0 | K33: =IF(D33=0,C33+J33,D33+J33) -> 0 | L33: ='SB2'!L144 -> 0 | M33: ='SB2'!M144 -> 0
A34: Consumer deposits | C34: 509126 | D34: 0 | E34: 0 | F34: 0 | G34: 0 | H34: 0 | I34: -1349 | J34: =SUM(E34:I34) -> -1349 | K34: =IF(D34=0,C34+J34,D34+J34) -> 507777 | L34: 532037 | M34: 545338
A35: Trade and other payables from exchange transactions | C35: =+'SB2'!C147+'SB2'!C148 -> 42369912 | D35: =+'SB2'!D147+'SB2'!D148 -> 0 | E35: =+'SB2'!E147+'SB2'!E148 -> 0 | F35: =+'SB2'!F147+'SB2'!F148 -> 0 | G35: =+'SB2'!G147+'SB2'!G148 -> 0 | H35: =+'SB2'!H147+'SB2'!H148 -> 0 | I35: =+'SB2'!I147+'SB2'!I148 -> 3314733 | J35: =SUM(E35:I35) -> 3314733 | K35: =IF(D35=0,C35+J35,D35+J35) -> 45684645 | L35: =+'SB2'!L147+'SB2'!L148 -> 44983566 | M35: =+'SB2'!M147+'SB2'!M148 -> 44543996
A36: Trade and other payables from non-exchange transactions | C36: =+'SB2'!C149+'SB2'!C150 -> 1260124 | D36: =+'SB2'!D149+'SB2'!D150 -> 0 | E36: =+'SB2'!E149+'SB2'!E150 -> 0 | F36: =+'SB2'!F149+'SB2'!F150 -> 0 | G36: =+'SB2'!G149+'SB2'!G150 -> 0 | H36: =+'SB2'!H149+'SB2'!H150 -> 0 | I36: =+'SB2'!I149+'SB2'!I150 -> 149806 | J36: 149806 | K36: 1409930 | L36: =+'SB2'!L149+'SB2'!L150 -> 441426 | M36: =+'SB2'!M149+'SB2'!M150 -> 451314
A37: Provisions | C37: -835329 | D37: 0 | E37: 0 | F37: 0 | G37: 0 | H37: 0 | I37: 3929614 | J37: 3929614 | K37: 3094285 | L37: -1022354 | M37: -1047914
A38: VAT | C38: 0 | D38: 0 | E38: 0 | F38: 0 | G38: 0 | H38: 0 | I38: 7506016 | J38: 7506016 | K38: 7506016 | L38: 0 | M38: 0
A39: Other current liabilities | J39: 0 | K39: 0
A40: Total current liabilities | C40: =SUM(C32:C39) -> 43303833 | D40: =SUM(D32:D39) -> 0 | E40: 0 | F40: 0 | G40: 0 | H40: 0 | I40: 14898820 | J40: =SUM(J32:J39) -> 14898820 | K40: =SUM(K32:K39) -> 58202653 | L40: =SUM(L32:L39) -> 44934675 | M40: 44492734
A42: Non current liabilities
A43: Borrowing | B43: 1 | C43: ='SB2'!C154 -> 0 | D43: ='SB2'!D154 -> 0 | E43: ='SB2'!E154 -> 0 | F43: ='SB2'!F154 -> 0 | G43: ='SB2'!G154 -> 0 | H43: ='SB2'!H154 -> 0 | I43: ='SB2'!I154 -> 0 | J43: =SUM(E43:I43) -> 0 | K43: =IF(D43=0,C43+J43,D43+J43) -> 0 | L43: ='SB2'!L154 -> 0 | M43: ='SB2'!M154 -> 0
A44: Provisions | B44: 1 | C44: ='SB2'!C169 -> 58128905 | D44: ='SB2'!D169 -> 0 | E44: ='SB2'!E169 -> 0 | F44: ='SB2'!F169 -> 0 | G44: ='SB2'!G169 -> 0 | H44: ='SB2'!H169 -> 0 | I44: ='SB2'!I169 -> 10802766 | J44: =SUM(E44:I44) -> 10802766 | K44: =IF(D44=0,C44+J44,D44+J44) -> 68931671 | L44: ='SB2'!L169 -> 64527701 | M44: ='SB2'!M169 -> 70439410
A45: Long term portion of trade payables | C45: ='SB2'!C158 -> 0 | D45: ='SB2'!D158 -> 0 | E45: ='SB2'!E158 -> 0 | F45: ='SB2'!F158 -> 0 | G45: ='SB2'!G158 -> 0 | H45: ='SB2'!H158 -> 0 | I45: ='SB2'!I158 -> 0 | J45: =SUM(E45:I45) -> 0 | K45: =IF(D45=0,C45+J45,D45+J45) -> 0 | L45: ='SB2'!L158 -> 0 | M45: ='SB2'!M158 -> 0
A46: Other non-current liabilities | J46: =SUM(E46:I46) -> 0 | K46: =IF(D46=0,C46+J46,D46+J46) -> 0
A47: Total non current liabilities | C47: =SUM(C43:C46) -> 58128905 | D47: =SUM(D43:D46) -> 0 | E47: 0 | F47: 0 | G47: 0 | H47: 0 | I47: 10802766 | J47: 10802766 | K47: 68931671 | L47: 64527701 | M47: 70439410
A48: TOTAL LIABILITIES | C48: =C40+C47 -> 101432738 | D48: 0 | E48: 0 | F48: 0 | G48: 0 | H48: 0 | I48: 25701586 | J48: 25701586 | K48: 127134324 | L48: 109462376 | M48: 114932144
A50: NET ASSETS | B50: 2 | C50: =C28-C48 -> 609496398 | D50: 0 | E50: 0 | F50: 0 | G50: 0 | H50: 0 | I50: -57645323 | J50: -57645323 | K50: 551851075 | L50: 645798522 | M50: 690494198
A52: COMMUNITY WEALTH/EQUITY
A53: Accumulated Surplus/(Deficit) | C53: ='SB2'!C181 -> 561761977 | D53: ='SB2'!D181 -> 0 | E53: ='SB2'!E181 -> 0 | F53: ='SB2'!F181 -> 0 | G53: ='SB2'!G181 -> 0 | H53: ='SB2'!H181 -> 0 | I53: ='SB2'!I181 -> -55369601 | J53: =SUM(E53:I53) -> -55369601 | K53: =IF(D53=0,C53+J53,D53+J53) -> 506392376 | L53: ='SB2'!L181 -> 595916051 | M53: ='SB2'!M181 -> 639364666
A54: Funds and Reserves | C54: ='SB2'!C188 -> 47734421 | D54: ='SB2'!D188 -> 0 | E54: ='SB2'!E188 -> 0 | F54: ='SB2'!F188 -> 0 | G54: ='SB2'!G188 -> 0 | H54: ='SB2'!H188 -> 0 | I54: ='SB2'!I188 -> 3843791 | J54: =SUM(E54:I54) -> 3843791 | K54: =IF(D54=0,C54+J54,D54+J54) -> 51578212 | L54: ='SB2'!L188 -> 49882471 | M54: ='SB2'!M188 -> 51129532
A55: Other | J55: =SUM(E55:I55) -> 0 | K55: =IF(D55=0,C55+J55,D55+J55) -> 0
A56: TOTAL COMMUNITY WEALTH/EQUITY | C56: =SUM(C53:C55) -> 609496398 | D56: =SUM(D53:D55) -> 0 | E56: 0 | F56: 0 | G56: 0 | H56: 0 | I56: -51525810 | J56: -51525810 | K56: 557970588 | L56: 645798522 | M56: 690494198
A57: =head27a -> References
A58: 1. Detail to be provided in Table SA3
A59: 2. Net assets must balance with Total Community Wealth/Equity
A60: 3. Only complete if a previous adjusted budget has been approved in the same financial year. Reflect most recent adjusted budget.
A61: 4. Additional cash-backed accumulated funds/unspent funds (MFMA section 18(1)(b) and section 28(2)(e)) identified after the Original Budget approved and after annual financial statements audited (note: only where underspending could not reasonably have been foreseen)
A62: 5. Increases of funds approved under MFMA section 31
A63: 6. Adjustments approved in accordance with MFMA section 29
A64: 7. Adjustments to transfers from National or Provincial Government
A65: 8. Adjusts. = 'Other' Adjustments proposed to be approved; including revenue under-collection (MFMA section 28(2)(a)); additional revenue appropriation on existing programmes (section 28(2))(b); projected savings (section 28(2)(d)); error correction (section 28(2)(f))
A66: 9. G = B + C + D + E + F
A67: 10. Adjusted Budget H = (A or A1/2 etc) + G
A69: check balance | C69: =C50-C56 -> 0 | D69: 0 | E69: 0 | F69: 0 | G69: 0 | H69: 0 | I69: -6119513 | J69: -6119513 | K69: -6119513 | L69: 0 | M69: 0

Sheet B7-CFlow
A1: =muni&" - "&_ADJ7&" - "&Date -> LIM353 Molemole - Table B7 Adjustments Budget Cash Flows - 46115
A2: =desc -> Description | B2: =head27 -> Ref | C2: =Head2 -> Budget Year 2025/26 | L2: =Head10 -> Budget Year +1 2026/27 | M2: =Head11 -> Budget Year +2 2027/28
C3: =Head6 -> Original Budget | D3: =Head54 -> Prior Adjusted | E3: =Head51 -> Accum. Funds | F3: =Head52 -> Multi-year capital | G3: =Head53 -> Unfore. Unavoid. | H3: =Head55 -> Nat. or Prov. Govt | I3: =Head50 -> Other Adjusts. | J3: =Head56 -> Total Adjusts. | K3: =Head7 -> Adjusted Budget | L3: =Head7 -> Adjusted Budget | M3: =Head7 -> Adjusted Budget
D4: 3 | E4: 4 | F4: 5 | G4: 6 | H4: 7 | I4: 8 | J4: 9 | K4: 10
A5: R thousands | C5: A | D5: A1 | E5: B | F5: C | G5: D | H5: E | I5: F | J5: G | K5: H
A6: CASH FLOW FROM OPERATING ACTIVITIES
A7: Receipts
A8: Property rates | C8: 19664717 | D8: 0 | E8: 0 | F8: 0 | G8: 0 | H8: 0 | I8: 0 | J8: =SUM(E8:I8) -> 0 | K8: =IF(D8=0,C8+J8,D8+J8) -> 19664717 | L8: 20567944 | M8: 21446140
A9: Service charges | C9: 14823588 | D9: 0 | E9: 0 | F9: 0 | G9: 0 | H9: 0 | I9: 0 | J9: =SUM(E9:I9) -> 0 | K9: =IF(D9=0,C9+J9,D9+J9) -> 14823588 | L9: 15505474 | M9: 16187715
A10: Other revenue | C10: 16909553 | D10: 0 | E10: 0 | F10: 0 | G10: 0 | H10: 0 | I10: 0 | J10: 0 | K10: 16909553 | L10: 17688152 | M10: 18504146
A11: Transfers and Subsidies - Operational | B11: 1 | C11: 207339000 | D11: 0 | E11: 0 | F11: 0 | G11: 0 | H11: 0 | I11: 0 | J11: 0 | K11: 207339000 | L11: 197548900 | M11: 206426125
A12: Transfers and Subsidies - Capital | B12: 1 | C12: 52088000 | D12: 0 | E12: 0 | F12: 0 | G12: 0 | H12: 0 | I12: 0 | J12: 0 | K12: 52088000 | L12: 44116100 | M12: 46049350
A13: Interest | C13: 16695504 | D13: 0 | E13: 0 | F13: 0 | G13: 0 | H13: 0 | I13: 0 | J13: 0 | K13: 16695504 | L13: 17564799 | M13: 19247554
A14: Dividends | J14: 0 | K14: 0
A15: Payments
A16: Suppliers and employees | C16: -271341046 | D16: 0 | E16: 0 | F16: 0 | G16: 0 | H16: 0 | I16: -1698970 | J16: =SUM(E16:I16) -> -1698970 | K16: =IF(D16=0,C16+J16,D16+J16) -> -273040016 | L16: =-('SB15'!Q36+'SB15'!Q37+'SB15'!Q39+'SB15'!Q40+'SB15'!Q41+'SB15'!Q42+'SB15'!Q45+'SB15'!Q51) -> -257698101 | M16: =-('SB15'!R36+'SB15'!R37+'SB15'!R39+'SB15'!R40+'SB15'!R41+'SB15'!R42+'SB15'!R45+'SB15'!R51) -> -268060979
A17: Finance charges | C17: -2551064 | D17: 0 | E17: 0 | F17: 0 | G17: 0 | H17: 0 | I17: 0 | J17: =SUM(E17:I17) -> 0 | K17: =IF(D17=0,C17+J17,D17+J17) -> -2551064 | L17: -2665862 | M17: -2735007
A18: Transfers and Subsidies | B18: 1 | J18: =SUM(E18:I18) -> 0 | K18: =IF(D18=0,C18+J18,D18+J18) -> 0
A19: NET CASH FROM/(USED) OPERATING ACTIVITIES | C19: =SUM(C8:C14)+SUM(C16:C18) -> 53628252 | D19: =SUM(D8:D14)+SUM(D16:D18) -> 0 | E19: 0 | F19: 0 | G19: 0 | H19: 0 | I19: -1698970 | J19: =SUM(J8:J18) -> -1698970 | K19: =SUM(K8:K18) -> 51929282 | L19: =SUM(L8:L14)+SUM(L16:L18) -> 52627406 | M19: =SUM(M8:M14)+SUM(M16:M18) -> 57065044
A21: CASH FLOWS FROM INVESTING ACTIVITIES
A22: Receipts
A23: Proceeds on disposal of PPE | C23: 0 | D23: 0 | E23: 0 | F23: 0 | G23: 0 | H23: 0 | I23: 0 | J23: =SUM(E23:I23) -> 0 | K23: =IF(D23=0,C23+J23,D23+J23) -> 0 | L23: 0 | M23: 0
A25: Decrease (increase) in non-current receivables | J25: =SUM(E25:I25) -> 0 | K25: =IF(D25=0,C25+J25,D25+J25) -> 0
A26: Decrease (increase) in non-current investments | C26: 0 | D26: 0 | E26: 0 | F26: 0 | G26: 0 | H26: 0 | I26: 0 | J26: =SUM(E26:I26) -> 0 | K26: =IF(D26=0,C26+J26,D26+J26) -> 0 | L26: 0 | M26: 0
A27: Payments
A28: Capital assets | C28: -64396800 | D28: 0 | E28: 0 | F28: 0 | G28: 0 | H28: 0 | I28: 0 | J28: =SUM(E28:I28) -> 0 | K28: =IF(D28=0,C28+J28,D28+J28) -> -64396800 | L28: -58807546 | M28: -65740586
A29: NET CASH FROM/(USED) INVESTING ACTIVITIES | C29: =+C23+C25+C26+C28 -> -64396800 | D29: =+D23+D25+D26+D28 -> 0 | E29: 0 | F29: 0 | G29: 0 | H29: 0 | I29: 0 | J29: 0 | K29: -64396800 | L29: -58807546 | M29: -65740586
A31: CASH FLOWS FROM FINANCING ACTIVITIES
A32: Receipts
A33: Short term loans | J33: =SUM(E33:I33) -> 0 | K33: =IF(D33=0,C33+J33,D33+J33) -> 0
A34: Borrowing long term/refinancing | J34: =SUM(E34:I34) -> 0 | K34: =IF(D34=0,C34+J34,D34+J34) -> 0
A35: Increase (decrease) in consumer deposits | J35: =SUM(E35:I35) -> 0 | K35: =IF(D35=0,C35+J35,D35+J35) -> 0
A36: Payments
A37: Repayment of borrowing | C37: 0 | D37: 0 | E37: 0 | F37: 0 | G37: 0 | H37: 0 | I37: 0 | J37: =SUM(E37:I37) -> 0 | K37: =IF(D37=0,C37+J37,D37+J37) -> 0 | L37: 0 | M37: 0
A38: NET CASH FROM/(USED) FINANCING ACTIVITIES | C38: =SUM(C33:C35)+C37 -> 0 | D38: =SUM(D33:D35)+D37 -> 0 | E38: 0 | F38: 0 | G38: 0 | H38: 0 | I38: 0 | J38: =SUM(J33:J37) -> 0 | K38: =SUM(K33:K37) -> 0 | L38: =SUM(L33:L35)+L37 -> 0 | M38: =SUM(M33:M35)+M37 -> 0
A40: NET INCREASE/ (DECREASE) IN CASH HELD | C40: =C19+C29+C38 -> -10768548 | D40: =D19+D29+D38 -> 0 | E40: 0 | F40: 0 | G40: 0 | H40: 0 | I40: -1698970 | J40: -1698970 | K40: -12467518 | L40: -6180140 | M40: -8675542
A41: Cash/cash equivalents at the year begin: | B41: 2 | C41: 140341086 | D41: 0 | E41: 0 | F41: 0 | G41: 0 | H41: 0 | I41: 0 | J41: =SUM(E41:I41) -> 0 | K41: =IF(D41=0,C41+J41,D41+J41) -> 140341086 | L41: =K42 -> 127873568 | M41: =L42 -> 121693428
A42: Cash/cash equivalents at the year end: | B42: 2 | C42: =C40+C41 -> 129572538 | D42: =D40+D41 -> 0 | E42: 0 | F42: 0 | G42: 0 | H42: 0 | I42: -1698970 | J42: -1698970 | K42: =K40+K41 -> 127873568 | L42: =L40+L41 -> 121693428 | M42: =M40+M41 -> 113017886
A43: =head27a -> References
A44: 1. Local/District municipalities to include transfers from/to District/Local Municipalities
A45: 2. Cash equivalents includes investments with maturities of 3 months or less
A46: 3. Only complete if a previous adjusted budget has been approved in the same financial year. Reflect most recent adjusted budget.
A47: 4. Additional cash-backed accumulated funds/unspent funds (MFMA section 18(1)(b) and section 28(2)(e)) identified after the Original Budget approved and after annual financial statements audited (note: only where underspending could not reasonably have been foreseen)
A48: 5. Increases of funds approved under MFMA section 31
A49: 6. Adjustments approved in accordance with MFMA section 29
A50: 7. Adjustments to transfers from National or Provincial Government
A51: 8. Adjusts. = 'Other' Adjustments proposed to be approved; including revenue under-collection (MFMA section 28(2)(a)); additional revenue appropriation on existing programmes (section 28(2))(b); projected savings (section 28(2)(d)); error correction (section 28(2)(f))
A52: 9. G = B + C + D + E + F
A53: 10. Adjusted Budget H = (A or A1) + G

Sheet B8-ResRecon
A1: =muni&" - "&_ADJ8&" - "&Date -> LIM353 Molemole - Table B8 Cash backed reserves/accumulated surplus reconciliation - 46115
A2: =desc -> Description | B2: =head27 -> Ref | C2: =Head2 -> Budget Year 2025/26 | L2: =Head10 -> Budget Year +1 2026/27 | M2: =Head11 -> Budget Year +2 2027/28
C3: =Head6 -> Original Budget | D3: =Head54 -> Prior Adjusted | E3: =Head51 -> Accum. Funds | F3: =Head52 -> Multi-year capital | G3: =Head53 -> Unfore. Unavoid. | H3: =Head55 -> Nat. or Prov. Govt | I3: =Head50 -> Other Adjusts. | J3: =Head56 -> Total Adjusts. | K3: =Head7 -> Adjusted Budget | L3: =Head7 -> Adjusted Budget | M3: =Head7 -> Adjusted Budget
D4: 3 | E4: 4 | F4: 5 | G4: 6 | H4: 7 | I4: 8 | J4: 9 | K4: 10
A5: R thousands | C5: A | D5: A1 | E5: B | F5: C | G5: D | H5: E | I5: F | J5: G | K5: H
A6: Cash and investments available
A7: Cash/cash equivalents at the year end | B7: 1 | C7: ='B7-CFlow'!C42 -> 129572538 | D7: ='B7-CFlow'!D42 -> 0 | E7: ='B7-CFlow'!E42 -> 0 | F7: ='B7-CFlow'!F42 -> 0 | G7: ='B7-CFlow'!G42 -> 0 | H7: ='B7-CFlow'!H42 -> 0 | I7: ='B7-CFlow'!I42 -> -1698970 | J7: =SUM(E7:I7) -> -1698970 | K7: =IF(D7=0,C7+J7,D7+J7) -> 127873568 | L7: ='B7-CFlow'!L42 -> 121693428 | M7: ='B7-CFlow'!M42 -> 113017886
A8: Other current investments > 90 days | C8: ='B6-FinPos'!C8+'B6-FinPos'!C10-'B6-FinPos'!C32-'B8-ResRecon'!C7 -> 80962794 | D8: ='B6-FinPos'!D8+'B6-FinPos'!D10-'B6-FinPos'!D32-'B8-ResRecon'!D7 -> 0 | E8: ='B6-FinPos'!E8+'B6-FinPos'!E10-'B6-FinPos'!E32-'B8-ResRecon'!E7 -> 0 | F8: ='B6-FinPos'!F8+'B6-FinPos'!F10-'B6-FinPos'!F32-'B8-ResRecon'!F7 -> 0 | G8: ='B6-FinPos'!G8+'B6-FinPos'!G10-'B6-FinPos'!G32-'B8-ResRecon'!G7 -> 0 | H8: ='B6-FinPos'!H8+'B6-FinPos'!H10-'B6-FinPos'!H32-'B8-ResRecon'!H7 -> 0 | I8: ='B6-FinPos'!I8+'B6-FinPos'!I10-'B6-FinPos'!I32-'B8-ResRecon'!I7 -> -57830671 | J8: =SUM(E8:I8) -> -57830671 | K8: =IF(D8=0,C8+J8,D8+J8) -> 23132123 | L8: ='B6-FinPos'!L8+'B6-FinPos'!L10-'B6-FinPos'!L32-'B8-ResRecon'!L7 -> 93578388 | M8: ='B6-FinPos'!M8+'B6-FinPos'!M10-'B6-FinPos'!M32-'B8-ResRecon'!M7 -> 108809560
A9: Non current assets - Investments | B9: 1 | C9: ='B6-FinPos'!C17 -> 0 | D9: ='B6-FinPos'!D17 -> 0 | E9: ='B6-FinPos'!E17 -> 0 | F9: ='B6-FinPos'!F17 -> 0 | G9: ='B6-FinPos'!G17 -> 0 | H9: ='B6-FinPos'!H17 -> 0 | I9: ='B6-FinPos'!I17 -> 0 | J9: =SUM(E9:I9) -> 0 | K9: =IF(D9=0,C9+J9,D9+J9) -> 0 | L9: ='B6-FinPos'!L17 -> 0 | M9: ='B6-FinPos'!M17 -> 0
A10: Cash and investments available: | C10: =SUM(C7:C9) -> 210535332 | D10: 0 | E10: 0 | F10: 0 | G10: 0 | H10: 0 | I10: -59529641 | J10: -59529641 | K10: 151005691 | L10: 215271816 | M10: 221827446
A12: Applications of cash and investments
A13: Unspent conditional transfers | C13: ='SB2'!C149 -> 1260124 | D13: ='SB2'!D149 -> 0 | E13: ='SB2'!E149 -> 0 | F13: ='SB2'!F149 -> 0 | G13: ='SB2'!G149 -> 0 | H13: ='SB2'!H149 -> 0 | I13: ='SB2'!I149 -> 149806 | J13: =SUM(E13:I13) -> 149806 | K13: =IF(D13=0,C13+J13,D13+J13) -> 1409930 | L13: ='SB2'!L149 -> 441426 | M13: ='SB2'!M149 -> 451314
A14: Unspent borrowing | J14: 0 | K14: =IF(D14=0,C14+J14,D14+J14) -> 0
A15: Statutory requirements | C15: -6481927 | D15: 0 | E15: 0 | F15: 0 | G15: 0 | H15: 0 | I15: 3527229 | J15: 3527229 | K15: =IF(D15=0,C15+J15,D15+J15) -> -2954698 | L15: -6806023 | M15: -7146324
A16: Other working capital requirements | B16: 2 | C16: =-C40 -> 27344168 | D16: =-D40 -> 0 | I16: =IF(D16=0,(K16-C16)-SUM(E16:H16),(K16-D16)-SUM(E16:H16)) -> 15689767 | J16: 15689767 | K16: =-K40 -> 43033935 | L16: =-L40 -> 26284333 | M16: =-M40 -> 22936814
A17: Other provisions | C17: -835329 | D17: 0 | E17: 0 | F17: 0 | G17: 0 | H17: 0 | I17: 3929614 | J17: 3929614 | K17: =IF(D17=0,C17+J17,D17+J17) -> 3094285 | L17: -1022354 | M17: -1047914
A18: Long term investments committed | C18: =C55 -> 0 | D18: =D55 -> 0 | E18: 0 | F18: 0 | G18: 0 | H18: 0 | I18: =IF(D18=0,(K18-C18)-SUM(E18:H18),(K18-D18)-SUM(E18:H18)) -> 0 | J18: 0 | K18: =K55 -> 0 | L18: =L55 -> 0 | M18: =M55 -> 0
A19: Reserves to be backed by cash/investments | C19: =C70 -> 47734421 | D19: =D70 -> 0 | I19: =IF(D19=0,(K19-C19)-SUM(E19:H19),(K19-D19)-SUM(E19:H19)) -> 3843791 | J19: 3843791 | K19: =K70 -> 51578212 | L19: =L70 -> 49882471 | M19: =M70 -> 51129532
A20: Total Application of cash and investments: | C20: =SUM(C13:C19) -> 69021457 | D20: 0 | E20: 0 | F20: 0 | G20: 0 | H20: 0 | I20: 27140207 | J20: 27140207 | K20: 96161664 | L20: 68779853 | M20: 66323422
A21: Surplus(shortfall) | C21: =C10-C20 -> 141513875 | D21: 0 | E21: 0 | F21: 0 | G21: 0 | H21: 0 | I21: -86669848 | J21: -86669848 | K21: 54844027 | L21: 146491963 | M21: 155504024
A22: =head27a -> References
A23: 1. Must reconcile with the Adjustments Budget Cash Flow and Adjustements Budget Financial Position
A24: 2. Council approval for policy required - include sufficient working capital (e.g. allowing for a % of current debtors > 90 days as uncollectable)
A25: 3. Only complete if a previous adjusted budget has been approved in the same financial year. Reflect most recent adjusted budget.
A26: 4. Additional cash-backed accumulated funds/unspent funds (MFMA section 18(1)(b) and section 28(2)(e)) identified after the Original Budget approved and after annual financial statements audited (note: only where underspending could not reasonably have been foreseen)
A27: 5. Increases of funds approved under MFMA section 31
A28: 6. Adjustments approved in accordance with MFMA section 29
A29: 7. Adjustments to transfers from National or Provincial Government
A30: 8. Adjusts. = 'Other' Adjustments proposed to be approved; including revenue under-collection (MFMA section 28(2)(a)); additional revenue appropriation on existing programmes (section 28(2))(b); projected savings (section 28(2)(d)); error correction (section 28(2)(f))
A31: 9. G = B + C + D + E + F
A32: 10. Adjusted Budget H = (A or A1) + G
A37: =A16 -> Other working capital requirements
A38: Debtors | C38: =IF(ISERROR(ROUND(C43*C44,0)),0,(ROUND(C43*C44,0))) -> 15025744 | D38: =IF(ISERROR(ROUND(D43*D44,0)),0,(ROUND(D43*D44,0))) -> 0 | K38: =IF(ISERROR(ROUND(K43*K44,0)),0,(ROUND(K43*K44,0))) -> 2650710 | L38: =IF(ISERROR(ROUND(L43*L44,0)),0,(ROUND(L43*L44,0))) -> 18699233 | M38: =IF(ISERROR(ROUND(M43*M44,0)),0,(ROUND(M43*M44,0))) -> 21607182
A39: Creditors due | C39: ='SB2'!C147 -> 42369912 | D39: ='SB2'!D147 -> 0 | K39: ='SB2'!K147 -> 45684645 | L39: ='SB2'!L147 -> 44983566 | M39: ='SB2'!M147 -> 44543996
A40: Total | C40: =C38-C39 -> -27344168 | D40: =D38-D39 -> 0 | K40: =K38-K39 -> -43033935 | L40: =L38-L39 -> -26284333 | M40: =M38-M39 -> -22936814
A42: Debtors collection assumptions:
A43: Balance outstanding - debtors | C43: ='B6-FinPos'!C9+'B6-FinPos'!C10+'B6-FinPos'!C11+'B6-FinPos'!C24+'B6-FinPos'!C25 -> 86569344 | D43: ='B6-FinPos'!D9+'B6-FinPos'!D10+'B6-FinPos'!D11+'B6-FinPos'!D24+'B6-FinPos'!D25 -> 0 | K43: ='B6-FinPos'!K9+'B6-FinPos'!K10+'B6-FinPos'!K11+'B6-FinPos'!K24+'B6-FinPos'!K25 -> 15378686 | L43: ='B6-FinPos'!L9+'B6-FinPos'!L10+'B6-FinPos'!L11+'B6-FinPos'!L24+'B6-FinPos'!L25 -> 101047950 | M43: ='B6-FinPos'!M9+'B6-FinPos'!M10+'B6-FinPos'!M11+'B6-FinPos'!M24+'B6-FinPos'!M25 -> 117175333
A44: Estimate of debtors collection rate | C44: =IF(ISERROR('SB6'!G10),0,('SB6'!G10)) -> 0.1735688827 | D44: =IF(ISERROR('SB6'!H10),0,('SB6'!H10)) -> 0 | K44: =IF(ISERROR('SB6'!I10),0,('SB6'!I10)) -> 0.172362597 | L44: =IF(ISERROR('SB6'!J10),0,('SB6'!J10)) -> 0.185053065 | M44: =IF(ISERROR('SB6'!K10),0,('SB6'!K10)) -> 0.1844004283
A46: =A18 -> Long term investments committed
A47: (Insert description; eg sinking fund)
C55: =SUM(C47:C54) -> 0 | D55: =SUM(D47:D54) -> 0 | K55: =SUM(K47:K54) -> 0 | L55: =SUM(L47:L54) -> 0 | M55: =SUM(M47:M54) -> 0
A57: =A19 -> Reserves to be backed by cash/investments
A58: Housing Development Fund | C58: =+'SB2'!C183 -> 0 | D58: =+'SB2'!D183 -> 0 | K58: =+'SB2'!K183 -> 0 | L58: =+'SB2'!L183 -> 0 | M58: =+'SB2'!M183 -> 0
A59: Capital replacement | C59: ='SB2'!C184 -> -1500949 | D59: ='SB2'!D184 -> 0 | K59: ='SB2'!K184 -> -1500948 | L59: ='SB2'!L184 -> -1568491 | M59: ='SB2'!M184 -> -1607704
A60: Self-insurance | C60: ='SB2'!C185 -> 0 | D60: ='SB2'!D185 -> 0 | K60: ='SB2'!K185 -> 0 | L60: ='SB2'!L185 -> 0 | M60: ='SB2'!M185 -> 0
A61: Compensation for Occupational Injuries and Diseases
A62: Employee Benefit
A63: Non-current Provisions
A64: Valuation | C64: ='SB2'!C187 -> 49235370 | D64: ='SB2'!D187 -> 0 | K64: ='SB2'!K187 -> 53079160 | L64: ='SB2'!L187 -> 51450962 | M64: ='SB2'!M187 -> 52737236
A65: Investment in associate account
A66: Capitalisation
C67: ='SB2'!C186 -> 0 | D67: ='SB2'!D186 -> 0 | K67: ='SB2'!K186 -> 0 | L67: ='SB2'!L186 -> 0 | M67: ='SB2'!M186 -> 0
C69: ='SB2'!C186 -> 0 | D69: ='SB2'!D186 -> 0 | K69: ='SB2'!K186 -> 0 | L69: ='SB2'!L186 -> 0 | M69: ='SB2'!M186 -> 0
C70: =SUM(C58:C69) -> 47734421 | D70: =SUM(D58:D69) -> 0 | K70: =SUM(K58:K69) -> 51578212 | L70: 49882471 | M70: 51129532

Sheet B9-Asset
A1: =muni&" - "&_ADJ9&" - "&Date -> LIM353 Molemole - Table B9 Asset Management - 46115
A2: =desc -> Description | B2: =head27 -> Ref | C2: =Head2 -> Budget Year 2025/26 | L2: =Head10 -> Budget Year +1 2026/27 | M2: =Head11 -> Budget Year +2 2027/28
C3: =Head6 -> Original Budget | D3: =Head54 -> Prior Adjusted | E3: =Head51 -> Accum. Funds | F3: =Head52 -> Multi-year capital | G3: =Head53 -> Unfore. Unavoid. | H3: =Head55 -> Nat. or Prov. Govt | I3: =Head50 -> Other Adjusts. | J3: =Head56 -> Total Adjusts. | K3: =Head7 -> Adjusted Budget | L3: =Head7 -> Adjusted Budget | M3: =Head7 -> Adjusted Budget
D4: 7 | E4: 8 | F4: 9 | G4: 10 | H4: 11 | I4: 12 | J4: 13 | K4: 14
A5: R thousands | C5: A | D5: A1 | E5: B | F5: C | G5: D | H5: E | I5: F | J5: G | K5: H
A6: CAPITAL EXPENDITURE
A7: Total New Assets to be adjusted | B7: 1 | C7: =C17+C20+C21+C24+C27+C28+SUM(C31:C37)+C40 -> 63838000 | D7: =D17+D20+D21+D24+D27+D28+SUM(D31:D37)+D40 -> 0 | E7: 0 | F7: 0 | G7: 0 | H7: 0 | I7: -5621000 | J7: -5621000 | K7: 58217000 | L7: 58223600 | M7: 65142041
A8: Roads Infrastructure | C8: =SB18a!C9 -> 21803670 | D8: =SB18a!D9 -> 0 | E8: =SB18a!E9 -> 0 | F8: =SB18a!F9 -> 0 | G8: =SB18a!G9 -> 0 | H8: =SB18a!H9 -> 0 | I8: =SB18a!I9 -> 15737156 | J8: =SB18a!J9 -> 15737156 | K8: =SB18a!K9 -> 37540826 | L8: =SB18a!L9 -> 44116100 | M8: =SB18a!M9 -> 46049350
A9: Storm water Infrastructure | C9: =SB18a!C14 -> 0 | D9: =SB18a!D14 -> 0 | E9: =SB18a!E14 -> 0 | F9: =SB18a!F14 -> 0 | G9: =SB18a!G14 -> 0 | H9: =SB18a!H14 -> 0 | I9: =SB18a!I14 -> 0 | J9: =SB18a!J14 -> 0 | K9: =SB18a!K14 -> 0 | L9: =SB18a!L14 -> 0 | M9: =SB18a!M14 -> 0
A10: Electrical Infrastructure | C10: =SB18a!C18 -> 3600000 | D10: =SB18a!D18 -> 0 | E10: =SB18a!E18 -> 0 | F10: =SB18a!F18 -> 0 | G10: =SB18a!G18 -> 0 | H10: =SB18a!H18 -> 0 | I10: =SB18a!I18 -> -3600000 | J10: =SB18a!J18 -> -3600000 | K10: =SB18a!K18 -> 0 | L10: =SB18a!L18 -> 0 | M10: =SB18a!M18 -> 11851693
A11: Water Supply Infrastructure | C11: =SB18a!C28 -> 0 | D11: =SB18a!D28 -> 0 | E11: =SB18a!E28 -> 0 | F11: =SB18a!F28 -> 0 | G11: =SB18a!G28 -> 0 | H11: =SB18a!H28 -> 0 | I11: =SB18a!I28 -> 0 | J11: =SB18a!J28 -> 0 | K11: =SB18a!K28 -> 0 | L11: =SB18a!L28 -> 0 | M11: =SB18a!M28 -> 0
A12: Sanitation Infrastructure | C12: =SB18a!C39 -> 0 | D12: =SB18a!D39 -> 0 | E12: =SB18a!E39 -> 0 | F12: =SB18a!F39 -> 0 | G12: =SB18a!G39 -> 0 | H12: =SB18a!H39 -> 0 | I12: =SB18a!I39 -> 0 | J12: =SB18a!J39 -> 0 | K12: =SB18a!K39 -> 0 | L12: =SB18a!L39 -> 0 | M12: =SB18a!M39 -> 0
A13: Solid Waste Infrastructure | C13: =SB18a!C46 -> 19084330 | D13: =SB18a!D46 -> 0 | E13: =SB18a!E46 -> 0 | F13: =SB18a!F46 -> 0 | G13: =SB18a!G46 -> 0 | H13: =SB18a!H46 -> 0 | I13: =SB18a!I46 -> -15737156 | J13: =SB18a!J46 -> -15737156 | K13: =SB18a!K46 -> 3347174 | L13: =SB18a!L46 -> 0 | M13: =SB18a!M46 -> 0
A14: Rail Infrastructure | C14: =SB18a!C54 -> 0 | D14: =SB18a!D54 -> 0 | E14: =SB18a!E54 -> 0 | F14: =SB18a!F54 -> 0 | G14: =SB18a!G54 -> 0 | H14: =SB18a!H54 -> 0 | I14: =SB18a!I54 -> 0 | J14: =SB18a!J54 -> 0 | K14: =SB18a!K54 -> 0 | L14: =SB18a!L54 -> 0 | M14: =SB18a!M54 -> 0
A15: Coastal Infrastructure | C15: =SB18a!C64 -> 0 | D15: =SB18a!D64 -> 0 | E15: =SB18a!E64 -> 0 | F15: =SB18a!F64 -> 0 | G15: =SB18a!G64 -> 0 | H15: =SB18a!H64 -> 0 | I15: =SB18a!I64 -> 0 | J15: =SB18a!J64 -> 0 | K15: =SB18a!K64 -> 0 | L15: =SB18a!L64 -> 0 | M15: =SB18a!M64 -> 0
A16: Information and Communication Infrastructure | C16: =SB18a!C70 -> 0 | D16: =SB18a!D70 -> 0 | E16: =SB18a!E70 -> 0 | F16: =SB18a!F70 -> 0 | G16: =SB18a!G70 -> 0 | H16: =SB18a!H70 -> 0 | I16: =SB18a!I70 -> 0 | J16: =SB18a!J70 -> 0 | K16: =SB18a!K70 -> 0 | L16: =SB18a!L70 -> 0 | M16: =SB18a!M70 -> 0
A17: Infrastructure | C17: =SUM(C8:C16) -> 44488000 | D17: =SUM(D8:D16) -> 0 | E17: 0 | F17: 0 | G17: 0 | H17: 0 | I17: -3600000 | J17: -3600000 | K17: 40888000 | L17: 44116100 | M17: 57901043
A18: Community Facilities | C18: =SB18a!C77 -> 1500000 | D18: =SB18a!D77 -> 0 | E18: =SB18a!E77 -> 0 | F18: =SB18a!F77 -> 0 | G18: =SB18a!G77 -> 0 | H18: =SB18a!H77 -> 0 | I18: =SB18a!I77 -> -500000 | J18: =SB18a!J77 -> -500000 | K18: =SB18a!K77 -> 1000000 | L18: =SB18a!L77 -> 1045000 | M18: =SB18a!M77 -> 1071125
A19: Sport and Recreation Facilities | C19: =SB18a!C100 -> 11200000 | D19: =SB18a!D100 -> 0 | E19: =SB18a!E100 -> 0 | F19: =SB18a!F100 -> 0 | G19: =SB18a!G100 -> 0 | H19: =SB18a!H100 -> 0 | I19: =SB18a!I100 -> 0 | J19: =SB18a!J100 -> 0 | K19: =SB18a!K100 -> 11200000 | L19: =SB18a!L100 -> 11704000 | M19: =SB18a!M100 -> 4777410
A20: Community Assets | C20: =SUM(C18:C19) -> 12700000 | D20: =SUM(D18:D19) -> 0 | E20: 0 | F20: 0 | G20: 0 | H20: 0 | I20: -500000 | J20: -500000 | K20: 12200000 | L20: 12749000 | M20: 5848535
A21: Heritage Assets | C21: =SB18a!C105 -> 0 | D21: =SB18a!D105 -> 0 | E21: =SB18a!E105 -> 0 | F21: =SB18a!F105 -> 0 | G21: =SB18a!G105 -> 0 | H21: =SB18a!H105 -> 0 | I21: =SB18a!I105 -> 0 | J21: =SB18a!J105 -> 0 | K21: =SB18a!K105 -> 0 | L21: =SB18a!L105 -> 0 | M21: =SB18a!M105 -> 0
A22: Revenue Generating | C22: =SB18a!C113 -> 0 | D22: =SB18a!D113 -> 0 | E22: =SB18a!E113 -> 0 | F22: =SB18a!F113 -> 0 | G22: =SB18a!G113 -> 0 | H22: =SB18a!H113 -> 0 | I22: =SB18a!I113 -> 0 | J22: =SB18a!J113 -> 0 | K22: =SB18a!K113 -> 0 | L22: =SB18a!L113 -> 0 | M22: =SB18a!M113 -> 0
A23: Non-revenue Generating | C23: =SB18a!C116 -> 0 | D23: =SB18a!D116 -> 0 | E23: =SB18a!E116 -> 0 | F23: =SB18a!F116 -> 0 | G23: =SB18a!G116 -> 0 | H23: =SB18a!H116 -> 0 | I23: =SB18a!I116 -> 0 | J23: =SB18a!J116 -> 0 | K23: =SB18a!K116 -> 0 | L23: =SB18a!L116 -> 0 | M23: =SB18a!M116 -> 0
A24: Investment properties | C24: =SUM(C22:C23) -> 0 | D24: =SUM(D22:D23) -> 0 | E24: 0 | F24: 0 | G24: 0 | H24: 0 | I24: 0 | J24: 0 | K24: 0 | L24: 0 | M24: 0
A25: Operational Buildings | C25: =SB18a!C121 -> 1350000 | D25: =SB18a!D121 -> 0 | E25: =SB18a!E121 -> 0 | F25: =SB18a!F121 -> 0 | G25: =SB18a!G121 -> 0 | H25: =SB18a!H121 -> 0 | I25: =SB18a!I121 -> -1350000 | J25: =SB18a!J121 -> -1350000 | K25: =SB18a!K121 -> 0 | L25: =SB18a!L121 -> 313500 | M25: =SB18a!M121 -> 321338
A26: Housing | C26: =SB18a!C133 -> 0 | D26: =SB18a!D133 -> 0 | E26: =SB18a!E133 -> 0 | F26: =SB18a!F133 -> 0 | G26: =SB18a!G133 -> 0 | H26: =SB18a!H133 -> 0 | I26: =SB18a!I133 -> 0 | J26: =SB18a!J133 -> 0 | K26: =SB18a!K133 -> 0 | L26: =SB18a!L133 -> 0 | M26: =SB18a!M133 -> 0
A27: Other Assets | B27: 6 | C27: =SUM(C25:C26) -> 1350000 | D27: =SUM(D25:D26) -> 0 | E27: 0 | F27: 0 | G27: 0 | H27: 0 | I27: -1350000 | J27: -1350000 | K27: 0 | L27: 313500 | M27: 321338
A28: Biological or Cultivated Assets | C28: =SB18a!C138 -> 0 | D28: =SB18a!D138 -> 0 | E28: =SB18a!E138 -> 0 | F28: =SB18a!F138 -> 0 | G28: =SB18a!G138 -> 0 | H28: =SB18a!H138 -> 0 | I28: =SB18a!I138 -> 0 | J28: =SB18a!J138 -> 0 | K28: =SB18a!K138 -> 0 | L28: =SB18a!L138 -> 0 | M28: =SB18a!M138 -> 0
A29: Servitudes | C29: =SB18a!C142 -> 0 | D29: =SB18a!D142 -> 0 | E29: =SB18a!E142 -> 0 | F29: =SB18a!F142 -> 0 | G29: =SB18a!G142 -> 0 | H29: =SB18a!H142 -> 0 | I29: =SB18a!I142 -> 0 | J29: =SB18a!J142 -> 0 | K29: =SB18a!K142 -> 0 | L29: =SB18a!L142 -> 0 | M29: =SB18a!M142 -> 0
A30: Licences and Rights | C30: =SB18a!C143 -> 0 | D30: =SB18a!D143 -> 0 | E30: =SB18a!E143 -> 0 | F30: =SB18a!F143 -> 0 | G30: =SB18a!G143 -> 0 | H30: =SB18a!H143 -> 0 | I30: =SB18a!I143 -> 0 | J30: =SB18a!J143 -> 0 | K30: =SB18a!K143 -> 0 | L30: =SB18a!L143 -> 0 | M30: =SB18a!M143 -> 0
A31: Intangible Assets | C31: =SUM(C29:C30) -> 0 | D31: =SUM(D29:D30) -> 0 | E31: 0 | F31: 0 | G31: 0 | H31: 0 | I31: 0 | J31: 0 | K31: 0 | L31: 0 | M31: 0
A32: Computer Equipment | C32: =SB18a!C151 -> 600000 | D32: =SB18a!D151 -> 0 | E32: =SB18a!E151 -> 0 | F32: =SB18a!F151 -> 0 | G32: =SB18a!G151 -> 0 | H32: =SB18a!H151 -> 0 | I32: =SB18a!I151 -> -171000 | J32: =SB18a!J151 -> -171000 | K32: =SB18a!K151 -> 429000 | L32: =SB18a!L151 -> 627000 | M32: =SB18a!M151 -> 642675
A33: Furniture and Office Equipment | C33: =SB18a!C154 -> 250000 | D33: =SB18a!D154 -> 0 | E33: =SB18a!E154 -> 0 | F33: =SB18a!F154 -> 0 | G33: =SB18a!G154 -> 0 | H33: =SB18a!H154 -> 0 | I33: =SB18a!I154 -> 0 | J33: =SB18a!J154 -> 0 | K33: =SB18a!K154 -> 250000 | L33: =SB18a!L154 -> 0 | M33: =SB18a!M154 -> 0
A34: Machinery and Equipment | C34: =SB18a!C157 -> 1650000 | D34: =SB18a!D157 -> 0 | E34: =SB18a!E157 -> 0 | F34: =SB18a!F157 -> 0 | G34: =SB18a!G157 -> 0 | H34: =SB18a!H157 -> 0 | I34: =SB18a!I157 -> 0 | J34: =SB18a!J157 -> 0 | K34: =SB18a!K157 -> 1650000 | L34: =SB18a!L157 -> 418000 | M34: =SB18a!M157 -> 428450
A35: Transport Assets | C35: =SB18a!C160 -> 2800000 | D35: =SB18a!D160 -> 0 | E35: =SB18a!E160 -> 0 | F35: =SB18a!F160 -> 0 | G35: =SB18a!G160 -> 0 | H35: =SB18a!H160 -> 0 | I35: =SB18a!I160 -> 0 | J35: =SB18a!J160 -> 0 | K35: =SB18a!K160 -> 2800000 | L35: =SB18a!L160 -> 0 | M35: =SB18a!M160 -> 0
A36: Land | C36: =SB18a!C163 -> 0 | D36: =SB18a!D163 -> 0 | E36: =SB18a!E163 -> 0 | F36: =SB18a!F163 -> 0 | G36: =SB18a!G163 -> 0 | H36: =SB18a!H163 -> 0 | I36: =SB18a!I163 -> 0 | J36: =SB18a!J163 -> 0 | K36: =SB18a!K163 -> 0 | L36: =SB18a!L163 -> 0 | M36: =SB18a!M163 -> 0
A37: Zoo's, Marine and Non-biological Animals | C37: =SB18a!C166 -> 0 | D37: =SB18a!D166 -> 0 | E37: =SB18a!E166 -> 0 | F37: =SB18a!F166 -> 0 | G37: =SB18a!G166 -> 0 | H37: =SB18a!H166 -> 0 | I37: =SB18a!I166 -> 0 | J37: =SB18a!J166 -> 0 | K37: =SB18a!K166 -> 0 | L37: =SB18a!L166 -> 0 | M37: =SB18a!M166 -> 0
A38: Mature | C38: =+SB18a!C170 -> 0 | D38: =+SB18a!D170 -> 0 | E38: =+SB18a!E170 -> 0 | F38: =+SB18a!F170 -> 0 | G38: =+SB18a!G170 -> 0 | H38: =+SB18a!H170 -> 0 | I38: =+SB18a!I170 -> 0 | J38: =+SB18a!J170 -> 0 | K38: =+SB18a!K170 -> 0 | L38: =+SB18a!L170 -> 0 | M38: =+SB18a!M170 -> 0
A39: Immature | C39: =+SB18a!C173 -> 0 | D39: =+SB18a!D173 -> 0 | E39: =+SB18a!E173 -> 0 | F39: =+SB18a!F173 -> 0 | G39: =+SB18a!G173 -> 0 | H39: =+SB18a!H173 -> 0 | I39: =+SB18a!I173 -> 0 | J39: =+SB18a!J173 -> 0 | K39: =+SB18a!K173 -> 0 | L39: =+SB18a!L173 -> 0 | M39: =+SB18a!M173 -> 0
A40: Living Resources | C40: =+C38+C39 -> 0 | D40: =+D38+D39 -> 0 | E40: 0 | F40: 0 | G40: 0 | H40: 0 | I40: 0 | J40: 0 | K40: 0 | L40: 0 | M40: 0
A42: Total Renewal of Existing Assets to be adjusted | B42: 2 | C42: =C52+C55+C56+C59+C62+C63+SUM(C66:C72)+C75 -> 0 | D42: =D52+D55+D56+D59+D62+D63+SUM(D66:D72)+D75 -> 0 | E42: 0 | F42: 0 | G42: 0 | H42: 0 | I42: 0 | J42: 0 | K42: 0 | L42: 0 | M42: 0
A43: Roads Infrastructure | C43: =SB18b!C9 -> 0 | D43: =SB18b!D9 -> 0 | E43: =SB18b!E9 -> 0 | F43: =SB18b!F9 -> 0 | G43: =SB18b!G9 -> 0 | H43: =SB18b!H9 -> 0 | I43: =SB18b!I9 -> 0 | J43: =SB18b!J9 -> 0 | K43: =SB18b!K9 -> 0 | L43: =SB18b!L9 -> 0 | M43: =SB18b!M9 -> 0
A44: Storm water Infrastructure | C44: =SB18b!C14 -> 0 | D44: =SB18b!D14 -> 0 | E44: =SB18b!E14 -> 0 | F44: =SB18b!F14 -> 0 | G44: =SB18b!G14 -> 0 | H44: =SB18b!H14 -> 0 | I44: =SB18b!I14 -> 0 | J44: =SB18b!J14 -> 0 | K44: =SB18b!K14 -> 0 | L44: =SB18b!L14 -> 0 | M44: =SB18b!M14 -> 0
A45: Electrical Infrastructure | C45: =SB18b!C18 -> 0 | D45: =SB18b!D18 -> 0 | E45: =SB18b!E18 -> 0 | F45: =SB18b!F18 -> 0 | G45: =SB18b!G18 -> 0 | H45: =SB18b!H18 -> 0 | I45: =SB18b!I18 -> 0 | J45: =SB18b!J18 -> 0 | K45: =SB18b!K18 -> 0 | L45: =SB18b!L18 -> 0 | M45: =SB18b!M18 -> 0
A46: Water Supply Infrastructure | C46: =SB18b!C28 -> 0 | D46: =SB18b!D28 -> 0 | E46: =SB18b!E28 -> 0 | F46: =SB18b!F28 -> 0 | G46: =SB18b!G28 -> 0 | H46: =SB18b!H28 -> 0 | I46: =SB18b!I28 -> 0 | J46: =SB18b!J28 -> 0 | K46: =SB18b!K28 -> 0 | L46: =SB18b!L28 -> 0 | M46: =SB18b!M28 -> 0
A47: Sanitation Infrastructure | C47: =SB18b!C39 -> 0 | D47: =SB18b!D39 -> 0 | E47: =SB18b!E39 -> 0 | F47: =SB18b!F39 -> 0 | G47: =SB18b!G39 -> 0 | H47: =SB18b!H39 -> 0 | I47: =SB18b!I39 -> 0 | J47: =SB18b!J39 -> 0 | K47: =SB18b!K39 -> 0 | L47: =SB18b!L39 -> 0 | M47: =SB18b!M39 -> 0
A48: Solid Waste Infrastructure | C48: =SB18b!C46 -> 0 | D48: =SB18b!D46 -> 0 | E48: =SB18b!E46 -> 0 | F48: =SB18b!F46 -> 0 | G48: =SB18b!G46 -> 0 | H48: =SB18b!H46 -> 0 | I48: =SB18b!I46 -> 0 | J48: =SB18b!J46 -> 0 | K48: =SB18b!K46 -> 0 | L48: =SB18b!L46 -> 0 | M48: =SB18b!M46 -> 0
A49: Rail Infrastructure | C49: =SB18b!C54 -> 0 | D49: =SB18b!D54 -> 0 | E49: =SB18b!E54 -> 0 | F49: =SB18b!F54 -> 0 | G49: =SB18b!G54 -> 0 | H49: =SB18b!H54 -> 0 | I49: =SB18b!I54 -> 0 | J49: =SB18b!J54 -> 0 | K49: =SB18b!K54 -> 0 | L49: =SB18b!L54 -> 0 | M49: =SB18b!M54 -> 0
A50: Coastal Infrastructure | C50: =SB18b!C64 -> 0 | D50: =SB18b!D64 -> 0 | E50: =SB18b!E64 -> 0 | F50: =SB18b!F64 -> 0 | G50: =SB18b!G64 -> 0 | H50: =SB18b!H64 -> 0 | I50: =SB18b!I64 -> 0 | J50: =SB18b!J64 -> 0 | K50: =SB18b!K64 -> 0 | L50: =SB18b!L64 -> 0 | M50: =SB18b!M64 -> 0
A51: Information and Communication Infrastructure | C51: =SB18b!C70 -> 0 | D51: =SB18b!D70 -> 0 | E51: =SB18b!E70 -> 0 | F51: =SB18b!F70 -> 0 | G51: =SB18b!G70 -> 0 | H51: =SB18b!H70 -> 0 | I51: =SB18b!I70 -> 0 | J51: =SB18b!J70 -> 0 | K51: =SB18b!K70 -> 0 | L51: =SB18b!L70 -> 0 | M51: =SB18b!M70 -> 0
A52: Infrastructure | C52: =SUM(C43:C51) -> 0 | D52: =SUM(D43:D51) -> 0 | E52: 0 | F52: 0 | G52: 0 | H52: 0 | I52: 0 | J52: 0 | K52: 0 | L52: 0 | M52: 0
A53: Community Facilities | C53: =SB18b!C77 -> 0 | D53: =SB18b!D77 -> 0 | E53: =SB18b!E77 -> 0 | F53: =SB18b!F77 -> 0 | G53: =SB18b!G77 -> 0 | H53: =SB18b!H77 -> 0 | I53: =SB18b!I77 -> 0 | J53: =SB18b!J77 -> 0 | K53: =SB18b!K77 -> 0 | L53: =SB18b!L77 -> 0 | M53: =SB18b!M77 -> 0
A54: Sport and Recreation Facilities | C54: =SB18b!C100 -> 0 | D54: =SB18b!D100 -> 0 | E54: =SB18b!E100 -> 0 | F54: =SB18b!F100 -> 0 | G54: =SB18b!G100 -> 0 | H54: =SB18b!H100 -> 0 | I54: =SB18b!I100 -> 0 | J54: =SB18b!J100 -> 0 | K54: =SB18b!K100 -> 0 | L54: =SB18b!L100 -> 0 | M54: =SB18b!M100 -> 0
A55: Community Assets | C55: =SUM(C53:C54) -> 0 | D55: =SUM(D53:D54) -> 0 | E55: 0 | F55: 0 | G55: 0 | H55: 0 | I55: 0 | J55: 0 | K55: 0 | L55: 0 | M55: 0
A56: Heritage Assets | C56: =SB18b!C105 -> 0 | D56: =SB18b!D105 -> 0 | E56: =SB18b!E105 -> 0 | F56: =SB18b!F105 -> 0 | G56: =SB18b!G105 -> 0 | H56: =SB18b!H105 -> 0 | I56: =SB18b!I105 -> 0 | J56: =SB18b!J105 -> 0 | K56: =SB18b!K105 -> 0 | L56: =SB18b!L105 -> 0 | M56: =SB18b!M105 -> 0
A57: Revenue Generating | C57: =SB18b!C113 -> 0 | D57: =SB18b!D113 -> 0 | E57: =SB18b!E113 -> 0 | F57: =SB18b!F113 -> 0 | G57: =SB18b!G113 -> 0 | H57: =SB18b!H113 -> 0 | I57: =SB18b!I113 -> 0 | J57: =SB18b!J113 -> 0 | K57: =SB18b!K113 -> 0 | L57: =SB18b!L113 -> 0 | M57: =SB18b!M113 -> 0
A58: Non-revenue Generating | C58: =SB18b!C116 -> 0 | D58: =SB18b!D116 -> 0 | E58: =SB18b!E116 -> 0 | F58: =SB18b!F116 -> 0 | G58: =SB18b!G116 -> 0 | H58: =SB18b!H116 -> 0 | I58: =SB18b!I116 -> 0 | J58: =SB18b!J116 -> 0 | K58: =SB18b!K116 -> 0 | L58: =SB18b!L116 -> 0 | M58: =SB18b!M116 -> 0
A59: Investment properties | C59: =SUM(C57:C58) -> 0 | D59: =SUM(D57:D58) -> 0 | E59: 0 | F59: 0 | G59: 0 | H59: 0 | I59: 0 | J59: 0 | K59: 0 | L59: 0 | M59: 0
A60: Operational Buildings | C60: =SB18b!C121 -> 0 | D60: =SB18b!D121 -> 0 | E60: =SB18b!E121 -> 0 | F60: =SB18b!F121 -> 0 | G60: =SB18b!G121 -> 0 | H60: =SB18b!H121 -> 0 | I60: =SB18b!I121 -> 0 | J60: =SB18b!J121 -> 0 | K60: =SB18b!K121 -> 0 | L60: =SB18b!L121 -> 0 | M60: =SB18b!M121 -> 0
A61: Housing | C61: =SB18b!C133 -> 0 | D61: =SB18b!D133 -> 0 | E61: =SB18b!E133 -> 0 | F61: =SB18b!F133 -> 0 | G61: =SB18b!G133 -> 0 | H61: =SB18b!H133 -> 0 | I61: =SB18b!I133 -> 0 | J61: =SB18b!J133 -> 0 | K61: =SB18b!K133 -> 0 | L61: =SB18b!L133 -> 0 | M61: =SB18b!M133 -> 0
A62: Other Assets | B62: 6 | C62: =SUM(C60:C61) -> 0 | D62: =SUM(D60:D61) -> 0 | E62: 0 | F62: 0 | G62: 0 | H62: 0 | I62: 0 | J62: 0 | K62: 0 | L62: 0 | M62: 0
A63: Biological or Cultivated Assets | C63: =SB18b!C138 -> 0 | D63: =SB18b!D138 -> 0 | E63: =SB18b!E138 -> 0 | F63: =SB18b!F138 -> 0 | G63: =SB18b!G138 -> 0 | H63: =SB18b!H138 -> 0 | I63: =SB18b!I138 -> 0 | J63: =SB18b!J138 -> 0 | K63: =SB18b!K138 -> 0 | L63: =SB18b!L138 -> 0 | M63: =SB18b!M138 -> 0
A64: Servitudes | C64: =SB18b!C142 -> 0 | D64: =SB18b!D142 -> 0 | E64: =SB18b!E142 -> 0 | F64: =SB18b!F142 -> 0 | G64: =SB18b!G142 -> 0 | H64: =SB18b!H142 -> 0 | I64: =SB18b!I142 -> 0 | J64: =SB18b!J142 -> 0 | K64: =SB18b!K142 -> 0 | L64: =SB18b!L142 -> 0 | M64: =SB18b!M142 -> 0
A65: Licences and Rights | C65: =SB18b!C143 -> 0 | D65: =SB18b!D143 -> 0 | E65: =SB18b!E143 -> 0 | F65: =SB18b!F143 -> 0 | G65: =SB18b!G143 -> 0 | H65: =SB18b!H143 -> 0 | I65: =SB18b!I143 -> 0 | J65: =SB18b!J143 -> 0 | K65: =SB18b!K143 -> 0 | L65: =SB18b!L143 -> 0 | M65: =SB18b!M143 -> 0
A66: Intangible Assets | C66: =SUM(C64:C65) -> 0 | D66: =SUM(D64:D65) -> 0 | E66: 0 | F66: 0 | G66: 0 | H66: 0 | I66: 0 | J66: 0 | K66: 0 | L66: 0 | M66: 0
A67: Computer Equipment | C67: =SB18b!C151 -> 0 | D67: =SB18b!D151 -> 0 | E67: =SB18b!E151 -> 0 | F67: =SB18b!F151 -> 0 | G67: =SB18b!G151 -> 0 | H67: =SB18b!H151 -> 0 | I67: =SB18b!I151 -> 0 | J67: =SB18b!J151 -> 0 | K67: =SB18b!K151 -> 0 | L67: =SB18b!L151 -> 0 | M67: =SB18b!M151 -> 0
A68: Furniture and Office Equipment | C68: =SB18b!C154 -> 0 | D68: =SB18b!D154 -> 0 | E68: =SB18b!E154 -> 0 | F68: =SB18b!F154 -> 0 | G68: =SB18b!G154 -> 0 | H68: =SB18b!H154 -> 0 | I68: =SB18b!I154 -> 0 | J68: =SB18b!J154 -> 0 | K68: =SB18b!K154 -> 0 | L68: =SB18b!L154 -> 0 | M68: =SB18b!M154 -> 0
A69: Machinery and Equipment | C69: =SB18b!C157 -> 0 | D69: =SB18b!D157 -> 0 | E69: =SB18b!E157 -> 0 | F69: =SB18b!F157 -> 0 | G69: =SB18b!G157 -> 0 | H69: =SB18b!H157 -> 0 | I69: =SB18b!I157 -> 0 | J69: =SB18b!J157 -> 0 | K69: =SB18b!K157 -> 0 | L69: =SB18b!L157 -> 0 | M69: =SB18b!M157 -> 0
A70: Transport Assets | C70: =SB18b!C160 -> 0 | D70: =SB18b!D160 -> 0 | E70: =SB18b!E160 -> 0 | F70: =SB18b!F160 -> 0 | G70: =SB18b!G160 -> 0 | H70: =SB18b!H160 -> 0 | I70: =SB18b!I160 -> 0 | J70: =SB18b!J160 -> 0 | K70: =SB18b!K160 -> 0 | L70: =SB18b!L160 -> 0 | M70: =SB18b!M160 -> 0
A71: Land | C71: =SB18b!C163 -> 0 | D71: =SB18b!D163 -> 0 | E71: =SB18b!E163 -> 0 | F71: =SB18b!F163 -> 0 | G71: =SB18b!G163 -> 0 | H71: =SB18b!H163 -> 0 | I71: =SB18b!I163 -> 0 | J71: =SB18b!J163 -> 0 | K71: =SB18b!K163 -> 0 | L71: =SB18b!L163 -> 0 | M71: =SB18b!M163 -> 0
A72: Zoo's, Marine and Non-biological Animals | C72: =SB18b!C166 -> 0 | D72: =SB18b!D166 -> 0 | E72: =SB18b!E166 -> 0 | F72: =SB18b!F166 -> 0 | G72: =SB18b!G166 -> 0 | H72: =SB18b!H166 -> 0 | I72: =SB18b!I166 -> 0 | J72: =SB18b!J166 -> 0 | K72: =SB18b!K166 -> 0 | L72: =SB18b!L166 -> 0 | M72: =SB18b!M166 -> 0
A73: Mature | C73: =+SB18b!C170 -> 0 | D73: =+SB18b!D170 -> 0 | E73: =+SB18b!E170 -> 0 | F73: =+SB18b!F170 -> 0 | G73: =+SB18b!G170 -> 0 | H73: =+SB18b!H170 -> 0 | I73: =+SB18b!I170 -> 0 | J73: =+SB18b!J170 -> 0 | K73: =+SB18b!K170 -> 0 | L73: =+SB18b!L170 -> 0 | M73: =+SB18b!M170 -> 0
A74: Immature | C74: =+SB18b!C173 -> 0 | D74: =+SB18b!D173 -> 0 | E74: =+SB18b!E173 -> 0 | F74: =+SB18b!F173 -> 0 | G74: =+SB18b!G173 -> 0 | H74: =+SB18b!H173 -> 0 | I74: =+SB18b!I173 -> 0 | J74: =+SB18b!J173 -> 0 | K74: =+SB18b!K173 -> 0 | L74: =+SB18b!L173 -> 0 | M74: =+SB18b!M173 -> 0
A75: Living Resources | C75: =+C73+C74 -> 0 | D75: 0 | E75: 0 | F75: 0 | G75: 0 | H75: 0 | I75: 0 | J75: 0 | K75: 0 | L75: 0 | M75: 0
A77: Total Upgrading of Existing Assets to be adjusted | B77: 2a | C77: =C87+C90+C91+C94+C97+C98+SUM(C101:C107)+C110 -> 558800 | D77: =D87+D90+D91+D94+D97+D98+SUM(D101:D107)+D110 -> 0 | E77: 0 | F77: 0 | G77: 0 | H77: 0 | I77: -498800 | J77: -498800 | K77: 60000 | L77: 583946 | M77: 598545
A78: Roads Infrastructure | C78: =SB18e!C9 -> 0 | D78: =SB18e!D9 -> 0 | E78: =SB18e!E9 -> 0 | F78: =SB18e!F9 -> 0 | G78: =SB18e!G9 -> 0 | H78: =SB18e!H9 -> 0 | I78: =SB18e!I9 -> 0 | J78: =SB18e!J9 -> 0 | K78: =SB18e!K9 -> 0 | L78: =SB18e!L9 -> 0 | M78: =SB18e!M9 -> 0
A79: Storm water Infrastructure | C79: =SB18e!C14 -> 0 | D79: =SB18e!D14 -> 0 | E79: =SB18e!E14 -> 0 | F79: =SB18e!F14 -> 0 | G79: =SB18e!G14 -> 0 | H79: =SB18e!H14 -> 0 | I79: =SB18e!I14 -> 0 | J79: =SB18e!J14 -> 0 | K79: =SB18e!K14 -> 0 | L79: =SB18e!L14 -> 0 | M79: =SB18e!M14 -> 0
A80: Electrical Infrastructure | C80: =SB18e!C18 -> 0 | D80: =SB18e!D18 -> 0 | E80: =SB18e!E18 -> 0 | F80: =SB18e!F18 -> 0 | G80: =SB18e!G18 -> 0 | H80: =SB18e!H18 -> 0 | I80: =SB18e!I18 -> 0 | J80: =SB18e!J18 -> 0 | K80: =SB18e!K18 -> 0 | L80: =SB18e!L18 -> 0 | M80: =SB18e!M18 -> 0
A81: Water Supply Infrastructure | C81: =SB18e!C28 -> 0 | D81: =SB18e!D28 -> 0 | E81: =SB18e!E28 -> 0 | F81: =SB18e!F28 -> 0 | G81: =SB18e!G28 -> 0 | H81: =SB18e!H28 -> 0 | I81: =SB18e!I28 -> 0 | J81: =SB18e!J28 -> 0 | K81: =SB18e!K28 -> 0 | L81: =SB18e!L28 -> 0 | M81: =SB18e!M28 -> 0
A82: Sanitation Infrastructure | C82: =SB18e!C39 -> 0 | D82: =SB18e!D39 -> 0 | E82: =SB18e!E39 -> 0 | F82: =SB18e!F39 -> 0 | G82: =SB18e!G39 -> 0 | H82: =SB18e!H39 -> 0 | I82: =SB18e!I39 -> 0 | J82: =SB18e!J39 -> 0 | K82: =SB18e!K39 -> 0 | L82: =SB18e!L39 -> 0 | M82: =SB18e!M39 -> 0
A83: Solid Waste Infrastructure | C83: =SB18e!C46 -> 0 | D83: =SB18e!D46 -> 0 | E83: =SB18e!E46 -> 0 | F83: =SB18e!F46 -> 0 | G83: =SB18e!G46 -> 0 | H83: =SB18e!H46 -> 0 | I83: =SB18e!I46 -> 0 | J83: =SB18e!J46 -> 0 | K83: =SB18e!K46 -> 0 | L83: =SB18e!L46 -> 0 | M83: =SB18e!M46 -> 0
A84: Rail Infrastructure | C84: =SB18e!C54 -> 0 | D84: =SB18e!D54 -> 0 | E84: =SB18e!E54 -> 0 | F84: =SB18e!F54 -> 0 | G84: =SB18e!G54 -> 0 | H84: =SB18e!H54 -> 0 | I84: =SB18e!I54 -> 0 | J84: =SB18e!J54 -> 0 | K84: =SB18e!K54 -> 0 | L84: =SB18e!L54 -> 0 | M84: =SB18e!M54 -> 0
A85: Coastal Infrastructure | C85: =SB18e!C64 -> 0 | D85: =SB18e!D64 -> 0 | E85: =SB18e!E64 -> 0 | F85: =SB18e!F64 -> 0 | G85: =SB18e!G64 -> 0 | H85: =SB18e!H64 -> 0 | I85: =SB18e!I64 -> 0 | J85: =SB18e!J64 -> 0 | K85: =SB18e!K64 -> 0 | L85: =SB18e!L64 -> 0 | M85: =SB18e!M64 -> 0
A86: Information and Communication Infrastructure | C86: =SB18e!C70 -> 0 | D86: =SB18e!D70 -> 0 | E86: =SB18e!E70 -> 0 | F86: =SB18e!F70 -> 0 | G86: =SB18e!G70 -> 0 | H86: =SB18e!H70 -> 0 | I86: =SB18e!I70 -> 0 | J86: =SB18e!J70 -> 0 | K86: =SB18e!K70 -> 0 | L86: =SB18e!L70 -> 0 | M86: =SB18e!M70 -> 0
A87: Infrastructure | C87: =SUM(C78:C86) -> 0 | D87: =SUM(D78:D86) -> 0 | E87: 0 | F87: 0 | G87: 0 | H87: 0 | I87: 0 | J87: 0 | K87: 0 | L87: 0 | M87: 0
A88: Community Facilities | C88: =SB18e!C77 -> 0 | D88: =SB18e!D77 -> 0 | E88: =SB18e!E77 -> 0 | F88: =SB18e!F77 -> 0 | G88: =SB18e!G77 -> 0 | H88: =SB18e!H77 -> 0 | I88: =SB18e!I77 -> 0 | J88: =SB18e!J77 -> 0 | K88: =SB18e!K77 -> 0 | L88: =SB18e!L77 -> 0 | M88: =SB18e!M77 -> 0
A89: Sport and Recreation Facilities | C89: =SB18e!C100 -> 558800 | D89: =SB18e!D100 -> 0 | E89: =SB18e!E100 -> 0 | F89: =SB18e!F100 -> 0 | G89: =SB18e!G100 -> 0 | H89: =SB18e!H100 -> 0 | I89: =SB18e!I100 -> -558800 | J89: =SB18e!J100 -> -558800 | K89: =SB18e!K100 -> 0 | L89: =SB18e!L100 -> 583946 | M89: =SB18e!M100 -> 598545
A90: Community Assets | C90: =SUM(C88:C89) -> 558800 | D90: =SUM(D88:D89) -> 0 | E90: 0 | F90: 0 | G90: 0 | H90: 0 | I90: -558800 | J90: -558800 | K90: 0 | L90: 583946 | M90: 598545
A91: Heritage Assets | C91: =SB18e!C105 -> 0 | D91: =SB18e!D105 -> 0 | E91: =SB18e!E105 -> 0 | F91: =SB18e!F105 -> 0 | G91: =SB18e!G105 -> 0 | H91: =SB18e!H105 -> 0 | I91: =SB18e!I105 -> 0 | J91: =SB18e!J105 -> 0 | K91: =SB18e!K105 -> 0 | L91: =SB18e!L105 -> 0 | M91: =SB18e!M105 -> 0
A92: Revenue Generating | C92: =SB18e!C113 -> 0 | D92: =SB18e!D113 -> 0 | E92: =SB18e!E113 -> 0 | F92: =SB18e!F113 -> 0 | G92: =SB18e!G113 -> 0 | H92: =SB18e!H113 -> 0 | I92: =SB18e!I113 -> 0 | J92: =SB18e!J113 -> 0 | K92: =SB18e!K113 -> 0 | L92: =SB18e!L113 -> 0 | M92: =SB18e!M113 -> 0
A93: Non-revenue Generating | C93: =SB18e!C116 -> 0 | D93: =SB18e!D116 -> 0 | E93: =SB18e!E116 -> 0 | F93: =SB18e!F116 -> 0 | G93: =SB18e!G116 -> 0 | H93: =SB18e!H116 -> 0 | I93: =SB18e!I116 -> 0 | J93: =SB18e!J116 -> 0 | K93: =SB18e!K116 -> 0 | L93: =SB18e!L116 -> 0 | M93: =SB18e!M116 -> 0
A94: Investment properties | C94: =SUM(C92:C93) -> 0 | D94: =SUM(D92:D93) -> 0 | E94: 0 | F94: 0 | G94: 0 | H94: 0 | I94: 0 | J94: 0 | K94: 0 | L94: 0 | M94: 0
A95: Operational Buildings | C95: =SB18e!C121 -> 0 | D95: =SB18e!D121 -> 0 | E95: =SB18e!E121 -> 0 | F95: =SB18e!F121 -> 0 | G95: =SB18e!G121 -> 0 | H95: =SB18e!H121 -> 0 | I95: =SB18e!I121 -> 0 | J95: =SB18e!J121 -> 0 | K95: =SB18e!K121 -> 0 | L95: =SB18e!L121 -> 0 | M95: =SB18e!M121 -> 0
A96: Housing | C96: =SB18e!C133 -> 0 | D96: =SB18e!D133 -> 0 | E96: =SB18e!E133 -> 0 | F96: =SB18e!F133 -> 0 | G96: =SB18e!G133 -> 0 | H96: =SB18e!H133 -> 0 | I96: =SB18e!I133 -> 0 | J96: =SB18e!J133 -> 0 | K96: =SB18e!K133 -> 0 | L96: =SB18e!L133 -> 0 | M96: =SB18e!M133 -> 0
A97: Other Assets | B97: 6 | C97: =SUM(C95:C96) -> 0 | D97: =SUM(D95:D96) -> 0 | E97: 0 | F97: 0 | G97: 0 | H97: 0 | I97: 0 | J97: 0 | K97: 0 | L97: 0 | M97: 0
A98: Biological or Cultivated Assets | C98: =SB18e!C138 -> 0 | D98: =SB18e!D138 -> 0 | E98: =SB18e!E138 -> 0 | F98: =SB18e!F138 -> 0 | G98: =SB18e!G138 -> 0 | H98: =SB18e!H138 -> 0 | I98: =SB18e!I138 -> 0 | J98: =SB18e!J138 -> 0 | K98: =SB18e!K138 -> 0 | L98: =SB18e!L138 -> 0 | M98: =SB18e!M138 -> 0
A99: Servitudes | C99: =SB18e!C142 -> 0 | D99: =SB18e!D142 -> 0 | E99: =SB18e!E142 -> 0 | F99: =SB18e!F142 -> 0 | G99: =SB18e!G142 -> 0 | H99: =SB18e!H142 -> 0 | I99: =SB18e!I142 -> 0 | J99: =SB18e!J142 -> 0 | K99: =SB18e!K142 -> 0 | L99: =SB18e!L142 -> 0 | M99: =SB18e!M142 -> 0
A100: Licences and Rights | C100: =SB18e!C143 -> 0 | D100: =SB18e!D143 -> 0 | E100: =SB18e!E143 -> 0 | F100: =SB18e!F143 -> 0 | G100: =SB18e!G143 -> 0 | H100: =SB18e!H143 -> 0 | I100: =SB18e!I143 -> 0 | J100: =SB18e!J143 -> 0 | K100: =SB18e!K143 -> 0 | L100: =SB18e!L143 -> 0 | M100: =SB18e!M143 -> 0
A101: Intangible Assets | C101: =SUM(C99:C100) -> 0 | D101: =SUM(D99:D100) -> 0 | E101: 0 | F101: 0 | G101: 0 | H101: 0 | I101: 0 | J101: 0 | K101: 0 | L101: 0 | M101: 0
A102: Computer Equipment | C102: =SB18e!C151 -> 0 | D102: =SB18e!D151 -> 0 | E102: =SB18e!E151 -> 0 | F102: =SB18e!F151 -> 0 | G102: =SB18e!G151 -> 0 | H102: =SB18e!H151 -> 0 | I102: =SB18e!I151 -> 0 | J102: =SB18e!J151 -> 0 | K102: =SB18e!K151 -> 0 | L102: =SB18e!L151 -> 0 | M102: =SB18e!M151 -> 0
A103: Furniture and Office Equipment | C103: =SB18e!C154 -> 0 | D103: =SB18e!D154 -> 0 | E103: =SB18e!E154 -> 0 | F103: =SB18e!F154 -> 0 | G103: =SB18e!G154 -> 0 | H103: =SB18e!H154 -> 0 | I103: =SB18e!I154 -> 0 | J103: =SB18e!J154 -> 0 | K103: =SB18e!K154 -> 0 | L103: =SB18e!L154 -> 0 | M103: =SB18e!M154 -> 0
A104: Machinery and Equipment | C104: =SB18e!C157 -> 0 | D104: =SB18e!D157 -> 0 | E104: =SB18e!E157 -> 0 | F104: =SB18e!F157 -> 0 | G104: =SB18e!G157 -> 0 | H104: =SB18e!H157 -> 0 | I104: =SB18e!I157 -> 60000 | J104: =SB18e!J157 -> 60000 | K104: =SB18e!K157 -> 60000 | L104: =SB18e!L157 -> 0 | M104: =SB18e!M157 -> 0
A105: Transport Assets | C105: =SB18e!C160 -> 0 | D105: =SB18e!D160 -> 0 | E105: =SB18e!E160 -> 0 | F105: =SB18e!F160 -> 0 | G105: =SB18e!G160 -> 0 | H105: =SB18e!H160 -> 0 | I105: =SB18e!I160 -> 0 | J105: =SB18e!J160 -> 0 | K105: =SB18e!K160 -> 0 | L105: =SB18e!L160 -> 0 | M105: =SB18e!M160 -> 0
A106: Land | C106: =SB18e!C163 -> 0 | D106: =SB18e!D163 -> 0 | E106: =SB18e!E163 -> 0 | F106: =SB18e!F163 -> 0 | G106: =SB18e!G163 -> 0 | H106: =SB18e!H163 -> 0 | I106: =SB18e!I163 -> 0 | J106: =SB18e!J163 -> 0 | K106: =SB18e!K163 -> 0 | L106: =SB18e!L163 -> 0 | M106: =SB18e!M163 -> 0
A107: Zoo's, Marine and Non-biological Animals | C107: =SB18e!C166 -> 0 | D107: =SB18e!D166 -> 0 | E107: =SB18e!E166 -> 0 | F107: =SB18e!F166 -> 0 | G107: =SB18e!G166 -> 0 | H107: =SB18e!H166 -> 0 | I107: =SB18e!I166 -> 0 | J107: =SB18e!J166 -> 0 | K107: =SB18e!K166 -> 0 | L107: =SB18e!L166 -> 0 | M107: =SB18e!M166 -> 0
A108: Mature | C108: =SB18e!C170 -> 0 | D108: =SB18e!D170 -> 0 | E108: =SB18e!E170 -> 0 | F108: =SB18e!F170 -> 0 | G108: =SB18e!G170 -> 0 | H108: =SB18e!H170 -> 0 | I108: =SB18e!I170 -> 0 | J108: =SB18e!J170 -> 0 | K108: =SB18e!K170 -> 0 | L108: =SB18e!L170 -> 0 | M108: =SB18e!M170 -> 0
A109: Immature | C109: =SB18e!C173 -> 0 | D109: =SB18e!D173 -> 0 | E109: =SB18e!E173 -> 0 | F109: =SB18e!F173 -> 0 | G109: =SB18e!G173 -> 0 | H109: =SB18e!H173 -> 0 | I109: =SB18e!I173 -> 0 | J109: =SB18e!J173 -> 0 | K109: =SB18e!K173 -> 0 | L109: =SB18e!L173 -> 0 | M109: =SB18e!M173 -> 0
A110: Living Resources | C110: =+C108+C109 -> 0 | D110: 0 | E110: 0 | F110: 0 | G110: 0 | H110: 0 | I110: 0 | J110: 0 | K110: 0 | L110: 0 | M110: 0
A112: Total Capital Expenditure to be adjusted | B112: 4 | C112: =C7+C42+C77 -> 64396800 | D112: 0 | E112: 0 | F112: 0 | G112: 0 | H112: 0 | I112: -6119800 | J112: -6119800 | K112: 58277000 | L112: 58807546 | M112: 65740586
A113: Roads Infrastructure | C113: =C8+C43+C78 -> 21803670 | D113: 0 | E113: 0 | F113: 0 | G113: 0 | H113: 0 | I113: 15737156 | J113: 15737156 | K113: 37540826 | L113: 44116100 | M113: 46049350
A114: Storm water Infrastructure | C114: =C9+C44+C79 -> 0 | D114: 0 | E114: 0 | F114: 0 | G114: 0 | H114: 0 | I114: 0 | J114: 0 | K114: 0 | L114: 0 | M114: 0
A115: Electrical Infrastructure | C115: =C10+C45+C80 -> 3600000 | D115: 0 | E115: 0 | F115: 0 | G115: 0 | H115: 0 | I115: -3600000 | J115: -3600000 | K115: 0 | L115: 0 | M115: 11851693
A116: Water Supply Infrastructure | C116: =C11+C46+C81 -> 0 | D116: 0 | E116: 0 | F116: 0 | G116: 0 | H116: 0 | I116: 0 | J116: 0 | K116: 0 | L116: 0 | M116: 0
A117: Sanitation Infrastructure | C117: =C12+C47+C82 -> 0 | D117: 0 | E117: 0 | F117: 0 | G117: 0 | H117: 0 | I117: 0 | J117: 0 | K117: 0 | L117: 0 | M117: 0
A118: Solid Waste Infrastructure | C118: =C13+C48+C83 -> 19084330 | D118: 0 | E118: 0 | F118: 0 | G118: 0 | H118: 0 | I118: -15737156 | J118: -15737156 | K118: 3347174 | L118: 0 | M118: 0
A119: Rail Infrastructure | C119: =C14+C49+C84 -> 0 | D119: 0 | E119: 0 | F119: 0 | G119: 0 | H119: 0 | I119: 0 | J119: 0 | K119: 0 | L119: 0 | M119: 0
A120: Coastal Infrastructure | C120: =C15+C50+C85 -> 0 | D120: 0 | E120: 0 | F120: 0 | G120: 0 | H120: 0 | I120: 0 | J120: 0 | K120: 0 | L120: 0 | M120: 0
A121: Information and Communication Infrastructure | C121: =C16+C51+C86 -> 0 | D121: 0 | E121: 0 | F121: 0 | G121: 0 | H121: 0 | I121: 0 | J121: 0 | K121: 0 | L121: 0 | M121: 0
A122: Infrastructure | C122: =C17+C52+C87 -> 44488000 | D122: 0 | E122: 0 | F122: 0 | G122: 0 | H122: 0 | I122: -3600000 | J122: -3600000 | K122: 40888000 | L122: 44116100 | M122: 57901043
A123: Community Facilities | C123: =C18+C53+C88 -> 1500000 | D123: 0 | E123: 0 | F123: 0 | G123: 0 | H123: 0 | I123: -500000 | J123: -500000 | K123: 1000000 | L123: 1045000 | M123: 1071125
A124: Sport and Recreation Facilities | C124: =C19+C54+C89 -> 11758800 | D124: 0 | E124: 0 | F124: 0 | G124: 0 | H124: 0 | I124: -558800 | J124: -558800 | K124: 11200000 | L124: 12287946 | M124: 5375955
A125: Community Assets | C125: =C20+C55+C90 -> 13258800 | D125: 0 | E125: 0 | F125: 0 | G125: 0 | H125: 0 | I125: -1058800 | J125: -1058800 | K125: 12200000 | L125: 13332946 | M125: 6447080
A126: Heritage Assets | C126: =C21+C56+C91 -> 0 | D126: 0 | E126: 0 | F126: 0 | G126: 0 | H126: 0 | I126: 0 | J126: 0 | K126: 0 | L126: 0 | M126: 0
A127: Revenue Generating | C127: =C22+C57+C92 -> 0 | D127: 0 | E127: 0 | F127: 0 | G127: 0 | H127: 0 | I127: 0 | J127: 0 | K127: 0 | L127: 0 | M127: 0
A128: Non-revenue Generating | C128: =C23+C58+C93 -> 0 | D128: =D23+D58+D93 -> 0 | E128: 0 | F128: 0 | G128: 0 | H128: 0 | I128: 0 | J128: 0 | K128: 0 | L128: 0 | M128: 0
A129: Investment properties | C129: 0 | D129: =D24+D59+D94 -> 0 | E129: 0 | F129: 0 | G129: 0 | H129: 0 | I129: 0 | J129: 0 | K129: 0 | L129: 0 | M129: 0
A130: Operational Buildings | C130: 1350000 | D130: =D25+D60+D95 -> 0 | E130: 0 | F130: 0 | G130: 0 | H130: 0 | I130: -1350000 | J130: -1350000 | K130: 0 | L130: 313500 | M130: 321338
A131: Housing | C131: 0 | D131: =D26+D61+D96 -> 0 | E131: 0 | F131: 0 | G131: 0 | H131: 0 | I131: 0 | J131: 0 | K131: 0 | L131: 0 | M131: 0
A132: Other Assets | C132: 1350000 | D132: =D27+D62+D97 -> 0 | E132: 0 | F132: 0 | G132: 0 | H132: 0 | I132: -1350000 | J132: -1350000 | K132: 0 | L132: 313500 | M132: 321338
A133: Biological or Cultivated Assets | C133: 0 | D133: =D28+D63+D98 -> 0 | E133: 0 | F133: 0 | G133: 0 | H133: 0 | I133: 0 | J133: 0 | K133: 0 | L133: 0 | M133: 0
A134: Servitudes | C134: 0 | D134: =D29+D64+D99 -> 0 | E134: 0 | F134: 0 | G134: 0 | H134: 0 | I134: 0 | J134: 0 | K134: 0 | L134: 0 | M134: 0
A135: Licences and Rights | C135: 0 | D135: =D30+D65+D100 -> 0 | E135: 0 | F135: 0 | G135: 0 | H135: 0 | I135: 0 | J135: 0 | K135: 0 | L135: 0 | M135: 0
A136: Intangible Assets | C136: 0 | D136: =D31+D66+D101 -> 0 | E136: 0 | F136: 0 | G136: 0 | H136: 0 | I136: 0 | J136: 0 | K136: 0 | L136: 0 | M136: 0
A137: Computer Equipment | C137: 600000 | D137: =D32+D67+D102 -> 0 | E137: 0 | F137: 0 | G137: 0 | H137: 0 | I137: -171000 | J137: -171000 | K137: 429000 | L137: 627000 | M137: 642675
A138: Furniture and Office Equipment | C138: 250000 | D138: =D33+D68+D103 -> 0 | E138: 0 | F138: 0 | G138: 0 | H138: 0 | I138: 0 | J138: 0 | K138: 250000 | L138: 0 | M138: 0
A139: Machinery and Equipment | C139: 1650000 | D139: =D34+D69+D104 -> 0 | E139: 0 | F139: 0 | G139: 0 | H139: 0 | I139: 60000 | J139: 60000 | K139: 1710000 | L139: 418000 | M139: 428450
A140: Transport Assets | C140: 2800000 | D140: =D35+D70+D105 -> 0 | E140: 0 | F140: 0 | G140: 0 | H140: 0 | I140: 0 | J140: 0 | K140: 2800000 | L140: 0 | M140: 0
A141: Land | C141: 0 | D141: =D36+D71+D106 -> 0 | E141: 0 | F141: 0 | G141: 0 | H141: 0 | I141: 0 | J141: 0 | K141: 0 | L141: 0 | M141: 0
A142: Zoo's, Marine and Non-biological Animals | C142: 0 | D142: =D37+D72+D107 -> 0 | E142: 0 | F142: 0 | G142: 0 | H142: 0 | I142: 0 | J142: 0 | K142: 0 | L142: 0 | M142: 0
A143: Mature | C143: 0 | D143: 0 | E143: 0 | F143: 0 | G143: 0 | H143: 0 | I143: 0 | J143: 0 | K143: 0 | L143: 0 | M143: 0
A144: Immature | C144: 0 | D144: 0 | E144: 0 | F144: 0 | G144: 0 | H144: 0 | I144: 0 | J144: 0 | K144: 0 | L144: 0 | M144: 0
A145: Living Resources | C145: =+C40+C75+C110 -> 0 | D145: =+D40+D75+D110 -> 0 | E145: 0 | F145: 0 | G145: 0 | H145: 0 | I145: 0 | J145: 0 | K145: 0 | L145: 0 | M145: 0
A146: TOTAL CAPITAL EXPENDITURE to be adjusted | B146: 4 | C146: =C7+C42+C77 -> 64396800 | D146: =D7+D42+D77 -> 0 | E146: 0 | F146: 0 | G146: 0 | H146: 0 | I146: -6119800 | J146: -6119800 | K146: 58277000 | L146: 58807546 | M146: 65740586
A148: ASSET REGISTER SUMMARY - PPE (WDV) | B148: 5 | C148: =C158+C161+C162+C165+C168+C169+SUM(C172:C179) -> 478964702 | D148: =D158+D161+D162+D165+D168+D169+SUM(D172:D179) -> 0 | E148: 0 | F148: 0 | G148: 0 | H148: 0 | I148: 31641528 | J148: 31641528 | K148: 510606230 | L148: 517884030 | M148: 560951779
A149: =+A8 -> Roads Infrastructure | C149: 264733186 | D149: 0 | E149: 0 | F149: 0 | G149: 0 | H149: 0 | I149: 8266949 | J149: =SUM(E149:I149) -> 8266949 | K149: =IF(D149=0,C149+J149,D149+J149) -> 273000135 | L149: 331521956 | M149: 369570567
A150: Storm water Infrastructure | C150: 869565 | D150: 0 | E150: 0 | F150: 0 | G150: 0 | H150: 0 | I150: 1 | J150: 1 | K150: =IF(D150=0,C150+J150,D150+J150) -> 869566 | L150: 869565 | M150: 869565
A151: Electrical Infrastructure | C151: 30134404 | D151: 0 | E151: 0 | F151: 0 | G151: 0 | H151: 0 | I151: -2422022 | J151: -2422022 | K151: =IF(D151=0,C151+J151,D151+J151) -> 27712382 | L151: 26534404 | M151: 38386097
A152: Water Supply Infrastructure | J152: 0 | K152: =IF(D152=0,C152+J152,D152+J152) -> 0
A153: Sanitation Infrastructure | J153: 0 | K153: =IF(D153=0,C153+J153,D153+J153) -> 0
A154: Solid Waste Infrastructure | C154: 19084330 | D154: 0 | E154: 0 | F154: 0 | G154: 0 | H154: 0 | I154: 8858091 | J154: 8858091 | K154: 27942421 | L154: 0 | M154: 0
A155: Rail Infrastructure | J155: 0 | K155: 0
A156: Coastal Infrastructure | J156: 0 | K156: 0
A157: Information and Communication Infrastructure | J157: 0 | K157: 0
A158: Infrastructure | C158: =SUM(C149:C157) -> 314821485 | D158: 0 | E158: 0 | F158: 0 | G158: 0 | H158: 0 | I158: 14703019 | J158: 14703019 | K158: 329524504 | L158: =SUM(L149:L157) -> 358925925 | M158: =SUM(M149:M157) -> 408826229
A161: =+A20 -> Community Assets | C161: 64366312 | D161: 0 | E161: 0 | F161: 0 | G161: 0 | H161: 0 | I161: -6798601 | J161: =SUM(E161:I161) -> -6798601 | K161: =IF(D161=0,C161+J161,D161+J161) -> 57567711 | L161: 64895458 | M161: 57983467
A162: =+A21 -> Heritage Assets | C162: 723544 | D162: 0 | E162: 0 | F162: 0 | G162: 0 | H162: 0 | I162: 2968228 | J162: =SUM(E162:I162) -> 2968228 | K162: 3691772 | L162: 743861 | M162: 756286
A165: =+A24 -> Investment properties | C165: 1459246 | D165: 0 | E165: 0 | F165: 0 | G165: 0 | H165: 0 | I165: 75294 | J165: =SUM(E165:I165) -> 75294 | K165: =IF(D165=0,C165+J165,D165+J165) -> 1534540 | L165: 1471171 | M165: 1478094
A168: =+A27 -> Other Assets | C168: 2850000 | D168: 0 | E168: 0 | F168: 0 | G168: 0 | H168: 0 | I168: 31513087 | J168: =SUM(E168:I168) -> 31513087 | K168: =IF(D168=0,C168+J168,D168+J168) -> 34363087 | L168: 1358500 | M168: 1392463
A169: =+A28 -> Biological or Cultivated Assets | J169: =SUM(E169:I169) -> 0 | K169: =IF(D169=0,C169+J169,D169+J169) -> 0
A172: =+A31 -> Intangible Assets | J172: =SUM(E172:I172) -> 0 | K172: =IF(D172=0,C172+J172,D172+J172) -> 0
A173: Computer Equipment | C173: 6953220 | D173: 0 | E173: 0 | F173: 0 | G173: 0 | H173: 0 | I173: 229315 | J173: =SUM(E173:I173) -> 229315 | K173: =IF(D173=0,C173+J173,D173+J173) -> 7182535 | L173: 6980220 | M173: 6995895
A174: Furniture and Office Equipment | C174: 1952922 | D174: 0 | E174: 0 | F174: 0 | G174: 0 | H174: 0 | I174: 532363 | J174: 532363 | K174: 2485285 | L174: 1702922 | M174: 1702922
A175: Machinery and Equipment | C175: 7808089 | D175: 0 | E175: 0 | F175: 0 | G175: 0 | H175: 0 | I175: 9685174 | J175: 9685174 | K175: 17493263 | L175: 6576089 | M175: 6586539
A176: Transport Assets | C176: 15715436 | D176: 0 | E176: 0 | F176: 0 | G176: 0 | H176: 0 | I176: -1847794 | J176: -1847794 | K176: 13867642 | L176: 12915436 | M176: 12915436
A177: Land | C177: 62314448 | D177: 0 | E177: 0 | F177: 0 | G177: 0 | H177: 0 | I177: -19418557 | J177: -19418557 | K177: 42895891 | L177: 62314448 | M177: 62314448
A178: Zoo's, Marine and Non-biological Animals | J178: 0 | K178: 0
A179: Living Resources
A180: TOTAL ASSET REGISTER SUMMARY - PPE (WDV) | B180: 5 | C180: =C158+C161+C162+C165+C168+C169+SUM(C172:C179) -> 478964702 | D180: =D158+D161+D162+D165+D168+D169+SUM(D172:D179) -> 0 | E180: 0 | F180: 0 | G180: 0 | H180: 0 | I180: 31641528 | J180: 31641528 | K180: 510606230 | L180: 517884030 | M180: 560951779
A182: EXPENDITURE OTHER ITEMS
A183: Depreciation & asset impairment | C183: =SB18d!C177 -> 21656256 | D183: =SB18d!D177 -> 0 | E183: =SB18d!E177 -> 0 | F183: =SB18d!F177 -> 0 | G183: =SB18d!G177 -> 0 | H183: =SB18d!H177 -> 0 | I183: =SB18d!I177 -> 2476939 | J183: =SB18d!J177 -> 2476939 | K183: =SB18d!K177 -> 24133195 | L183: =SB18d!L177 -> 22630782 | M183: =SB18d!M177 -> 23196556
A184: Repairs and Maintenance by asset class | B184: 3 | C184: =C194+C197+C198+C201+C204+C205+SUM(C208:C214)+C217 -> 13210000 | D184: =D194+D197+D198+D201+D204+D205+SUM(D208:D214)+D217 -> 0 | E184: 0 | F184: 0 | G184: 0 | H184: 0 | I184: 740000 | J184: 740000 | K184: 13950000 | L184: 14296193 | M184: 14631103
A185: =+A8 -> Roads Infrastructure | C185: =SB18c!C9 -> 4468400 | D185: =SB18c!D9 -> 0 | E185: =SB18c!E9 -> 0 | F185: =SB18c!F9 -> 0 | G185: =SB18c!G9 -> 0 | H185: =SB18c!H9 -> 0 | I185: =SB18c!I9 -> -100000 | J185: =SB18c!J9 -> -100000 | K185: =SB18c!K9 -> 4368400 | L185: =SB18c!L9 -> 4669478 | M185: =SB18c!M9 -> 4786216
A186: Storm water Infrastructure | C186: =SB18c!C14 -> 0 | D186: =SB18c!D14 -> 0 | E186: =SB18c!E14 -> 0 | F186: =SB18c!F14 -> 0 | G186: =SB18c!G14 -> 0 | H186: =SB18c!H14 -> 0 | I186: =SB18c!I14 -> 0 | J186: =SB18c!J14 -> 0 | K186: =SB18c!K14 -> 0 | L186: =SB18c!L14 -> 0 | M186: =SB18c!M14 -> 0
A187: Electrical Infrastructure | C187: =SB18c!C18 -> 0 | D187: =SB18c!D18 -> 0 | E187: =SB18c!E18 -> 0 | F187: =SB18c!F18 -> 0 | G187: =SB18c!G18 -> 0 | H187: =SB18c!H18 -> 0 | I187: =SB18c!I18 -> 0 | J187: =SB18c!J18 -> 0 | K187: =SB18c!K18 -> 0 | L187: =SB18c!L18 -> 0 | M187: =SB18c!M18 -> 0
A188: Water Supply Infrastructure | C188: =SB18c!C28 -> 0 | D188: =SB18c!D28 -> 0 | E188: =SB18c!E28 -> 0 | F188: =SB18c!F28 -> 0 | G188: =SB18c!G28 -> 0 | H188: =SB18c!H28 -> 0 | I188: =SB18c!I28 -> 0 | J188: =SB18c!J28 -> 0 | K188: =SB18c!K28 -> 0 | L188: =SB18c!L28 -> 0 | M188: =SB18c!M28 -> 0
A189: Sanitation Infrastructure | C189: =SB18c!C39 -> 0 | D189: =SB18c!D39 -> 0 | E189: =SB18c!E39 -> 0 | F189: =SB18c!F39 -> 0 | G189: =SB18c!G39 -> 0 | H189: =SB18c!H39 -> 0 | I189: =SB18c!I39 -> 0 | J189: =SB18c!J39 -> 0 | K189: =SB18c!K39 -> 0 | L189: =SB18c!L39 -> 0 | M189: =SB18c!M39 -> 0
A190: Solid Waste Infrastructure | C190: =SB18c!C46 -> 0 | D190: =SB18c!D46 -> 0 | E190: =SB18c!E46 -> 0 | F190: =SB18c!F46 -> 0 | G190: =SB18c!G46 -> 0 | H190: =SB18c!H46 -> 0 | I190: =SB18c!I46 -> 0 | J190: =SB18c!J46 -> 0 | K190: =SB18c!K46 -> 0 | L190: =SB18c!L46 -> 0 | M190: =SB18c!M46 -> 0
A191: Rail Infrastructure | C191: =SB18c!C54 -> 0 | D191: =SB18c!D54 -> 0 | E191: =SB18c!E54 -> 0 | F191: =SB18c!F54 -> 0 | G191: =SB18c!G54 -> 0 | H191: =SB18c!H54 -> 0 | I191: =SB18c!I54 -> 0 | J191: =SB18c!J54 -> 0 | K191: =SB18c!K54 -> 0 | L191: =SB18c!L54 -> 0 | M191: =SB18c!M54 -> 0
A192: Coastal Infrastructure | C192: =SB18c!C64 -> 0 | D192: =SB18c!D64 -> 0 | E192: =SB18c!E64 -> 0 | F192: =SB18c!F64 -> 0 | G192: =SB18c!G64 -> 0 | H192: =SB18c!H64 -> 0 | I192: =SB18c!I64 -> 0 | J192: =SB18c!J64 -> 0 | K192: =SB18c!K64 -> 0 | L192: =SB18c!L64 -> 0 | M192: =SB18c!M64 -> 0
A193: Information and Communication Infrastructure | C193: =SB18c!C70 -> 0 | D193: =SB18c!D70 -> 0 | E193: =SB18c!E70 -> 0 | F193: =SB18c!F70 -> 0 | G193: =SB18c!G70 -> 0 | H193: =SB18c!H70 -> 0 | I193: =SB18c!I70 -> 0 | J193: =SB18c!J70 -> 0 | K193: =SB18c!K70 -> 0 | L193: =SB18c!L70 -> 0 | M193: =SB18c!M70 -> 0
A194: Infrastructure | C194: =SUM(C185:C193) -> 4468400 | D194: =SUM(D185:D193) -> 0 | E194: 0 | F194: 0 | G194: 0 | H194: 0 | I194: -100000 | J194: -100000 | K194: 4368400 | L194: 4669478 | M194: 4786216
A195: Community Facilities | C195: =SB18c!C77 -> 208800 | D195: =SB18c!D77 -> 0 | E195: =SB18c!E77 -> 0 | F195: =SB18c!F77 -> 0 | G195: =SB18c!G77 -> 0 | H195: =SB18c!H77 -> 0 | I195: =SB18c!I77 -> 0 | J195: =SB18c!J77 -> 0 | K195: =SB18c!K77 -> 208800 | L195: =SB18c!L77 -> 218196 | M195: =SB18c!M77 -> 223651
A196: Sport and Recreation Facilities | C196: =SB18c!C100 -> 0 | D196: =SB18c!D100 -> 0 | E196: =SB18c!E100 -> 0 | F196: =SB18c!F100 -> 0 | G196: =SB18c!G100 -> 0 | H196: =SB18c!H100 -> 0 | I196: =SB18c!I100 -> 0 | J196: =SB18c!J100 -> 0 | K196: =SB18c!K100 -> 0 | L196: =SB18c!L100 -> 0 | M196: =SB18c!M100 -> 0
A197: Community Assets | C197: =SUM(C195:C196) -> 208800 | D197: =SUM(D195:D196) -> 0 | E197: 0 | F197: 0 | G197: 0 | H197: 0 | I197: 0 | J197: 0 | K197: 208800 | L197: 218196 | M197: 223651
A198: Heritage Assets | C198: =SB18c!C105 -> 0 | D198: =SB18c!D105 -> 0 | E198: =SB18c!E105 -> 0 | F198: =SB18c!F105 -> 0 | G198: =SB18c!G105 -> 0 | H198: =SB18c!H105 -> 0 | I198: =SB18c!I105 -> 0 | J198: =SB18c!J105 -> 0 | K198: =SB18c!K105 -> 0 | L198: =SB18c!L105 -> 0 | M198: =SB18c!M105 -> 0
A199: Revenue Generating | C199: =SB18c!C113 -> 0 | D199: =SB18c!D113 -> 0 | E199: =SB18c!E113 -> 0 | F199: =SB18c!F113 -> 0 | G199: =SB18c!G113 -> 0 | H199: =SB18c!H113 -> 0 | I199: =SB18c!I113 -> 0 | J199: =SB18c!J113 -> 0 | K199: =SB18c!K113 -> 0 | L199: =SB18c!L113 -> 0 | M199: =SB18c!M113 -> 0
A200: Non-revenue Generating | C200: =SB18c!C116 -> 0 | D200: =SB18c!D116 -> 0 | E200: =SB18c!E116 -> 0 | F200: =SB18c!F116 -> 0 | G200: =SB18c!G116 -> 0 | H200: =SB18c!H116 -> 0 | I200: =SB18c!I116 -> 0 | J200: =SB18c!J116 -> 0 | K200: =SB18c!K116 -> 0 | L200: =SB18c!L116 -> 0 | M200: =SB18c!M116 -> 0
A201: Investment properties | C201: =SUM(C199:C200) -> 0 | D201: =SUM(D199:D200) -> 0 | E201: 0 | F201: 0 | G201: 0 | H201: 0 | I201: 0 | J201: 0 | K201: 0 | L201: 0 | M201: 0
A202: Operational Buildings | C202: =SB18c!C121 -> 978600 | D202: =SB18c!D121 -> 0 | E202: =SB18c!E121 -> 0 | F202: =SB18c!F121 -> 0 | G202: =SB18c!G121 -> 0 | H202: =SB18c!H121 -> 0 | I202: =SB18c!I121 -> 0 | J202: =SB18c!J121 -> 0 | K202: =SB18c!K121 -> 978600 | L202: =SB18c!L121 -> 844610 | M202: =SB18c!M121 -> 865726
A203: Housing | C203: =SB18c!C133 -> 0 | D203: =SB18c!D133 -> 0 | E203: =SB18c!E133 -> 0 | F203: =SB18c!F133 -> 0 | G203: =SB18c!G133 -> 0 | H203: =SB18c!H133 -> 0 | I203: =SB18c!I133 -> 0 | J203: =SB18c!J133 -> 0 | K203: =SB18c!K133 -> 0 | L203: =SB18c!L133 -> 0 | M203: =SB18c!M133 -> 0
A204: Other Assets | C204: =SUM(C202:C203) -> 978600 | D204: =SUM(D202:D203) -> 0 | E204: 0 | F204: 0 | G204: 0 | H204: 0 | I204: 0 | J204: 0 | K204: 978600 | L204: 844610 | M204: 865726
A205: Biological or Cultivated Assets | C205: =SB18c!C138 -> 0 | D205: =SB18c!D138 -> 0 | E205: =SB18c!E138 -> 0 | F205: =SB18c!F138 -> 0 | G205: =SB18c!G138 -> 0 | H205: =SB18c!H138 -> 0 | I205: =SB18c!I138 -> 0 | J205: =SB18c!J138 -> 0 | K205: =SB18c!K138 -> 0 | L205: =SB18c!L138 -> 0 | M205: =SB18c!M138 -> 0
A206: Servitudes | C206: =SB18c!C142 -> 0 | D206: =SB18c!D142 -> 0 | E206: =SB18c!E142 -> 0 | F206: =SB18c!F142 -> 0 | G206: =SB18c!G142 -> 0 | H206: =SB18c!H142 -> 0 | I206: =SB18c!I142 -> 0 | J206: =SB18c!J142 -> 0 | K206: =SB18c!K142 -> 0 | L206: =SB18c!L142 -> 0 | M206: =SB18c!M142 -> 0
A207: Licences and Rights | C207: =SB18c!C143 -> 0 | D207: =SB18c!D143 -> 0 | E207: =SB18c!E143 -> 0 | F207: =SB18c!F143 -> 0 | G207: =SB18c!G143 -> 0 | H207: =SB18c!H143 -> 0 | I207: =SB18c!I143 -> 0 | J207: =SB18c!J143 -> 0 | K207: =SB18c!K143 -> 0 | L207: =SB18c!L143 -> 0 | M207: =SB18c!M143 -> 0
A208: Intangible Assets | C208: =SUM(C206:C207) -> 0 | D208: =SUM(D206:D207) -> 0 | E208: 0 | F208: 0 | G208: 0 | H208: 0 | I208: 0 | J208: 0 | K208: 0 | L208: 0 | M208: 0
A209: Computer Equipment | C209: =SB18c!C151 -> 3508400 | D209: =SB18c!D151 -> 0 | E209: =SB18c!E151 -> 0 | F209: =SB18c!F151 -> 0 | G209: =SB18c!G151 -> 0 | H209: =SB18c!H151 -> 0 | I209: =SB18c!I151 -> 100000 | J209: =SB18c!J151 -> 100000 | K209: =SB18c!K151 -> 3608400 | L209: =SB18c!L151 -> 3625778 | M209: =SB18c!M151 -> 3693924
A210: Furniture and Office Equipment | C210: =SB18c!C154 -> 208800 | D210: =SB18c!D154 -> 0 | E210: =SB18c!E154 -> 0 | F210: =SB18c!F154 -> 0 | G210: =SB18c!G154 -> 0 | H210: =SB18c!H154 -> 0 | I210: =SB18c!I154 -> 0 | J210: =SB18c!J154 -> 0 | K210: =SB18c!K154 -> 208800 | L210: =SB18c!L154 -> 218196 | M210: =SB18c!M154 -> 223651
A211: Machinery and Equipment | C211: =SB18c!C157 -> 3837000 | D211: =SB18c!D157 -> 0 | E211: =SB18c!E157 -> 0 | F211: =SB18c!F157 -> 0 | G211: =SB18c!G157 -> 0 | H211: =SB18c!H157 -> 0 | I211: =SB18c!I157 -> 740000 | J211: =SB18c!J157 -> 740000 | K211: =SB18c!K157 -> 4577000 | L211: =SB18c!L157 -> 4719935 | M211: =SB18c!M157 -> 4837935
A212: Transport Assets | C212: =SB18c!C160 -> 0 | D212: =SB18c!D160 -> 0 | E212: =SB18c!E160 -> 0 | F212: =SB18c!F160 -> 0 | G212: =SB18c!G160 -> 0 | H212: =SB18c!H160 -> 0 | I212: =SB18c!I160 -> 0 | J212: =SB18c!J160 -> 0 | K212: =SB18c!K160 -> 0 | L212: =SB18c!L160 -> 0 | M212: =SB18c!M160 -> 0
A213: Land | C213: =SB18c!C163 -> 0 | D213: =SB18c!D163 -> 0 | E213: =SB18c!E163 -> 0 | F213: =SB18c!F163 -> 0 | G213: =SB18c!G163 -> 0 | H213: =SB18c!H163 -> 0 | I213: =SB18c!I163 -> 0 | J213: =SB18c!J163 -> 0 | K213: =SB18c!K163 -> 0 | L213: =SB18c!L163 -> 0 | M213: =SB18c!M163 -> 0
... 26 more rows

Sheet B10-SerDel
A1: =muni&" - "&_ADJ10&" - "&Date -> LIM353 Molemole - Table B10 Basic service delivery measurement - 46115
A2: =desc -> Description | B2: =head27 -> Ref | C2: =Head2 -> Budget Year 2025/26 | L2: =Head10 -> Budget Year +1 2026/27 | M2: =Head11 -> Budget Year +2 2027/28
C3: =Head6 -> Original Budget | D3: =Head54 -> Prior Adjusted | E3: =Head51 -> Accum. Funds | F3: =Head52 -> Multi-year capital | G3: =Head53 -> Unfore. Unavoid. | H3: =Head55 -> Nat. or Prov. Govt | I3: =Head50 -> Other Adjusts. | J3: =Head56 -> Total Adjusts. | K3: =Head7 -> Adjusted Budget | L3: =Head7 -> Adjusted Budget | M3: =Head7 -> Adjusted Budget
D4: 7 | E4: 8 | F4: 9 | G4: 10 | H4: 11 | I4: 12 | J4: 13 | K4: 14
C5: A | D5: A1 | E5: B | F5: C | G5: D | H5: E | I5: F | J5: G | K5: H
A6: Household service targets | B6: 1
A7: Water:
A8: Piped water inside dwelling | C8: 0 | D8: 0 | E8: 0 | F8: 0 | G8: 0 | H8: 0 | I8: 0 | J8: =SUM(E8:I8) -> 0 | K8: =IF(D8=0,C8+J8,D8+J8) -> 0 | L8: 0 | M8: 0
A9: Piped water inside yard (but not in dwelling) | J9: 0 | K9: 0
A10: Using public tap (at least min.service level) | B10: 2 | J10: 0 | K10: 0
A11: Other water supply (at least min.service level) | J11: 0 | K11: 0
A12: Minimum Service Level and Above sub-total | C12: =SUM(C8:C11) -> 0 | D12: 0 | E12: 0 | F12: 0 | G12: 0 | H12: 0 | I12: 0 | J12: 0 | K12: 0 | L12: 0 | M12: 0
A13: Using public tap (< min.service level) | B13: 3 | J13: 0 | K13: 0
A14: Other water supply (< min.service level) | B14: 3,4 | J14: 0 | K14: 0
A15: No water supply | J15: 0 | K15: 0
A16: Below Minimum Servic Level sub-total | C16: =SUM(C13:C15) -> 0 | D16: 0 | E16: 0 | F16: 0 | G16: 0 | H16: 0 | I16: 0 | J16: 0 | K16: 0 | L16: 0 | M16: 0
A17: Total number of households | B17: 5 | C17: =C12+C16 -> 0 | D17: 0 | E17: 0 | F17: 0 | G17: 0 | H17: 0 | I17: 0 | J17: 0 | K17: 0 | L17: 0 | M17: 0
A18: Sanitation/sewerage:
A19: Flush toilet (connected to sewerage) | J19: =SUM(E19:I19) -> 0 | K19: =IF(D19=0,C19+J19,D19+J19) -> 0
A20: Flush toilet (with septic tank) | J20: 0 | K20: 0
A21: Chemical toilet | J21: 0 | K21: 0
A22: Pit toilet (ventilated) | J22: 0 | K22: 0
A23: Other toilet provisions (> min.service level) | J23: 0 | K23: 0
A24: =$A$12 -> Minimum Service Level and Above sub-total | C24: =SUM(C19:C23) -> 0 | D24: 0 | E24: 0 | F24: 0 | G24: 0 | H24: 0 | I24: 0 | J24: 0 | K24: 0 | L24: 0 | M24: 0
A25: Bucket toilet | J25: 0 | K25: 0
A26: Other toilet provisions (< min.service level) | J26: 0 | K26: 0
A27: No toilet provisions | J27: 0 | K27: 0
A28: =$A$16 -> Below Minimum Servic Level sub-total | C28: =SUM(C25:C27) -> 0 | D28: 0 | E28: 0 | F28: 0 | G28: 0 | H28: 0 | I28: 0 | J28: 0 | K28: 0 | L28: 0 | M28: 0
A29: =$A$17 -> Total number of households | B29: =$B$17 -> 5 | C29: =C24+C28 -> 0 | D29: 0 | E29: 0 | F29: 0 | G29: 0 | H29: 0 | I29: 0 | J29: 0 | K29: 0 | L29: 0 | M29: 0
A30: Energy:
A31: Electricity (at least min. service level) | J31: =SUM(E31:I31) -> 0 | K31: =IF(D31=0,C31+J31,D31+J31) -> 0
A32: Electricity - prepaid (> min.service level) | J32: 0 | K32: 0
A33: =$A$12 -> Minimum Service Level and Above sub-total | C33: =SUM(C31:C32) -> 0 | D33: 0 | E33: 0 | F33: 0 | G33: 0 | H33: 0 | I33: 0 | J33: 0 | K33: 0 | L33: 0 | M33: 0
A34: Electricity (< min.service level) | J34: 0 | K34: 0
A35: Electricity - prepaid (< min. service level) | J35: 0 | K35: 0
A36: Other energy sources | J36: 0 | K36: 0
A37: =$A$16 -> Below Minimum Servic Level sub-total | C37: =SUM(C34:C36) -> 0 | D37: 0 | E37: 0 | F37: 0 | G37: 0 | H37: 0 | I37: 0 | J37: 0 | K37: 0 | L37: 0 | M37: 0
A38: =$A$17 -> Total number of households | B38: =$B$17 -> 5 | C38: =C33+C37 -> 0 | D38: 0 | E38: 0 | F38: 0 | G38: 0 | H38: 0 | I38: 0 | J38: 0 | K38: 0 | L38: 0 | M38: 0
A39: Refuse:
A40: Removed at least once a week (min.service) | J40: =SUM(E40:I40) -> 0 | K40: =IF(D40=0,C40+J40,D40+J40) -> 0
A41: =$A$12 -> Minimum Service Level and Above sub-total | C41: =SUM(C40) -> 0 | D41: 0 | E41: 0 | F41: 0 | G41: 0 | H41: 0 | I41: 0 | J41: =SUM(E41:I41) -> 0 | K41: 0 | L41: =SUM(L40) -> 0 | M41: =SUM(M40) -> 0
A42: Removed less frequently than once a week | J42: 0 | K42: 0
A43: Using communal refuse dump | J43: 0 | K43: 0
A44: Using own refuse dump | J44: 0 | K44: 0
A45: Other rubbish disposal | J45: 0 | K45: 0
A46: No rubbish disposal | J46: 0 | K46: 0
A47: =$A$16 -> Below Minimum Servic Level sub-total | C47: =SUM(C42:C46) -> 0 | D47: 0 | E47: 0 | F47: 0 | G47: 0 | H47: 0 | I47: 0 | J47: 0 | K47: 0 | L47: 0 | M47: 0
A48: =$A$17 -> Total number of households | B48: =$B$17 -> 5 | C48: =C41+C47 -> 0 | D48: 0 | E48: 0 | F48: 0 | G48: 0 | H48: 0 | I48: 0 | J48: =J40+J47 -> 0 | K48: =K40+K47 -> 0 | L48: =L41+L47 -> 0 | M48: =M41+M47 -> 0
A50: Households receiving Free Basic Service | B50: 15
A51: Water (6 kilolitres per household per month) | C51: ='SB5'!E263 -> 0 | D51: ='SB5'!F263 -> 0 | E51: ='SB5'!G263 -> 0 | F51: ='SB5'!H263 -> 0 | G51: ='SB5'!I263 -> 0 | H51: ='SB5'!J263 -> 0 | I51: ='SB5'!K263 -> 0 | J51: =SUM(E51:I51) -> 0 | K51: =IF(D51=0,C51+J51,D51+J51) -> 0 | L51: ='SB5'!N263 -> 0 | M51: ='SB5'!O263 -> 0
A52: Sanitation (free minimum level service) | C52: ='SB5'!E275 -> 0 | D52: ='SB5'!F275 -> 0 | E52: ='SB5'!G275 -> 0 | F52: ='SB5'!H275 -> 0 | G52: ='SB5'!I275 -> 0 | H52: ='SB5'!J275 -> 0 | I52: ='SB5'!K275 -> 0 | J52: =SUM(E52:I52) -> 0 | K52: =IF(D52=0,C52+J52,D52+J52) -> 0 | L52: ='SB5'!N275 -> 0 | M52: ='SB5'!O275 -> 0
A53: Electricity/other energy (50kwh per household per month) | C53: ='SB5'!E251 -> 0 | D53: ='SB5'!F251 -> 0 | E53: ='SB5'!G251 -> 0 | F53: ='SB5'!H251 -> 0 | G53: ='SB5'!I251 -> 0 | H53: ='SB5'!J251 -> 0 | I53: ='SB5'!K251 -> 0 | J53: =SUM(E53:I53) -> 0 | K53: =IF(D53=0,C53+J53,D53+J53) -> 0 | L53: ='SB5'!N251 -> 0 | M53: ='SB5'!O251 -> 0
A54: Refuse (removed at least once a week) | C54: ='SB5'!E287 -> 0 | D54: ='SB5'!F287 -> 0 | E54: ='SB5'!G287 -> 0 | F54: ='SB5'!H287 -> 0 | G54: ='SB5'!I287 -> 0 | H54: ='SB5'!J287 -> 0 | I54: ='SB5'!K287 -> 0 | J54: ='SB5'!L287 -> 0 | K54: ='SB5'!M287 -> 0 | L54: ='SB5'!N287 -> 0 | M54: ='SB5'!O287 -> 0
A55: Informal Settlements | C55: ='SB5'!E253+'SB5'!E255+'SB5'!E257 +'SB5'!E259+'SB5'!E265+'SB5'!E267+'SB5'!E269+'SB5'!E271 + 'SB5'!E277+'SB5'!E279+'SB5'!E281 +'SB5'!E283+'SB5'!E289+'SB5'!E291+'SB5'!E293+'SB5'!E295 -> 0 | D55: ='SB5'!F253+'SB5'!F255+'SB5'!F257 +'SB5'!F259+'SB5'!F265+'SB5'!F267+'SB5'!F269+'SB5'!F271 + 'SB5'!F277+'SB5'!F279+'SB5'!F281 +'SB5'!F283+'SB5'!F289+'SB5'!F291+'SB5'!F293+'SB5'!F295 -> 0 | E55: ='SB5'!G253+'SB5'!G255+'SB5'!G257 +'SB5'!G259+'SB5'!G265+'SB5'!G267+'SB5'!G269+'SB5'!G271 + 'SB5'!G277+'SB5'!G279+'SB5'!G281 +'SB5'!G283+'SB5'!G289+'SB5'!G291+'SB5'!G293+'SB5'!G295 -> 0 | F55: ='SB5'!H253+'SB5'!H255+'SB5'!H257 +'SB5'!H259+'SB5'!H265+'SB5'!H267+'SB5'!H269+'SB5'!H271 + 'SB5'!H277+'SB5'!H279+'SB5'!H281 +'SB5'!H283+'SB5'!H289+'SB5'!H291+'SB5'!H293+'SB5'!H295 -> 0 | G55: ='SB5'!I253+'SB5'!I255+'SB5'!I257 +'SB5'!I259+'SB5'!I265+'SB5'!I267+'SB5'!I269+'SB5'!I271 + 'SB5'!I277+'SB5'!I279+'SB5'!I281 +'SB5'!I283+'SB5'!I289+'SB5'!I291+'SB5'!I293+'SB5'!I295 -> 0 | H55: ='SB5'!J253+'SB5'!J255+'SB5'!J257 +'SB5'!J259+'SB5'!J265+'SB5'!J267+'SB5'!J269+'SB5'!J271 + 'SB5'!J277+'SB5'!J279+'SB5'!J281 +'SB5'!J283+'SB5'!J289+'SB5'!J291+'SB5'!J293+'SB5'!J295 -> 0 | I55: ='SB5'!K253+'SB5'!K255+'SB5'!K257 +'SB5'!K259+'SB5'!K265+'SB5'!K267+'SB5'!K269+'SB5'!K271 + 'SB5'!K277+'SB5'!K279+'SB5'!K281 +'SB5'!K283+'SB5'!K289+'SB5'!K291+'SB5'!K293+'SB5'!K295 -> 0 | J55: =SUM(E55:I55) -> 0 | K55: =IF(D55=0,C55+J55,D55+J55) -> 0 | L55: ='SB5'!N253+'SB5'!N255+'SB5'!N257 +'SB5'!N259+'SB5'!N265+'SB5'!N267+'SB5'!N269+'SB5'!N271 + 'SB5'!N277+'SB5'!N279+'SB5'!N281 +'SB5'!N283+'SB5'!N289+'SB5'!N291+'SB5'!N293+'SB5'!N295 -> 0 | M55: ='SB5'!O253+'SB5'!O255+'SB5'!O257 +'SB5'!O259+'SB5'!O265+'SB5'!O267+'SB5'!O269+'SB5'!O271 + 'SB5'!O277+'SB5'!O279+'SB5'!O281 +'SB5'!O283+'SB5'!O289+'SB5'!O291+'SB5'!O293+'SB5'!O295 -> 0
A56: Cost of Free Basic Services provided (R'000) | B56: 16
A57: Water (6 kilolitres per indigent household per month) | C57: ='SB1'!C23 -> 0 | D57: ='SB1'!D23 -> 0 | E57: ='SB1'!E23 -> 0 | F57: ='SB1'!F23 -> 0 | G57: ='SB1'!G23 -> 0 | H57: ='SB1'!H23 -> 0 | I57: ='SB1'!I23 -> 0 | J57: =SUM(E57:I57) -> 0 | K57: =IF(D57=0,C57+J57,D57+J57) -> 0 | L57: ='SB1'!L23 -> 0 | M57: ='SB1'!M23 -> 0
A58: Sanitation (free sanitation service to indigent households) | C58: ='SB1'!C29 -> 0 | D58: ='SB1'!D29 -> 0 | E58: ='SB1'!E29 -> 0 | F58: ='SB1'!F29 -> 0 | G58: ='SB1'!G29 -> 0 | H58: ='SB1'!H29 -> 0 | I58: ='SB1'!I29 -> 0 | J58: =SUM(E58:I58) -> 0 | K58: =IF(D58=0,C58+J58,D58+J58) -> 0 | L58: ='SB1'!L29 -> 0 | M58: ='SB1'!M29 -> 0
A59: Electricity/other energy (50kwh per indigent household per month) | C59: ='SB1'!C17 -> 3900000 | D59: ='SB1'!D17 -> 0 | E59: ='SB1'!E17 -> 0 | F59: ='SB1'!F17 -> 0 | G59: ='SB1'!G17 -> 0 | H59: ='SB1'!H17 -> 0 | I59: ='SB1'!I17 -> 0 | J59: =SUM(E59:I59) -> 0 | K59: =IF(D59=0,C59+J59,D59+J59) -> 3900000 | L59: ='SB1'!L17 -> 4079400 | M59: ='SB1'!M17 -> 4258893
A60: Refuse (removed once a week for indigent households) | C60: ='SB1'!C36 -> 56720 | D60: ='SB1'!D36 -> 0 | E60: ='SB1'!E36 -> 0 | F60: ='SB1'!F36 -> 0 | G60: ='SB1'!G36 -> 0 | H60: ='SB1'!H36 -> 0 | I60: ='SB1'!I36 -> 0 | J60: =SUM(E60:I60) -> 0 | K60: =IF(D60=0,C60+J60,D60+J60) -> 56720 | L60: ='SB1'!L36 -> 59329 | M60: ='SB1'!M36 -> 61939
A61: Cost of Free Basic Services provided - Informal Formal Settlements (R'000) | C61: ='SB5'!E260+'SB5'!E272+'SB5'!E284+'SB5'!E296 -> 0 | D61: ='SB5'!F260+'SB5'!F272+'SB5'!F284+'SB5'!F296 -> 0 | E61: ='SB5'!G260+'SB5'!G272+'SB5'!G284+'SB5'!G296 -> 0 | F61: ='SB5'!H260+'SB5'!H272+'SB5'!H284+'SB5'!H296 -> 0 | G61: ='SB5'!I260+'SB5'!I272+'SB5'!I284+'SB5'!I296 -> 0 | H61: ='SB5'!J260+'SB5'!J272+'SB5'!J284+'SB5'!J296 -> 0 | I61: ='SB5'!K260+'SB5'!K272+'SB5'!K284+'SB5'!K296 -> 0 | J61: =SUM(E61:I61) -> 0 | K61: =IF(D61=0,C61+J61,D61+J61) -> 0 | L61: ='SB5'!N260+'SB5'!N272+'SB5'!N284+'SB5'!N296 -> 0 | M61: ='SB5'!O260+'SB5'!O272+'SB5'!O284+'SB5'!O296 -> 0
A62: Total cost of FBS provided | C62: =SUM(C57:C61) -> 3956720 | D62: =SUM(D57:D61) -> 0 | E62: 0 | F62: 0 | G62: 0 | H62: 0 | I62: 0 | J62: 0 | K62: 3956720 | L62: 4138729 | M62: 4320832
A64: Highest level of free service provided
A65: Property rates (R'000 value threshold) | J65: =SUM(E65:I65) -> 0 | K65: =IF(D65=0,C65+J65,D65+J65) -> 0
A66: Water (kilolitres per household per month) | J66: 0 | K66: 0
A67: Sanitation (kilolitres per household per month) | J67: 0 | K67: 0
A68: Sanitation (Rand per household per month) | J68: 0 | K68: 0
A69: Electricity (kw per household per month) | J69: 0 | K69: 0
A70: Refuse (average litres per week) | J70: 0 | K70: 0
A71: Revenue cost of free services provided (R'000) | B71: 17
A72: Property rates (tariff adjustment) ( impermissable values per section 17 of MPRA) | J72: =SUM(E72:I72) -> 0 | K72: =IF(D72=0,C72+J72,D72+J72) -> 0
A73: Property rates exemptions, reductions and rebates and impermissable values in excess of section 17 of MPRA) | C73: ='SB1'!C10 -> -21883727 | D73: ='SB1'!D10 -> 0 | E73: ='SB1'!E10 -> 0 | F73: ='SB1'!F10 -> 0 | G73: ='SB1'!G10 -> 0 | H73: ='SB1'!H10 -> 0 | I73: ='SB1'!I10 -> 30800518 | J73: 30800518 | K73: 8916791 | L73: ='SB1'!L10 -> -22890379 | M73: ='SB1'!M10 -> -23897554
A74: Water (in excess of 6 kilolitres per indigent household per month) | C74: ='SB1'!C22 -> 0 | D74: ='SB1'!D22 -> 0 | E74: ='SB1'!E22 -> 0 | F74: ='SB1'!F22 -> 0 | G74: ='SB1'!G22 -> 0 | H74: ='SB1'!H22 -> 0 | I74: ='SB1'!I22 -> 0 | J74: 0 | K74: 0 | L74: ='SB1'!L22 -> 0 | M74: ='SB1'!M22 -> 0
A75: Sanitation (in excess of free sanitation service to indigent households) | C75: ='SB1'!C28 -> 0 | D75: ='SB1'!D28 -> 0 | E75: ='SB1'!E28 -> 0 | F75: ='SB1'!F28 -> 0 | G75: ='SB1'!G28 -> 0 | H75: ='SB1'!H28 -> 0 | I75: ='SB1'!I28 -> 0 | J75: 0 | K75: 0 | L75: ='SB1'!L28 -> 0 | M75: ='SB1'!M28 -> 0
A76: Electricity/other energy (in excess of 50 kwh per indigent household per month) | C76: ='SB1'!C16 -> 0 | D76: ='SB1'!D16 -> 0 | E76: ='SB1'!E16 -> 0 | F76: ='SB1'!F16 -> 0 | G76: ='SB1'!G16 -> 0 | H76: ='SB1'!H16 -> 0 | I76: ='SB1'!I16 -> 0 | J76: 0 | K76: 0 | L76: ='SB1'!L16 -> 0 | M76: ='SB1'!M16 -> 0
A77: Refuse (in excess of one removal a week for indigent households) | C77: ='SB1'!C35 -> 0 | D77: ='SB1'!D35 -> 0 | E77: ='SB1'!E35 -> 0 | F77: ='SB1'!F35 -> 0 | G77: ='SB1'!G35 -> 0 | H77: ='SB1'!H35 -> 0 | I77: ='SB1'!I35 -> 0 | J77: 0 | K77: 0 | L77: ='SB1'!L35 -> 0 | M77: ='SB1'!M35 -> 0
A78: Municipal Housing - rental rebates | J78: 0 | K78: 0
A79: Housing - top structure subsidies | B79: 6 | J79: 0 | K79: 0
A80: Other | J80: 0 | K80: 0
A81: Total revenue cost of subsidised services provided | C81: =SUM(C72:C80) -> -21883727 | D81: =SUM(D72:D80) -> 0 | E81: 0 | F81: 0 | G81: 0 | H81: 0 | I81: 30800518 | J81: 30800518 | K81: 8916791 | L81: -22890379 | M81: -23897554
A82: =head27a -> References
A83: 1. Include services provided by another entity; e.g. Eskom
A84: 2. Stand distance > 200m from dwelling
A85: 3. Stand distance <= 200m from dwelling
A86: 4. Borehole, spring, rain-water tank etc.
A87: 5. Must agree to total number of households in municipal area
A88: 6. Include value of subsidy provided by municipality above provincial subsidy level
A89: 7. Only complete if a previous adjusted budget has been approved in the same financial year. Reflect most recent adjusted budget.
A90: 8. Additional cash-backed accumulated funds/unspent funds (MFMA section 18(1)(b) and section 28(2)(e)) identified after the Original Budget approved and after annual financial statements audited (note: only where underspending could not reasonably have been foreseen)
A91: 9. Increases of funds approved under MFMA section 31
A92: 10. Adjustments approved in accordance with MFMA section 29
A93: 11. Adjustments to transfers from National or Provincial Government
A94: 12. Adjusts. = 'Other' Adjustments proposed to be approved; including revenue under-collection (MFMA section 28(2)(a)); additional revenue appropriation on existing programmes (section 28(2))(b); projected savings (section 28(2)(d)); error correction (section 28(2)(f))
A95: 13. G = B + C + D + E + F
A96: 14. Adjusted Budget H = (A or A1) + G
A97: 15. Show number of households receiving at least these levels of services completely free
A98: 16. Must reflect the cost to the municipality of providing the Free Basic Service
A99: 17.Reflect the cost of free or subsidised services in excess to the National policy that are not funded from the Free Basic Services component of the Equitable Share

Sheet SB1
A1: =muni&" - "&ADJB1&" - "&Date -> LIM353 Molemole - Supporting Table SB1 Supporting detail to 'Budgeted Financial Performance' - 46115
A2: =desc -> Description | B2: =head27 -> Ref | C2: =Head2 -> Budget Year 2025/26 | L2: =Head10 -> Budget Year +1 2026/27 | M2: =Head11 -> Budget Year +2 2027/28
C3: =Head6 -> Original Budget | D3: =Head54 -> Prior Adjusted | E3: =Head51 -> Accum. Funds | F3: =Head52 -> Multi-year capital | G3: =Head53 -> Unfore. Unavoid. | H3: =Head55 -> Nat. or Prov. Govt | I3: =Head50 -> Other Adjusts. | J3: =Head56 -> Total Adjusts. | K3: =Head7 -> Adjusted Budget | L3: =Head7 -> Adjusted Budget | M3: =Head7 -> Adjusted Budget
D4: 6 | E4: 7 | F4: 8 | G4: 9 | H4: 10 | I4: 11 | J4: 12 | K4: 13
A5: R thousands | C5: A | D5: A1 | E5: B | F5: C | G5: D | H5: E | I5: F | J5: G | K5: H
A6: REVENUE ITEMS
A7: Non-exchange revenue by source
A8: Property rates
A9: Total Property Rates | C9: 17384130 | D9: 0 | E9: 0 | F9: 0 | G9: 0 | H9: 0 | I9: 30800518 | J9: =SUM(E9:I9) -> 30800518 | K9: =IF(D9=0,C9+J9,D9+J9) -> 48184648 | L9: 18183800 | M9: 18983886
A10: Less Revenue Foregone (exemptions, reductions and rebates and impermissable values in excess of section 17 of MPRA) | C10: -21883727 | D10: 0 | E10: 0 | F10: 0 | G10: 0 | H10: 0 | I10: 30800518 | J10: =SUM(E10:I10) -> 30800518 | K10: =IF(D10=0,C10+J10,D10+J10) -> 8916791 | L10: -22890379 | M10: -23897554
A11: Net Property Rates | C11: =C9-C10 -> 39267857 | D11: =D9-D10 -> 0 | E11: 0 | F11: 0 | G11: 0 | H11: 0 | I11: 0 | J11: 0 | K11: 39267857 | L11: 41074179 | M11: 42881440
A13: Exchange revenue service charges
A14: Service charges - Electricity
A15: Total Service charges - Electricity | C15: 18101434 | D15: 0 | E15: 0 | F15: 0 | G15: 0 | H15: 0 | I15: 0 | J15: =SUM(E15:I15) -> 0 | K15: =IF(D15=0,C15+J15,D15+J15) -> 18101434 | L15: 18934100 | M15: 19767200
A16: Less Revenue Foregone (in excess of 50 kwh per indigent household per month) | J16: =SUM(E16:I16) -> 0 | K16: =IF(D16=0,C16+J16,D16+J16) -> 0
A17: Less Cost of Free Basis Services (50 kwh per indigent household per month) | C17: ='SB5'!E250 -> 3900000 | D17: ='SB5'!F250 -> 0 | E17: ='SB5'!G250 -> 0 | F17: ='SB5'!H250 -> 0 | G17: ='SB5'!I250 -> 0 | H17: ='SB5'!J250 -> 0 | I17: ='SB5'!K250 -> 0 | J17: =SUM(E17:I17) -> 0 | K17: =IF(D17=0,C17+J17,D17+J17) -> 3900000 | L17: ='SB5'!N250 -> 4079400 | M17: ='SB5'!O250 -> 4258893
A18: Net Service charges - Electricity | C18: =C15-C16-C17 -> 14201434 | D18: =D15-D16-D17 -> 0 | E18: 0 | F18: 0 | G18: 0 | H18: 0 | I18: 0 | J18: 0 | K18: 14201434 | L18: 14854700 | M18: 15508307
A20: Service charges - Water
A21: Total Service charges - water | C21: 0 | D21: 0 | E21: 0 | F21: 0 | G21: 0 | H21: 0 | I21: 0 | J21: =SUM(E21:I21) -> 0 | K21: =IF(D21=0,C21+J21,D21+J21) -> 0 | L21: 0 | M21: 0
A22: Less Revenue Foregone (in excess of 6 kilolitres per indigent household per month) | J22: =SUM(E22:I22) -> 0 | K22: =IF(D22=0,C22+J22,D22+J22) -> 0
A23: Less Cost of Free Basis Services (6 kilolitres per indigent household per month) | C23: ='SB5'!E262 -> 0 | D23: ='SB5'!F262 -> 0 | E23: ='SB5'!G262 -> 0 | F23: ='SB5'!H262 -> 0 | G23: ='SB5'!I262 -> 0 | H23: ='SB5'!J262 -> 0 | I23: ='SB5'!K262 -> 0 | J23: =SUM(E23:I23) -> 0 | K23: =IF(D23=0,C23+J23,D23+J23) -> 0 | L23: ='SB5'!N262 -> 0 | M23: ='SB5'!O262 -> 0
A24: Net Service charges - Water | C24: =C21-C22-C23 -> 0 | D24: =D21-D22-D23 -> 0 | E24: 0 | F24: 0 | G24: 0 | H24: 0 | I24: 0 | J24: =J21-J22-J23 -> 0 | K24: 0 | L24: 0 | M24: 0
A26: Service charges - Waste Water Management
A27: Total Service charges - Waste Water Management | C27: 0 | D27: 0 | E27: 0 | F27: 0 | G27: 0 | H27: 0 | I27: 0 | J27: =SUM(E27:I27) -> 0 | K27: =IF(D27=0,C27+J27,D27+J27) -> 0 | L27: 0 | M27: 0
A28: Less Revenue Foregone (in excess of free sanitation service to indigent households) | J28: =SUM(E28:I28) -> 0 | K28: =IF(D28=0,C28+J28,D28+J28) -> 0
A29: Less Cost of Free Basis Services (free sanitation service to indigent households) | C29: ='SB5'!E274 -> 0 | D29: ='SB5'!F274 -> 0 | E29: ='SB5'!G274 -> 0 | F29: ='SB5'!H274 -> 0 | G29: ='SB5'!I274 -> 0 | H29: ='SB5'!J274 -> 0 | I29: ='SB5'!K274 -> 0 | J29: =SUM(E29:I29) -> 0 | K29: =IF(D29=0,C29+J29,D29+J29) -> 0 | L29: ='SB5'!N274 -> 0 | M29: ='SB5'!O274 -> 0
A30: Net Service charges - Waste Water Management | C30: =C27-C28-C29 -> 0 | D30: =D27-D28-D29 -> 0 | E30: 0 | F30: 0 | G30: 0 | H30: 0 | I30: 0 | J30: 0 | K30: 0 | L30: 0 | M30: 0
C31: .
A32: Service charges - Waste Management
A33: Total refuse removal revenue | C33: 1041590 | D33: 0 | E33: 0 | F33: 0 | G33: 0 | H33: 0 | I33: 0 | J33: =SUM(E33:I33) -> 0 | K33: =IF(D33=0,C33+J33,D33+J33) -> 1041590 | L33: 1089504 | M33: 1137442
A34: Total landfill revenue | J34: =SUM(E34:I34) -> 0 | K34: =IF(D34=0,C34+J34,D34+J34) -> 0
A35: Less Revenue Foregone (in excess of one removal a week to indigent households) | J35: =SUM(E35:I35) -> 0 | K35: =IF(D35=0,C35+J35,D35+J35) -> 0
A36: Less Cost of Free Basis Services (removed once a week to indigent households) | C36: ='SB5'!E286 -> 56720 | D36: ='SB5'!F286 -> 0 | E36: ='SB5'!G286 -> 0 | F36: ='SB5'!H286 -> 0 | G36: ='SB5'!I286 -> 0 | H36: ='SB5'!J286 -> 0 | I36: ='SB5'!K286 -> 0 | J36: =SUM(E36:I36) -> 0 | K36: =IF(D36=0,C36+J36,D36+J36) -> 56720 | L36: ='SB5'!N286 -> 59329 | M36: ='SB5'!O286 -> 61939
A37: Service charges - Waste Management | C37: =SUM(C33:C34)-SUM(C35:C36) -> 984870 | D37: =SUM(D33:D34)-SUM(D35:D36) -> 0 | E37: 0 | F37: 0 | G37: 0 | H37: 0 | I37: 0 | J37: 0 | K37: 984870 | L37: 1030175 | M37: 1075503
A42: EXPENDITURE ITEMS
A43: Employee related costs
A44: Basic Salaries and Wages | C44: 70625526 | D44: 0 | E44: 0 | F44: 0 | G44: 0 | H44: 0 | I44: 4392254 | J44: =SUM(E44:I44) -> 4392254 | K44: =IF(D44=0,C44+J44,D44+J44) -> 75017780 | L44: 73913141 | M44: 75748470
A45: Pension and UIF Contributions | C45: 13223109 | D45: 0 | E45: 0 | F45: 0 | G45: 0 | H45: 0 | I45: 1205596 | J45: 1205596 | K45: 14428705 | L45: 13818153 | M45: 14163604
A46: Medical Aid Contributions | C46: 6201719 | D46: 0 | E46: 0 | F46: 0 | G46: 0 | H46: 0 | I46: 494412 | J46: 494412 | K46: 6696131 | L46: 6480797 | M46: 6642814
A47: Overtime | C47: 730151 | D47: 0 | E47: 0 | F47: 0 | G47: 0 | H47: 0 | I47: 0 | J47: 0 | K47: 730151 | L47: 763009 | M47: 782083
A48: Performance Bonus | C48: 7439094 | D48: 0 | E48: 0 | F48: 0 | G48: 0 | H48: 0 | I48: 511414 | J48: 511414 | K48: 7950508 | L48: 7773855 | M48: 7968200
A49: Motor Vehicle Allowance | C49: 11651170 | D49: 0 | E49: 0 | F49: 0 | G49: 0 | H49: 0 | I49: -1493168 | J49: =SUM(E49:I49) -> -1493168 | K49: =IF(D49=0,C49+J49,D49+J49) -> 10158002 | L49: 12175471 | M49: 12479859
A50: Cellphone Allowance | C50: 2867466 | D50: 0 | E50: 0 | F50: 0 | G50: 0 | H50: 0 | I50: -560484 | J50: =SUM(E50:I50) -> -560484 | K50: =IF(D50=0,C50+J50,D50+J50) -> 2306982 | L50: 2996507 | M50: 3071424
A51: Housing Allowances | C51: 309023 | D51: 0 | E51: 0 | F51: 0 | G51: 0 | H51: 0 | I51: 5001 | J51: =SUM(E51:I51) -> 5001 | K51: =IF(D51=0,C51+J51,D51+J51) -> 314024 | L51: 322929 | M51: 331003
A52: Other benefits and allowances | C52: 2111341 | D52: 0 | E52: 0 | F52: 0 | G52: 0 | H52: 0 | I52: -26429 | J52: -26429 | K52: 2084912 | L52: 2206348 | M52: 2261515
A53: Payments in lieu of leave | C53: 516337 | D53: 0 | E53: 0 | F53: 0 | G53: 0 | H53: 0 | I53: -60088 | J53: -60088 | K53: 456249 | L53: 539572 | M53: 553062
A54: Long service awards | C54: 2428318 | D54: 0 | E54: 0 | F54: 0 | G54: 0 | H54: 0 | I54: 16000 | J54: 16000 | K54: 2444318 | L54: 2537590 | M54: 2601029
A55: Post-retirement benefit obligations | B55: 4 | C55: 2669293 | D55: 0 | E55: 0 | F55: 0 | G55: 0 | H55: 0 | I55: 0 | J55: =SUM(E55:I55) -> 0 | K55: =IF(D55=0,C55+J55,D55+J55) -> 2669293 | L55: 2789414 | M55: 2859148
A56: Entertainment | C56: 0 | D56: 0 | E56: 0 | F56: 0 | G56: 0 | H56: 0 | I56: 0 | J56: =SUM(E56:I56) -> 0 | K56: =IF(D56=0,C56+J56,D56+J56) -> 0 | L56: 0 | M56: 0
A57: Scarcity | J57: =SUM(E57:I57) -> 0 | K57: =IF(D57=0,C57+J57,D57+J57) -> 0
A58: Acting and post related allowance | C58: 467773 | D58: 0 | E58: 0 | F58: 0 | G58: 0 | H58: 0 | I58: 406048 | J58: =SUM(E58:I58) -> 406048 | K58: =IF(D58=0,C58+J58,D58+J58) -> 873821 | L58: 488823 | M58: 501043
A59: In kind benefits | J59: =SUM(E59:I59) -> 0 | K59: =IF(D59=0,C59+J59,D59+J59) -> 0
A60: sub-total | C60: =SUM(C44:C59) -> 121240320 | D60: 0 | E60: 0 | F60: 0 | G60: 0 | H60: 0 | I60: 4890556 | J60: =SUM(J44:J59) -> 4890556 | K60: =SUM(K44:K59) -> 126130876 | L60: =SUM(L44:L59) -> 126805609 | M60: 129963254
A61: Less: Employees costs capitalised to PPE | C61: 0 | D61: 0 | E61: 0 | F61: 0 | G61: 0 | H61: 0 | I61: 0 | J61: =SUM(E61:I61) -> 0 | K61: =IF(D61=0,C61+J61,D61+J61) -> 0 | L61: 0 | M61: 0
A62: ="Total "&A43 -> Total Employee related costs | B62: 1 | C62: =C60-C61 -> 121240320 | D62: =D60-D61 -> 0 | E62: 0 | F62: 0 | G62: 0 | H62: 0 | I62: 4890556 | J62: =SUM(J60:J61) -> 4890556 | K62: =SUM(K60:K61) -> 126130876 | L62: =L60-L61 -> 126805609 | M62: =M60-M61 -> 129963254
A73: Depreciation and amortisation
A74: Depreciation of Property, Plant & Equipment | C74: 20815900 | D74: 0 | E74: 0 | F74: 0 | G74: 0 | H74: 0 | I74: 2475971 | J74: =SUM(E74:I74) -> 2475971 | K74: =IF(D74=0,C74+J74,D74+J74) -> 23291871 | L74: 21752609 | M74: 22296428
A75: Lease amortisation | C75: 840356 | D75: 0 | E75: 0 | F75: 0 | G75: 0 | H75: 0 | I75: 968 | J75: =SUM(E75:I75) -> 968 | K75: =IF(D75=0,C75+J75,D75+J75) -> 841324 | L75: 878173 | M75: 900128
A76: Capital asset impairment | C76: 0 | D76: 0 | E76: 0 | F76: 0 | G76: 0 | H76: 0 | I76: 0 | J76: =SUM(E76:I76) -> 0 | K76: =IF(D76=0,C76+J76,D76+J76) -> 0 | L76: 0 | M76: 0
A78: ="Total "&LEFT(A73,35) -> Total Depreciation and amortisation | B78: 1 | C78: =SUM(C74:C76) -> 21656256 | D78: =SUM(D74:D76) -> 0 | E78: 0 | F78: 0 | G78: 0 | H78: 0 | I78: 2476939 | J78: 2476939 | K78: 24133195 | L78: 22630782 | M78: 23196556
A80: Bulk purchases
A81: Electricity Bulk Purchases | C81: 15182813 | D81: 0 | E81: 0 | F81: 0 | G81: 0 | H81: 0 | I81: 389195 | J81: =SUM(E81:I81) -> 389195 | K81: =IF(D81=0,C81+J81,D81+J81) -> 15572008 | L81: 15866040 | M81: 16262691
A82: Water Bulk Purchases | J82: =SUM(E82:I82) -> 0 | K82: =IF(D82=0,C82+J82,D82+J82) -> 0
A83: Total bulk purchases | B83: 1 | C83: =C81 -> 15182813 | D83: =D81 -> 0 | E83: 0 | F83: 0 | G83: 0 | H83: 0 | I83: 389195 | J83: 389195 | K83: 15572008 | L83: 15866040 | M83: 16262691
A85: Transfers and grants
A86: Cash transfers and grants | C86: 0 | D86: 0 | E86: 0 | F86: 0 | G86: 0 | H86: 0 | I86: 0 | J86: =SUM(E86:I86) -> 0 | K86: =IF(D86=0,C86+J86,D86+J86) -> 0 | L86: 0 | M86: 0
A87: Non-cash transfers and grants | C87: 0 | D87: 0 | E87: 0 | F87: 0 | G87: 0 | H87: 0 | I87: 0 | J87: =SUM(E87:I87) -> 0 | K87: =IF(D87=0,C87+J87,D87+J87) -> 0 | L87: 0 | M87: 0
A88: Total transfers and grants | C88: =SUM(C86:C87) -> 0 | D88: 0 | E88: 0 | F88: 0 | G88: 0 | H88: 0 | I88: 0 | J88: =SUM(J86:J87) -> 0 | K88: =SUM(K86:K87) -> 0 | L88: =SUM(L86:L87) -> 0 | M88: =SUM(M86:M87) -> 0
A90: Contracted services
A91: Outsourced Services | C91: 17654109 | D91: 0 | E91: 0 | F91: 0 | G91: 0 | H91: 0 | I91: -1264436 | J91: =SUM(E91:I91) -> -1264436 | K91: =IF(D91=0,C91+J91,D91+J91) -> 16389673 | L91: 10571267 | M91: 13936849
A92: Consultants and Professional Services | C92: 12178692 | D92: 0 | E92: 0 | F92: 0 | G92: 0 | H92: 0 | I92: -840685 | J92: =SUM(E92:I92) -> -840685 | K92: =IF(D92=0,C92+J92,D92+J92) -> 11338007 | L92: 12345733 | M92: 11416879
A93: Contractors | C93: 31371949 | D93: 0 | E93: 0 | F93: 0 | G93: 0 | H93: 0 | I93: 1529072 | J93: =SUM(E93:I93) -> 1529072 | K93: =IF(D93=0,C93+J93,D93+J93) -> 32901021 | L93: 23376733 | M93: 24079658
A94: Total contracted services | C94: =SUM(C91:C93) -> 61204750 | D94: 0 | E94: 0 | F94: 0 | G94: 0 | H94: 0 | I94: -576049 | J94: -576049 | K94: 60628701 | L94: 46293733 | M94: 49433386
A96: Operational Costs
A97: Collection costs | C97: 1088000 | D97: 0 | E97: 0 | F97: 0 | G97: 0 | H97: 0 | I97: 1500000 | J97: =SUM(E97:I97) -> 1500000 | K97: =IF(D97=0,C97+J97,D97+J97) -> 2588000 | L97: 1136960 | M97: 1165384
A98: Contributions to 'other' provisions | J98: =SUM(E98:I98) -> 0 | K98: =IF(D98=0,C98+J98,D98+J98) -> 0
A100: Audit fees | C100: 5905670 | D100: 0 | E100: 0 | F100: 0 | G100: 0 | H100: 0 | I100: 153872 | J100: =SUM(E100:I100) -> 153872 | K100: =IF(D100=0,C100+J100,D100+J100) -> 6059542 | L100: 6171426 | M100: 6325711
A103: Other Operational Costs | C103: 30750827 | D103: 0 | E103: 0 | F103: 0 | G103: 0 | H103: 0 | I103: -328763 | J103: =SUM(E103:I103) -> -328763 | K103: =IF(D103=0,C103+J103,D103+J103) -> 30422064 | L103: 29167415 | M103: 29974127
A124: Total Other Operational Costs | B124: 1 | C124: =+C97+C98+C100+C103 -> 37744497 | D124: =+D97+D98+D100+D103 -> 0 | E124: 0 | F124: 0 | G124: 0 | H124: 0 | I124: 1325109 | J124: 1325109 | K124: 39069606 | L124: 36475801 | M124: 37465222
A126: Repairs and Maintenance by Expenditure Item | B126: 14
A127: Employee related costs | J127: =SUM(E127:I127) -> 0 | K127: =IF(D127=0,C127+J127,D127+J127) -> 0
A128: Inventory Consumed (Project Maintenance) | C128: 0 | D128: 0 | E128: 0 | F128: 0 | G128: 0 | H128: 0 | I128: 0 | J128: =SUM(E128:I128) -> 0 | K128: =IF(D128=0,C128+J128,D128+J128) -> 0 | L128: 0 | M128: 0
A129: Contracted Services | C129: 13210000 | D129: 0 | E129: 0 | F129: 0 | G129: 0 | H129: 0 | I129: 740000 | J129: =SUM(E129:I129) -> 740000 | K129: =IF(D129=0,C129+J129,D129+J129) -> 13950000 | L129: 14296193 | M129: 14631103
A130: Other Expenditure | J130: =SUM(E130:I130) -> 0 | K130: =IF(D130=0,C130+J130,D130+J130) -> 0
A131: Total Repairs and Maintenance Expenditure | B131: 15 | C131: =SUM(C127:C130) -> 13210000 | D131: =SUM(D127:D130) -> 0 | E131: 0 | F131: 0 | G131: 0 | H131: 0 | I131: 740000 | J131: 740000 | K131: 13950000 | L131: 14296193 | M131: 14631103
A133: Inventory Consumed
A134: Inventory Consumed - Water | C134: =-'SB2'!C38 -> 0 | D134: =-'SB2'!D38 -> 0 | E134: =-'SB2'!E38 -> 0 | F134: =-'SB2'!F38 -> 0 | G134: =-'SB2'!G38 -> 0 | H134: =-'SB2'!H38 -> 0 | I134: =-'SB2'!I38 -> 0 | J134: =SUM(E134:I134) -> 0 | K134: =IF(D134=0,C134+J134,D134+J134) -> 0 | L134: =-'SB2'!L38 -> 0 | M134: =-'SB2'!M38 -> 0
A135: Inventory Consumed - Other | C135: =-'SB2'!C68-'SB2'!C78-'SB2'!C86-'SB2'!C95-'SB2'!C104 -> 6410608 | D135: =-'SB2'!D68-'SB2'!D78-'SB2'!D86-'SB2'!D95-'SB2'!D104 -> 0 | E135: =-'SB2'!E68-'SB2'!E78-'SB2'!E86-'SB2'!E95-'SB2'!E104 -> 0 | F135: =-'SB2'!F68-'SB2'!F78-'SB2'!F86-'SB2'!F95-'SB2'!F104 -> 0 | G135: =-'SB2'!G68-'SB2'!G78-'SB2'!G86-'SB2'!G95-'SB2'!G104 -> 0 | H135: =-'SB2'!H68-'SB2'!H78-'SB2'!H86-'SB2'!H95-'SB2'!H104 -> 0 | I135: =-'SB2'!I68-'SB2'!I78-'SB2'!I86-'SB2'!I95-'SB2'!I104 -> -700000 | J135: =SUM(E135:I135) -> -700000 | K135: =IF(D135=0,C135+J135,D135+J135) -> 5710608 | L135: =-'SB2'!L68-'SB2'!L78-'SB2'!L86-'SB2'!L95-'SB2'!L104 -> 6047305 | M135: =-'SB2'!M68-'SB2'!M78-'SB2'!M86-'SB2'!M95-'SB2'!M104 -> 6198488
A136: Total Inventory Consumed & Other Material | C136: =SUM(C134:C135) -> 6410608 | D136: =SUM(D134:D135) -> 0 | E136: 0 | F136: 0 | G136: 0 | H136: 0 | I136: -700000 | J136: -700000 | K136: 5710608 | L136: 6047305 | M136: 6198488
A138: =head27a -> References
A139: 1. Must reconcile with 'Budgeted Financial Performance (Revenue and Expenditure)
A140: 2. Must reconcile to supporting documentation on staff salaries
A142: 4. Expenditure to meet any unfunded obligations
A143: 5. Special consideration may have to be given to including 'goodwill arising' or 'joint venture' budgets where circumstances require this (include separately under relevant notes)
A144: 6. Only complete if a previous adjusted budget has been approved in the same financial year. Reflect most recent adjusted budget.
A145: 7. Additional cash-backed accumulated funds/unspent funds (section 18(1)(b) and section 28(2)(e) MFMA) identified after Original Budget approved and after annual financial statements audited (note: only where underspending could not reasonably be have for
A146: 8. Increases of funds approved under section 31 MFMA
A147: 9. Adjustments approved in accordance with section 29 MFMA
A148: 10. Adjustments to funding allocations from National or Provincial Government
A149: 11. Adjusts. = 'Other' Adjustments proposed to be approved; including revenue under-collection (MFMA section 28(2)(a)); additional revenue appropriation on existing programmes (section 28(2))(b); projected savings (section 28(2)(d)); error correction (sec
A150: 12. G = B + C + D + E + F
A151: 13. Adjusted Budget H = (A or A1) + G
A152: 14. Repairs and Maintenance is not a GRAP item. However to facilitate transparency, municipalities must provide a breakdown of the amounts included in the relevant GRAP items that will be spent on Repairs and Maintenance.
A153: 15. Must reconcile with Repairs and Maintenance by Asset Class (Total Repairs and Maintenance) on Table SA34c.

Sheet SB2
A1: =muni&" - "&ADJB2&" - "&Date -> LIM353 Molemole - Supporting Table SB2 Supporting detail to 'Financial Position Budget' - 46115
A2: =desc -> Description | B2: =head27 -> Ref | C2: =Head2 -> Budget Year 2025/26 | L2: =Head10 -> Budget Year +1 2026/27 | M2: =Head11 -> Budget Year +2 2027/28
C3: =Head6 -> Original Budget | D3: =Head54 -> Prior Adjusted | E3: =Head51 -> Accum. Funds | F3: =Head52 -> Multi-year capital | G3: =Head53 -> Unfore. Unavoid. | H3: =Head55 -> Nat. or Prov. Govt | I3: =Head50 -> Other Adjusts. | J3: =Head56 -> Total Adjusts. | K3: =Head7 -> Adjusted Budget | L3: =Head7 -> Adjusted Budget | M3: =Head7 -> Adjusted Budget
D4: 4 | E4: 5 | F4: 6 | G4: 7 | H4: 8 | I4: 9 | J4: 10 | K4: 11
A5: R thousands | C5: A | D5: A1 | E5: B | F5: C | G5: D | H5: E | I5: F | J5: G | K5: H
A6: ASSETS
A7: Trade and other receivables from exchange transactions
A8: Electricity | C8: 3495571 | D8: 0 | E8: 0 | F8: 0 | G8: 0 | H8: 0 | I8: -2711 | J8: =SUM(E8:I8) -> -2711 | K8: =IF(D8=0,C8+J8,D8+J8) -> 3492860 | L8: 3652872 | M8: 3744194
A9: Water | C9: 0 | D9: 0 | E9: 0 | F9: 0 | G9: 0 | H9: 0 | I9: -9174610 | J9: -9174610 | K9: -9174610 | L9: 0 | M9: 0
A10: Waste | C10: 22447361 | D10: 0 | E10: 0 | F10: 0 | G10: 0 | H10: 0 | I10: 669295 | J10: 669295 | K10: 23116656 | L10: 23457855 | M10: 24051510
A11: Waste Water | C11: 0 | D11: 0 | E11: 0 | F11: 0 | G11: 0 | H11: 0 | I11: 4051970 | J11: 4051970 | K11: 4051970 | L11: 0 | M11: 0
A12: Other trade receivables from exchange transactions | C12: 1017382 | D12: 0 | E12: 0 | F12: 0 | G12: 0 | H12: 0 | I12: 7141651 | J12: 7141651 | K12: 8159033 | L12: 1063165 | M12: 1089743
A13: Gross: Trade and other receivables from exchange transactions | C13: =SUM(C8:C12) -> 26960314 | D13: =SUM(D8:D12) -> 0 | E13: 0 | F13: 0 | G13: 0 | H13: 0 | I13: 2685595 | J13: 2685595 | K13: 29645909 | L13: 28173892 | M13: 28885447
A14: Less: Impairment for debt | B14: 1 | C14: =SUM(C15:C19) -> -21353764 | D14: =SUM(D15:D19) -> 0 | E14: 0 | F14: 0 | G14: 0 | H14: 0 | I14: -8011169 | J14: -8011169 | K14: -29364933 | L14: -22315176 | M14: -22882842
A15: Impairment for Electricity | C15: -2741683 | D15: 0 | E15: 0 | F15: 0 | G15: 0 | H15: 0 | I15: -698618 | J15: =SUM(E15:I15) -> -698618 | K15: =IF(D15=0,C15+J15,D15+J15) -> -3440301 | L15: -2865059 | M15: -2936685
A16: Impairment for Water | C16: 0 | D16: 0 | E16: 0 | F16: 0 | G16: 0 | H16: 0 | I16: 0 | J16: 0 | K16: 0 | L16: 0 | M16: 0
A17: Impairment for Waste | C17: -17814097 | D17: 0 | E17: 0 | F17: 0 | G17: 0 | H17: 0 | I17: -5089887 | J17: -5089887 | K17: -22903984 | L17: -18616224 | M17: -19091416
A18: Impairment for Waste Water | C18: 0 | D18: 0 | E18: 0 | F18: 0 | G18: 0 | H18: 0 | I18: 866240 | J18: 866240 | K18: 866240 | L18: 0 | M18: 0
A19: Impairment for other trade receivalbes from exchange transactions | C19: -797984 | D19: 0 | E19: 0 | F19: 0 | G19: 0 | H19: 0 | I19: -3088904 | J19: -3088904 | K19: -3886888 | L19: -833893 | M19: -854741
A20: Total net Trade and other receivables from Exchange Transactions | C20: =+C13+C14 -> 5606550 | D20: =+D13+D14 -> 0 | E20: 0 | F20: 0 | G20: 0 | H20: 0 | I20: -5325574 | J20: -5325574 | K20: 280976 | L20: 5858716 | M20: 6002605
A22: Receivables from non-exchange transactions
A23: Property rates | C23: 117510028 | D23: 0 | E23: 0 | F23: 0 | G23: 0 | H23: 0 | I23: 18025012 | J23: =SUM(E23:I23) -> 18025012 | K23: =IF(D23=0,C23+J23,D23+J23) -> 135535040 | L23: 137032309 | M23: 158220942
A24: Less: Impairment of Property rates | C24: -37451145 | D24: 0 | E24: 0 | F24: 0 | G24: 0 | H24: 0 | I24: -83978604 | J24: -83978604 | K24: -121429749 | L24: -43140238 | M24: -48791974
A25: Net Property rates | C25: =+C23+C24 -> 80058883 | D25: =+D23+D24 -> 0 | E25: 0 | F25: 0 | G25: 0 | H25: 0 | I25: -65953592 | J25: -65953592 | K25: 14105291 | L25: 93892071 | M25: 109428968
A26: Other receivables from non-exchange transactions | C26: 6173014 | D26: 0 | E26: 0 | F26: 0 | G26: 0 | H26: 0 | I26: 590046 | J26: =SUM(E26:I26) -> 590046 | K26: =IF(D26=0,C26+J26,D26+J26) -> 6763060 | L26: 7003458 | M26: 7867265
A27: Impairment for other receivalbes from non-exchange transactions | C27: -5269103 | D27: 0 | E27: 0 | F27: 0 | G27: 0 | H27: 0 | I27: -501538 | J27: -501538 | K27: -5770641 | L27: -5706295 | M27: -6123505
A28: Net other receivables from non-exchange transactions | C28: =+C26+C27 -> 903911 | D28: =+D26+D27 -> 0 | E28: 0 | F28: 0 | G28: 0 | H28: 0 | I28: 88508 | J28: 88508 | K28: 992419 | L28: 1297163 | M28: 1743760
A29: Total net Receivables from non-exchange transactions | C29: =+C25+C28 -> 80962794 | D29: =+D25+D28 -> 0 | E29: 0 | F29: 0 | G29: 0 | H29: 0 | I29: -65865084 | J29: -65865084 | K29: 15097710 | L29: 95189234 | M29: 111172728
A31: Inventory
A32: Water
A33: Opening Balance | C33: 0 | D33: 0 | E33: 0 | F33: 0 | G33: 0 | H33: 0 | I33: 0 | J33: =SUM(E33:I33) -> 0 | K33: =IF(D33=0,C33+J33,D33+J33) -> 0 | L33: 0 | M33: 0
A34: System Input Volume | C34: =SUM(C35:C37) -> 0 | D34: =SUM(D35:D37) -> 0 | E34: =SUM(E35:E37) -> 0 | F34: 0 | G34: 0 | H34: 0 | I34: 0 | J34: 0 | K34: 0 | L34: 0 | M34: 0
A35: Water Treatment Works | C35: 0 | D35: 0 | E35: 0 | F35: 0 | G35: 0 | H35: 0 | I35: 0 | J35: =SUM(E35:I35) -> 0 | K35: =IF(D35=0,C35+J35,D35+J35) -> 0 | L35: 0 | M35: 0
A36: Bulk Purchases | C36: 0 | D36: 0 | E36: 0 | F36: 0 | G36: 0 | H36: 0 | I36: 0 | J36: =SUM(E36:I36) -> 0 | K36: =IF(D36=0,C36+J36,D36+J36) -> 0 | L36: 0 | M36: 0
A37: Natural Sources | C37: 0 | D37: 0 | E37: 0 | F37: 0 | G37: 0 | H37: 0 | I37: 0 | J37: =SUM(E37:I37) -> 0 | K37: =IF(D37=0,C37+J37,D37+J37) -> 0 | L37: 0 | M37: 0
A38: Authorised Consumption | B38: 12 | C38: =C39+C48 -> 0 | D38: =D39+D48 -> 0 | E38: =E39+E48 -> 0 | F38: 0 | G38: 0 | H38: 0 | I38: 0 | J38: 0 | K38: 0 | L38: 0 | M38: 0
A39: Billed Authorised Consumption | C39: =C40+C44 -> 0 | D39: =D40+D44 -> 0 | E39: =E40+E44 -> 0 | F39: 0 | G39: 0 | H39: 0 | I39: 0 | J39: 0 | K39: 0 | L39: 0 | M39: 0
A40: Billed Metered Consumption | C40: =SUM(C41:C43) -> 0 | D40: =SUM(D41:D43) -> 0 | E40: =SUM(E41:E43) -> 0 | F40: 0 | G40: 0 | H40: 0 | I40: 0 | J40: 0 | K40: 0 | L40: 0 | M40: 0
A41: Free Basic Water | C41: 0 | D41: 0 | E41: 0 | F41: 0 | G41: 0 | H41: 0 | I41: 0 | J41: =SUM(E41:I41) -> 0 | K41: =IF(D41=0,C41+J41,D41+J41) -> 0 | L41: 0 | M41: 0
A42: Subsidised Water | C42: 0 | D42: 0 | E42: 0 | F42: 0 | G42: 0 | H42: 0 | I42: 0 | J42: =SUM(E42:I42) -> 0 | K42: =IF(D42=0,C42+J42,D42+J42) -> 0 | L42: 0 | M42: 0
A43: Revenue Water | C43: 0 | D43: 0 | E43: 0 | F43: 0 | G43: 0 | H43: 0 | I43: 0 | J43: =SUM(E43:I43) -> 0 | K43: =IF(D43=0,C43+J43,D43+J43) -> 0 | L43: 0 | M43: 0
A44: Billed Unmetered Consumption | C44: =SUM(C45:C47) -> 0 | D44: =SUM(D45:D47) -> 0 | E44: =SUM(E45:E47) -> 0 | F44: 0 | G44: 0 | H44: 0 | I44: 0 | J44: 0 | K44: 0 | L44: 0 | M44: 0
A45: Free Basic Water | C45: 0 | D45: 0 | E45: 0 | F45: 0 | G45: 0 | H45: 0 | I45: 0 | J45: =SUM(E45:I45) -> 0 | K45: =IF(D45=0,C45+J45,D45+J45) -> 0 | L45: 0 | M45: 0
A46: Subsidised Water | C46: 0 | D46: 0 | E46: 0 | F46: 0 | G46: 0 | H46: 0 | I46: 0 | J46: =SUM(E46:I46) -> 0 | K46: =IF(D46=0,C46+J46,D46+J46) -> 0 | L46: 0 | M46: 0
A47: Revenue Water | C47: 0 | D47: 0 | E47: 0 | F47: 0 | G47: 0 | H47: 0 | I47: 0 | J47: =SUM(E47:I47) -> 0 | K47: =IF(D47=0,C47+J47,D47+J47) -> 0 | L47: 0 | M47: 0
A48: UnBilled Authorised Consumption | C48: =SUM(C49:C50) -> 0 | D48: =SUM(D49:D50) -> 0 | E48: =SUM(E49:E50) -> 0 | F48: 0 | G48: 0 | H48: 0 | I48: 0 | J48: 0 | K48: 0 | L48: 0 | M48: 0
A49: Unbilled Metered Consumption | C49: 0 | D49: 0 | E49: 0 | F49: 0 | G49: 0 | H49: 0 | I49: 0 | J49: =SUM(E49:I49) -> 0 | K49: =IF(D49=0,C49+J49,D49+J49) -> 0 | L49: 0 | M49: 0
A50: Unbilled Unmetered Consumption | C50: 0 | D50: 0 | E50: 0 | F50: 0 | G50: 0 | H50: 0 | I50: 0 | J50: =SUM(E50:I50) -> 0 | K50: =IF(D50=0,C50+J50,D50+J50) -> 0 | L50: 0 | M50: 0
A51: Water Losses | C51: =C52+C55 -> 0 | D51: =D52+D55 -> 0 | E51: =E52+E55 -> 0 | F51: 0 | G51: 0 | H51: 0 | I51: 0 | J51: 0 | K51: 0 | L51: 0 | M51: 0
A52: Apparent losses | C52: =SUM(C53:C54) -> 0 | D52: =SUM(D53:D54) -> 0 | E52: =SUM(E53:E54) -> 0 | F52: 0 | G52: 0 | H52: 0 | I52: 0 | J52: 0 | K52: 0 | L52: 0 | M52: 0
A53: Unauthorised Consumption | C53: 0 | D53: 0 | E53: 0 | F53: 0 | G53: 0 | H53: 0 | I53: 0 | J53: =SUM(E53:I53) -> 0 | K53: =IF(D53=0,C53+J53,D53+J53) -> 0 | L53: 0 | M53: 0
A54: Customer Meter Inaccuracies | C54: 0 | D54: 0 | E54: 0 | F54: 0 | G54: 0 | H54: 0 | I54: 0 | J54: =SUM(E54:I54) -> 0 | K54: =IF(D54=0,C54+J54,D54+J54) -> 0 | L54: 0 | M54: 0
A55: Real losses | C55: =SUM(C56:C60) -> 0 | D55: =SUM(D56:D60) -> 0 | E55: =SUM(E56:E60) -> 0 | F55: 0 | G55: 0 | H55: 0 | I55: 0 | J55: 0 | K55: 0 | L55: 0 | M55: 0
A56: Leakage on Transmission and Distribution Mains | C56: 0 | D56: 0 | E56: 0 | F56: 0 | G56: 0 | H56: 0 | I56: 0 | J56: =SUM(E56:I56) -> 0 | K56: =IF(D56=0,C56+J56,D56+J56) -> 0 | L56: 0 | M56: 0
A57: Leakage and Overflows at Storage Tanks/Reservoirs | C57: 0 | D57: 0 | E57: 0 | F57: 0 | G57: 0 | H57: 0 | I57: 0 | J57: =SUM(E57:I57) -> 0 | K57: =IF(D57=0,C57+J57,D57+J57) -> 0 | L57: 0 | M57: 0
A58: Leakage on Service Connections up to the point of Customer Meter | C58: 0 | D58: 0 | E58: 0 | F58: 0 | G58: 0 | H58: 0 | I58: 0 | J58: =SUM(E58:I58) -> 0 | K58: =IF(D58=0,C58+J58,D58+J58) -> 0 | L58: 0 | M58: 0
A59: Data Transfer and Management Errors | C59: 0 | D59: 0 | E59: 0 | F59: 0 | G59: 0 | H59: 0 | I59: 0 | J59: =SUM(E59:I59) -> 0 | K59: =IF(D59=0,C59+J59,D59+J59) -> 0 | L59: 0 | M59: 0
A60: Unavoidable Annual Real Losses | C60: 0 | D60: 0 | E60: 0 | F60: 0 | G60: 0 | H60: 0 | I60: 0 | J60: =SUM(E60:I60) -> 0 | K60: =IF(D60=0,C60+J60,D60+J60) -> 0 | L60: 0 | M60: 0
A61: Non-revenue Water | C61: =C51+C48 -> 0 | D61: =D51+D48 -> 0 | E61: =E51+E48 -> 0 | F61: 0 | G61: 0 | H61: 0 | I61: 0 | J61: 0 | K61: 0 | L61: 0 | M61: 0
A62: Correction of Prior period errors | C62: 0 | D62: 0 | E62: 0 | F62: 0 | G62: 0 | H62: 0 | I62: 0 | J62: =SUM(E62:I62) -> 0 | K62: =IF(D62=0,C62+J62,D62+J62) -> 0 | L62: 0 | M62: 0
A63: Closing Balance Water | C63: =C33+C34+C38+C51+C62 -> 0 | D63: =D33+D34+D38+D51+D62 -> 0 | E63: 0 | F63: 0 | G63: 0 | H63: 0 | I63: 0 | J63: 0 | K63: 0 | L63: 0 | M63: 0
A65: Agricultural
A66: Opening Balance | J66: =SUM(E66:I66) -> 0 | K66: =IF(D66=0,C66+J66,D66+J66) -> 0 | L66: =K72 -> 0 | M66: =L72 -> 0
A67: Acquisitions | J67: 0 | K67: 0 | L67: =K67*1.05 -> 0 | M67: =L67*1.06 -> 0
A68: Issues | B68: 13 | J68: 0 | K68: 0 | L68: =K68*1.05 -> 0 | M68: =L68*1.06 -> 0
A69: Adjustments | B69: 14 | J69: 0 | K69: 0 | L69: =K69*1.05 -> 0 | M69: 0
A70: Write-offs | B70: 15 | J70: 0 | K70: 0 | L70: =K70*1.05 -> 0 | M70: 0
A71: Correction of Prior period errors | J71: 0 | K71: 0
A72: Closing balance - Agricultural | C72: =SUM(C66:C71) -> 0 | D72: =SUM(D66:D71) -> 0 | E72: 0 | F72: 0 | G72: 0 | H72: 0 | I72: 0 | J72: 0 | K72: 0 | L72: 0 | M72: 0
A74: Consumables
A75: Standard Rated
A76: Opening Balance | C76: 100188 | D76: 0 | E76: 0 | F76: 0 | G76: 0 | H76: 0 | I76: 262539 | J76: =SUM(E76:I76) -> 262539 | K76: =IF(D76=0,C76+J76,D76+J76) -> 362727 | L76: 100188 | M76: 100188
A77: Acquisitions | C77: 2579608 | D77: 0 | E77: 0 | F77: 0 | G77: 0 | H77: 0 | I77: -50000 | J77: -50000 | K77: 2529608 | L77: 2695690 | M77: 2763083
A78: Issues | B78: 13 | C78: -2579608 | D78: 0 | E78: 0 | F78: 0 | G78: 0 | H78: 0 | I78: 50000 | J78: 50000 | K78: -2529608 | L78: -2695690 | M78: -2763083
A79: Adjustments | B79: 14 | C79: 0 | D79: 0 | E79: 0 | F79: 0 | G79: 0 | H79: 0 | I79: 0 | J79: 0 | K79: 0 | L79: 0 | M79: 0
A80: Write-offs | B80: 15 | C80: 0 | D80: 0 | E80: 0 | F80: 0 | G80: 0 | H80: 0 | I80: 0 | J80: 0 | K80: 0 | L80: 0 | M80: 0
A81: Correction of Prior period errors | C81: 0 | D81: 0 | E81: 0 | F81: 0 | G81: 0 | H81: 0 | I81: 0 | J81: 0 | K81: 0 | L81: 0 | M81: 0
A82: Closing balance - Consumables Standard Rated | C82: =SUM(C76:C81) -> 100188 | D82: =SUM(D76:D81) -> 0 | E82: 0 | F82: 0 | G82: 0 | H82: 0 | I82: 262539 | J82: 262539 | K82: 362727 | L82: 100188 | M82: 100188
A83: Zero Rated
A84: Opening Balance | C84: 0 | D84: 0 | E84: 0 | F84: 0 | G84: 0 | H84: 0 | I84: 0 | J84: =SUM(E84:I84) -> 0 | K84: =IF(D84=0,C84+J84,D84+J84) -> 0 | L84: 0 | M84: 0
A85: Acquisitions | C85: 2627022 | D85: 0 | E85: 0 | F85: 0 | G85: 0 | H85: 0 | I85: 0 | J85: 0 | K85: 2627022 | L85: 2745238 | M85: 2813869
A86: Issues | B86: 13 | C86: -2627022 | D86: 0 | E86: 0 | F86: 0 | G86: 0 | H86: 0 | I86: 0 | J86: 0 | K86: -2627022 | L86: -2745238 | M86: -2813869
A87: Adjustments | B87: 14 | C87: 0 | D87: 0 | E87: 0 | F87: 0 | G87: 0 | H87: 0 | I87: 0 | J87: 0 | K87: 0 | L87: 0 | M87: 0
A88: Write-offs | B88: 15 | C88: 0 | D88: 0 | E88: 0 | F88: 0 | G88: 0 | H88: 0 | I88: 0 | J88: 0 | K88: 0 | L88: 0 | M88: 0
A89: Correction of Prior period errors | J89: 0 | K89: 0
A90: Closing balance - Consumables Zero Rated | C90: =SUM(C84:C89) -> 0 | D90: =SUM(D84:D89) -> 0 | E90: 0 | F90: 0 | G90: 0 | H90: 0 | I90: 0 | J90: 0 | K90: 0 | L90: 0 | M90: 0
A92: Finished Goods
A93: Opening Balance | J93: =SUM(E93:I93) -> 0 | K93: =IF(D93=0,C93+J93,D93+J93) -> 0 | L93: =K99 -> 0 | M93: =L99 -> 0
A94: Acquisitions | J94: 0 | K94: 0 | L94: =K94*1.055 -> 0 | M94: =L94*1.065 -> 0
A95: Issues | B95: 13 | J95: 0 | K95: 0 | L95: =K95*1.055 -> 0 | M95: =L95*1.065 -> 0
A96: Adjustments | B96: 14 | J96: 0 | K96: 0 | L96: =K96*1.055 -> 0 | M96: =L96*1.065 -> 0
A97: Write-offs | B97: 15 | J97: 0 | K97: 0 | L97: =K97*1.055 -> 0 | M97: =L97*1.065 -> 0
A98: Correction of Prior period errors | J98: 0 | K98: 0
A99: Closing balance - Finished Goods | C99: =SUM(C93:C98) -> 0 | D99: =SUM(D93:D98) -> 0 | E99: 0 | F99: 0 | G99: 0 | H99: 0 | I99: 0 | J99: 0 | K99: 0 | L99: 0 | M99: 0
A101: Materials and Supplies
A102: Opening Balance | C102: 55815 | D102: 0 | E102: 0 | F102: 0 | G102: 0 | H102: 0 | I102: -55814 | J102: =SUM(E102:I102) -> -55814 | K102: =IF(D102=0,C102+J102,D102+J102) -> 1 | L102: 55815 | M102: 55815
A103: Acquisitions | C103: 1203978 | D103: 0 | E103: 0 | F103: 0 | G103: 0 | H103: 0 | I103: -650000 | J103: -650000 | K103: 553978 | L103: 606377 | M103: 621536
A104: Issues | B104: 13 | C104: -1203978 | D104: 0 | E104: 0 | F104: 0 | G104: 0 | H104: 0 | I104: 650000 | J104: 650000 | K104: -553978 | L104: -606377 | M104: -621536
A105: Adjustments | B105: 14 | C105: 0 | D105: 0 | E105: 0 | F105: 0 | G105: 0 | H105: 0 | I105: 0 | J105: 0 | K105: 0 | L105: 0 | M105: 0
A106: Write-offs | B106: 15 | C106: 0 | D106: 0 | E106: 0 | F106: 0 | G106: 0 | H106: 0 | I106: 0 | J106: 0 | K106: 0 | L106: 0 | M106: 0
A107: Correction of Prior period errors | C107: 0 | D107: 0 | E107: 0 | F107: 0 | G107: 0 | H107: 0 | I107: 0 | J107: 0 | K107: 0 | L107: 0 | M107: 0
A108: Closing balance - Materials and Supplies | C108: =SUM(C102:C107) -> 55815 | D108: =SUM(D102:D107) -> 0 | E108: 0 | F108: 0 | G108: 0 | H108: 0 | I108: -55814 | J108: -55814 | K108: 1 | L108: 55815 | M108: 55815
A110: Work-in-progress
A111: Opening Balance | J111: =SUM(E111:I111) -> 0 | K111: =IF(D111=0,C111+J111,D111+J111) -> 0 | L111: =K114 -> 0 | M111: =L114 -> 0
A112: Materials | J112: =SUM(E112:I112) -> 0 | K112: =IF(D112=0,C112+J112,D112+J112) -> 0 | L112: =K112*1.055 -> 0 | M112: =L112*1.065 -> 0
A113: Transfers | J113: =SUM(E113:I113) -> 0 | K113: =IF(D113=0,C113+J113,D113+J113) -> 0 | L113: =K113*1.055 -> 0 | M113: =L113*1.065 -> 0
A114: Closing balance - Work-in-progress | C114: =SUM(C111:C113) -> 0 | D114: =SUM(D111:D113) -> 0 | E114: 0 | F114: 0 | G114: 0 | H114: 0 | I114: 0 | J114: 0 | K114: 0 | L114: 0 | M114: 0
A116: Housing Stock
A117: Opening Balance | J117: =SUM(E117:I117) -> 0 | K117: =IF(D117=0,C117+J117,D117+J117) -> 0 | L117: =K122 -> 0 | M117: =L122 -> 0
A118: Acquisitions | J118: =SUM(E118:I118) -> 0 | K118: =IF(D118=0,C118+J118,D118+J118) -> 0 | L118: =K118*1.055 -> 0 | M118: =L118*1.065 -> 0
A119: Transfers | J119: =SUM(E119:I119) -> 0 | K119: =IF(D119=0,C119+J119,D119+J119) -> 0 | L119: =K119*1.055 -> 0 | M119: =L119*1.065 -> 0
A120: Sales | J120: =SUM(E120:I120) -> 0 | K120: =IF(D120=0,C120+J120,D120+J120) -> 0 | L120: =K120*1.055 -> 0 | M120: =L120*1.065 -> 0
A121: Correction of Prior period errors | J121: =SUM(E121:I121) -> 0 | K121: =IF(D121=0,C121+J121,D121+J121) -> 0
A122: Closing Balance - Housing Stock | C122: =SUM(C117:C121) -> 0 | D122: =SUM(D117:D121) -> 0 | E122: 0 | F122: 0 | G122: 0 | H122: 0 | I122: 0 | J122: 0 | K122: 0 | L122: 0 | M122: 0
A124: Land
A125: Opening Balance | C125: 0 | D125: 0 | E125: 0 | F125: 0 | G125: 0 | H125: 0 | I125: 0 | J125: =SUM(E125:I125) -> 0 | K125: =IF(D125=0,C125+J125,D125+J125) -> 0 | L125: 0 | M125: 0
A126: Acquisitions | C126: 0 | D126: 0 | E126: 0 | F126: 0 | G126: 0 | H126: 0 | I126: 0 | J126: 0 | K126: 0 | L126: 0 | M126: 0
A127: Sales | C127: 0 | D127: 0 | E127: 0 | F127: 0 | G127: 0 | H127: 0 | I127: 0 | J127: 0 | K127: 0 | L127: 0 | M127: 0
A128: Adjustments | C128: 0 | D128: 0 | E128: 0 | F128: 0 | G128: 0 | H128: 0 | I128: 0 | J128: 0 | K128: 0 | L128: 0 | M128: 0
A129: Correction of Prior period errors | C129: 0 | D129: 0 | E129: 0 | F129: 0 | G129: 0 | H129: 0 | I129: 0 | J129: 0 | K129: 0 | L129: 0 | M129: 0
A130: Transfers | J130: 0 | K130: 0 | L130: =K130*1.055 -> 0 | M130: =L130*1.065 -> 0
A131: Closing Balance - Land | C131: =SUM(C125:C130) -> 0 | D131: =SUM(D125:D130) -> 0 | E131: 0 | F131: 0 | G131: 0 | H131: 0 | I131: 0 | J131: 0 | K131: 0 | L131: 0 | M131: 0
A132: Closing Balance - Inventory & Consumables | C132: =C63+C72+C82+C90+C99+C108+C114+C122+C131 -> 156003 | D132: =D63+D72+D82+D90+D99+D108+D114+D122+D131 -> 0 | E132: 0 | F132: 0 | G132: 0 | H132: 0 | I132: 206725 | J132: 206725 | K132: 362728 | L132: 156003 | M132: 156003
A134: Property, plant & equipment
A135: PPE at cost/valuation (excl. finance leases) | C135: 540395521 | D135: 0 | E135: 0 | F135: 0 | G135: 0 | H135: 0 | I135: 53602933 | J135: =SUM(E135:I135) -> 53602933 | K135: =IF(D135=0,C135+J135,D135+J135) -> 593998454 | L135: 579282607 | M135: 622331008
A136: Leases recognised as PPE | B136: 2 | C136: 48388264 | D136: 0 | E136: 0 | F136: 0 | G136: 0 | H136: 0 | I136: -5 | J136: =SUM(E136:I136) -> -5 | K136: =IF(D136=0,C136+J136,D136+J136) -> 48388259 | L136: 48388264 | M136: 48388264
A137: Less: Accumulated depreciation | C137: 105074724 | D137: 0 | E137: 0 | F137: 0 | G137: 0 | H137: 0 | I137: 25018588 | J137: =SUM(E137:I137) -> 25018588 | K137: =IF(D137=0,C137+J137,D137+J137) -> 130093312 | L137: 105074724 | M137: 105074724
A138: ="Total "&A134 -> Total Property, plant & equipment | B138: 1 | C138: =SUM(C135:C136)-C137 -> 483709061 | D138: =SUM(D135:D136)-D137 -> 0 | E138: 0 | F138: 0 | G138: 0 | H138: 0 | I138: 28584340 | J138: 28584340 | K138: 512293401 | L138: =SUM(L135:L136)-L137 -> 522596147 | M138: =SUM(M135:M136)-M137 -> 565644548
A140: LIABILITIES
A141: Current liabilities - Financial liabilities
A142: Short term loans (other than bank overdraft) | J142: =SUM(E142:I142) -> 0 | K142: =IF(D142=0,C142+J142,D142+J142) -> 0
A143: Current portion of long-term liabilities | C143: 0 | D143: 0 | E143: 0 | F143: 0 | G143: 0 | H143: 0 | I143: 0 | J143: =SUM(E143:I143) -> 0 | K143: =IF(D143=0,C143+J143,D143+J143) -> 0 | L143: 0 | M143: 0
A144: ="Total "&A141 -> Total Current liabilities - Financial liabilities | C144: =SUM(C142:C143) -> 0 | D144: 0 | E144: 0 | F144: 0 | G144: 0 | H144: 0 | I144: 0 | J144: 0 | K144: 0 | L144: 0 | M144: 0
A146: Trade and other payables
A147: Trade and other payables from exchange transactions | C147: 42369912 | D147: 0 | E147: 0 | F147: 0 | G147: 0 | H147: 0 | I147: 3314733 | J147: =SUM(E147:I147) -> 3314733 | K147: =IF(D147=0,C147+J147,D147+J147) -> 45684645 | L147: 44983566 | M147: 44543996
A148: Other trade payables from exchange transactions
A149: Trade payables from Non-exchange transactions: Unspent conditional Grants | C149: 1260124 | D149: 0 | E149: 0 | F149: 0 | G149: 0 | H149: 0 | I149: 149806 | J149: =SUM(E149:I149) -> 149806 | K149: =IF(D149=0,C149+J149,D149+J149) -> 1409930 | L149: 441426 | M149: 451314
A150: Trade payables from Non-exchange transactions: Other | J150: =SUM(E150:I150) -> 0 | K150: =IF(D150=0,C150+J150,D150+J150) -> 0
A151: VAT | C151: 0 | D151: 0 | E151: 0 | F151: 0 | G151: 0 | H151: 0 | I151: 7506016 | J151: =SUM(E151:I151) -> 7506016 | K151: =IF(D151=0,C151+J151,D151+J151) -> 7506016 | L151: 0 | M151: 0
A152: Total Trade and other payables | B152: 1 | C152: =SUM(C147:C151) -> 43630036 | D152: 0 | E152: 0 | F152: 0 | G152: 0 | H152: 0 | I152: 10970555 | J152: 10970555 | K152: 54600591 | L152: 45424992 | M152: 44995310
A153: Non current liabilities - Financial liabilities
A154: Borrowing | B154: 3 | C154: 0 | D154: 0 | E154: 0 | F154: 0 | G154: 0 | H154: 0 | I154: 0 | J154: =SUM(E154:I154) -> 0 | K154: =IF(D154=0,C154+J154,D154+J154) -> 0 | L154: 0 | M154: 0
A155: Other financial liabilities | J155: =SUM(E155:I155) -> 0 | K155: =IF(D155=0,C155+J155,D155+J155) -> 0
A156: Total Non current liabilities - Financial liabilities | C156: =SUM(C154:C155) -> 0 | D156: 0 | E156: 0 | F156: 0 | G156: 0 | H156: 0 | I156: 0 | J156: 0 | K156: 0 | L156: 0 | M156: 0
A158: Non current liabilities - Long Term portion of trade payables | C158: =SUM(C159:C162) -> 0 | D158: =SUM(D159:D162) -> 0 | E158: 0 | F158: 0 | G158: 0 | H158: 0 | I158: 0 | J158: =SUM(E158:I158) -> 0 | K158: =IF(D158=0,C158+J158,D158+J158) -> 0 | L158: =SUM(L159:L162) -> 0 | M158: 0
A159: Elelctricty Bulk Purchases | J159: =SUM(E159:I159) -> 0 | K159: =IF(D159=0,C159+J159,D159+J159) -> 0
A160: Payables and Accruals - General | J160: 0 | K160: 0
A161: Water Bulk Purchases | J161: 0 | K161: 0
A162: Municipal Debt Relief | J162: 0 | K162: 0
A164: Provisions - non current
A165: Retirement benefits | C165: 16406413 | D165: 0 | E165: 0 | F165: 0 | G165: 0 | H165: 0 | I165: 5744002 | J165: =SUM(E165:I165) -> 5744002 | K165: =IF(D165=0,C165+J165,D165+J165) -> 22150415 | L165: 19845940 | M165: 23371456
A167: Refuse landfill site rehabilitation | C167: 32352841 | D167: 0 | E167: 0 | F167: 0 | G167: 0 | H167: 0 | I167: 2917763 | J167: =SUM(E167:I167) -> 2917763 | K167: =IF(D167=0,C167+J167,D167+J167) -> 35270604 | L167: 33808719 | M167: 34653937
A168: Other | C168: 9369651 | D168: 0 | E168: 0 | F168: 0 | G168: 0 | H168: 0 | I168: 2141001 | J168: =SUM(E168:I168) -> 2141001 | K168: =IF(D168=0,C168+J168,D168+J168) -> 11510652 | L168: 10873042 | M168: 12414017
A169: Total Provisions - non current | C169: =+C165+C167+C168 -> 58128905 | D169: =+D165+D167+D168 -> 0 | E169: 0 | F169: 0 | G169: 0 | H169: 0 | I169: 10802766 | J169: 10802766 | K169: 68931671 | L169: 64527701 | M169: 70439410
A171: CHANGES IN NET ASSETS
A172: Accumulated surplus/(Deficit)
A173: =A172&" - opening balance" -> Accumulated surplus/(Deficit) - opening balance | C173: 497365466 | D173: 0 | E173: 0 | F173: 0 | G173: 0 | H173: 0 | I173: -63065281 | J173: =SUM(E173:I173) -> -63065281 | K173: =IF(D173=0,C173+J173,D173+J173) -> 434300185 | L173: 537108829 | M173: 573624467
A174: GRAP adjustments | C174: 0 | D174: 0 | E174: 0 | F174: 0 | G174: 0 | H174: 0 | I174: 0 | J174: =SUM(E174:I174) -> 0 | K174: =IF(D174=0,C174+J174,D174+J174) -> 0 | L174: 0 | M174: 0
A175: Restated balance | C175: =+C173+C174 -> 497365466 | D175: =+D173+D174 -> 0 | E175: 0 | F175: 0 | G175: 0 | H175: 0 | I175: -63065281 | J175: -63065281 | K175: 434300185 | L175: 537108829 | M175: 573624467
A176: Surplus/(Deficit) | C176: 64396511 | D176: 0 | E176: 0 | F176: 0 | G176: 0 | H176: 0 | I176: 0 | J176: =SUM(E176:I176) -> 0 | K176: =IF(D176=0,C176+J176,D176+J176) -> 64396511 | L176: 58807222 | M176: 65740199
A178: Transfers to/from Reserves | C178: 0 | D178: 0 | E178: 0 | F178: 0 | G178: 0 | H178: 0 | I178: 7695680 | J178: =SUM(E178:I178) -> 7695680 | K178: =IF(D178=0,C178+J178,D178+J178) -> 7695680 | L178: 0 | M178: 0
